Workbook

Sheet sex-age
A1: Only datasets with probabilities and SE | H1: Survival probability | P1: Recapture probability
D2: 2018-06-09 | E2: 2018-08-22 | F2: =(E2-D2) -> 74 | H2: Males | L2: Females | P2: Males | T2: Females
A3: Family | B3: Species | C3: Study period | D3: Start | E3: End | F3: Duration | G3: Country | H3: Young | I3: SE | J3: Mature-Phi-m | K3: SE-phi-m | L3: Young | M3: SE | N3: Mature-phi-f | O3: SE-phi-f | P3: Young | Q3: SE | R3: Mature-p-m | S3: SE-p-m | T3: Young | U3: SE | V3: Mature-p-f | W3: SE-p-f | X3: previous_chapter | Y3: Source
A4: Aeshnidae | B4: Anax imperator | C4: May-Sep | D4: 2017-05-31 | E4: 2017-09-07 | F4: =99+74 -> 173 | G4: France | J4: 0.89 | K4: =(0.92-0.85)/3.92 -> 0.01785714286 | R4: 0.56 | S4: =(0.69-0.42)/3.92 -> 0.06887755102 | X4: no | Y4: Minot M, Besnard A, Husté A (2021) Habitat use and movements of a large dragonfly (Odonata: Anax imperator) in a pond network. Freshw Biol 66:241–255. https://doi.org/10.1111/fwb.13632
A5: Calopterygidae | B5: Calopteryx cornelia | C5: 4 June-3 Sept | D5: 1977-06-04 | E5: 1977-08-05 | F5: =E5-D5 -> 62 | G5: Japan | J5: 0.9469559 | K5: 0.006714 | N5: 0.9234709 | O5: 0.0115008 | R5: 0.3467283 | S5: 0.017393 | V5: 0.382406 | W5: 0.0265574 | X5: yes | Y5: Recalculated from Suzuki, K. & Tamaishi, A. 1981
A6: Calopterygidae | B6: Calopteryx exul | C6: May-Jul | D6: 2016-05-21 | E6: 2016-07-02 | F6: =E6-D6 -> 42 | G6: Algeria | J6: 0.84 | K6: =(0.86-0.8)/3.92 -> 0.01530612245 | N6: 0.84 | O6: =(0.87-0.82)/3.92 -> 0.01275510204 | R6: 0.56 | S6: =(0.61-0.51)/3.92 -> 0.02551020408 | V6: 0.29 | W6: =(0.33-0.25)/3.92 -> 0.02040816327 | X6: no | Y6: Mellal MK, Bensouilah M, Houhamdi M, Khelifa R (2018) Reproductive habitat provisioning promotes survival and reproduction of the endangered endemic damselfly Calopteryx exul. J Insect Conserv 22:563–570. https://doi.org/10.1007/s10841-018-0085-5
A7: Calopterygidae | B7: Calopteryx haemorrhoidalis | C7: Jun-Sept | D7: 1996-06-21 | E7: 1996-09-04 | F7: 75 | G7: Spain | J7: 0.9637 | K7: 0.0034 | N7: 0.9591 | O7: 0.0068 | R7: 0.8264 | S7: 0.0069 | V7: 0.6156 | W7: 0.0177 | X7: no | Y7: Munguía-Steyer R, Córdoba-Aguilar A, Romo-Beltrán A (2010) Do individuals in better condition survive for longer? Field survival estimates according to male alternative reproductive tactics and sex. J Evol Biol 23:175–184. https://doi.org/10.1111/j.1420-9101.2009.01894.x
A8: Calopterygidae | B8: Calopteryx haemorrhoidalis | C8: 12-21 Aug | D8: 1997-08-12 | E8: 1997-08-21 | F8: 9 | G8: Italy | J8: 0.8781047 | K8: 0.0212928 | N8: 0.8951155 | O8: 0.0281449 | R8: 0.6239613 | S8: 0.0356255 | V8: 0.2952863 | W8: 0.035919 | X8: yes | Y8: Recalculated from Cordero (1999) J Insect Behav
A9: Calopterygidae | B9: Calopteryx haemorrhoidalis | C9: 4-14 Aug | D9: 2006-08-04 | E9: 2006-08-14 | F9: 10 | G9: Italy | J9: 0.8824131 | K9: 0.0164541 | R9: 0.6504691 | S9: 0.0341314 | X9: yes | Y9: Recalculated from Contreras-Garduño J, Córdoba-Aguilar A, Azpilicueta Amorín M, Cordero-Rivera A (2011) Juvenile hormone favors sexually-selected traits but impairs fat reserves and abdomen mass in males and females. Evol Ecol 25:845–856
A10: Calopterygidae | B10: Calopteryx haemorrhoidalis | C10: 5-14 Aug | D10: 2008-08-05 | E10: 2008-08-14 | F10: 9 | G10: Italy | H10: 0.928462 | I10: 0.0604945 | J10: 0.9016691 | K10: 0.0181753 | L10: 0.8654526 | M10: 0.0482665 | N10: 0.9179249 | O10: 0.0148937 | P10: 0.3517155 | Q10: 0.1002872 | R10: 0.5687635 | S10: 0.0322685 | T10: 0.4006355 | U10: 0.0716009 | V10: 0.3709886 | W10: 0.0238672 | X10: yes | Y10: Recalculated from Contreras-Garduño J, Córdoba-Aguilar A, Azpilicueta Amorín M, Cordero-Rivera A (2011) Juvenile hormone favors sexually-selected traits but impairs fat reserves and abdomen mass in males and females. Evol Ecol 25:845–856
A11: Calopterygidae | B11: Calopteryx haemorrhoidalis | C11: 19 June-15 Sep | D11: 1985-06-19 | E11: 1985-09-14 | F11: 87 | G11: Spain | H11: 0.8824228 | I11: 0.0296671 | J11: 0.7986151 | K11: 0.0419406 | L11: 0.8423439 | M11: 0.0366658 | N11: 0.7606023 | O11: 0.0550446 | P11: 0.1115934 | Q11: 0.0348494 | R11: 0.4358294 | S11: 0.0766283 | T11: 0.2363549 | U11: 0.0558251 | V11: 0.3174852 | W11: 0.095069 | X11: yes | Y11: Recalculated from Cordero (1989)
A12: Calopterygidae | B12: Calopteryx haemorrhoidalis | C12: 3 July-6 Sep | D12: 1986-07-03 | E12: 1986-09-06 | F12: 65 | G12: Spain | H12: 0.9189831 | I12: 0.007297 | J12: 0.8909732 | K12: 0.0081927 | L12: 0.8941515 | M12: 0.0122306 | N12: 0.8888962 | O12: 0.0092091 | P12: 0.2137964 | Q12: 0.0162797 | R12: 0.4715742 | S12: 0.023485 | T12: 0.1940103 | U12: 0.0229738 | V12: 0.241935 | W12: 0.0197975 | X12: yes | Y12: Recalculated from Cordero (1989)
A13: Calopterygidae | B13: Calopteryx splendens | C13: 5-14 Aug | D13: 2006-08-04 | E13: 2006-08-14 | F13: 10 | G13: Italy | J13: 0.8828532 | K13: 0.0292956 | N13: 0.8051446 | O13: 0.0469221 | R13: 0.6233053 | S13: 0.0489502 | V13: 0.5326219 | W13: 0.0737557 | X13: yes | Y13: Recalculated from Contreras-Garduño J, Córdoba-Aguilar A, Azpilicueta Amorín M, Cordero-Rivera A (2011) Juvenile hormone favors sexually-selected traits but impairs fat reserves and abdomen mass in males and females. Evol Ecol 25:845–856
A14: Calopterygidae | B14: Calopteryx virgo | C14: 30 July-9 Aug | D14: 1969-07-30 | E14: 1969-08-09 | F14: 10 | G14: Switzerland | J14: 0.931684 | K14: 0.0062942 | R14: 0.7877621 | S14: 0.014136 | X14: yes | Y14: Recalculated from Klötzli A (1971)
A15: Calopterygidae | B15: Calopteryx virgo | C15: 3 July-30 Aug | D15: 1986-07-03 | E15: 1986-08-30 | F15: 58 | G15: Spain | J15: 0.8984061 | K15: 0.013138 | N15: 0.8813207 | O15: 0.0212694 | R15: 0.4751318 | S15: 0.0356237 | V15: 0.2618267 | W15: 0.0419386 | X15: yes | Y15: Recalculated from Cordero (1989)
A16: Calopterygidae | B16: Calopteryx xanthostoma | C16: 25 July-2 Aug | D16: 1987-05-25 | E16: 1987-08-02 | F16: 69 | G16: Spain | J16: 0.5609328 | K16: 0.0545408 | N16: 0.696244 | O16: 0.0828917 | R16: 0.5583335 | S16: 0.0872284 | V16: 0.350828 | W16: 0.1081309 | X16: yes | Y16: Recalculated from Cordero (1989)
A17: Calopterygidae | B17: Hetaerina americana | C17: Nov-Dec | D17: 2010-11-18 | E17: 2010-12-15 | F17: 27 | G17: Mexico | J17: 0.9076 | K17: 0.0211 | R17: 0.5601 | S17: 0.0283 | X17: no | Y17: González-Tokman DM, Munguía-Steyer R, González-Santoyo I, et al (2012) Support for the immunocompetence handicap hypothesis in the wild: Hormonal manipulation decreases survival in sick damselflies. Evolution (N Y) 66:3294–3301. https://doi.org/10.1111/j.1558-5646.2012.01678.x
A18: Calopterygidae | B18: Hetaerina aurora | C18: Jun-Jul | D18: 2016-06-29 | E18: 2016-07-09 | F18: =E18-D18 -> 10 | G18: Ecuador | J18: 0.9088547 | K18: 0.025718 | N18: 0.8911406 | O18: 0.0395998 | R18: 0.629227 | S18: 0.0604132 | V18: 0.3705272 | W18: 0.0763578 | X18: no | Y18: Recalculated from Gabela-Flores MV, Sanmartín-Villar I, Rivas-Torres A, et al (2019) Demography and territorial behaviour of three species of the genus Hetaerina along three tropical stream ecosystems (Odonata: Calopterygidae). Odonatologica 48:79–100. https://doi.org/10.5281/zenodo.2677691
A19: Calopterygidae | B19: Hetarina fuscoguttata | C19: Jul-Aug | D19: 2015-07-26 | E19: 2015-08-10 | F19: 15 | G19: Ecuador | J19: 0.957 | K19: 0.009 | N19: 0.926 | O19: 0.018 | R19: 0.53 | S19: 0.002 | V19: 0.455 | W19: 0.037 | X19: no | Y19: Gabela-Flores MV, Sanmartín-Villar I, Rivas-Torres A, et al (2019) Demography and territorial behaviour of three species of the genus Hetaerina along three tropical stream ecosystems (Odonata: Calopterygidae). Odonatologica 48:79–100. https://doi.org/10.5281/zenodo.2677691
A20: Calopterygidae | B20: Hetarina fuscoguttata | C20: Jun-Jul | D20: 2016-06-25 | E20: 2016-07-11 | F20: 16 | G20: Ecuador | J20: 0.852 | K20: 0.044 | R20: 0.576 | S20: 0.067 | X20: no | Y20: Gabela-Flores MV, Sanmartín-Villar I, Rivas-Torres A, et al (2019) Demography and territorial behaviour of three species of the genus Hetaerina along three tropical stream ecosystems (Odonata: Calopterygidae). Odonatologica 48:79–100. https://doi.org/10.5281/zenodo.2677691
A21: Calopterygidae | B21: Mnais nawaii | C21: 13 May-18 July | D21: 1977-05-13 | E21: 1977-07-18 | F21: 66 | G21: Japan | J21: 0.9443082 | K21: 0.0044887 | N21: 0.9331667 | O21: 0.0093518 | R21: 0.2302241 | S21: 0.0093667 | V21: 0.1718903 | W21: 0.0164899 | X21: yes | Y21: Recalculated from Suzuki & Tamaishi (1981)
A22: Calopterygidae | B22: Mnais pruinosa | C22: 16 May-1 Aug | D22: 1977-05-16 | E22: 1977-08-01 | F22: 77 | G22: Japan | J22: 0.9271963 | K22: 0.005371 | N22: 0.8987546 | O22: 0.0096904 | R22: 0.1837103 | S22: 0.0096461 | V22: 0.1542501 | W22: 0.0138687 | X22: yes | Y22: Recalculated from Suzuki & Tamaishi (1981)
A23: Coenagrionidae | B23: Agriocnemis pygmaea | C23: Jul-Feb | G23: India | L23: 0.7 | M23: 0.15 | N23: 0.57 | O23: 0.22 | T23: 0.15 | U23: 0.11 | V23: 0.11 | W23: 0.09 | X23: no | Y23: Joshi S, Agashe D (2020) Ontogenic colour change, survival, and mating in the damselfly Agriocnemis pygmaea Rambur (Insecta: Odonata). Ecol Entomol 45:1015–1024. https://doi.org/10.1111/een.12879
A24: Coenagrionidae | B24: Argia oculata | C24: 18 June-17 July | D24: 2016-06-18 | E24: 2016-07-17 | F24: 29 | G24: Ecuador | J24: 0.8751273 | K24: 0.02409 | N24: 0.9188918 | O24: 0.0511782 | R24: 0.0377607 | S24: 0.0078524 | V24: 0.0140263 | W24: 0.0068075 | X24: yes | Y24: Recalculated from Sanmartín et al (2017)
A25: Coenagrionidae | B25: Ceriagrion tenellum | C25: 1 Aug-2 Sep | D25: 1995-08-01 | E25: 1995-09-02 | F25: 32 | G25: Spain | J25: 0.9038665 | K25: 0.0041074 | N25: 0.899087 | O25: 0.0076005 | R25: 0.2555795 | S25: 0.0072781 | V25: 0.1090741 | W25: 0.0074116 | X25: yes | Y25: Recalculated from Andrés & Cordero (2001)
A26: Coenagrionidae | B26: Coenagrion puella | C26: May-Jul | D26: 2005-05-11 | E26: 2005-07-30 | F26: 80 | G26: UK | J26: 0.833 | K26: =(0.852-0.813)/3.92 -> 0.009948979592 | N26: 0.904 | O26: =(0.919-0.887)/3.92 -> 0.008163265306 | X26: no | Y26: Sherratt TN, Laird RA, Hassall C, et al (2010) Empirical evidence of senescence in adult damselflies (Odonata: Zygoptera). J Anim Ecol 79:1034–1044. https://doi.org/10.1111/j.1365-2656.2010.01719.x
A27: Coenagrionidae | B27: Coenagrion puella | C27: May-Jul | D27: 2006-05-17 | E27: 2006-07-29 | F27: 73 | G27: UK | J27: 0.862 | K27: =(0.875-0.847)/3.92 -> 0.007142857143 | N27: 0.93 | O27: =(0.939-0.92)/3.92 -> 0.004846938776 | X27: no | Y27: Sherratt TN, Laird RA, Hassall C, et al (2010) Empirical evidence of senescence in adult damselflies (Odonata: Zygoptera). J Anim Ecol 79:1034–1044. https://doi.org/10.1111/j.1365-2656.2010.01719.x
A28: Coenagrionidae | B28: Coenagrion mercuriale | C28: May-Apr | D28: 2013-04-18 | E28: 2013-05-25 | F28: 37 | G28: Algeria | J28: 0.8373131 | K28: 0.021120195 | N28: 0.8308182 | O28: 0.021120195 | R28: 0.2989058 | S28: 0.01476938 | V28: 0.1629675 | W28: 0.02341638 | X28: no | Y28: Khelifa R, Zebsa R, Amari H, et al (2019) Field estimates of fitness costs of the pace-of-life in an endangered damselfly. J Evol Biol 32:943–954. https://doi.org/10.1111/jeb.13493
A29: Coenagrionidae | B29: Coenagrion mercuriale | C29: Aug-Sept | D29: 2013-08-19 | E29: 2013-09-19 | F29: =E29-D29 -> 31 | G29: Algeria | J29: 0.7221035 | K29: 0.01482952 | N29: 0.6955553 | O29: 0.04922418 | R29: 0.2568042 | S29: 0.01732538 | V29: 0.1847095 | W29: 0.04294444 | X29: no | Y29: Khelifa R, Zebsa R, Amari H, et al (2019) Field estimates of fitness costs of the pace-of-life in an endangered damselfly. J Evol Biol 32:943–954. https://doi.org/10.1111/jeb.13493
A30: Coenagrionidae | B30: Ischnura elegans | C30: 30 June-5 Aug | D30: 1994-06-30 | E30: 1994-08-05 | F30: 36 | G30: Italy | H30: 0.8065732 | I30: 0.0340871 | J30: 0.8197486 | K30: 0.0083981 | L30: 0.7958852 | M30: 0.0111985 | N30: 0.7681781 | O30: 0.0151109 | P30: 0.1940828 | Q30: 0.0395167 | R30: 0.1954802 | S30: 0.0106035 | T30: 0.2510066 | U30: 0.0157741 | V30: 0.255194 | W30: 0.0207407 | X30: yes | Y30: Recalculated from Cordero A, Santolamazza-Carbone S, Utzeri C (1998) Mating opportunities and mating costs are reduced in androchrome female damselflies, Ischnura elegans (Odonata). Anim Behav 55:185–197
A31: Coenagrionidae | B31: Ischnura graellsii | C31: 15 July-20 Aug | D31: 1987-07-15 | E31: 1987-08-20 | F31: 36 | G31: Spain | H31: 0.8476341 | I31: 0.0136601 | J31: 0.819925 | K31: 0.0067837 | L31: 0.8199401 | M31: 0.0139723 | N31: 0.809518 | O31: 0.0129869 | P31: 0.1540118 | Q31: 0.0151696 | R31: 0.2214644 | S31: 0.008711 | T31: 0.1924174 | U31: 0.0165865 | V31: 0.2071974 | W31: 0.0157574 | X31: yes | Y31: Recalculated from Cordero (1992)
A32: Coenagrionidae | B32: Ischnura graellsii | C32: 11 Aug-8 Sep | D32: 1990-08-11 | E32: 1990-09-08 | F32: 28 | G32: Spain | H32: 0.8540651 | I32: 0.0139625 | J32: 0.8531265 | K32: 0.0065726 | L32: 0.9145111 | M32: 0.0152775 | N32: 0.8157335 | O32: 0.0099826 | P32: 0.3276494 | Q32: 0.0221332 | R32: 0.4917002 | S32: 0.0111887 | T32: 0.1252113 | U32: 0.0175657 | V32: 0.2603496 | W32: 0.0136047 | X32: yes | Y32: Recalculated from Cordero (1992)
A33: Coenagrionidae | B33: Ischnura graellsii | C33: 11 Jul-12 Aug | D33: 1995-07-11 | E33: 1995-08-12 | F33: 32 | G33: Spain | H33: 0.9091673 | I33: 0.0074823 | J33: 0.8710221 | K33: 0.0104475 | L33: 0.9238038 | M33: 0.0070873 | N33: 0.901961 | O33: 0.0086263 | P33: 0.1589408 | Q33: 0.0108849 | R33: 0.2420519 | S33: 0.0164469 | T33: 0.1915806 | U33: 0.0119376 | V33: 0.2462971 | W33: 0.0150279 | X33: yes | Y33: Recalculated from Cordero & Egido (1998)
A34: Coenagrionidae | B34: Ischnura graellsii | C34: 14 Aug-17 Sep | D34: 1996-08-14 | E34: 1996-09-17 | F34: 34 | G34: Spain | H34: 0.9084686 | I34: 0.0055928 | J34: 0.903058 | K34: 0.0055264 | L34: 0.9229039 | M34: 0.0046713 | N34: 0.9052528 | O34: 0.0065606 | P34: 0.311341 | Q34: 0.0100291 | R34: 0.4191641 | S34: 0.010378 | T34: 0.3119107 | U34: 0.0087862 | V34: 0.4403041 | W34: 0.0123552 | X34: yes | Y34: Recalculated from Cordero & Egido (1998)
A35: Coenagrionidae | B35: Ischnura hastata | C35: Jul-Aug | D35: 2008-07-27 | E35: 2008-08-24 | F35: 28 | G35: Azores (Portugal) | N35: 0.84 | O35: 0.006 | V35: 0.173 | W35: 0.006 | X35: no | Y35: Lorenzo-Carballa MO, Beatty CD, Utzeri C, et al (2009) Parthenogenetic Ischnura hastata revisited: Present status and notes on population ecology and behaviour (Odonata: Coenagrionidae). Int J Odonatol 12:395–411. https://doi.org/10.1080/13887890.2009.9748353
A36: Coenagrionidae | B36: Ischnura hastata | C36: May-Jun | D36: 2012-05-26 | E36: 2012-06-26 | F36: 31 | G36: Cuba | J36: 0.7466986 | K36: 0.046325 | N36: 0.6362703 | O36: 0.0284921 | R36: 0.1455285 | S36: 0.0386292 | V36: 0.1449076 | W36: 0.018405 | X36: no | Y36: Recalculated from Lorenzo-Carballa MO, Hassall C, Encalada AC, et al (2017) Parthenogenesis did not consistently evolve in insular populations of Ischnura hastata (Odonata, Coenagrionidae). Ecol Entomol 42:67–76. https://doi.org/10.1111/een.12360
A37: Coenagrionidae | B37: Ischnura hastata | C37: Feb-Mar | D37: 2014-02-20 | E37: 2014-03-06 | F37: 14 | G37: Galápagos (Ecuador) | H37: 0.7352563 | I37: 0.0676903 | J37: 0.718914 | K37: 0.0247991 | L37: 0.8847889 | M37: 0.0440237 | N37: 0.7837204 | O37: 0.0168395 | P37: 0.1054436 | Q37: 0.0315632 | R37: 0.2039871 | S37: 0.020143 | T37: 0.061716 | U37: 0.0145213 | V37: 0.1919092 | W37: 0.0143314 | X37: no | Y37: Recalculated from Lorenzo-Carballa MO, Hassall C, Encalada AC, et al (2017) Parthenogenesis did not consistently evolve in insular populations of Ischnura hastata (Odonata, Coenagrionidae). Ecol Entomol 42:67–76. https://doi.org/10.1111/een.12360
A38: Coenagrionidae | B38: Ischnura hastata | C38: Aug-Sep | D38: 2013-08-15 | E38: 2013-09-02 | F38: 18 | G38: Azores (Portugal) | L38: 0.8576146 | M38: 0.0056992 | N38: 0.8582272 | O38: 0.0187894 | T38: 0.2051693 | U38: 0.0073009 | V38: 0.1278979 | W38: 0.0146526 | X38: no | Y38: Recalculated from Cordero-Rivera A, Vieira V, Utzeri C (2018) Clonal damselflies (Ischnura hastata) are not significantly affected by mite parasitism. Entomol Exp Appl 166:583–591. https://doi.org/10.1111/eea.12705
A39: Coenagrionidae | B39: Ischnura pumilio | C39: 14 Aug-17 Sep | D39: 1996-08-14 | E39: 1996-09-17 | F39: 34 | G39: Spain | J39: 0.8170575 | K39: 0.0163776 | N39: 0.894433 | O39: 0.0232359 | R39: 0.5792698 | S39: 0.0262204 | V39: 0.1306551 | W39: 0.0200121 | X39: yes | Y39: Recalculated from Cordero & Andrés (1999)
A40: Coenagrionidae | B40: Xanthocnemis tuanuii | C40: Jan | D40: 2010-01-07 | E40: 2010-01-11 | F40: 4 | G40: New Zealand | J40: 0.75 | K40: =(0.91-0.49)/3.92 -> 0.1071428571 | N40: 0.5 | O40: =(0.77-0.23)/3.92 -> 0.137755102 | X40: no | Y40: Marinov M, Mchugh P (2010) Comparative study of the Chatham Islands Odonata : Morphological variability, behaviour and demography of the endemic Xanthocnemis tuanuii Rowe, 1987. Int Dragonfly Fund 30:1–45
A41: Hemiphlebiidae | B41: Hemiphlebia mirabilis | C41: Nov-Dec | D41: 2013-11-19 | E41: 2013-12-07 | F41: 18 | G41: Australia | J41: 0.8996778 | K41: 0.0189943 | N41: 0.8916794 | O41: 0.0424398 | R41: 0.1091171 | S41: 0.0131909 | V41: 0.0604751 | W41: 0.0159079 | X41: no | Y41: Recalculated from Cordero-Rivera A (2016) Demographics and adult activity of Hemiphlebia mirabilis: A short-lived species with a huge population size (Odonata: Hemiphlebiidae). Insect Conserv Divers 9:108–117. https://doi.org/10.1111/icad.12147
A42: Heteragrionidae | B42: Heteragrion bickorum | C42: 3 Nov-13 Dec | D42: 2014-11-03 | E42: 2014-12-13 | F42: 40 | G42: Ecuador | J42: 0.9040585 | K42: 0.0250435 | R42: 0.0188442 | S42: 0.00573 | X42: yes | Y42: Sanmartín & Cordero (unpublished)
A43: Heteragrionidae | B43: Heteragrion inca | C43: 3 Nov-11 Dec | D43: 2014-11-03 | E43: 2014-12-11 | F43: =E43-D43 -> 38 | G43: Ecuador | J43: 0.9105053 | K43: 0.0519452 | R43: 0.0206429 | S43: 0.0115615 | V43: 0.0224719 | W43: 0.0184193 | X43: yes | Y43: Sanmartín & Cordero (unpublished)
A44: Heteragrionidae | B44: Heteragrion cooki | C44: Jun-Jul | D44: 2016-06-26 | E44: 2016-07-11 | F44: 15 | G44: Ecuador | J44: 0.9274206 | K44: 0.0140702 | N44: 0.693481 | O44: 0.124407 | R44: 0.4910974 | S44: 0.0465504 | V44: 0.5579294 | W44: 0.2749703 | X44: no | Y44: Recalculated from Rivas-Torres A, Sanmartín-Villar I, Gabela-Flores MV, Cordero-Rivera A (2017) Demographics and behaviour of Heteragrion cooki, a forest damselfly endemic to Ecuador (Odonata). Int J Odonatol 20:123–135. https://doi.org/10.1080/13887890.2017.1336495
A45: Heteragrionidae | B45: Heteragrion cooki | C45: Jun-Jul | D45: 2016-06-26 | E45: 2016-07-11 | F45: 15 | G45: Ecuador | J45: 0.9186145 | K45: 0.0198246 | N45: 0.8836301 | O45: 0.0554466 | R45: 0.3502628 | S45: 0.0385193 | V45: 0.1192661 | W45: 0.0384378 | X45: no | Y45: Recalculated from Rivas-Torres A, Sanmartín-Villar I, Gabela-Flores MV, Cordero-Rivera A (2017) Demographics and behaviour of Heteragrion cooki, a forest damselfly endemic to Ecuador (Odonata). Int J Odonatol 20:123–135. https://doi.org/10.1080/13887890.2017.1336495
A46: Hypolestidae | B46: Hypolestes trinitatis | C46: Aug-Sept | D46: 2007-08-10 | E46: 2007-09-01 | F46: 22 | G46: Cuba | J46: 0.946 | K46: 0.005 | N46: 0.925 | O46: 0.014 | R46: 0.631 | S46: 0.017 | V46: 0.195 | W46: 0.029 | X46: no | Y46: Torres-Cambas Y, Fonseca-Rodríguez R (2011) Sex ratio, survival, and recapture rate in a Cuban population of the damselfly Hypolestes trinitatis (Odonata: Megapodagrionidae). Acta Ethol 14:69–76. https://doi.org/10.1007/s10211-011-0095-8
A47: Lestidae | B47: Chalcolestes viridis | C47: June-Oct | D47: 1985-06-08 | E47: 1985-10-01 | F47: 115 | G47: Spain | H47: 0.9678827 | I47: 0.006084 | J47: 0.9623554 | K47: 0.004007 | L47: 0.9502798 | M47: 0.0140299 | N47: 0.9550015 | O47: 0.0100026 | P47: 0.0175311 | Q47: 0.0031894 | R47: 0.0563556 | S47: 0.0045412 | T47: 0.0088519 | U47: 0.0030362 | V47: 0.0354373 | W47: 0.0067749 | X47: yes | Y47: Recalculated from Cordero (1988)
A48: Libellulidae | B48: Leucorrhinia hudsonica | C48: Jul-Aug | D48: 2002-07-09 | E48: 2002-07-29 | F48: 20 | G48: Canada | J48: 0.89 | K48: 0.007 | R48: 0.14 | S48: 0.022 | X48: no | Y48: Chin KS, Taylor PD (2009) Interactive effects of distance and matrix on the movements of a peatland dragonfly. Ecography (Cop) 32:715–722. https://doi.org/10.1111/j.1600-0587.2009.05744.x
A49: Libellulidae | B49: Leucorrhinia hudsonica | C49: Jul-Aug | D49: 2003-07-07 | E49: 2003-08-05 | F49: 29 | G49: Canada | J49: 0.86 | K49: 0.014 | R49: 0.16 | S49: 0.058 | X49: no | Y49: Chin KS, Taylor PD (2009) Interactive effects of distance and matrix on the movements of a peatland dragonfly. Ecography (Cop) 32:715–722. https://doi.org/10.1111/j.1600-0587.2009.05744.x
A50: Libellulidae | B50: Libellula fulva | C50: May-Jul 2002 | F50: 17 | G50: Hungary | J50: 0.88 | K50: =(0.9-0.86)/3.92 -> 0.01020408163 | R50: 0.44 | S50: =(0.56-0.33)/3.92 -> 0.05867346939 | X50: no | Y50: Nagy BH, László Z, Kövér S, et al (2011) Population size effects on the behaviour of Libellula fulva (Odonata: Libellulidae) males, a five year study. North West J Zool 7:39–46
A51: Libellulidae | B51: Libellula fulva | C51: May-Jul 2003 | F51: 16 | G51: Hungary | J51: 0.88 | K51: =(0.9-0.86)/3.92 -> 0.01020408163 | R51: 0.48 | S51: =(0.59-0.37)/3.92 -> 0.05612244898 | X51: no | Y51: Nagy BH, László Z, Kövér S, et al (2011) Population size effects on the behaviour of Libellula fulva (Odonata: Libellulidae) males, a five year study. North West J Zool 7:39–46
A52: Libellulidae | B52: Libellula fulva | C52: May-Jul 2005 | F52: 22 | G52: Hungary | J52: 0.8 | K52: =(0.82-0.77)/3.92 -> 0.01275510204 | R52: 0.21 | S52: =(0.31-0.14)/3.92 -> 0.04336734694 | X52: no | Y52: Nagy BH, László Z, Kövér S, et al (2011) Population size effects on the behaviour of Libellula fulva (Odonata: Libellulidae) males, a five year study. North West J Zool 7:39–46
A53: Libellulidae | B53: Libellula fulva | C53: May-Jul 2006 | F53: 23 | G53: Hungary | J53: 0.8 | K53: =(0.83-0.78)/3.92 -> 0.01275510204 | R53: 0.24 | S53: =(0.32-0.18)/3.92 -> 0.03571428571 | X53: no | Y53: Nagy BH, László Z, Kövér S, et al (2011) Population size effects on the behaviour of Libellula fulva (Odonata: Libellulidae) males, a five year study. North West J Zool 7:39–46
A54: Libellulidae | B54: Libellula fulva | C54: May-Jul 2007 | F54: 21 | G54: Hungary | J54: 0.79 | K54: =(0.81-0.76)/3.92 -> 0.01275510204 | R54: 0.26 | S54: =(0.34-0.2)/3.92 -> 0.03571428571 | X54: no | Y54: Nagy BH, László Z, Kövér S, et al (2011) Population size effects on the behaviour of Libellula fulva (Odonata: Libellulidae) males, a five year study. North West J Zool 7:39–46
A55: Libellulidae | B55: Uracis fastigiata | C55: 3 Nov-10 Dec | D55: 2014-11-03 | E55: 2014-12-10 | F55: 37 | G55: Ecuador | J55: 0.8589292 | K55: 0.0323057 | N55: 0.8218329 | O55: 0.0436833 | R55: 0.0612782 | S55: 0.0169675 | V55: 0.0727259 | W55: 0.0234718 | X55: yes | Y55: Sanmartín-Villar & Cordero-Rivera (unpublished)
A56: Platycnemididae | B56: Platycnemis latipes | C56: 26 July-2 Aug | D56: 1987-07-26 | E56: 1987-08-02 | F56: 7 | G56: Spain | H56: 0.7809268 | I56: 0.0368034 | J56: 0.6665726 | K56: 0.0359522 | L56: 0.6697795 | M56: 0.0644843 | N56: 0.6985854 | O56: 0.0747185 | P56: 0.5241355 | Q56: 0.0504752 | R56: 0.340989 | S56: 0.0402096 | T56: 0.433607 | U56: 0.0803291 | V56: 0.2292667 | W56: 0.0613419 | X56: yes | Y56: Cordero-Rivera (unpublished)
A57: Platycnemididae | B57: Platycnemis subdilatata | C57: May-Jun | D57: 2012-05-06 | E57: 2012-06-16 | F57: 41 | G57: Algeria | H57: 0.8740315 | I57: 0.009481522 | J57: 0.8715357 | K57: 0.009187148 | L57: 0.8722743 | M57: 0.011667654 | N57: 0.8697488 | O57: 0.008227448 | P57: 0.1372062 | Q57: 0.010618199 | R57: 0.1728979 | S57: 0.011784719 | T57: 0.117205 | U57: 0.011428165 | V57: 0.1485899 | W57: 0.009561046 | X57: no | Y57: Khelifa R, Mahdjoub H, Baaloudj A, et al (2021) Remarkable population resilience in a North African endemic damselfly in the face of rapid agricultural transformation. Insects 12:1–15
A58: Polythoridae | B58: Euthore fasciata | C58: Oct-Dec | D58: 2011-10-31 | E58: 2011-12-05 | F58: 35 | G58: Colombia | J58: 0.933 | K58: =(0.971-0.851)/3.92 -> 0.0306122449 | X58: no | Y58: Palacino-Rodríguez F, Munguía-Steyer R, Mesa-Blanco LV, et al (2016) Survival is predicted by territorial status but not wing pigmentation in males of a polythorid damselfly, Euthore fasciata (Odonata: Zygoptera: Polythoridae). Int J Odonatol 19:183–190. https://doi.org/10.1080/13887890.2016.1209137
A59: Polythoridae | B59: Euthore fasciata | C59: Oct-Dec | D59: 2011-10-31 | E59: 2011-12-05 | F59: 35 | G59: Colombia | J59: 0.847 | K59: =(0.904-0.764)/3.92 -> 0.03571428571 | X59: no | Y59: Palacino-Rodríguez F, Munguía-Steyer R, Mesa-Blanco LV, et al (2016) Survival is predicted by territorial status but not wing pigmentation in males of a polythorid damselfly, Euthore fasciata (Odonata: Zygoptera: Polythoridae). Int J Odonatol 19:183–190. https://doi.org/10.1080/13887890.2016.1209137
A60: Polythoridae | B60: Polythore derivata | C60: Oct-Dec | D60: 2014-10-30 | E60: 2014-12-16 | F60: 47 | G60: Ecuador | J60: 0.962 | K60: 0.018 | R60: 0.241 | S60: 0.048 | X60: no | Y60: Cordero-Rivera A, Sanmartín Villar I, Sánchez-Herrera M, et al (2019) Survival and longevity in neotropical damselflies (Odonata, Polythoridae). Anim Biodivers Conserv 42:293–300. https://doi.org/10.32800/abc.2019.42.0302
A61: Polythoridae | B61: Polythore mutata | C61: Dec-Feb | D61: 2012-12-04 | E61: 2013-02-07 | F61: 65 | G61: Ecuador | J61: 0.9745851 | K61: 0.0084278 | N61: 0.9956355 | O61: 0.0185716 | R61: 0.3793371 | S61: 0.0470918 | V61: 0.0417621 | W61: 0.025412 | X61: no | Y61: Recalculated from Cordero-Rivera A, Sanmartín Villar I, Sánchez-Herrera M, et al (2019) Survival and longevity in neotropical damselflies (Odonata, Polythoridae). Anim Biodivers Conserv 42:293–300. https://doi.org/10.32800/abc.2019.42.0298
A62: Polythoridae | B62: Polythore mutata | C62: Oct-Dec | D62: 2014-10-30 | E62: 2014-12-16 | F62: 47 | G62: Ecuador | J62: 0.8515294 | K62: 0.0224081 | N62: 0.9210553 | O62: 0.0210585 | R62: 0.2026627 | S62: 0.0280332 | V62: 0.1849244 | W62: 0.0309736 | X62: no | Y62: Recalculated from Cordero-Rivera A, Sanmartín Villar I, Sánchez-Herrera M, et al (2019) Survival and longevity in neotropical damselflies (Odonata, Polythoridae). Anim Biodivers Conserv 42:293–300. https://doi.org/10.32800/abc.2019.42.0298
A63: Pseudolestidae | B63: Pseudolestes mirabilis | C63: Jun | D63: 2014-06-13 | E63: 2014-06-23 | F63: 10 | G63: China | J63: 0.8989 | K63: 0.0272 | R63: 0.9252 | S63: 0.272 | X63: no | Y63: Cordero-Rivera A, Zhang H (2018) Ethological uniqueness of a damselfly with no near relatives: The relevance of behaviour as part of biodiversity. Anim Biodivers Conserv 41:161–174. https://doi.org/10.32800/abc.2018.41.0161
A64: Thaumatoneuridae | B64: Paraphlebia zoe | C64: May-Sep | D64: 2004-05-17 | E64: 2004-09-03 | F64: 109 | G64: Mexico | J64: 0.9676 | K64: 0.0107 | N64: 0.9963 | O64: 0.0037 | R64: 0.1199 | S64: 0.0278 | V64: 0.0285 | W64: 0.0087 | X64: no | Y64: Munguía-Steyer R, Córdoba-Aguilar A, Romo-Beltrán A (2010) Do individuals in better condition survive for longer? Field survival estimates according to male alternative reproductive tactics and sex. J Evol Biol 23:175–184. https://doi.org/10.1111/j.1420-9101.2009.01894.x
A65: Thaumatoneuridae | B65: Paraphlebia zoe | C65: May-Sep | D65: 2004-05-17 | E65: 2004-09-03 | F65: 109 | G65: Mexico | J65: 0.9586 | K65: 0.007 | R65: 0.5121 | S65: 0.0313 | X65: no | Y65: Munguía-Steyer R, Córdoba-Aguilar A, Romo-Beltrán A (2010) Do individuals in better condition survive for longer? Field survival estimates according to male alternative reproductive tactics and sex. J Evol Biol 23:175–184. https://doi.org/10.1111/j.1420-9101.2009.01894.x
A66: Thaumatoneuridae | B66: Paraphlebia zoe | C66: Jun-Jul | D66: 2007-06-11 | E66: 2007-07-25 | F66: 44 | G66: Mexico | J66: 0.926 | K66: 0.019 | N66: 0.888 | O66: 0.038 | R66: 0.558 | S66: 0.024 | V66: 0.062 | W66: 0.015 | X66: no | Y66: Rivas-Torres A, Sánchez-Guillén RA, Cordero-Rivera A (2019) Alternative reproductive strategies in black-winged territorial males of Paraphlebia zoe (Odonata, Thaumatoneuridae) . PeerJ 7:e6489. https://doi.org/10.7717/peerj.6489
A67: Thaumatoneuridae | B67: Paraphlebia zoe | C67: Jun-Jul | D67: 2007-06-11 | E67: 2007-07-25 | F67: 44 | G67: Mexico | J67: 0.825 | K67: 0.022 | R67: 0.408 | S67: 0.024 | X67: no | Y67: Rivas-Torres A, Sánchez-Guillén RA, Cordero-Rivera A (2019) Alternative reproductive strategies in black-winged territorial males of Paraphlebia zoe (Odonata, Thaumatoneuridae) . PeerJ 7:e6489. https://doi.org/10.7717/peerj.6489
A68: Thaumatoneuridae | B68: Paraphlebia zoe | C68: Jun-Jul | D68: 2007-06-11 | E68: 2007-07-25 | F68: 44 | G68: Mexico | J68: 0.917 | K68: 0.029 | R68: 0.197 | S68: 0.046 | X68: no | Y68: Rivas-Torres A, Sánchez-Guillén RA, Cordero-Rivera A (2019) Alternative reproductive strategies in black-winged territorial males of Paraphlebia zoe (Odonata, Thaumatoneuridae) . PeerJ 7:e6489. https://doi.org/10.7717/peerj.6489
A69: Lestidae | B69: Lestes disjunctus | C69: Jul | D69: 1991-07-18 | E69: 1991-07-29 | F69: 11 | G69: Canada | J69: 0.759 | K69: =(0.786-0.73)/3.92 -> 0.01428571429 | N69: 0.831 | O69: =(0.901-0.727)/3.92 -> 0.0443877551 | R69: 0.253 | S69: =(0.326-0.192)/3.92 -> 0.03418367347 | V69: 0.112 | W69: =(0.22-0.054)/3.92 -> 0.04234693878 | X69: no | Y69: Anhol BR (1997). Sexual size dimorphism and sex-speciﬁc survival in adults of the damselﬂy Lestes disjunctus. Ecological Entomology 22, 127–132
A70: Libellulidae | B70: Leucorrhinia hudsonica | C70: Jul-Aug | D70: 2003-07-07 | E70: 2003-08-05 | F70: 29 | G70: Canada | J70: 0.87 | K70: 0.013 | R70: 0.15 | S70: 0.033 | X70: no | Y70: Chin KS. 1999. Within Peatland Spatial Structuring and the Influence of. Acadia University.
A71: Libellulidae | B71: Libellula fulva | C71: May-Jul | D71: 1997-05-15 | E71: 1997-07-15 | F71: 61 | G71: Italy | J71: 0.88 | K71: 0.01 | N71: 0.83 | O71: 0.02 | X71: no | Y71: Macagno ALM, Boano G, Palestrini C, Stassi M, Rolando A. 2008. Movement and demographics of Libellula fulva (Odonata, Libellulidae). Environ Entomol. 37(5):1145–1153. doi:10.1603/0046-225X(2008)37[1145:MADOLF]2.0.CO;2.
A72: Libellulidae | B72: Libellula fulva | C72: May-Jul | D72: 2004-05-15 | E72: 2004-07-15 | F72: =E72-D72 -> 61 | G72: Italy | J72: 0.91 | K72: 0.01 | N72: 0.84 | O72: 0.02 | X72: no | Y72: Macagno ALM, Boano G, Palestrini C, Stassi M, Rolando A. 2008. Movement and demographics of Libellula fulva (Odonata, Libellulidae). Environ Entomol. 37(5):1145–1153. doi:10.1603/0046-225X(2008)37[1145:MADOLF]2.0.CO;2.
A73: Libellulidae | B73: Libellula fulva | C73: May-Jul | D73: 2005-05-15 | E73: 2005-07-15 | F73: 61 | G73: Italy | J73: 0.94 | K73: 0.01 | N73: 0.94 | O73: 0.01 | X73: no | Y73: Macagno ALM, Boano G, Palestrini C, Stassi M, Rolando A. 2008. Movement and demographics of Libellula fulva (Odonata, Libellulidae). Environ Entomol. 37(5):1145–1153. doi:10.1603/0046-225X(2008)37[1145:MADOLF]2.0.CO;2.
A74: Libellulidae | B74: Libellula fulva | C74: May-Jul | D74: 2006-05-15 | E74: 2006-07-15 | F74: 61 | G74: Italy | J74: 0.94 | K74: 0.01 | N74: 0.94 | O74: 0.01 | X74: no | Y74: Macagno ALM, Boano G, Palestrini C, Stassi M, Rolando A. 2008. Movement and demographics of Libellula fulva (Odonata, Libellulidae). Environ Entomol. 37(5):1145–1153. doi:10.1603/0046-225X(2008)37[1145:MADOLF]2.0.CO;2.
A75: Coenagrionidae | B75: Coenagrion mercuriale | C75: Jun-Jul | D75: 2017-06-10 | E75: =D75+25 -> 2017-07-05 | F75: =E75-D75 -> 25 | G75: Italy | J75: 0.7781578 | K75: 0.0130804 | N75: 0.7632793 | O75: 0.026198 | R75: 0.2932753 | S75: 0.0240128 | V75: 0.2944184 | W75: 0.0456357 | X75: no | Y75: La Porta G, Goretti E (2019) Investigation on the declining Southern Damselfly (Coenagrion mercuriale, Odonata) in a Mediterranean population: survival rate and population size. J Insect Conserv 23:667–675. https://doi.org/10.1007/s10841-019-00160-y
B127: Etiquetas de fila | C127: Contar de Species
B128: Agriocnemis pygmaea | C128: 1
B129: Anax imperator | C129: 1
B130: Argia oculata | C130: 1
B131: Calopteryx cornelia | C131: 1
B132: Calopteryx exul | C132: 1
B133: Calopteryx haemorrhoidalis | C133: 6
B134: Calopteryx splendens | C134: 1
B135: Calopteryx virgo | C135: 2
B136: Calopteryx xanthostoma | C136: 1
B137: Ceriagrion tenellum | C137: 1
B138: Chalcolestes viridis | C138: 1
B139: Coenagrion mercuriale | C139: 3
B140: Coenagrion puella | C140: 2
B141: Euthore fasciata | C141: 2
B142: Hemiphlebia mirabilis | C142: 1
B143: Hetaerina americana | C143: 1
B144: Hetaerina aurora | C144: 1
B145: Hetarina fuscoguttata | C145: 2
B146: Heteragrion bickorum | C146: 1
B147: Heteragrion cooki | C147: 2
B148: Heteragrion inca | C148: 1
B149: Hypolestes trinitatis | C149: 1
B150: Ischnura elegans | C150: 1
B151: Ischnura graellsii | C151: 4
B152: Ischnura hastata | C152: 4
B153: Ischnura pumilio | C153: 1
B154: Lestes disjunctus | C154: 1
B155: Leucorrhinia hudsonica | C155: 3
B156: Libellula fulva | C156: 9
B157: Mnais nawaii | C157: 1
B158: Mnais pruinosa | C158: 1
B159: Paraphlebia zoe | C159: 5
B160: Platycnemis latipes | C160: 1
B161: Platycnemis subdilatata | C161: 1
B162: Polythore derivata | C162: 1
B163: Polythore mutata | C163: 2
B164: Pseudolestes mirabilis | C164: 1
B165: Uracis fastigiata | C165: 1
B166: Xanthocnemis tuanuii | C166: 1
B167: Total xeral | C167: 72

Sheet Correlation tests
B1: XLSTAT 2021.1.1.1110 - Correlation tests - Start time: 24/08/2021 at 21:59:42 / End time: 24/08/2021 at 21:59:44 / Microsoft Excel 16.014228
B2: Observations / Quantitative variables: Workbook = Survival-recapture Odonata table.xlsm / Sheet = sex-age / Range = 'sex-age'!$F$3:$F$75,'sex-age'!$J$3:$K$75,'sex-age'!$N$3:$O$75,'sex-age'!$R$3:$S$75,'sex-age'!$V$3:$W$75 / 72 rows and 9 columns
B3: Type of correlation: Spearman
B8: Correlation matrix (Spearman):
B10: Variables | C10: Duration | D10: Mature-Phi-m | E10: SE-phi-m | F10: Mature-phi-f | G10: SE-phi-f | H10: Mature-p-m | I10: SE-p-m | J10: Mature-p-f | K10: SE-p-f
B11: Duration | C11: 1 | D11: 0.2838538359 | E11: -0.3094781285 | F11: 0.4128564985 | G11: -0.4758258779 | H11: -0.2848921749 | I11: -0.2253423595 | J11: -0.2007252679 | K11: -0.276271097
B12: Mature-Phi-m | C12: 0.2838538359 | D12: 1 | E12: -0.4093936445 | F12: 0.7530139643 | G12: -0.4134262339 | H12: 0.1272229633 | I12: -0.223730462 | J12: -0.05609756098 | K12: -0.25
B13: SE-phi-m | C13: -0.3094781285 | D13: -0.4093936445 | E13: 1 | F13: -0.5579815071 | G13: 0.7866975341 | H13: -0.005918886263 | I13: 0.492830546 | J13: -0.07613240418 | K13: 0.4444250871
B14: Mature-phi-f | C14: 0.4128564985 | D14: 0.7530139643 | E14: -0.5579815071 | F14: 1 | G14: -0.6260836171 | H14: 0.01594746717 | I14: -0.4041275797 | J14: -0.1434666064 | K14: -0.4251142073
B15: SE-phi-f | C15: -0.4758258779 | D15: -0.4134262339 | E15: 0.7866975341 | F15: -0.6260836171 | G15: 1 | H15: 0.1020637899 | I15: 0.6058161351 | J15: -0.03397765026 | K15: 0.721987315
B16: Mature-p-m | C16: -0.2848921749 | D16: 0.1272229633 | E16: -0.005918886263 | F16: 0.01594746717 | G16: 0.1020637899 | H16: 1 | I16: 0.3475276825 | J16: 0.6789198606 | K16: 0.4869337979
B17: SE-p-m | C17: -0.2253423595 | D17: -0.223730462 | E17: 0.492830546 | F17: -0.4041275797 | G17: 0.6058161351 | H17: 0.3475276825 | I17: 1 | J17: 0.2135888502 | K17: 0.7066202091
B18: Mature-p-f | C18: -0.2007252679 | D18: -0.05609756098 | E18: -0.07613240418 | F18: -0.1434666064 | G18: -0.03397765026 | H18: 0.6789198606 | I18: 0.2135888502 | J18: 1 | K18: 0.4522903453
B19: SE-p-f | C19: -0.276271097 | D19: -0.25 | E19: 0.4444250871 | F19: -0.4251142073 | G19: 0.721987315 | H19: 0.4869337979 | I19: 0.7066202091 | J19: 0.4522903453 | K19: 1
B20: Values in bold are different from 0 with a significance level alpha=0.05
B23: p-values (Spearman):
B25: Variables | C25: Duration | D25: Mature-Phi-m | E25: SE-phi-m | F25: Mature-phi-f | G25: SE-phi-f | H25: Mature-p-m | I25: SE-p-m | J25: Mature-p-f | K25: SE-p-f
B26: Duration | C26: 0 | D26: 0.01838836051 | E26: 0.009920471695 | F26: 0.003434397995 | G26: 0.0006341664685 | H26: 0.02770524299 | I26: 0.08350730025 | J26: 0.1961892232 | K26: 0.07316846549
B27: Mature-Phi-m | C27: 0.01838836051 | D27: 0 | E27: 0.0005312771574 | F27: 7.788000023e-09 | G27: 0.004144990768 | H27: 0.331796074 | I27: 0.08578516124 | J27: 0.7268011962 | K27: 0.1148565593
B28: SE-phi-m | C28: 0.009920471695 | D28: 0.0005312771574 | E28: 0 | F28: 6.165717932e-05 | G28: 0 | H28: 0.9642565672 | I28: 7.8495917e-05 | J28: 0.6350781752 | K28: 0.003910679262
B29: Mature-phi-f | C29: 0.003434397995 | D29: 7.788000023e-09 | E29: 6.165717932e-05 | F29: 0 | G29: 2.096341775e-06 | H29: 0.9222818318 | I29: 0.01018257214 | J29: 0.3574794553 | K29: 0.004811866462
B30: SE-phi-f | C30: 0.0006341664685 | D30: 0.004144990768 | E30: 0 | F30: 2.096341775e-06 | G30: 0 | H30: 0.5295540985 | I30: 4.927597234e-05 | J30: 0.8283890095 | K30: 2.347369257e-07
B31: Mature-p-m | C31: 0.02770524299 | D31: 0.331796074 | E31: 0.9642565672 | F31: 0.9222818318 | G31: 0.5295540985 | H31: 0 | I31: 0.006775678036 | J31: 2.265048596e-06 | K31: 0.001416597793
B32: SE-p-m | C32: 0.08350730025 | D32: 0.08578516124 | E32: 7.8495917e-05 | F32: 0.01018257214 | G32: 4.927597234e-05 | H32: 0.006775678036 | I32: 0 | J32: 0.1794114834 | K32: 7.503236825e-07
B33: Mature-p-f | C33: 0.1961892232 | D33: 0.7268011962 | E33: 0.6350781752 | F33: 0.3574794553 | G33: 0.8283890095 | H33: 2.265048596e-06 | I33: 0.1794114834 | J33: 0 | K33: 0.002265963438
B34: SE-p-f | C34: 0.07316846549 | D34: 0.1148565593 | E34: 0.003910679262 | F34: 0.004811866462 | G34: 2.347369257e-07 | H34: 0.001416597793 | I34: 7.503236825e-07 | J34: 0.002265963438 | K34: 0
B37: Coefficients of determination (Spearman):
B39: Variables | C39: Duration | D39: Mature-Phi-m | E39: SE-phi-m | F39: Mature-phi-f | G39: SE-phi-f | H39: Mature-p-m | I39: SE-p-m | J39: Mature-p-f | K39: SE-p-f
B40: Duration | C40: 1 | D40: 0.08057300013 | E40: 0.09577671204 | F40: 0.1704504883 | G40: 0.226410266 | H40: 0.08116355131 | I40: 0.050779179 | J40: 0.04029063318 | K40: 0.07632571905
B41: Mature-Phi-m | C41: 0.08057300013 | D41: 1 | E41: 0.1676031562 | F41: 0.5670300304 | G41: 0.1709212509 | H41: 0.01618568238 | I41: 0.05005531962 | J41: 0.003146936347 | K41: 0.0625
B42: SE-phi-m | C42: 0.09577671204 | D42: 0.1676031562 | E42: 1 | F42: 0.3113433623 | G42: 0.6188930101 | H42: 3.50332146e-05 | I42: 0.242881947 | J42: 0.005796142966 | K42: 0.1975136581
B43: Mature-phi-f | C43: 0.1704504883 | D43: 0.5670300304 | E43: 0.3113433623 | F43: 1 | G43: 0.3919806956 | H43: 0.000254321709 | I43: 0.1633191007 | J43: 0.02058266714 | K43: 0.1807220892
B44: SE-phi-f | C44: 0.226410266 | D44: 0.1709212509 | E44: 0.6188930101 | F44: 0.3919806956 | G44: 1 | H44: 0.0104170172 | I44: 0.3670131895 | J44: 0.001154480717 | K44: 0.521265683
B45: Mature-p-m | C45: 0.08116355131 | D45: 0.01618568238 | E45: 3.50332146e-05 | F45: 0.000254321709 | G45: 0.0104170172 | H45: 1 | I45: 0.1207754901 | J45: 0.4609321772 | K45: 0.2371045235
B46: SE-p-m | C46: 0.050779179 | D46: 0.05005531962 | E46: 0.242881947 | F46: 0.1633191007 | G46: 0.3670131895 | H46: 0.1207754901 | I46: 1 | J46: 0.04562019692 | K46: 0.4993121199
B47: Mature-p-f | C47: 0.04029063318 | D47: 0.003146936347 | E47: 0.005796142966 | F47: 0.02058266714 | G47: 0.001154480717 | H47: 0.4609321772 | I47: 0.04562019692 | J47: 1 | K47: 0.2045665565
B48: SE-p-f | C48: 0.07632571905 | D48: 0.0625 | E48: 0.1975136581 | F48: 0.1807220892 | G48: 0.521265683 | H48: 0.2371045235 | I48: 0.4993121199 | J48: 0.2045665565 | K48: 1
B51: Scatter plots:

Sheet XLSTAT_20210824_215940_1_HID_HI (hidden)
A1: 0.382406 | B1: 0.0265574 | D1: 0.0265574 | E1: 0.0265574
A2: 0.29 | B2: 0.02040816327 | D2: 0.02040816327 | E2: 0.02040816327
A3: 0.6156 | B3: 0.0177 | D3: 0.0177 | E3: 0.0177
A4: 0.2952863 | B4: 0.035919 | D4: 0.035919 | E4: 0.035919
A5: 0.3709886 | B5: 0.0238672 | D5: 0.0238672 | E5: 0.0238672
A6: 0.3174852 | B6: 0.095069 | D6: 0.095069 | E6: 0.095069
A7: 0.241935 | B7: 0.0197975 | D7: 0.0197975 | E7: 0.0197975
A8: 0.5326219 | B8: 0.0737557 | D8: 0.0737557 | E8: 0.0737557
A9: 0.2618267 | B9: 0.0419386 | D9: 0.0419386 | E9: 0.0419386
A10: 0.350828 | B10: 0.1081309 | D10: 0.1081309 | E10: 0.1081309
A11: 0.3705272 | B11: 0.0763578 | D11: 0.0763578 | E11: 0.0763578
A12: 0.455 | B12: 0.037 | D12: 0.037 | E12: 0.037
A13: 0.1718903 | B13: 0.0164899 | D13: 0.0164899 | E13: 0.0164899
A14: 0.1542501 | B14: 0.0138687 | D14: 0.0138687 | E14: 0.0138687
A15: 0.11 | B15: 0.09 | D15: 0.09 | E15: 0.09
A16: 0.0140263 | B16: 0.0068075 | D16: 0.0068075 | E16: 0.0068075
A17: 0.1090741 | B17: 0.0074116 | D17: 0.0074116 | E17: 0.0074116
A18: 0.1629675 | B18: 0.02341638 | D18: 0.02341638 | E18: 0.02341638
A19: 0.1847095 | B19: 0.04294444 | D19: 0.04294444 | E19: 0.04294444
A20: 0.255194 | B20: 0.0207407 | D20: 0.0207407 | E20: 0.0207407
A21: 0.2071974 | B21: 0.0157574 | D21: 0.0157574 | E21: 0.0157574
A22: 0.2603496 | B22: 0.0136047 | D22: 0.0136047 | E22: 0.0136047
A23: 0.2462971 | B23: 0.0150279 | D23: 0.0150279 | E23: 0.0150279
A24: 0.4403041 | B24: 0.0123552 | D24: 0.0123552 | E24: 0.0123552
A25: 0.173 | B25: 0.006 | D25: 0.006 | E25: 0.006
A26: 0.1449076 | B26: 0.018405 | D26: 0.018405 | E26: 0.018405
A27: 0.1919092 | B27: 0.0143314 | D27: 0.0143314 | E27: 0.0143314
A28: 0.1278979 | B28: 0.0146526 | D28: 0.0146526 | E28: 0.0146526
A29: 0.1306551 | B29: 0.0200121 | D29: 0.0200121 | E29: 0.0200121
A30: 0.0604751 | B30: 0.0159079 | D30: 0.0159079 | E30: 0.0159079
A31: 0.0224719 | B31: 0.0184193 | D31: 0.0184193 | E31: 0.0184193
A32: 0.5579294 | B32: 0.2749703 | D32: 0.2749703 | E32: 0.2749703
A33: 0.1192661 | B33: 0.0384378 | D33: 0.0384378 | E33: 0.0384378
A34: 0.195 | B34: 0.029 | D34: 0.029 | E34: 0.029
A35: 0.0354373 | B35: 0.0067749 | D35: 0.0067749 | E35: 0.0067749
A36: 0.0727259 | B36: 0.0234718 | D36: 0.0234718 | E36: 0.0234718
A37: 0.2292667 | B37: 0.0613419 | D37: 0.0613419 | E37: 0.0613419
A38: 0.1485899 | B38: 0.009561046 | D38: 0.009561046 | E38: 0.009561046
A39: 0.0417621 | B39: 0.025412 | D39: 0.025412 | E39: 0.025412
A40: 0.1849244 | B40: 0.0309736 | D40: 0.0309736 | E40: 0.0309736
A41: 0.0285 | B41: 0.0087 | D41: 0.0087 | E41: 0.0087
A42: 0.062 | B42: 0.015 | D42: 0.015 | E42: 0.015
A43: 0.112 | B43: 0.04234693878 | D43: 0.04234693878 | E43: 0.04234693878
A44: 0.2944184 | B44: 0.0456357 | D44: 0.0456357 | E44: 0.0456357

Sheet XLSTAT_20210824_215940_1_HID (hidden)
A1: 173 | B1: 173 | D1: 0.89 | E1: 173 | G1: 0.01785714286 | H1: 173 | J1: 0.9234709 | K1: 62 | M1: 0.0115008 | N1: 62 | P1: 0.56 | Q1: 173 | S1: 0.06887755102 | T1: 173 | V1: 0.382406 | W1: 62 | Y1: 0.0265574 | Z1: 62 | AB1: 173 | AC1: 0.89 | AE1: 0.89 | AF1: 0.89 | AH1: 0.01785714286 | AI1: 0.89 | AK1: 0.9234709 | AL1: 0.9469559 | AN1: 0.0115008 | AO1: 0.9469559 | AQ1: 0.56 | AR1: 0.89 | AT1: 0.06887755102 | AU1: 0.89 | AW1: 0.382406 | AX1: 0.9469559 | AZ1: 0.0265574 | BA1: 0.9469559 | BC1: 173 | BD1: 0.01785714286 | BF1: 0.89 | BG1: 0.01785714286 | BI1: 0.01785714286 | BJ1: 0.01785714286 | BL1: 0.9234709 | BM1: 0.006714 | BO1: 0.0115008 | BP1: 0.006714 | BR1: 0.56 | BS1: 0.01785714286 | BU1: 0.06887755102 | BV1: 0.01785714286 | BX1: 0.382406 | BY1: 0.006714 | CA1: 0.0265574 | CB1: 0.006714 | CD1: 62 | CE1: 0.9234709 | CG1: 0.9469559 | CH1: 0.9234709 | CJ1: 0.006714 | CK1: 0.9234709 | CM1: 0.9234709 | CN1: 0.9234709 | CP1: 0.0115008 | CQ1: 0.9234709 | CS1: 0.3467283 | CT1: 0.9234709 | CV1: 0.017393 | CW1: 0.9234709 | CY1: 0.382406 | CZ1: 0.9234709 | DB1: 0.0265574 | DC1: 0.9234709 | DE1: 62 | DF1: 0.0115008 | DH1: 0.9469559 | DI1: 0.0115008 | DK1: 0.006714 | DL1: 0.0115008 | DN1: 0.9234709 | DO1: 0.0115008 | DQ1: 0.0115008 | DR1: 0.0115008 | DT1: 0.3467283 | DU1: 0.0115008 | DW1: 0.017393 | DX1: 0.0115008 | DZ1: 0.382406 | EA1: 0.0115008 | EC1: 0.0265574 | ED1: 0.0115008 | EF1: 173 | EG1: 0.56 | EI1: 0.89 | EJ1: 0.56 | EL1: 0.01785714286 | EM1: 0.56 | EO1: 0.9234709 | EP1: 0.3467283 | ER1: 0.0115008 | ES1: 0.3467283 | EU1: 0.56 | EV1: 0.56 | EX1: 0.06887755102 | EY1: 0.56 | FA1: 0.382406 | FB1: 0.3467283 | FD1: 0.0265574 | FE1: 0.3467283 | FG1: 173 | FH1: 0.06887755102 | FJ1: 0.89 | FK1: 0.06887755102 | FM1: 0.01785714286 | FN1: 0.06887755102 | FP1: 0.9234709 | FQ1: 0.017393 | FS1: 0.0115008 | FT1: 0.017393 | FV1: 0.56 | FW1: 0.06887755102 | FY1: 0.06887755102 | FZ1: 0.06887755102 | GB1: 0.382406 | GC1: 0.017393 | GE1: 0.0265574 | GF1: 0.017393 | GH1: 62 | GI1: 0.382406 | GK1: 0.9469559 | GL1: 0.382406 | GN1: 0.006714 | GO1: 0.382406 | GQ1: 0.9234709 | GR1: 0.382406 | GT1: 0.0115008 | GU1: 0.382406 | GW1: 0.3467283 | GX1: 0.382406 | GZ1: 0.017393 | HA1: 0.382406 | HC1: 0.382406 | HD1: 0.382406 | HF1: 0.0265574 | HG1: 0.382406 | HI1: 62 | HJ1: 0.0265574 | HL1: 0.9469559 | HM1: 0.0265574 | HO1: 0.006714 | HP1: 0.0265574 | HR1: 0.9234709 | HS1: 0.0265574 | HU1: 0.0115008 | HV1: 0.0265574 | HX1: 0.3467283 | HY1: 0.0265574 | IA1: 0.017393 | IB1: 0.0265574
A2: 62 | B2: 62 | D2: 0.9469559 | E2: 62 | G2: 0.006714 | H2: 62 | J2: 0.84 | K2: 42 | M2: 0.01275510204 | N2: 42 | P2: 0.3467283 | Q2: 62 | S2: 0.017393 | T2: 62 | V2: 0.29 | W2: 42 | Y2: 0.02040816327 | Z2: 42 | AB2: 62 | AC2: 0.9469559 | AE2: 0.9469559 | AF2: 0.9469559 | AH2: 0.006714 | AI2: 0.9469559 | AK2: 0.84 | AL2: 0.84 | AN2: 0.01275510204 | AO2: 0.84 | AQ2: 0.3467283 | AR2: 0.9469559 | AT2: 0.017393 | AU2: 0.9469559 | AW2: 0.29 | AX2: 0.84 | AZ2: 0.02040816327 | BA2: 0.84 | BC2: 62 | BD2: 0.006714 | BF2: 0.9469559 | BG2: 0.006714 | BI2: 0.006714 | BJ2: 0.006714 | BL2: 0.84 | BM2: 0.01530612245 | BO2: 0.01275510204 | BP2: 0.01530612245 | BR2: 0.3467283 | BS2: 0.006714 | BU2: 0.017393 | BV2: 0.006714 | BX2: 0.29 | BY2: 0.01530612245 | CA2: 0.02040816327 | CB2: 0.01530612245 | CD2: 42 | CE2: 0.84 | CG2: 0.84 | CH2: 0.84 | CJ2: 0.01530612245 | CK2: 0.84 | CM2: 0.84 | CN2: 0.84 | CP2: 0.01275510204 | CQ2: 0.84 | CS2: 0.56 | CT2: 0.84 | CV2: 0.02551020408 | CW2: 0.84 | CY2: 0.29 | CZ2: 0.84 | DB2: 0.02040816327 | DC2: 0.84 | DE2: 42 | DF2: 0.01275510204 | DH2: 0.84 | DI2: 0.01275510204 | DK2: 0.01530612245 | DL2: 0.01275510204 | DN2: 0.84 | DO2: 0.01275510204 | DQ2: 0.01275510204 | DR2: 0.01275510204 | DT2: 0.56 | DU2: 0.01275510204 | DW2: 0.02551020408 | DX2: 0.01275510204 | DZ2: 0.29 | EA2: 0.01275510204 | EC2: 0.02040816327 | ED2: 0.01275510204 | EF2: 62 | EG2: 0.3467283 | EI2: 0.9469559 | EJ2: 0.3467283 | EL2: 0.006714 | EM2: 0.3467283 | EO2: 0.84 | EP2: 0.56 | ER2: 0.01275510204 | ES2: 0.56 | EU2: 0.3467283 | EV2: 0.3467283 | EX2: 0.017393 | EY2: 0.3467283 | FA2: 0.29 | FB2: 0.56 | FD2: 0.02040816327 | FE2: 0.56 | FG2: 62 | FH2: 0.017393 | FJ2: 0.9469559 | FK2: 0.017393 | FM2: 0.006714 | FN2: 0.017393 | FP2: 0.84 | FQ2: 0.02551020408 | FS2: 0.01275510204 | FT2: 0.02551020408 | FV2: 0.3467283 | FW2: 0.017393 | FY2: 0.017393 | FZ2: 0.017393 | GB2: 0.29 | GC2: 0.02551020408 | GE2: 0.02040816327 | GF2: 0.02551020408 | GH2: 42 | GI2: 0.29 | GK2: 0.84 | GL2: 0.29 | GN2: 0.01530612245 | GO2: 0.29 | GQ2: 0.84 | GR2: 0.29 | GT2: 0.01275510204 | GU2: 0.29 | GW2: 0.56 | GX2: 0.29 | GZ2: 0.02551020408 | HA2: 0.29 | HC2: 0.29 | HD2: 0.29 | HF2: 0.02040816327 | HG2: 0.29 | HI2: 42 | HJ2: 0.02040816327 | HL2: 0.84 | HM2: 0.02040816327 | HO2: 0.01530612245 | HP2: 0.02040816327 | HR2: 0.84 | HS2: 0.02040816327 | HU2: 0.01275510204 | HV2: 0.02040816327 | HX2: 0.56 | HY2: 0.02040816327 | IA2: 0.02551020408 | IB2: 0.02040816327
A3: 42 | B3: 42 | D3: 0.84 | E3: 42 | G3: 0.01530612245 | H3: 42 | J3: 0.9591 | K3: 75 | M3: 0.0068 | N3: 75 | P3: 0.56 | Q3: 42 | S3: 0.02551020408 | T3: 42 | V3: 0.6156 | W3: 75 | Y3: 0.0177 | Z3: 75 | AB3: 42 | AC3: 0.84 | AE3: 0.84 | AF3: 0.84 | AH3: 0.01530612245 | AI3: 0.84 | AK3: 0.9591 | AL3: 0.9637 | AN3: 0.0068 | AO3: 0.9637 | AQ3: 0.56 | AR3: 0.84 | AT3: 0.02551020408 | AU3: 0.84 | AW3: 0.6156 | AX3: 0.9637 | AZ3: 0.0177 | BA3: 0.9637 | BC3: 42 | BD3: 0.01530612245 | BF3: 0.84 | BG3: 0.01530612245 | BI3: 0.01530612245 | BJ3: 0.01530612245 | BL3: 0.9591 | BM3: 0.0034 | BO3: 0.0068 | BP3: 0.0034 | BR3: 0.56 | BS3: 0.01530612245 | BU3: 0.02551020408 | BV3: 0.01530612245 | BX3: 0.6156 | BY3: 0.0034 | CA3: 0.0177 | CB3: 0.0034 | CD3: 75 | CE3: 0.9591 | CG3: 0.9637 | CH3: 0.9591 | CJ3: 0.0034 | CK3: 0.9591 | CM3: 0.9591 | CN3: 0.9591 | CP3: 0.0068 | CQ3: 0.9591 | CS3: 0.8264 | CT3: 0.9591 | CV3: 0.0069 | CW3: 0.9591 | CY3: 0.6156 | CZ3: 0.9591 | DB3: 0.0177 | DC3: 0.9591 | DE3: 75 | DF3: 0.0068 | DH3: 0.9637 | DI3: 0.0068 | DK3: 0.0034 | DL3: 0.0068 | DN3: 0.9591 | DO3: 0.0068 | DQ3: 0.0068 | DR3: 0.0068 | DT3: 0.8264 | DU3: 0.0068 | DW3: 0.0069 | DX3: 0.0068 | DZ3: 0.6156 | EA3: 0.0068 | EC3: 0.0177 | ED3: 0.0068 | EF3: 42 | EG3: 0.56 | EI3: 0.84 | EJ3: 0.56 | EL3: 0.01530612245 | EM3: 0.56 | EO3: 0.9591 | EP3: 0.8264 | ER3: 0.0068 | ES3: 0.8264 | EU3: 0.56 | EV3: 0.56 | EX3: 0.02551020408 | EY3: 0.56 | FA3: 0.6156 | FB3: 0.8264 | FD3: 0.0177 | FE3: 0.8264 | FG3: 42 | FH3: 0.02551020408 | FJ3: 0.84 | FK3: 0.02551020408 | FM3: 0.01530612245 | FN3: 0.02551020408 | FP3: 0.9591 | FQ3: 0.0069 | FS3: 0.0068 | FT3: 0.0069 | FV3: 0.56 | FW3: 0.02551020408 | FY3: 0.02551020408 | FZ3: 0.02551020408 | GB3: 0.6156 | GC3: 0.0069 | GE3: 0.0177 | GF3: 0.0069 | GH3: 75 | GI3: 0.6156 | GK3: 0.9637 | GL3: 0.6156 | GN3: 0.0034 | GO3: 0.6156 | GQ3: 0.9591 | GR3: 0.6156 | GT3: 0.0068 | GU3: 0.6156 | GW3: 0.8264 | GX3: 0.6156 | GZ3: 0.0069 | HA3: 0.6156 | HC3: 0.6156 | HD3: 0.6156 | HF3: 0.0177 | HG3: 0.6156 | HI3: 75 | HJ3: 0.0177 | HL3: 0.9637 | HM3: 0.0177 | HO3: 0.0034 | HP3: 0.0177 | HR3: 0.9591 | HS3: 0.0177 | HU3: 0.0068 | HV3: 0.0177 | HX3: 0.8264 | HY3: 0.0177 | IA3: 0.0069 | IB3: 0.0177
A4: 75 | B4: 75 | D4: 0.9637 | E4: 75 | G4: 0.0034 | H4: 75 | J4: 0.8951155 | K4: 9 | M4: 0.0281449 | N4: 9 | P4: 0.8264 | Q4: 75 | S4: 0.0069 | T4: 75 | V4: 0.2952863 | W4: 9 | Y4: 0.035919 | Z4: 9 | AB4: 75 | AC4: 0.9637 | AE4: 0.9637 | AF4: 0.9637 | AH4: 0.0034 | AI4: 0.9637 | AK4: 0.8951155 | AL4: 0.8781047 | AN4: 0.0281449 | AO4: 0.8781047 | AQ4: 0.8264 | AR4: 0.9637 | AT4: 0.0069 | AU4: 0.9637 | AW4: 0.2952863 | AX4: 0.8781047 | AZ4: 0.035919 | BA4: 0.8781047 | BC4: 75 | BD4: 0.0034 | BF4: 0.9637 | BG4: 0.0034 | BI4: 0.0034 | BJ4: 0.0034 | BL4: 0.8951155 | BM4: 0.0212928 | BO4: 0.0281449 | BP4: 0.0212928 | BR4: 0.8264 | BS4: 0.0034 | BU4: 0.0069 | BV4: 0.0034 | BX4: 0.2952863 | BY4: 0.0212928 | CA4: 0.035919 | CB4: 0.0212928 | CD4: 9 | CE4: 0.8951155 | CG4: 0.8781047 | CH4: 0.8951155 | CJ4: 0.0212928 | CK4: 0.8951155 | CM4: 0.8951155 | CN4: 0.8951155 | CP4: 0.0281449 | CQ4: 0.8951155 | CS4: 0.6239613 | CT4: 0.8951155 | CV4: 0.0356255 | CW4: 0.8951155 | CY4: 0.2952863 | CZ4: 0.8951155 | DB4: 0.035919 | DC4: 0.8951155 | DE4: 9 | DF4: 0.0281449 | DH4: 0.8781047 | DI4: 0.0281449 | DK4: 0.0212928 | DL4: 0.0281449 | DN4: 0.8951155 | DO4: 0.0281449 | DQ4: 0.0281449 | DR4: 0.0281449 | DT4: 0.6239613 | DU4: 0.0281449 | DW4: 0.0356255 | DX4: 0.0281449 | DZ4: 0.2952863 | EA4: 0.0281449 | EC4: 0.035919 | ED4: 0.0281449 | EF4: 75 | EG4: 0.8264 | EI4: 0.9637 | EJ4: 0.8264 | EL4: 0.0034 | EM4: 0.8264 | EO4: 0.8951155 | EP4: 0.6239613 | ER4: 0.0281449 | ES4: 0.6239613 | EU4: 0.8264 | EV4: 0.8264 | EX4: 0.0069 | EY4: 0.8264 | FA4: 0.2952863 | FB4: 0.6239613 | FD4: 0.035919 | FE4: 0.6239613 | FG4: 75 | FH4: 0.0069 | FJ4: 0.9637 | FK4: 0.0069 | FM4: 0.0034 | FN4: 0.0069 | FP4: 0.8951155 | FQ4: 0.0356255 | FS4: 0.0281449 | FT4: 0.0356255 | FV4: 0.8264 | FW4: 0.0069 | FY4: 0.0069 | FZ4: 0.0069 | GB4: 0.2952863 | GC4: 0.0356255 | GE4: 0.035919 | GF4: 0.0356255 | GH4: 9 | GI4: 0.2952863 | GK4: 0.8781047 | GL4: 0.2952863 | GN4: 0.0212928 | GO4: 0.2952863 | GQ4: 0.8951155 | GR4: 0.2952863 | GT4: 0.0281449 | GU4: 0.2952863 | GW4: 0.6239613 | GX4: 0.2952863 | GZ4: 0.0356255 | HA4: 0.2952863 | HC4: 0.2952863 | HD4: 0.2952863 | HF4: 0.035919 | HG4: 0.2952863 | HI4: 9 | HJ4: 0.035919 | HL4: 0.8781047 | HM4: 0.035919 | HO4: 0.0212928 | HP4: 0.035919 | HR4: 0.8951155 | HS4: 0.035919 | HU4: 0.0281449 | HV4: 0.035919 | HX4: 0.6239613 | HY4: 0.035919 | IA4: 0.0356255 | IB4: 0.035919
A5: 9 | B5: 9 | D5: 0.8781047 | E5: 9 | G5: 0.0212928 | H5: 9 | J5: 0.9179249 | K5: 9 | M5: 0.0148937 | N5: 9 | P5: 0.6239613 | Q5: 9 | S5: 0.0356255 | T5: 9 | V5: 0.3709886 | W5: 9 | Y5: 0.0238672 | Z5: 9 | AB5: 9 | AC5: 0.8781047 | AE5: 0.8781047 | AF5: 0.8781047 | AH5: 0.0212928 | AI5: 0.8781047 | AK5: 0.9179249 | AL5: 0.9016691 | AN5: 0.0148937 | AO5: 0.9016691 | AQ5: 0.6239613 | AR5: 0.8781047 | AT5: 0.0356255 | AU5: 0.8781047 | AW5: 0.3709886 | AX5: 0.9016691 | AZ5: 0.0238672 | BA5: 0.9016691 | BC5: 9 | BD5: 0.0212928 | BF5: 0.8781047 | BG5: 0.0212928 | BI5: 0.0212928 | BJ5: 0.0212928 | BL5: 0.9179249 | BM5: 0.0181753 | BO5: 0.0148937 | BP5: 0.0181753 | BR5: 0.6239613 | BS5: 0.0212928 | BU5: 0.0356255 | BV5: 0.0212928 | BX5: 0.3709886 | BY5: 0.0181753 | CA5: 0.0238672 | CB5: 0.0181753 | CD5: 9 | CE5: 0.9179249 | CG5: 0.9016691 | CH5: 0.9179249 | CJ5: 0.0181753 | CK5: 0.9179249 | CM5: 0.9179249 | CN5: 0.9179249 | CP5: 0.0148937 | CQ5: 0.9179249 | CS5: 0.5687635 | CT5: 0.9179249 | CV5: 0.0322685 | CW5: 0.9179249 | CY5: 0.3709886 | CZ5: 0.9179249 | DB5: 0.0238672 | DC5: 0.9179249 | DE5: 9 | DF5: 0.0148937 | DH5: 0.9016691 | DI5: 0.0148937 | DK5: 0.0181753 | DL5: 0.0148937 | DN5: 0.9179249 | DO5: 0.0148937 | DQ5: 0.0148937 | DR5: 0.0148937 | DT5: 0.5687635 | DU5: 0.0148937 | DW5: 0.0322685 | DX5: 0.0148937 | DZ5: 0.3709886 | EA5: 0.0148937 | EC5: 0.0238672 | ED5: 0.0148937 | EF5: 9 | EG5: 0.6239613 | EI5: 0.8781047 | EJ5: 0.6239613 | EL5: 0.0212928 | EM5: 0.6239613 | EO5: 0.9179249 | EP5: 0.5687635 | ER5: 0.0148937 | ES5: 0.5687635 | EU5: 0.6239613 | EV5: 0.6239613 | EX5: 0.0356255 | EY5: 0.6239613 | FA5: 0.3709886 | FB5: 0.5687635 | FD5: 0.0238672 | FE5: 0.5687635 | FG5: 9 | FH5: 0.0356255 | FJ5: 0.8781047 | FK5: 0.0356255 | FM5: 0.0212928 | FN5: 0.0356255 | FP5: 0.9179249 | FQ5: 0.0322685 | FS5: 0.0148937 | FT5: 0.0322685 | FV5: 0.6239613 | FW5: 0.0356255 | FY5: 0.0356255 | FZ5: 0.0356255 | GB5: 0.3709886 | GC5: 0.0322685 | GE5: 0.0238672 | GF5: 0.0322685 | GH5: 9 | GI5: 0.3709886 | GK5: 0.9016691 | GL5: 0.3709886 | GN5: 0.0181753 | GO5: 0.3709886 | GQ5: 0.9179249 | GR5: 0.3709886 | GT5: 0.0148937 | GU5: 0.3709886 | GW5: 0.5687635 | GX5: 0.3709886 | GZ5: 0.0322685 | HA5: 0.3709886 | HC5: 0.3709886 | HD5: 0.3709886 | HF5: 0.0238672 | HG5: 0.3709886 | HI5: 9 | HJ5: 0.0238672 | HL5: 0.9016691 | HM5: 0.0238672 | HO5: 0.0181753 | HP5: 0.0238672 | HR5: 0.9179249 | HS5: 0.0238672 | HU5: 0.0148937 | HV5: 0.0238672 | HX5: 0.5687635 | HY5: 0.0238672 | IA5: 0.0322685 | IB5: 0.0238672
A6: 10 | B6: 10 | D6: 0.8824131 | E6: 10 | G6: 0.0164541 | H6: 10 | J6: 0.7606023 | K6: 87 | M6: 0.0550446 | N6: 87 | P6: 0.6504691 | Q6: 10 | S6: 0.0341314 | T6: 10 | V6: 0.3174852 | W6: 87 | Y6: 0.095069 | Z6: 87 | AB6: 10 | AC6: 0.8824131 | AE6: 0.8824131 | AF6: 0.8824131 | AH6: 0.0164541 | AI6: 0.8824131 | AK6: 0.7606023 | AL6: 0.7986151 | AN6: 0.0550446 | AO6: 0.7986151 | AQ6: 0.6504691 | AR6: 0.8824131 | AT6: 0.0341314 | AU6: 0.8824131 | AW6: 0.3174852 | AX6: 0.7986151 | AZ6: 0.095069 | BA6: 0.7986151 | BC6: 10 | BD6: 0.0164541 | BF6: 0.8824131 | BG6: 0.0164541 | BI6: 0.0164541 | BJ6: 0.0164541 | BL6: 0.7606023 | BM6: 0.0419406 | BO6: 0.0550446 | BP6: 0.0419406 | BR6: 0.6504691 | BS6: 0.0164541 | BU6: 0.0341314 | BV6: 0.0164541 | BX6: 0.3174852 | BY6: 0.0419406 | CA6: 0.095069 | CB6: 0.0419406 | CD6: 87 | CE6: 0.7606023 | CG6: 0.7986151 | CH6: 0.7606023 | CJ6: 0.0419406 | CK6: 0.7606023 | CM6: 0.7606023 | CN6: 0.7606023 | CP6: 0.0550446 | CQ6: 0.7606023 | CS6: 0.4358294 | CT6: 0.7606023 | CV6: 0.0766283 | CW6: 0.7606023 | CY6: 0.3174852 | CZ6: 0.7606023 | DB6: 0.095069 | DC6: 0.7606023 | DE6: 87 | DF6: 0.0550446 | DH6: 0.7986151 | DI6: 0.0550446 | DK6: 0.0419406 | DL6: 0.0550446 | DN6: 0.7606023 | DO6: 0.0550446 | DQ6: 0.0550446 | DR6: 0.0550446 | DT6: 0.4358294 | DU6: 0.0550446 | DW6: 0.0766283 | DX6: 0.0550446 | DZ6: 0.3174852 | EA6: 0.0550446 | EC6: 0.095069 | ED6: 0.0550446 | EF6: 10 | EG6: 0.6504691 | EI6: 0.8824131 | EJ6: 0.6504691 | EL6: 0.0164541 | EM6: 0.6504691 | EO6: 0.7606023 | EP6: 0.4358294 | ER6: 0.0550446 | ES6: 0.4358294 | EU6: 0.6504691 | EV6: 0.6504691 | EX6: 0.0341314 | EY6: 0.6504691 | FA6: 0.3174852 | FB6: 0.4358294 | FD6: 0.095069 | FE6: 0.4358294 | FG6: 10 | FH6: 0.0341314 | FJ6: 0.8824131 | FK6: 0.0341314 | FM6: 0.0164541 | FN6: 0.0341314 | FP6: 0.7606023 | FQ6: 0.0766283 | FS6: 0.0550446 | FT6: 0.0766283 | FV6: 0.6504691 | FW6: 0.0341314 | FY6: 0.0341314 | FZ6: 0.0341314 | GB6: 0.3174852 | GC6: 0.0766283 | GE6: 0.095069 | GF6: 0.0766283 | GH6: 87 | GI6: 0.3174852 | GK6: 0.7986151 | GL6: 0.3174852 | GN6: 0.0419406 | GO6: 0.3174852 | GQ6: 0.7606023 | GR6: 0.3174852 | GT6: 0.0550446 | GU6: 0.3174852 | GW6: 0.4358294 | GX6: 0.3174852 | GZ6: 0.0766283 | HA6: 0.3174852 | HC6: 0.3174852 | HD6: 0.3174852 | HF6: 0.095069 | HG6: 0.3174852 | HI6: 87 | HJ6: 0.095069 | HL6: 0.7986151 | HM6: 0.095069 | HO6: 0.0419406 | HP6: 0.095069 | HR6: 0.7606023 | HS6: 0.095069 | HU6: 0.0550446 | HV6: 0.095069 | HX6: 0.4358294 | HY6: 0.095069 | IA6: 0.0766283 | IB6: 0.095069
A7: 9 | B7: 9 | D7: 0.9016691 | E7: 9 | G7: 0.0181753 | H7: 9 | J7: 0.8888962 | K7: 65 | M7: 0.0092091 | N7: 65 | P7: 0.5687635 | Q7: 9 | S7: 0.0322685 | T7: 9 | V7: 0.241935 | W7: 65 | Y7: 0.0197975 | Z7: 65 | AB7: 9 | AC7: 0.9016691 | AE7: 0.9016691 | AF7: 0.9016691 | AH7: 0.0181753 | AI7: 0.9016691 | AK7: 0.8888962 | AL7: 0.8909732 | AN7: 0.0092091 | AO7: 0.8909732 | AQ7: 0.5687635 | AR7: 0.9016691 | AT7: 0.0322685 | AU7: 0.9016691 | AW7: 0.241935 | AX7: 0.8909732 | AZ7: 0.0197975 | BA7: 0.8909732 | BC7: 9 | BD7: 0.0181753 | BF7: 0.9016691 | BG7: 0.0181753 | BI7: 0.0181753 | BJ7: 0.0181753 | BL7: 0.8888962 | BM7: 0.0081927 | BO7: 0.0092091 | BP7: 0.0081927 | BR7: 0.5687635 | BS7: 0.0181753 | BU7: 0.0322685 | BV7: 0.0181753 | BX7: 0.241935 | BY7: 0.0081927 | CA7: 0.0197975 | CB7: 0.0081927 | CD7: 65 | CE7: 0.8888962 | CG7: 0.8909732 | CH7: 0.8888962 | CJ7: 0.0081927 | CK7: 0.8888962 | CM7: 0.8888962 | CN7: 0.8888962 | CP7: 0.0092091 | CQ7: 0.8888962 | CS7: 0.4715742 | CT7: 0.8888962 | CV7: 0.023485 | CW7: 0.8888962 | CY7: 0.241935 | CZ7: 0.8888962 | DB7: 0.0197975 | DC7: 0.8888962 | DE7: 65 | DF7: 0.0092091 | DH7: 0.8909732 | DI7: 0.0092091 | DK7: 0.0081927 | DL7: 0.0092091 | DN7: 0.8888962 | DO7: 0.0092091 | DQ7: 0.0092091 | DR7: 0.0092091 | DT7: 0.4715742 | DU7: 0.0092091 | DW7: 0.023485 | DX7: 0.0092091 | DZ7: 0.241935 | EA7: 0.0092091 | EC7: 0.0197975 | ED7: 0.0092091 | EF7: 9 | EG7: 0.5687635 | EI7: 0.9016691 | EJ7: 0.5687635 | EL7: 0.0181753 | EM7: 0.5687635 | EO7: 0.8888962 | EP7: 0.4715742 | ER7: 0.0092091 | ES7: 0.4715742 | EU7: 0.5687635 | EV7: 0.5687635 | EX7: 0.0322685 | EY7: 0.5687635 | FA7: 0.241935 | FB7: 0.4715742 | FD7: 0.0197975 | FE7: 0.4715742 | FG7: 9 | FH7: 0.0322685 | FJ7: 0.9016691 | FK7: 0.0322685 | FM7: 0.0181753 | FN7: 0.0322685 | FP7: 0.8888962 | FQ7: 0.023485 | FS7: 0.0092091 | FT7: 0.023485 | FV7: 0.5687635 | FW7: 0.0322685 | FY7: 0.0322685 | FZ7: 0.0322685 | GB7: 0.241935 | GC7: 0.023485 | GE7: 0.0197975 | GF7: 0.023485 | GH7: 65 | GI7: 0.241935 | GK7: 0.8909732 | GL7: 0.241935 | GN7: 0.0081927 | GO7: 0.241935 | GQ7: 0.8888962 | GR7: 0.241935 | GT7: 0.0092091 | GU7: 0.241935 | GW7: 0.4715742 | GX7: 0.241935 | GZ7: 0.023485 | HA7: 0.241935 | HC7: 0.241935 | HD7: 0.241935 | HF7: 0.0197975 | HG7: 0.241935 | HI7: 65 | HJ7: 0.0197975 | HL7: 0.8909732 | HM7: 0.0197975 | HO7: 0.0081927 | HP7: 0.0197975 | HR7: 0.8888962 | HS7: 0.0197975 | HU7: 0.0092091 | HV7: 0.0197975 | HX7: 0.4715742 | HY7: 0.0197975 | IA7: 0.023485 | IB7: 0.0197975
A8: 87 | B8: 87 | D8: 0.7986151 | E8: 87 | G8: 0.0419406 | H8: 87 | J8: 0.8051446 | K8: 10 | M8: 0.0469221 | N8: 10 | P8: 0.4358294 | Q8: 87 | S8: 0.0766283 | T8: 87 | V8: 0.5326219 | W8: 10 | Y8: 0.0737557 | Z8: 10 | AB8: 87 | AC8: 0.7986151 | AE8: 0.7986151 | AF8: 0.7986151 | AH8: 0.0419406 | AI8: 0.7986151 | AK8: 0.8051446 | AL8: 0.8828532 | AN8: 0.0469221 | AO8: 0.8828532 | AQ8: 0.4358294 | AR8: 0.7986151 | AT8: 0.0766283 | AU8: 0.7986151 | AW8: 0.5326219 | AX8: 0.8828532 | AZ8: 0.0737557 | BA8: 0.8828532 | BC8: 87 | BD8: 0.0419406 | BF8: 0.7986151 | BG8: 0.0419406 | BI8: 0.0419406 | BJ8: 0.0419406 | BL8: 0.8051446 | BM8: 0.0292956 | BO8: 0.0469221 | BP8: 0.0292956 | BR8: 0.4358294 | BS8: 0.0419406 | BU8: 0.0766283 | BV8: 0.0419406 | BX8: 0.5326219 | BY8: 0.0292956 | CA8: 0.0737557 | CB8: 0.0292956 | CD8: 10 | CE8: 0.8051446 | CG8: 0.8828532 | CH8: 0.8051446 | CJ8: 0.0292956 | CK8: 0.8051446 | CM8: 0.8051446 | CN8: 0.8051446 | CP8: 0.0469221 | CQ8: 0.8051446 | CS8: 0.6233053 | CT8: 0.8051446 | CV8: 0.0489502 | CW8: 0.8051446 | CY8: 0.5326219 | CZ8: 0.8051446 | DB8: 0.0737557 | DC8: 0.8051446 | DE8: 10 | DF8: 0.0469221 | DH8: 0.8828532 | DI8: 0.0469221 | DK8: 0.0292956 | DL8: 0.0469221 | DN8: 0.8051446 | DO8: 0.0469221 | DQ8: 0.0469221 | DR8: 0.0469221 | DT8: 0.6233053 | DU8: 0.0469221 | DW8: 0.0489502 | DX8: 0.0469221 | DZ8: 0.5326219 | EA8: 0.0469221 | EC8: 0.0737557 | ED8: 0.0469221 | EF8: 87 | EG8: 0.4358294 | EI8: 0.7986151 | EJ8: 0.4358294 | EL8: 0.0419406 | EM8: 0.4358294 | EO8: 0.8051446 | EP8: 0.6233053 | ER8: 0.0469221 | ES8: 0.6233053 | EU8: 0.4358294 | EV8: 0.4358294 | EX8: 0.0766283 | EY8: 0.4358294 | FA8: 0.5326219 | FB8: 0.6233053 | FD8: 0.0737557 | FE8: 0.6233053 | FG8: 87 | FH8: 0.0766283 | FJ8: 0.7986151 | FK8: 0.0766283 | FM8: 0.0419406 | FN8: 0.0766283 | FP8: 0.8051446 | FQ8: 0.0489502 | FS8: 0.0469221 | FT8: 0.0489502 | FV8: 0.4358294 | FW8: 0.0766283 | FY8: 0.0766283 | FZ8: 0.0766283 | GB8: 0.5326219 | GC8: 0.0489502 | GE8: 0.0737557 | GF8: 0.0489502 | GH8: 10 | GI8: 0.5326219 | GK8: 0.8828532 | GL8: 0.5326219 | GN8: 0.0292956 | GO8: 0.5326219 | GQ8: 0.8051446 | GR8: 0.5326219 | GT8: 0.0469221 | GU8: 0.5326219 | GW8: 0.6233053 | GX8: 0.5326219 | GZ8: 0.0489502 | HA8: 0.5326219 | HC8: 0.5326219 | HD8: 0.5326219 | HF8: 0.0737557 | HG8: 0.5326219 | HI8: 10 | HJ8: 0.0737557 | HL8: 0.8828532 | HM8: 0.0737557 | HO8: 0.0292956 | HP8: 0.0737557 | HR8: 0.8051446 | HS8: 0.0737557 | HU8: 0.0469221 | HV8: 0.0737557 | HX8: 0.6233053 | HY8: 0.0737557 | IA8: 0.0489502 | IB8: 0.0737557
A9: 65 | B9: 65 | D9: 0.8909732 | E9: 65 | G9: 0.0081927 | H9: 65 | J9: 0.8813207 | K9: 58 | M9: 0.0212694 | N9: 58 | P9: 0.4715742 | Q9: 65 | S9: 0.023485 | T9: 65 | V9: 0.2618267 | W9: 58 | Y9: 0.0419386 | Z9: 58 | AB9: 65 | AC9: 0.8909732 | AE9: 0.8909732 | AF9: 0.8909732 | AH9: 0.0081927 | AI9: 0.8909732 | AK9: 0.8813207 | AL9: 0.8984061 | AN9: 0.0212694 | AO9: 0.8984061 | AQ9: 0.4715742 | AR9: 0.8909732 | AT9: 0.023485 | AU9: 0.8909732 | AW9: 0.2618267 | AX9: 0.8984061 | AZ9: 0.0419386 | BA9: 0.8984061 | BC9: 65 | BD9: 0.0081927 | BF9: 0.8909732 | BG9: 0.0081927 | BI9: 0.0081927 | BJ9: 0.0081927 | BL9: 0.8813207 | BM9: 0.013138 | BO9: 0.0212694 | BP9: 0.013138 | BR9: 0.4715742 | BS9: 0.0081927 | BU9: 0.023485 | BV9: 0.0081927 | BX9: 0.2618267 | BY9: 0.013138 | CA9: 0.0419386 | CB9: 0.013138 | CD9: 58 | CE9: 0.8813207 | CG9: 0.8984061 | CH9: 0.8813207 | CJ9: 0.013138 | CK9: 0.8813207 | CM9: 0.8813207 | CN9: 0.8813207 | CP9: 0.0212694 | CQ9: 0.8813207 | CS9: 0.4751318 | CT9: 0.8813207 | CV9: 0.0356237 | CW9: 0.8813207 | CY9: 0.2618267 | CZ9: 0.8813207 | DB9: 0.0419386 | DC9: 0.8813207 | DE9: 58 | DF9: 0.0212694 | DH9: 0.8984061 | DI9: 0.0212694 | DK9: 0.013138 | DL9: 0.0212694 | DN9: 0.8813207 | DO9: 0.0212694 | DQ9: 0.0212694 | DR9: 0.0212694 | DT9: 0.4751318 | DU9: 0.0212694 | DW9: 0.0356237 | DX9: 0.0212694 | DZ9: 0.2618267 | EA9: 0.0212694 | EC9: 0.0419386 | ED9: 0.0212694 | EF9: 65 | EG9: 0.4715742 | EI9: 0.8909732 | EJ9: 0.4715742 | EL9: 0.0081927 | EM9: 0.4715742 | EO9: 0.8813207 | EP9: 0.4751318 | ER9: 0.0212694 | ES9: 0.4751318 | EU9: 0.4715742 | EV9: 0.4715742 | EX9: 0.023485 | EY9: 0.4715742 | FA9: 0.2618267 | FB9: 0.4751318 | FD9: 0.0419386 | FE9: 0.4751318 | FG9: 65 | FH9: 0.023485 | FJ9: 0.8909732 | FK9: 0.023485 | FM9: 0.0081927 | FN9: 0.023485 | FP9: 0.8813207 | FQ9: 0.0356237 | FS9: 0.0212694 | FT9: 0.0356237 | FV9: 0.4715742 | FW9: 0.023485 | FY9: 0.023485 | FZ9: 0.023485 | GB9: 0.2618267 | GC9: 0.0356237 | GE9: 0.0419386 | GF9: 0.0356237 | GH9: 58 | GI9: 0.2618267 | GK9: 0.8984061 | GL9: 0.2618267 | GN9: 0.013138 | GO9: 0.2618267 | GQ9: 0.8813207 | GR9: 0.2618267 | GT9: 0.0212694 | GU9: 0.2618267 | GW9: 0.4751318 | GX9: 0.2618267 | GZ9: 0.0356237 | HA9: 0.2618267 | HC9: 0.2618267 | HD9: 0.2618267 | HF9: 0.0419386 | HG9: 0.2618267 | HI9: 58 | HJ9: 0.0419386 | HL9: 0.8984061 | HM9: 0.0419386 | HO9: 0.013138 | HP9: 0.0419386 | HR9: 0.8813207 | HS9: 0.0419386 | HU9: 0.0212694 | HV9: 0.0419386 | HX9: 0.4751318 | HY9: 0.0419386 | IA9: 0.0356237 | IB9: 0.0419386
A10: 10 | B10: 10 | D10: 0.8828532 | E10: 10 | G10: 0.0292956 | H10: 10 | J10: 0.696244 | K10: 69 | M10: 0.0828917 | N10: 69 | P10: 0.6233053 | Q10: 10 | S10: 0.0489502 | T10: 10 | V10: 0.350828 | W10: 69 | Y10: 0.1081309 | Z10: 69 | AB10: 10 | AC10: 0.8828532 | AE10: 0.8828532 | AF10: 0.8828532 | AH10: 0.0292956 | AI10: 0.8828532 | AK10: 0.696244 | AL10: 0.5609328 | AN10: 0.0828917 | AO10: 0.5609328 | AQ10: 0.6233053 | AR10: 0.8828532 | AT10: 0.0489502 | AU10: 0.8828532 | AW10: 0.350828 | AX10: 0.5609328 | AZ10: 0.1081309 | BA10: 0.5609328 | BC10: 10 | BD10: 0.0292956 | BF10: 0.8828532 | BG10: 0.0292956 | BI10: 0.0292956 | BJ10: 0.0292956 | BL10: 0.696244 | BM10: 0.0545408 | BO10: 0.0828917 | BP10: 0.0545408 | BR10: 0.6233053 | BS10: 0.0292956 | BU10: 0.0489502 | BV10: 0.0292956 | BX10: 0.350828 | BY10: 0.0545408 | CA10: 0.1081309 | CB10: 0.0545408 | CD10: 69 | CE10: 0.696244 | CG10: 0.5609328 | CH10: 0.696244 | CJ10: 0.0545408 | CK10: 0.696244 | CM10: 0.696244 | CN10: 0.696244 | CP10: 0.0828917 | CQ10: 0.696244 | CS10: 0.5583335 | CT10: 0.696244 | CV10: 0.0872284 | CW10: 0.696244 | CY10: 0.350828 | CZ10: 0.696244 | DB10: 0.1081309 | DC10: 0.696244 | DE10: 69 | DF10: 0.0828917 | DH10: 0.5609328 | DI10: 0.0828917 | DK10: 0.0545408 | DL10: 0.0828917 | DN10: 0.696244 | DO10: 0.0828917 | DQ10: 0.0828917 | DR10: 0.0828917 | DT10: 0.5583335 | DU10: 0.0828917 | DW10: 0.0872284 | DX10: 0.0828917 | DZ10: 0.350828 | EA10: 0.0828917 | EC10: 0.1081309 | ED10: 0.0828917 | EF10: 10 | EG10: 0.6233053 | EI10: 0.8828532 | EJ10: 0.6233053 | EL10: 0.0292956 | EM10: 0.6233053 | EO10: 0.696244 | EP10: 0.5583335 | ER10: 0.0828917 | ES10: 0.5583335 | EU10: 0.6233053 | EV10: 0.6233053 | EX10: 0.0489502 | EY10: 0.6233053 | FA10: 0.350828 | FB10: 0.5583335 | FD10: 0.1081309 | FE10: 0.5583335 | FG10: 10 | FH10: 0.0489502 | FJ10: 0.8828532 | FK10: 0.0489502 | FM10: 0.0292956 | FN10: 0.0489502 | FP10: 0.696244 | FQ10: 0.0872284 | FS10: 0.0828917 | FT10: 0.0872284 | FV10: 0.6233053 | FW10: 0.0489502 | FY10: 0.0489502 | FZ10: 0.0489502 | GB10: 0.350828 | GC10: 0.0872284 | GE10: 0.1081309 | GF10: 0.0872284 | GH10: 69 | GI10: 0.350828 | GK10: 0.5609328 | GL10: 0.350828 | GN10: 0.0545408 | GO10: 0.350828 | GQ10: 0.696244 | GR10: 0.350828 | GT10: 0.0828917 | GU10: 0.350828 | GW10: 0.5583335 | GX10: 0.350828 | GZ10: 0.0872284 | HA10: 0.350828 | HC10: 0.350828 | HD10: 0.350828 | HF10: 0.1081309 | HG10: 0.350828 | HI10: 69 | HJ10: 0.1081309 | HL10: 0.5609328 | HM10: 0.1081309 | HO10: 0.0545408 | HP10: 0.1081309 | HR10: 0.696244 | HS10: 0.1081309 | HU10: 0.0828917 | HV10: 0.1081309 | HX10: 0.5583335 | HY10: 0.1081309 | IA10: 0.0872284 | IB10: 0.1081309
A11: 10 | B11: 10 | D11: 0.931684 | E11: 10 | G11: 0.0062942 | H11: 10 | J11: 0.8911406 | K11: 10 | M11: 0.0395998 | N11: 10 | P11: 0.7877621 | Q11: 10 | S11: 0.014136 | T11: 10 | V11: 0.3705272 | W11: 10 | Y11: 0.0763578 | Z11: 10 | AB11: 10 | AC11: 0.931684 | AE11: 0.931684 | AF11: 0.931684 | AH11: 0.0062942 | AI11: 0.931684 | AK11: 0.8911406 | AL11: 0.9088547 | AN11: 0.0395998 | AO11: 0.9088547 | AQ11: 0.7877621 | AR11: 0.931684 | AT11: 0.014136 | AU11: 0.931684 | AW11: 0.3705272 | AX11: 0.9088547 | AZ11: 0.0763578 | BA11: 0.9088547 | BC11: 10 | BD11: 0.0062942 | BF11: 0.931684 | BG11: 0.0062942 | BI11: 0.0062942 | BJ11: 0.0062942 | BL11: 0.8911406 | BM11: 0.025718 | BO11: 0.0395998 | BP11: 0.025718 | BR11: 0.7877621 | BS11: 0.0062942 | BU11: 0.014136 | BV11: 0.0062942 | BX11: 0.3705272 | BY11: 0.025718 | CA11: 0.0763578 | CB11: 0.025718 | CD11: 10 | CE11: 0.8911406 | CG11: 0.9088547 | CH11: 0.8911406 | CJ11: 0.025718 | CK11: 0.8911406 | CM11: 0.8911406 | CN11: 0.8911406 | CP11: 0.0395998 | CQ11: 0.8911406 | CS11: 0.629227 | CT11: 0.8911406 | CV11: 0.0604132 | CW11: 0.8911406 | CY11: 0.3705272 | CZ11: 0.8911406 | DB11: 0.0763578 | DC11: 0.8911406 | DE11: 10 | DF11: 0.0395998 | DH11: 0.9088547 | DI11: 0.0395998 | DK11: 0.025718 | DL11: 0.0395998 | DN11: 0.8911406 | DO11: 0.0395998 | DQ11: 0.0395998 | DR11: 0.0395998 | DT11: 0.629227 | DU11: 0.0395998 | DW11: 0.0604132 | DX11: 0.0395998 | DZ11: 0.3705272 | EA11: 0.0395998 | EC11: 0.0763578 | ED11: 0.0395998 | EF11: 10 | EG11: 0.7877621 | EI11: 0.931684 | EJ11: 0.7877621 | EL11: 0.0062942 | EM11: 0.7877621 | EO11: 0.8911406 | EP11: 0.629227 | ER11: 0.0395998 | ES11: 0.629227 | EU11: 0.7877621 | EV11: 0.7877621 | EX11: 0.014136 | EY11: 0.7877621 | FA11: 0.3705272 | FB11: 0.629227 | FD11: 0.0763578 | FE11: 0.629227 | FG11: 10 | FH11: 0.014136 | FJ11: 0.931684 | FK11: 0.014136 | FM11: 0.0062942 | FN11: 0.014136 | FP11: 0.8911406 | FQ11: 0.0604132 | FS11: 0.0395998 | FT11: 0.0604132 | FV11: 0.7877621 | FW11: 0.014136 | FY11: 0.014136 | FZ11: 0.014136 | GB11: 0.3705272 | GC11: 0.0604132 | GE11: 0.0763578 | GF11: 0.0604132 | GH11: 10 | GI11: 0.3705272 | GK11: 0.9088547 | GL11: 0.3705272 | GN11: 0.025718 | GO11: 0.3705272 | GQ11: 0.8911406 | GR11: 0.3705272 | GT11: 0.0395998 | GU11: 0.3705272 | GW11: 0.629227 | GX11: 0.3705272 | GZ11: 0.0604132 | HA11: 0.3705272 | HC11: 0.3705272 | HD11: 0.3705272 | HF11: 0.0763578 | HG11: 0.3705272 | HI11: 10 | HJ11: 0.0763578 | HL11: 0.9088547 | HM11: 0.0763578 | HO11: 0.025718 | HP11: 0.0763578 | HR11: 0.8911406 | HS11: 0.0763578 | HU11: 0.0395998 | HV11: 0.0763578 | HX11: 0.629227 | HY11: 0.0763578 | IA11: 0.0604132 | IB11: 0.0763578
A12: 58 | B12: 58 | D12: 0.8984061 | E12: 58 | G12: 0.013138 | H12: 58 | J12: 0.926 | K12: 15 | M12: 0.018 | N12: 15 | P12: 0.4751318 | Q12: 58 | S12: 0.0356237 | T12: 58 | V12: 0.455 | W12: 15 | Y12: 0.037 | Z12: 15 | AB12: 58 | AC12: 0.8984061 | AE12: 0.8984061 | AF12: 0.8984061 | AH12: 0.013138 | AI12: 0.8984061 | AK12: 0.926 | AL12: 0.957 | AN12: 0.018 | AO12: 0.957 | AQ12: 0.4751318 | AR12: 0.8984061 | AT12: 0.0356237 | AU12: 0.8984061 | AW12: 0.455 | AX12: 0.957 | AZ12: 0.037 | BA12: 0.957 | BC12: 58 | BD12: 0.013138 | BF12: 0.8984061 | BG12: 0.013138 | BI12: 0.013138 | BJ12: 0.013138 | BL12: 0.926 | BM12: 0.009 | BO12: 0.018 | BP12: 0.009 | BR12: 0.4751318 | BS12: 0.013138 | BU12: 0.0356237 | BV12: 0.013138 | BX12: 0.455 | BY12: 0.009 | CA12: 0.037 | CB12: 0.009 | CD12: 15 | CE12: 0.926 | CG12: 0.957 | CH12: 0.926 | CJ12: 0.009 | CK12: 0.926 | CM12: 0.926 | CN12: 0.926 | CP12: 0.018 | CQ12: 0.926 | CS12: 0.53 | CT12: 0.926 | CV12: 0.002 | CW12: 0.926 | CY12: 0.455 | CZ12: 0.926 | DB12: 0.037 | DC12: 0.926 | DE12: 15 | DF12: 0.018 | DH12: 0.957 | DI12: 0.018 | DK12: 0.009 | DL12: 0.018 | DN12: 0.926 | DO12: 0.018 | DQ12: 0.018 | DR12: 0.018 | DT12: 0.53 | DU12: 0.018 | DW12: 0.002 | DX12: 0.018 | DZ12: 0.455 | EA12: 0.018 | EC12: 0.037 | ED12: 0.018 | EF12: 58 | EG12: 0.4751318 | EI12: 0.8984061 | EJ12: 0.4751318 | EL12: 0.013138 | EM12: 0.4751318 | EO12: 0.926 | EP12: 0.53 | ER12: 0.018 | ES12: 0.53 | EU12: 0.4751318 | EV12: 0.4751318 | EX12: 0.0356237 | EY12: 0.4751318 | FA12: 0.455 | FB12: 0.53 | FD12: 0.037 | FE12: 0.53 | FG12: 58 | FH12: 0.0356237 | FJ12: 0.8984061 | FK12: 0.0356237 | FM12: 0.013138 | FN12: 0.0356237 | FP12: 0.926 | FQ12: 0.002 | FS12: 0.018 | FT12: 0.002 | FV12: 0.4751318 | FW12: 0.0356237 | FY12: 0.0356237 | FZ12: 0.0356237 | GB12: 0.455 | GC12: 0.002 | GE12: 0.037 | GF12: 0.002 | GH12: 15 | GI12: 0.455 | GK12: 0.957 | GL12: 0.455 | GN12: 0.009 | GO12: 0.455 | GQ12: 0.926 | GR12: 0.455 | GT12: 0.018 | GU12: 0.455 | GW12: 0.53 | GX12: 0.455 | GZ12: 0.002 | HA12: 0.455 | HC12: 0.455 | HD12: 0.455 | HF12: 0.037 | HG12: 0.455 | HI12: 15 | HJ12: 0.037 | HL12: 0.957 | HM12: 0.037 | HO12: 0.009 | HP12: 0.037 | HR12: 0.926 | HS12: 0.037 | HU12: 0.018 | HV12: 0.037 | HX12: 0.53 | HY12: 0.037 | IA12: 0.002 | IB12: 0.037
A13: 69 | B13: 69 | D13: 0.5609328 | E13: 69 | G13: 0.0545408 | H13: 69 | J13: 0.9331667 | K13: 66 | M13: 0.0093518 | N13: 66 | P13: 0.5583335 | Q13: 69 | S13: 0.0872284 | T13: 69 | V13: 0.1718903 | W13: 66 | Y13: 0.0164899 | Z13: 66 | AB13: 69 | AC13: 0.5609328 | AE13: 0.5609328 | AF13: 0.5609328 | AH13: 0.0545408 | AI13: 0.5609328 | AK13: 0.9331667 | AL13: 0.9443082 | AN13: 0.0093518 | AO13: 0.9443082 | AQ13: 0.5583335 | AR13: 0.5609328 | AT13: 0.0872284 | AU13: 0.5609328 | AW13: 0.1718903 | AX13: 0.9443082 | AZ13: 0.0164899 | BA13: 0.9443082 | BC13: 69 | BD13: 0.0545408 | BF13: 0.5609328 | BG13: 0.0545408 | BI13: 0.0545408 | BJ13: 0.0545408 | BL13: 0.9331667 | BM13: 0.0044887 | BO13: 0.0093518 | BP13: 0.0044887 | BR13: 0.5583335 | BS13: 0.0545408 | BU13: 0.0872284 | BV13: 0.0545408 | BX13: 0.1718903 | BY13: 0.0044887 | CA13: 0.0164899 | CB13: 0.0044887 | CD13: 66 | CE13: 0.9331667 | CG13: 0.9443082 | CH13: 0.9331667 | CJ13: 0.0044887 | CK13: 0.9331667 | CM13: 0.9331667 | CN13: 0.9331667 | CP13: 0.0093518 | CQ13: 0.9331667 | CS13: 0.2302241 | CT13: 0.9331667 | CV13: 0.0093667 | CW13: 0.9331667 | CY13: 0.1718903 | CZ13: 0.9331667 | DB13: 0.0164899 | DC13: 0.9331667 | DE13: 66 | DF13: 0.0093518 | DH13: 0.9443082 | DI13: 0.0093518 | DK13: 0.0044887 | DL13: 0.0093518 | DN13: 0.9331667 | DO13: 0.0093518 | DQ13: 0.0093518 | DR13: 0.0093518 | DT13: 0.2302241 | DU13: 0.0093518 | DW13: 0.0093667 | DX13: 0.0093518 | DZ13: 0.1718903 | EA13: 0.0093518 | EC13: 0.0164899 | ED13: 0.0093518 | EF13: 69 | EG13: 0.5583335 | EI13: 0.5609328 | EJ13: 0.5583335 | EL13: 0.0545408 | EM13: 0.5583335 | EO13: 0.9331667 | EP13: 0.2302241 | ER13: 0.0093518 | ES13: 0.2302241 | EU13: 0.5583335 | EV13: 0.5583335 | EX13: 0.0872284 | EY13: 0.5583335 | FA13: 0.1718903 | FB13: 0.2302241 | FD13: 0.0164899 | FE13: 0.2302241 | FG13: 69 | FH13: 0.0872284 | FJ13: 0.5609328 | FK13: 0.0872284 | FM13: 0.0545408 | FN13: 0.0872284 | FP13: 0.9331667 | FQ13: 0.0093667 | FS13: 0.0093518 | FT13: 0.0093667 | FV13: 0.5583335 | FW13: 0.0872284 | FY13: 0.0872284 | FZ13: 0.0872284 | GB13: 0.1718903 | GC13: 0.0093667 | GE13: 0.0164899 | GF13: 0.0093667 | GH13: 66 | GI13: 0.1718903 | GK13: 0.9443082 | GL13: 0.1718903 | GN13: 0.0044887 | GO13: 0.1718903 | GQ13: 0.9331667 | GR13: 0.1718903 | GT13: 0.0093518 | GU13: 0.1718903 | GW13: 0.2302241 | GX13: 0.1718903 | GZ13: 0.0093667 | HA13: 0.1718903 | HC13: 0.1718903 | HD13: 0.1718903 | HF13: 0.0164899 | HG13: 0.1718903 | HI13: 66 | HJ13: 0.0164899 | HL13: 0.9443082 | HM13: 0.0164899 | HO13: 0.0044887 | HP13: 0.0164899 | HR13: 0.9331667 | HS13: 0.0164899 | HU13: 0.0093518 | HV13: 0.0164899 | HX13: 0.2302241 | HY13: 0.0164899 | IA13: 0.0093667 | IB13: 0.0164899
A14: 27 | B14: 27 | D14: 0.9076 | E14: 27 | G14: 0.0211 | H14: 27 | J14: 0.8987546 | K14: 77 | M14: 0.0096904 | N14: 77 | P14: 0.5601 | Q14: 27 | S14: 0.0283 | T14: 27 | V14: 0.1542501 | W14: 77 | Y14: 0.0138687 | Z14: 77 | AB14: 27 | AC14: 0.9076 | AE14: 0.9076 | AF14: 0.9076 | AH14: 0.0211 | AI14: 0.9076 | AK14: 0.8987546 | AL14: 0.9271963 | AN14: 0.0096904 | AO14: 0.9271963 | AQ14: 0.5601 | AR14: 0.9076 | AT14: 0.0283 | AU14: 0.9076 | AW14: 0.1542501 | AX14: 0.9271963 | AZ14: 0.0138687 | BA14: 0.9271963 | BC14: 27 | BD14: 0.0211 | BF14: 0.9076 | BG14: 0.0211 | BI14: 0.0211 | BJ14: 0.0211 | BL14: 0.8987546 | BM14: 0.005371 | BO14: 0.0096904 | BP14: 0.005371 | BR14: 0.5601 | BS14: 0.0211 | BU14: 0.0283 | BV14: 0.0211 | BX14: 0.1542501 | BY14: 0.005371 | CA14: 0.0138687 | CB14: 0.005371 | CD14: 77 | CE14: 0.8987546 | CG14: 0.9271963 | CH14: 0.8987546 | CJ14: 0.005371 | CK14: 0.8987546 | CM14: 0.8987546 | CN14: 0.8987546 | CP14: 0.0096904 | CQ14: 0.8987546 | CS14: 0.1837103 | CT14: 0.8987546 | CV14: 0.0096461 | CW14: 0.8987546 | CY14: 0.1542501 | CZ14: 0.8987546 | DB14: 0.0138687 | DC14: 0.8987546 | DE14: 77 | DF14: 0.0096904 | DH14: 0.9271963 | DI14: 0.0096904 | DK14: 0.005371 | DL14: 0.0096904 | DN14: 0.8987546 | DO14: 0.0096904 | DQ14: 0.0096904 | DR14: 0.0096904 | DT14: 0.1837103 | DU14: 0.0096904 | DW14: 0.0096461 | DX14: 0.0096904 | DZ14: 0.1542501 | EA14: 0.0096904 | EC14: 0.0138687 | ED14: 0.0096904 | EF14: 27 | EG14: 0.5601 | EI14: 0.9076 | EJ14: 0.5601 | EL14: 0.0211 | EM14: 0.5601 | EO14: 0.8987546 | EP14: 0.1837103 | ER14: 0.0096904 | ES14: 0.1837103 | EU14: 0.5601 | EV14: 0.5601 | EX14: 0.0283 | EY14: 0.5601 | FA14: 0.1542501 | FB14: 0.1837103 | FD14: 0.0138687 | FE14: 0.1837103 | FG14: 27 | FH14: 0.0283 | FJ14: 0.9076 | FK14: 0.0283 | FM14: 0.0211 | FN14: 0.0283 | FP14: 0.8987546 | FQ14: 0.0096461 | FS14: 0.0096904 | FT14: 0.0096461 | FV14: 0.5601 | FW14: 0.0283 | FY14: 0.0283 | FZ14: 0.0283 | GB14: 0.1542501 | GC14: 0.0096461 | GE14: 0.0138687 | GF14: 0.0096461 | GH14: 77 | GI14: 0.1542501 | GK14: 0.9271963 | GL14: 0.1542501 | GN14: 0.005371 | GO14: 0.1542501 | GQ14: 0.8987546 | GR14: 0.1542501 | GT14: 0.0096904 | GU14: 0.1542501 | GW14: 0.1837103 | GX14: 0.1542501 | GZ14: 0.0096461 | HA14: 0.1542501 | HC14: 0.1542501 | HD14: 0.1542501 | HF14: 0.0138687 | HG14: 0.1542501 | HI14: 77 | HJ14: 0.0138687 | HL14: 0.9271963 | HM14: 0.0138687 | HO14: 0.005371 | HP14: 0.0138687 | HR14: 0.8987546 | HS14: 0.0138687 | HU14: 0.0096904 | HV14: 0.0138687 | HX14: 0.1837103 | HY14: 0.0138687 | IA14: 0.0096461 | IB14: 0.0138687
A15: 10 | B15: 10 | D15: 0.9088547 | E15: 10 | G15: 0.025718 | H15: 10 | J15: 0.9188918 | K15: 29 | M15: 0.0511782 | N15: 29 | P15: 0.629227 | Q15: 10 | S15: 0.0604132 | T15: 10 | V15: 0.0140263 | W15: 29 | Y15: 0.0068075 | Z15: 29 | AB15: 10 | AC15: 0.9088547 | AE15: 0.9088547 | AF15: 0.9088547 | AH15: 0.025718 | AI15: 0.9088547 | AK15: 0.9188918 | AL15: 0.8751273 | AN15: 0.0511782 | AO15: 0.8751273 | AQ15: 0.629227 | AR15: 0.9088547 | AT15: 0.0604132 | AU15: 0.9088547 | AW15: 0.0140263 | AX15: 0.8751273 | AZ15: 0.0068075 | BA15: 0.8751273 | BC15: 10 | BD15: 0.025718 | BF15: 0.9088547 | BG15: 0.025718 | BI15: 0.025718 | BJ15: 0.025718 | BL15: 0.9188918 | BM15: 0.02409 | BO15: 0.0511782 | BP15: 0.02409 | BR15: 0.629227 | BS15: 0.025718 | BU15: 0.0604132 | BV15: 0.025718 | BX15: 0.0140263 | BY15: 0.02409 | CA15: 0.0068075 | CB15: 0.02409 | CD15: 29 | CE15: 0.9188918 | CG15: 0.8751273 | CH15: 0.9188918 | CJ15: 0.02409 | CK15: 0.9188918 | CM15: 0.57 | CN15: 0.57 | CP15: 0.22 | CQ15: 0.57 | CS15: 0.0377607 | CT15: 0.9188918 | CV15: 0.0078524 | CW15: 0.9188918 | CY15: 0.11 | CZ15: 0.57 | DB15: 0.09 | DC15: 0.57 | DE15: 29 | DF15: 0.0511782 | DH15: 0.8751273 | DI15: 0.0511782 | DK15: 0.02409 | DL15: 0.0511782 | DN15: 0.57 | DO15: 0.22 | DQ15: 0.22 | DR15: 0.22 | DT15: 0.0377607 | DU15: 0.0511782 | DW15: 0.0078524 | DX15: 0.0511782 | DZ15: 0.11 | EA15: 0.22 | EC15: 0.09 | ED15: 0.22 | EF15: 10 | EG15: 0.629227 | EI15: 0.9088547 | EJ15: 0.629227 | EL15: 0.025718 | EM15: 0.629227 | EO15: 0.9188918 | EP15: 0.0377607 | ER15: 0.0511782 | ES15: 0.0377607 | EU15: 0.629227 | EV15: 0.629227 | EX15: 0.0604132 | EY15: 0.629227 | FA15: 0.0140263 | FB15: 0.0377607 | FD15: 0.0068075 | FE15: 0.0377607 | FG15: 10 | FH15: 0.0604132 | FJ15: 0.9088547 | FK15: 0.0604132 | FM15: 0.025718 | FN15: 0.0604132 | FP15: 0.9188918 | FQ15: 0.0078524 | FS15: 0.0511782 | FT15: 0.0078524 | FV15: 0.629227 | FW15: 0.0604132 | FY15: 0.0604132 | FZ15: 0.0604132 | GB15: 0.0140263 | GC15: 0.0078524 | GE15: 0.0068075 | GF15: 0.0078524 | GH15: 29 | GI15: 0.0140263 | GK15: 0.8751273 | GL15: 0.0140263 | GN15: 0.02409 | GO15: 0.0140263 | GQ15: 0.57 | GR15: 0.11 | GT15: 0.22 | GU15: 0.11 | GW15: 0.0377607 | GX15: 0.0140263 | GZ15: 0.0078524 | HA15: 0.0140263 | HC15: 0.11 | HD15: 0.11 | HF15: 0.09 | HG15: 0.11 | HI15: 29 | HJ15: 0.0068075 | HL15: 0.8751273 | HM15: 0.0068075 | HO15: 0.02409 | HP15: 0.0068075 | HR15: 0.57 | HS15: 0.09 | HU15: 0.22 | HV15: 0.09 | HX15: 0.0377607 | HY15: 0.0068075 | IA15: 0.0078524 | IB15: 0.0068075
A16: 15 | B16: 15 | D16: 0.957 | E16: 15 | G16: 0.009 | H16: 15 | J16: 0.899087 | K16: 32 | M16: 0.0076005 | N16: 32 | P16: 0.53 | Q16: 15 | S16: 0.002 | T16: 15 | V16: 0.1090741 | W16: 32 | Y16: 0.0074116 | Z16: 32 | AB16: 15 | AC16: 0.957 | AE16: 0.957 | AF16: 0.957 | AH16: 0.009 | AI16: 0.957 | AK16: 0.899087 | AL16: 0.9038665 | AN16: 0.0076005 | AO16: 0.9038665 | AQ16: 0.53 | AR16: 0.957 | AT16: 0.002 | AU16: 0.957 | AW16: 0.1090741 | AX16: 0.9038665 | AZ16: 0.0074116 | BA16: 0.9038665 | BC16: 15 | BD16: 0.009 | BF16: 0.957 | BG16: 0.009 | BI16: 0.009 | BJ16: 0.009 | BL16: 0.899087 | BM16: 0.0041074 | BO16: 0.0076005 | BP16: 0.0041074 | BR16: 0.53 | BS16: 0.009 | BU16: 0.002 | BV16: 0.009 | BX16: 0.1090741 | BY16: 0.0041074 | CA16: 0.0074116 | CB16: 0.0041074 | CD16: 32 | CE16: 0.899087 | CG16: 0.9038665 | CH16: 0.899087 | CJ16: 0.0041074 | CK16: 0.899087 | CM16: 0.9188918 | CN16: 0.9188918 | CP16: 0.0511782 | CQ16: 0.9188918 | CS16: 0.2555795 | CT16: 0.899087 | CV16: 0.0072781 | CW16: 0.899087 | CY16: 0.0140263 | CZ16: 0.9188918 | DB16: 0.0068075 | DC16: 0.9188918 | DE16: 32 | DF16: 0.0076005 | DH16: 0.9038665 | DI16: 0.0076005 | DK16: 0.0041074 | DL16: 0.0076005 | DN16: 0.9188918 | DO16: 0.0511782 | DQ16: 0.0511782 | DR16: 0.0511782 | DT16: 0.2555795 | DU16: 0.0076005 | DW16: 0.0072781 | DX16: 0.0076005 | DZ16: 0.0140263 | EA16: 0.0511782 | EC16: 0.0068075 | ED16: 0.0511782 | EF16: 15 | EG16: 0.53 | EI16: 0.957 | EJ16: 0.53 | EL16: 0.009 | EM16: 0.53 | EO16: 0.899087 | EP16: 0.2555795 | ER16: 0.0076005 | ES16: 0.2555795 | EU16: 0.53 | EV16: 0.53 | EX16: 0.002 | EY16: 0.53 | FA16: 0.1090741 | FB16: 0.2555795 | FD16: 0.0074116 | FE16: 0.2555795 | FG16: 15 | FH16: 0.002 | FJ16: 0.957 | FK16: 0.002 | FM16: 0.009 | FN16: 0.002 | FP16: 0.899087 | FQ16: 0.0072781 | FS16: 0.0076005 | FT16: 0.0072781 | FV16: 0.53 | FW16: 0.002 | FY16: 0.002 | FZ16: 0.002 | GB16: 0.1090741 | GC16: 0.0072781 | GE16: 0.0074116 | GF16: 0.0072781 | GH16: 32 | GI16: 0.1090741 | GK16: 0.9038665 | GL16: 0.1090741 | GN16: 0.0041074 | GO16: 0.1090741 | GQ16: 0.9188918 | GR16: 0.0140263 | GT16: 0.0511782 | GU16: 0.0140263 | GW16: 0.2555795 | GX16: 0.1090741 | GZ16: 0.0072781 | HA16: 0.1090741 | HC16: 0.0140263 | HD16: 0.0140263 | HF16: 0.0068075 | HG16: 0.0140263 | HI16: 32 | HJ16: 0.0074116 | HL16: 0.9038665 | HM16: 0.0074116 | HO16: 0.0041074 | HP16: 0.0074116 | HR16: 0.9188918 | HS16: 0.0068075 | HU16: 0.0511782 | HV16: 0.0068075 | HX16: 0.2555795 | HY16: 0.0074116 | IA16: 0.0072781 | IB16: 0.0074116
A17: 16 | B17: 16 | D17: 0.852 | E17: 16 | G17: 0.044 | H17: 16 | J17: 0.904 | K17: 80 | M17: 0.008163265306 | N17: 80 | P17: 0.576 | Q17: 16 | S17: 0.067 | T17: 16 | V17: 0.1629675 | W17: 37 | Y17: 0.02341638 | Z17: 37 | AB17: 16 | AC17: 0.852 | AE17: 0.852 | AF17: 0.852 | AH17: 0.044 | AI17: 0.852 | AK17: 0.904 | AL17: 0.833 | AN17: 0.008163265306 | AO17: 0.833 | AQ17: 0.576 | AR17: 0.852 | AT17: 0.067 | AU17: 0.852 | AW17: 0.1629675 | AX17: 0.8373131 | AZ17: 0.02341638 | BA17: 0.8373131 | BC17: 16 | BD17: 0.044 | BF17: 0.852 | BG17: 0.044 | BI17: 0.044 | BJ17: 0.044 | BL17: 0.904 | BM17: 0.009948979592 | BO17: 0.008163265306 | BP17: 0.009948979592 | BR17: 0.576 | BS17: 0.044 | BU17: 0.067 | BV17: 0.044 | BX17: 0.1629675 | BY17: 0.021120195 | CA17: 0.02341638 | CB17: 0.021120195 | CD17: 80 | CE17: 0.904 | CG17: 0.833 | CH17: 0.904 | CJ17: 0.009948979592 | CK17: 0.904 | CM17: 0.899087 | CN17: 0.899087 | CP17: 0.0076005 | CQ17: 0.899087 | CS17: 0.2989058 | CT17: 0.8308182 | CV17: 0.01476938 | CW17: 0.8308182 | CY17: 0.1090741 | CZ17: 0.899087 | DB17: 0.0074116 | DC17: 0.899087 | DE17: 80 | DF17: 0.008163265306 | DH17: 0.833 | DI17: 0.008163265306 | DK17: 0.009948979592 | DL17: 0.008163265306 | DN17: 0.899087 | DO17: 0.0076005 | DQ17: 0.0076005 | DR17: 0.0076005 | DT17: 0.2989058 | DU17: 0.021120195 | DW17: 0.01476938 | DX17: 0.021120195 | DZ17: 0.1090741 | EA17: 0.0076005 | EC17: 0.0074116 | ED17: 0.0076005 | EF17: 16 | EG17: 0.576 | EI17: 0.852 | EJ17: 0.576 | EL17: 0.044 | EM17: 0.576 | EO17: 0.8308182 | EP17: 0.2989058 | ER17: 0.021120195 | ES17: 0.2989058 | EU17: 0.576 | EV17: 0.576 | EX17: 0.067 | EY17: 0.576 | FA17: 0.1629675 | FB17: 0.2989058 | FD17: 0.02341638 | FE17: 0.2989058 | FG17: 16 | FH17: 0.067 | FJ17: 0.852 | FK17: 0.067 | FM17: 0.044 | FN17: 0.067 | FP17: 0.8308182 | FQ17: 0.01476938 | FS17: 0.021120195 | FT17: 0.01476938 | FV17: 0.576 | FW17: 0.067 | FY17: 0.067 | FZ17: 0.067 | GB17: 0.1629675 | GC17: 0.01476938 | GE17: 0.02341638 | GF17: 0.01476938 | GH17: 37 | GI17: 0.1629675 | GK17: 0.8373131 | GL17: 0.1629675 | GN17: 0.021120195 | GO17: 0.1629675 | GQ17: 0.899087 | GR17: 0.1090741 | GT17: 0.0076005 | GU17: 0.1090741 | GW17: 0.2989058 | GX17: 0.1629675 | GZ17: 0.01476938 | HA17: 0.1629675 | HC17: 0.1090741 | HD17: 0.1090741 | HF17: 0.0074116 | HG17: 0.1090741 | HI17: 37 | HJ17: 0.02341638 | HL17: 0.8373131 | HM17: 0.02341638 | HO17: 0.021120195 | HP17: 0.02341638 | HR17: 0.899087 | HS17: 0.0074116 | HU17: 0.0076005 | HV17: 0.0074116 | HX17: 0.2989058 | HY17: 0.02341638 | IA17: 0.01476938 | IB17: 0.02341638
A18: 66 | B18: 66 | D18: 0.9443082 | E18: 66 | G18: 0.0044887 | H18: 66 | J18: 0.93 | K18: 73 | M18: 0.004846938776 | N18: 73 | P18: 0.2302241 | Q18: 66 | S18: 0.0093667 | T18: 66 | V18: 0.1847095 | W18: 31 | Y18: 0.04294444 | Z18: 31 | AB18: 66 | AC18: 0.9443082 | AE18: 0.9443082 | AF18: 0.9443082 | AH18: 0.0044887 | AI18: 0.9443082 | AK18: 0.93 | AL18: 0.862 | AN18: 0.004846938776 | AO18: 0.862 | AQ18: 0.2302241 | AR18: 0.9443082 | AT18: 0.0093667 | AU18: 0.9443082 | AW18: 0.1847095 | AX18: 0.7221035 | AZ18: 0.04294444 | BA18: 0.7221035 | BC18: 66 | BD18: 0.0044887 | BF18: 0.9443082 | BG18: 0.0044887 | BI18: 0.0044887 | BJ18: 0.0044887 | BL18: 0.93 | BM18: 0.007142857143 | BO18: 0.004846938776 | BP18: 0.007142857143 | BR18: 0.2302241 | BS18: 0.0044887 | BU18: 0.0093667 | BV18: 0.0044887 | BX18: 0.1847095 | BY18: 0.01482952 | CA18: 0.04294444 | CB18: 0.01482952 | CD18: 73 | CE18: 0.93 | CG18: 0.862 | CH18: 0.93 | CJ18: 0.007142857143 | CK18: 0.93 | CM18: 0.904 | CN18: 0.904 | CP18: 0.008163265306 | CQ18: 0.904 | CS18: 0.2568042 | CT18: 0.6955553 | CV18: 0.01732538 | CW18: 0.6955553 | CY18: 0.1629675 | CZ18: 0.8308182 | DB18: 0.02341638 | DC18: 0.8308182 | DE18: 73 | DF18: 0.004846938776 | DH18: 0.862 | DI18: 0.004846938776 | DK18: 0.007142857143 | DL18: 0.004846938776 | DN18: 0.904 | DO18: 0.008163265306 | DQ18: 0.008163265306 | DR18: 0.008163265306 | DT18: 0.2568042 | DU18: 0.04922418 | DW18: 0.01732538 | DX18: 0.04922418 | DZ18: 0.1629675 | EA18: 0.021120195 | EC18: 0.02341638 | ED18: 0.021120195 | EF18: 66 | EG18: 0.2302241 | EI18: 0.9443082 | EJ18: 0.2302241 | EL18: 0.0044887 | EM18: 0.2302241 | EO18: 0.6955553 | EP18: 0.2568042 | ER18: 0.04922418 | ES18: 0.2568042 | EU18: 0.2302241 | EV18: 0.2302241 | EX18: 0.0093667 | EY18: 0.2302241 | FA18: 0.1847095 | FB18: 0.2568042 | FD18: 0.04294444 | FE18: 0.2568042 | FG18: 66 | FH18: 0.0093667 | FJ18: 0.9443082 | FK18: 0.0093667 | FM18: 0.0044887 | FN18: 0.0093667 | FP18: 0.6955553 | FQ18: 0.01732538 | FS18: 0.04922418 | FT18: 0.01732538 | FV18: 0.2302241 | FW18: 0.0093667 | FY18: 0.0093667 | FZ18: 0.0093667 | GB18: 0.1847095 | GC18: 0.01732538 | GE18: 0.04294444 | GF18: 0.01732538 | GH18: 31 | GI18: 0.1847095 | GK18: 0.7221035 | GL18: 0.1847095 | GN18: 0.01482952 | GO18: 0.1847095 | GQ18: 0.8308182 | GR18: 0.1629675 | GT18: 0.021120195 | GU18: 0.1629675 | GW18: 0.2568042 | GX18: 0.1847095 | GZ18: 0.01732538 | HA18: 0.1847095 | HC18: 0.1629675 | HD18: 0.1629675 | HF18: 0.02341638 | HG18: 0.1629675 | HI18: 31 | HJ18: 0.04294444 | HL18: 0.7221035 | HM18: 0.04294444 | HO18: 0.01482952 | HP18: 0.04294444 | HR18: 0.8308182 | HS18: 0.02341638 | HU18: 0.021120195 | HV18: 0.02341638 | HX18: 0.2568042 | HY18: 0.04294444 | IA18: 0.01732538 | IB18: 0.04294444
A19: 77 | B19: 77 | D19: 0.9271963 | E19: 77 | G19: 0.005371 | H19: 77 | J19: 0.8308182 | K19: 37 | M19: 0.021120195 | N19: 37 | P19: 0.1837103 | Q19: 77 | S19: 0.0096461 | T19: 77 | V19: 0.255194 | W19: 36 | Y19: 0.0207407 | Z19: 36 | AB19: 77 | AC19: 0.9271963 | AE19: 0.9271963 | AF19: 0.9271963 | AH19: 0.005371 | AI19: 0.9271963 | AK19: 0.8308182 | AL19: 0.8373131 | AN19: 0.021120195 | AO19: 0.8373131 | AQ19: 0.1837103 | AR19: 0.9271963 | AT19: 0.0096461 | AU19: 0.9271963 | AW19: 0.255194 | AX19: 0.8197486 | AZ19: 0.0207407 | BA19: 0.8197486 | BC19: 77 | BD19: 0.005371 | BF19: 0.9271963 | BG19: 0.005371 | BI19: 0.005371 | BJ19: 0.005371 | BL19: 0.8308182 | BM19: 0.021120195 | BO19: 0.021120195 | BP19: 0.021120195 | BR19: 0.1837103 | BS19: 0.005371 | BU19: 0.0096461 | BV19: 0.005371 | BX19: 0.255194 | BY19: 0.0083981 | CA19: 0.0207407 | CB19: 0.0083981 | CD19: 37 | CE19: 0.8308182 | CG19: 0.8373131 | CH19: 0.8308182 | CJ19: 0.021120195 | CK19: 0.8308182 | CM19: 0.93 | CN19: 0.93 | CP19: 0.004846938776 | CQ19: 0.93 | CS19: 0.1954802 | CT19: 0.7681781 | CV19: 0.0106035 | CW19: 0.7681781 | CY19: 0.1847095 | CZ19: 0.6955553 | DB19: 0.04294444 | DC19: 0.6955553 | DE19: 37 | DF19: 0.021120195 | DH19: 0.8373131 | DI19: 0.021120195 | DK19: 0.021120195 | DL19: 0.021120195 | DN19: 0.93 | DO19: 0.004846938776 | DQ19: 0.004846938776 | DR19: 0.004846938776 | DT19: 0.1954802 | DU19: 0.0151109 | DW19: 0.0106035 | DX19: 0.0151109 | DZ19: 0.1847095 | EA19: 0.04922418 | EC19: 0.04294444 | ED19: 0.04922418 | EF19: 77 | EG19: 0.1837103 | EI19: 0.9271963 | EJ19: 0.1837103 | EL19: 0.005371 | EM19: 0.1837103 | EO19: 0.7681781 | EP19: 0.1954802 | ER19: 0.0151109 | ES19: 0.1954802 | EU19: 0.1837103 | EV19: 0.1837103 | EX19: 0.0096461 | EY19: 0.1837103 | FA19: 0.255194 | FB19: 0.1954802 | FD19: 0.0207407 | FE19: 0.1954802 | FG19: 77 | FH19: 0.0096461 | FJ19: 0.9271963 | FK19: 0.0096461 | FM19: 0.005371 | FN19: 0.0096461 | FP19: 0.7681781 | FQ19: 0.0106035 | FS19: 0.0151109 | FT19: 0.0106035 | FV19: 0.1837103 | FW19: 0.0096461 | FY19: 0.0096461 | FZ19: 0.0096461 | GB19: 0.255194 | GC19: 0.0106035 | GE19: 0.0207407 | GF19: 0.0106035 | GH19: 36 | GI19: 0.255194 | GK19: 0.8197486 | GL19: 0.255194 | GN19: 0.0083981 | GO19: 0.255194 | GQ19: 0.6955553 | GR19: 0.1847095 | GT19: 0.04922418 | GU19: 0.1847095 | GW19: 0.1954802 | GX19: 0.255194 | GZ19: 0.0106035 | HA19: 0.255194 | HC19: 0.1847095 | HD19: 0.1847095 | HF19: 0.04294444 | HG19: 0.1847095 | HI19: 36 | HJ19: 0.0207407 | HL19: 0.8197486 | HM19: 0.0207407 | HO19: 0.0083981 | HP19: 0.0207407 | HR19: 0.6955553 | HS19: 0.04294444 | HU19: 0.04922418 | HV19: 0.04294444 | HX19: 0.1954802 | HY19: 0.0207407 | IA19: 0.0106035 | IB19: 0.0207407
A20: 29 | B20: 29 | D20: 0.8751273 | E20: 29 | G20: 0.02409 | H20: 29 | J20: 0.6955553 | K20: 31 | M20: 0.04922418 | N20: 31 | P20: 0.0377607 | Q20: 29 | S20: 0.0078524 | T20: 29 | V20: 0.2071974 | W20: 36 | Y20: 0.0157574 | Z20: 36 | AB20: 29 | AC20: 0.8751273 | AE20: 0.8751273 | AF20: 0.8751273 | AH20: 0.02409 | AI20: 0.8751273 | AK20: 0.6955553 | AL20: 0.7221035 | AN20: 0.04922418 | AO20: 0.7221035 | AQ20: 0.0377607 | AR20: 0.8751273 | AT20: 0.0078524 | AU20: 0.8751273 | AW20: 0.2071974 | AX20: 0.819925 | AZ20: 0.0157574 | BA20: 0.819925 | BC20: 29 | BD20: 0.02409 | BF20: 0.8751273 | BG20: 0.02409 | BI20: 0.02409 | BJ20: 0.02409 | BL20: 0.6955553 | BM20: 0.01482952 | BO20: 0.04922418 | BP20: 0.01482952 | BR20: 0.0377607 | BS20: 0.02409 | BU20: 0.0078524 | BV20: 0.02409 | BX20: 0.2071974 | BY20: 0.0067837 | CA20: 0.0157574 | CB20: 0.0067837 | CD20: 31 | CE20: 0.6955553 | CG20: 0.7221035 | CH20: 0.6955553 | CJ20: 0.01482952 | CK20: 0.6955553 | CM20: 0.8308182 | CN20: 0.8308182 | CP20: 0.021120195 | CQ20: 0.8308182 | CS20: 0.2214644 | CT20: 0.809518 | CV20: 0.008711 | CW20: 0.809518 | CY20: 0.255194 | CZ20: 0.7681781 | DB20: 0.0207407 | DC20: 0.7681781 | DE20: 31 | DF20: 0.04922418 | DH20: 0.7221035 | DI20: 0.04922418 | DK20: 0.01482952 | DL20: 0.04922418 | DN20: 0.8308182 | DO20: 0.021120195 | DQ20: 0.021120195 | DR20: 0.021120195 | DT20: 0.2214644 | DU20: 0.0129869 | DW20: 0.008711 | DX20: 0.0129869 | DZ20: 0.255194 | EA20: 0.0151109 | EC20: 0.0207407 | ED20: 0.0151109 | EF20: 29 | EG20: 0.0377607 | EI20: 0.8751273 | EJ20: 0.0377607 | EL20: 0.02409 | EM20: 0.0377607 | EO20: 0.809518 | EP20: 0.2214644 | ER20: 0.0129869 | ES20: 0.2214644 | EU20: 0.0377607 | EV20: 0.0377607 | EX20: 0.0078524 | EY20: 0.0377607 | FA20: 0.2071974 | FB20: 0.2214644 | FD20: 0.0157574 | FE20: 0.2214644 | FG20: 29 | FH20: 0.0078524 | FJ20: 0.8751273 | FK20: 0.0078524 | FM20: 0.02409 | FN20: 0.0078524 | FP20: 0.809518 | FQ20: 0.008711 | FS20: 0.0129869 | FT20: 0.008711 | FV20: 0.0377607 | FW20: 0.0078524 | FY20: 0.0078524 | FZ20: 0.0078524 | GB20: 0.2071974 | GC20: 0.008711 | GE20: 0.0157574 | GF20: 0.008711 | GH20: 36 | GI20: 0.2071974 | GK20: 0.819925 | GL20: 0.2071974 | GN20: 0.0067837 | GO20: 0.2071974 | GQ20: 0.7681781 | GR20: 0.255194 | GT20: 0.0151109 | GU20: 0.255194 | GW20: 0.2214644 | GX20: 0.2071974 | GZ20: 0.008711 | HA20: 0.2071974 | HC20: 0.255194 | HD20: 0.255194 | HF20: 0.0207407 | HG20: 0.255194 | HI20: 36 | HJ20: 0.0157574 | HL20: 0.819925 | HM20: 0.0157574 | HO20: 0.0067837 | HP20: 0.0157574 | HR20: 0.7681781 | HS20: 0.0207407 | HU20: 0.0151109 | HV20: 0.0207407 | HX20: 0.2214644 | HY20: 0.0157574 | IA20: 0.008711 | IB20: 0.0157574
A21: 32 | B21: 32 | D21: 0.9038665 | E21: 32 | G21: 0.0041074 | H21: 32 | J21: 0.7681781 | K21: 36 | M21: 0.0151109 | N21: 36 | P21: 0.2555795 | Q21: 32 | S21: 0.0072781 | T21: 32 | V21: 0.2603496 | W21: 28 | Y21: 0.0136047 | Z21: 28 | AB21: 32 | AC21: 0.9038665 | AE21: 0.9038665 | AF21: 0.9038665 | AH21: 0.0041074 | AI21: 0.9038665 | AK21: 0.7681781 | AL21: 0.8197486 | AN21: 0.0151109 | AO21: 0.8197486 | AQ21: 0.2555795 | AR21: 0.9038665 | AT21: 0.0072781 | AU21: 0.9038665 | AW21: 0.2603496 | AX21: 0.8531265 | AZ21: 0.0136047 | BA21: 0.8531265 | BC21: 32 | BD21: 0.0041074 | BF21: 0.9038665 | BG21: 0.0041074 | BI21: 0.0041074 | BJ21: 0.0041074 | BL21: 0.7681781 | BM21: 0.0083981 | BO21: 0.0151109 | BP21: 0.0083981 | BR21: 0.2555795 | BS21: 0.0041074 | BU21: 0.0072781 | BV21: 0.0041074 | BX21: 0.2603496 | BY21: 0.0065726 | CA21: 0.0136047 | CB21: 0.0065726 | CD21: 36 | CE21: 0.7681781 | CG21: 0.8197486 | CH21: 0.7681781 | CJ21: 0.0083981 | CK21: 0.7681781 | CM21: 0.6955553 | CN21: 0.6955553 | CP21: 0.04922418 | CQ21: 0.6955553 | CS21: 0.4917002 | CT21: 0.8157335 | CV21: 0.0111887 | CW21: 0.8157335 | CY21: 0.2071974 | CZ21: 0.809518 | DB21: 0.0157574 | DC21: 0.809518 | DE21: 36 | DF21: 0.0151109 | DH21: 0.8197486 | DI21: 0.0151109 | DK21: 0.0083981 | DL21: 0.0151109 | DN21: 0.6955553 | DO21: 0.04922418 | DQ21: 0.04922418 | DR21: 0.04922418 | DT21: 0.4917002 | DU21: 0.0099826 | DW21: 0.0111887 | DX21: 0.0099826 | DZ21: 0.2071974 | EA21: 0.0129869 | EC21: 0.0157574 | ED21: 0.0129869 | EF21: 32 | EG21: 0.2555795 | EI21: 0.9038665 | EJ21: 0.2555795 | EL21: 0.0041074 | EM21: 0.2555795 | EO21: 0.8157335 | EP21: 0.4917002 | ER21: 0.0099826 | ES21: 0.4917002 | EU21: 0.2555795 | EV21: 0.2555795 | EX21: 0.0072781 | EY21: 0.2555795 | FA21: 0.2603496 | FB21: 0.4917002 | FD21: 0.0136047 | FE21: 0.4917002 | FG21: 32 | FH21: 0.0072781 | FJ21: 0.9038665 | FK21: 0.0072781 | FM21: 0.0041074 | FN21: 0.0072781 | FP21: 0.8157335 | FQ21: 0.0111887 | FS21: 0.0099826 | FT21: 0.0111887 | FV21: 0.2555795 | FW21: 0.0072781 | FY21: 0.0072781 | FZ21: 0.0072781 | GB21: 0.2603496 | GC21: 0.0111887 | GE21: 0.0136047 | GF21: 0.0111887 | GH21: 28 | GI21: 0.2603496 | GK21: 0.8531265 | GL21: 0.2603496 | GN21: 0.0065726 | GO21: 0.2603496 | GQ21: 0.809518 | GR21: 0.2071974 | GT21: 0.0129869 | GU21: 0.2071974 | GW21: 0.4917002 | GX21: 0.2603496 | GZ21: 0.0111887 | HA21: 0.2603496 | HC21: 0.2071974 | HD21: 0.2071974 | HF21: 0.0157574 | HG21: 0.2071974 | HI21: 28 | HJ21: 0.0136047 | HL21: 0.8531265 | HM21: 0.0136047 | HO21: 0.0065726 | HP21: 0.0136047 | HR21: 0.809518 | HS21: 0.0157574 | HU21: 0.0129869 | HV21: 0.0157574 | HX21: 0.4917002 | HY21: 0.0136047 | IA21: 0.0111887 | IB21: 0.0136047
A22: 80 | B22: 80 | D22: 0.833 | E22: 80 | G22: 0.009948979592 | H22: 80 | J22: 0.809518 | K22: 36 | M22: 0.0129869 | N22: 36 | P22: 0.2989058 | Q22: 37 | S22: 0.01476938 | T22: 37 | V22: 0.2462971 | W22: 32 | Y22: 0.0150279 | Z22: 32 | AB22: 80 | AC22: 0.833 | AE22: 0.833 | AF22: 0.833 | AH22: 0.009948979592 | AI22: 0.833 | AK22: 0.809518 | AL22: 0.819925 | AN22: 0.0129869 | AO22: 0.819925 | AQ22: 0.2989058 | AR22: 0.8373131 | AT22: 0.01476938 | AU22: 0.8373131 | AW22: 0.2462971 | AX22: 0.8710221 | AZ22: 0.0150279 | BA22: 0.8710221 | BC22: 80 | BD22: 0.009948979592 | BF22: 0.833 | BG22: 0.009948979592 | BI22: 0.009948979592 | BJ22: 0.009948979592 | BL22: 0.809518 | BM22: 0.0067837 | BO22: 0.0129869 | BP22: 0.0067837 | BR22: 0.2989058 | BS22: 0.021120195 | BU22: 0.01476938 | BV22: 0.021120195 | BX22: 0.2462971 | BY22: 0.0104475 | CA22: 0.0150279 | CB22: 0.0104475 | CD22: 36 | CE22: 0.809518 | CG22: 0.819925 | CH22: 0.809518 | CJ22: 0.0067837 | CK22: 0.809518 | CM22: 0.7681781 | CN22: 0.7681781 | CP22: 0.0151109 | CQ22: 0.7681781 | CS22: 0.2420519 | CT22: 0.901961 | CV22: 0.0164469 | CW22: 0.901961 | CY22: 0.2603496 | CZ22: 0.8157335 | DB22: 0.0136047 | DC22: 0.8157335 | DE22: 36 | DF22: 0.0129869 | DH22: 0.819925 | DI22: 0.0129869 | DK22: 0.0067837 | DL22: 0.0129869 | DN22: 0.7681781 | DO22: 0.0151109 | DQ22: 0.0151109 | DR22: 0.0151109 | DT22: 0.2420519 | DU22: 0.0086263 | DW22: 0.0164469 | DX22: 0.0086263 | DZ22: 0.2603496 | EA22: 0.0099826 | EC22: 0.0136047 | ED22: 0.0099826 | EF22: 37 | EG22: 0.2989058 | EI22: 0.8373131 | EJ22: 0.2989058 | EL22: 0.021120195 | EM22: 0.2989058 | EO22: 0.901961 | EP22: 0.2420519 | ER22: 0.0086263 | ES22: 0.2420519 | EU22: 0.2989058 | EV22: 0.2989058 | EX22: 0.01476938 | EY22: 0.2989058 | FA22: 0.2462971 | FB22: 0.2420519 | FD22: 0.0150279 | FE22: 0.2420519 | FG22: 37 | FH22: 0.01476938 | FJ22: 0.8373131 | FK22: 0.01476938 | FM22: 0.021120195 | FN22: 0.01476938 | FP22: 0.901961 | FQ22: 0.0164469 | FS22: 0.0086263 | FT22: 0.0164469 | FV22: 0.2989058 | FW22: 0.01476938 | FY22: 0.01476938 | FZ22: 0.01476938 | GB22: 0.2462971 | GC22: 0.0164469 | GE22: 0.0150279 | GF22: 0.0164469 | GH22: 32 | GI22: 0.2462971 | GK22: 0.8710221 | GL22: 0.2462971 | GN22: 0.0104475 | GO22: 0.2462971 | GQ22: 0.8157335 | GR22: 0.2603496 | GT22: 0.0099826 | GU22: 0.2603496 | GW22: 0.2420519 | GX22: 0.2462971 | GZ22: 0.0164469 | HA22: 0.2462971 | HC22: 0.2603496 | HD22: 0.2603496 | HF22: 0.0136047 | HG22: 0.2603496 | HI22: 32 | HJ22: 0.0150279 | HL22: 0.8710221 | HM22: 0.0150279 | HO22: 0.0104475 | HP22: 0.0150279 | HR22: 0.8157335 | HS22: 0.0136047 | HU22: 0.0099826 | HV22: 0.0136047 | HX22: 0.2420519 | HY22: 0.0150279 | IA22: 0.0164469 | IB22: 0.0150279
A23: 73 | B23: 73 | D23: 0.862 | E23: 73 | G23: 0.007142857143 | H23: 73 | J23: 0.8157335 | K23: 28 | M23: 0.0099826 | N23: 28 | P23: 0.2568042 | Q23: 31 | S23: 0.01732538 | T23: 31 | V23: 0.4403041 | W23: 34 | Y23: 0.0123552 | Z23: 34 | AB23: 73 | AC23: 0.862 | AE23: 0.862 | AF23: 0.862 | AH23: 0.007142857143 | AI23: 0.862 | AK23: 0.8157335 | AL23: 0.8531265 | AN23: 0.0099826 | AO23: 0.8531265 | AQ23: 0.2568042 | AR23: 0.7221035 | AT23: 0.01732538 | AU23: 0.7221035 | AW23: 0.4403041 | AX23: 0.903058 | AZ23: 0.0123552 | BA23: 0.903058 | BC23: 73 | BD23: 0.007142857143 | BF23: 0.862 | BG23: 0.007142857143 | BI23: 0.007142857143 | BJ23: 0.007142857143 | BL23: 0.8157335 | BM23: 0.0065726 | BO23: 0.0099826 | BP23: 0.0065726 | BR23: 0.2568042 | BS23: 0.01482952 | BU23: 0.01732538 | BV23: 0.01482952 | BX23: 0.4403041 | BY23: 0.0055264 | CA23: 0.0123552 | CB23: 0.0055264 | CD23: 28 | CE23: 0.8157335 | CG23: 0.8531265 | CH23: 0.8157335 | CJ23: 0.0065726 | CK23: 0.8157335 | CM23: 0.809518 | CN23: 0.809518 | CP23: 0.0129869 | CQ23: 0.809518 | CS23: 0.4191641 | CT23: 0.9052528 | CV23: 0.010378 | CW23: 0.9052528 | CY23: 0.2462971 | CZ23: 0.901961 | DB23: 0.0150279 | DC23: 0.901961 | DE23: 28 | DF23: 0.0099826 | DH23: 0.8531265 | DI23: 0.0099826 | DK23: 0.0065726 | DL23: 0.0099826 | DN23: 0.809518 | DO23: 0.0129869 | DQ23: 0.0129869 | DR23: 0.0129869 | DT23: 0.4191641 | DU23: 0.0065606 | DW23: 0.010378 | DX23: 0.0065606 | DZ23: 0.2462971 | EA23: 0.0086263 | EC23: 0.0150279 | ED23: 0.0086263 | EF23: 31 | EG23: 0.2568042 | EI23: 0.7221035 | EJ23: 0.2568042 | EL23: 0.01482952 | EM23: 0.2568042 | EO23: 0.9052528 | EP23: 0.4191641 | ER23: 0.0065606 | ES23: 0.4191641 | EU23: 0.2568042 | EV23: 0.2568042 | EX23: 0.01732538 | EY23: 0.2568042 | FA23: 0.4403041 | FB23: 0.4191641 | FD23: 0.0123552 | FE23: 0.4191641 | FG23: 31 | FH23: 0.01732538 | FJ23: 0.7221035 | FK23: 0.01732538 | FM23: 0.01482952 | FN23: 0.01732538 | FP23: 0.9052528 | FQ23: 0.010378 | FS23: 0.0065606 | FT23: 0.010378 | FV23: 0.2568042 | FW23: 0.01732538 | FY23: 0.01732538 | FZ23: 0.01732538 | GB23: 0.4403041 | GC23: 0.010378 | GE23: 0.0123552 | GF23: 0.010378 | GH23: 34 | GI23: 0.4403041 | GK23: 0.903058 | GL23: 0.4403041 | GN23: 0.0055264 | GO23: 0.4403041 | GQ23: 0.901961 | GR23: 0.2462971 | GT23: 0.0086263 | GU23: 0.2462971 | GW23: 0.4191641 | GX23: 0.4403041 | GZ23: 0.010378 | HA23: 0.4403041 | HC23: 0.2462971 | HD23: 0.2462971 | HF23: 0.0150279 | HG23: 0.2462971 | HI23: 34 | HJ23: 0.0123552 | HL23: 0.903058 | HM23: 0.0123552 | HO23: 0.0055264 | HP23: 0.0123552 | HR23: 0.901961 | HS23: 0.0150279 | HU23: 0.0086263 | HV23: 0.0150279 | HX23: 0.4191641 | HY23: 0.0123552 | IA23: 0.010378 | IB23: 0.0123552
A24: 37 | B24: 37 | D24: 0.8373131 | E24: 37 | G24: 0.021120195 | H24: 37 | J24: 0.901961 | K24: 32 | M24: 0.0086263 | N24: 32 | P24: 0.1954802 | Q24: 36 | S24: 0.0106035 | T24: 36 | V24: 0.173 | W24: 28 | Y24: 0.006 | Z24: 28 | AB24: 37 | AC24: 0.8373131 | AE24: 0.8373131 | AF24: 0.8373131 | AH24: 0.021120195 | AI24: 0.8373131 | AK24: 0.901961 | AL24: 0.8710221 | AN24: 0.0086263 | AO24: 0.8710221 | AQ24: 0.1954802 | AR24: 0.8197486 | AT24: 0.0106035 | AU24: 0.8197486 | AW24: 0.1449076 | AX24: 0.7466986 | AZ24: 0.018405 | BA24: 0.7466986 | BC24: 37 | BD24: 0.021120195 | BF24: 0.8373131 | BG24: 0.021120195 | BI24: 0.021120195 | BJ24: 0.021120195 | BL24: 0.901961 | BM24: 0.0104475 | BO24: 0.0086263 | BP24: 0.0104475 | BR24: 0.1954802 | BS24: 0.0083981 | BU24: 0.0106035 | BV24: 0.0083981 | BX24: 0.1449076 | BY24: 0.046325 | CA24: 0.018405 | CB24: 0.046325 | CD24: 32 | CE24: 0.901961 | CG24: 0.8710221 | CH24: 0.901961 | CJ24: 0.0104475 | CK24: 0.901961 | CM24: 0.8157335 | CN24: 0.8157335 | CP24: 0.0099826 | CQ24: 0.8157335 | CS24: 0.1455285 | CT24: 0.6362703 | CV24: 0.0386292 | CW24: 0.6362703 | CY24: 0.4403041 | CZ24: 0.9052528 | DB24: 0.0123552 | DC24: 0.9052528 | DE24: 32 | DF24: 0.0086263 | DH24: 0.8710221 | DI24: 0.0086263 | DK24: 0.0104475 | DL24: 0.0086263 | DN24: 0.8157335 | DO24: 0.0099826 | DQ24: 0.0099826 | DR24: 0.0099826 | DT24: 0.1455285 | DU24: 0.0284921 | DW24: 0.0386292 | DX24: 0.0284921 | DZ24: 0.4403041 | EA24: 0.0065606 | EC24: 0.0123552 | ED24: 0.0065606 | EF24: 36 | EG24: 0.1954802 | EI24: 0.8197486 | EJ24: 0.1954802 | EL24: 0.0083981 | EM24: 0.1954802 | EO24: 0.6362703 | EP24: 0.1455285 | ER24: 0.0284921 | ES24: 0.1455285 | EU24: 0.1954802 | EV24: 0.1954802 | EX24: 0.0106035 | EY24: 0.1954802 | FA24: 0.1449076 | FB24: 0.1455285 | FD24: 0.018405 | FE24: 0.1455285 | FG24: 36 | FH24: 0.0106035 | FJ24: 0.8197486 | FK24: 0.0106035 | FM24: 0.0083981 | FN24: 0.0106035 | FP24: 0.6362703 | FQ24: 0.0386292 | FS24: 0.0284921 | FT24: 0.0386292 | FV24: 0.1954802 | FW24: 0.0106035 | FY24: 0.0106035 | FZ24: 0.0106035 | GB24: 0.1449076 | GC24: 0.0386292 | GE24: 0.018405 | GF24: 0.0386292 | GH24: 28 | GI24: 0.173 | GK24: 0.7466986 | GL24: 0.1449076 | GN24: 0.046325 | GO24: 0.1449076 | GQ24: 0.9052528 | GR24: 0.4403041 | GT24: 0.0065606 | GU24: 0.4403041 | GW24: 0.1455285 | GX24: 0.1449076 | GZ24: 0.0386292 | HA24: 0.1449076 | HC24: 0.4403041 | HD24: 0.4403041 | HF24: 0.0123552 | HG24: 0.4403041 | HI24: 28 | HJ24: 0.006 | HL24: 0.7466986 | HM24: 0.018405 | HO24: 0.046325 | HP24: 0.018405 | HR24: 0.9052528 | HS24: 0.0123552 | HU24: 0.0065606 | HV24: 0.0123552 | HX24: 0.1455285 | HY24: 0.018405 | IA24: 0.0386292 | IB24: 0.018405
A25: 31 | B25: 31 | D25: 0.7221035 | E25: 31 | G25: 0.01482952 | H25: 31 | J25: 0.9052528 | K25: 34 | M25: 0.0065606 | N25: 34 | P25: 0.2214644 | Q25: 36 | S25: 0.008711 | T25: 36 | V25: 0.1449076 | W25: 31 | Y25: 0.018405 | Z25: 31 | AB25: 31 | AC25: 0.7221035 | AE25: 0.7221035 | AF25: 0.7221035 | AH25: 0.01482952 | AI25: 0.7221035 | AK25: 0.9052528 | AL25: 0.903058 | AN25: 0.0065606 | AO25: 0.903058 | AQ25: 0.2214644 | AR25: 0.819925 | AT25: 0.008711 | AU25: 0.819925 | AW25: 0.1919092 | AX25: 0.718914 | AZ25: 0.0143314 | BA25: 0.718914 | BC25: 31 | BD25: 0.01482952 | BF25: 0.7221035 | BG25: 0.01482952 | BI25: 0.01482952 | BJ25: 0.01482952 | BL25: 0.9052528 | BM25: 0.0055264 | BO25: 0.0065606 | BP25: 0.0055264 | BR25: 0.2214644 | BS25: 0.0067837 | BU25: 0.008711 | BV25: 0.0067837 | BX25: 0.1919092 | BY25: 0.0247991 | CA25: 0.0143314 | CB25: 0.0247991 | CD25: 34 | CE25: 0.9052528 | CG25: 0.903058 | CH25: 0.9052528 | CJ25: 0.0055264 | CK25: 0.9052528 | CM25: 0.901961 | CN25: 0.901961 | CP25: 0.0086263 | CQ25: 0.901961 | CS25: 0.2039871 | CT25: 0.7837204 | CV25: 0.020143 | CW25: 0.7837204 | CY25: 0.173 | CZ25: 0.84 | DB25: 0.006 | DC25: 0.84 | DE25: 34 | DF25: 0.0065606 | DH25: 0.903058 | DI25: 0.0065606 | DK25: 0.0055264 | DL25: 0.0065606 | DN25: 0.901961 | DO25: 0.0086263 | DQ25: 0.0086263 | DR25: 0.0086263 | DT25: 0.2039871 | DU25: 0.0168395 | DW25: 0.020143 | DX25: 0.0168395 | DZ25: 0.173 | EA25: 0.006 | EC25: 0.006 | ED25: 0.006 | EF25: 36 | EG25: 0.2214644 | EI25: 0.819925 | EJ25: 0.2214644 | EL25: 0.0067837 | EM25: 0.2214644 | EO25: 0.7837204 | EP25: 0.2039871 | ER25: 0.0168395 | ES25: 0.2039871 | EU25: 0.2214644 | EV25: 0.2214644 | EX25: 0.008711 | EY25: 0.2214644 | FA25: 0.1919092 | FB25: 0.2039871 | FD25: 0.0143314 | FE25: 0.2039871 | FG25: 36 | FH25: 0.008711 | FJ25: 0.819925 | FK25: 0.008711 | FM25: 0.0067837 | FN25: 0.008711 | FP25: 0.7837204 | FQ25: 0.020143 | FS25: 0.0168395 | FT25: 0.020143 | FV25: 0.2214644 | FW25: 0.008711 | FY25: 0.008711 | FZ25: 0.008711 | GB25: 0.1919092 | GC25: 0.020143 | GE25: 0.0143314 | GF25: 0.020143 | GH25: 31 | GI25: 0.1449076 | GK25: 0.718914 | GL25: 0.1919092 | GN25: 0.0247991 | GO25: 0.1919092 | GQ25: 0.84 | GR25: 0.173 | GT25: 0.006 | GU25: 0.173 | GW25: 0.2039871 | GX25: 0.1919092 | GZ25: 0.020143 | HA25: 0.1919092 | HC25: 0.173 | HD25: 0.173 | HF25: 0.006 | HG25: 0.173 | HI25: 31 | HJ25: 0.018405 | HL25: 0.718914 | HM25: 0.0143314 | HO25: 0.0247991 | HP25: 0.0143314 | HR25: 0.84 | HS25: 0.006 | HU25: 0.006 | HV25: 0.006 | HX25: 0.2039871 | HY25: 0.0143314 | IA25: 0.020143 | IB25: 0.0143314
A26: 36 | B26: 36 | D26: 0.8197486 | E26: 36 | G26: 0.0083981 | H26: 36 | J26: 0.84 | K26: 28 | M26: 0.006 | N26: 28 | P26: 0.4917002 | Q26: 28 | S26: 0.0111887 | T26: 28 | V26: 0.1919092 | W26: 14 | Y26: 0.0143314 | Z26: 14 | AB26: 36 | AC26: 0.8197486 | AE26: 0.8197486 | AF26: 0.8197486 | AH26: 0.0083981 | AI26: 0.8197486 | AK26: 0.6362703 | AL26: 0.7466986 | AN26: 0.0284921 | AO26: 0.7466986 | AQ26: 0.4917002 | AR26: 0.8531265 | AT26: 0.0111887 | AU26: 0.8531265 | AW26: 0.1306551 | AX26: 0.8170575 | AZ26: 0.0200121 | BA26: 0.8170575 | BC26: 36 | BD26: 0.0083981 | BF26: 0.8197486 | BG26: 0.0083981 | BI26: 0.0083981 | BJ26: 0.0083981 | BL26: 0.6362703 | BM26: 0.046325 | BO26: 0.0284921 | BP26: 0.046325 | BR26: 0.4917002 | BS26: 0.0065726 | BU26: 0.0111887 | BV26: 0.0065726 | BX26: 0.1306551 | BY26: 0.0163776 | CA26: 0.0200121 | CB26: 0.0163776 | CD26: 28 | CE26: 0.84 | CG26: 0.7466986 | CH26: 0.6362703 | CJ26: 0.046325 | CK26: 0.6362703 | CM26: 0.9052528 | CN26: 0.9052528 | CP26: 0.0065606 | CQ26: 0.9052528 | CS26: 0.5792698 | CT26: 0.894433 | CV26: 0.0262204 | CW26: 0.894433 | CY26: 0.1449076 | CZ26: 0.6362703 | DB26: 0.018405 | DC26: 0.6362703 | DE26: 28 | DF26: 0.006 | DH26: 0.7466986 | DI26: 0.0284921 | DK26: 0.046325 | DL26: 0.0284921 | DN26: 0.9052528 | DO26: 0.0065606 | DQ26: 0.0065606 | DR26: 0.0065606 | DT26: 0.5792698 | DU26: 0.0232359 | DW26: 0.0262204 | DX26: 0.0232359 | DZ26: 0.1449076 | EA26: 0.0284921 | EC26: 0.018405 | ED26: 0.0284921 | EF26: 28 | EG26: 0.4917002 | EI26: 0.8531265 | EJ26: 0.4917002 | EL26: 0.0065726 | EM26: 0.4917002 | EO26: 0.894433 | EP26: 0.5792698 | ER26: 0.0232359 | ES26: 0.5792698 | EU26: 0.4917002 | EV26: 0.4917002 | EX26: 0.0111887 | EY26: 0.4917002 | FA26: 0.1306551 | FB26: 0.5792698 | FD26: 0.0200121 | FE26: 0.5792698 | FG26: 28 | FH26: 0.0111887 | FJ26: 0.8531265 | FK26: 0.0111887 | FM26: 0.0065726 | FN26: 0.0111887 | FP26: 0.894433 | FQ26: 0.0262204 | FS26: 0.0232359 | FT26: 0.0262204 | FV26: 0.4917002 | FW26: 0.0111887 | FY26: 0.0111887 | FZ26: 0.0111887 | GB26: 0.1306551 | GC26: 0.0262204 | GE26: 0.0200121 | GF26: 0.0262204 | GH26: 14 | GI26: 0.1919092 | GK26: 0.8170575 | GL26: 0.1306551 | GN26: 0.0163776 | GO26: 0.1306551 | GQ26: 0.6362703 | GR26: 0.1449076 | GT26: 0.0284921 | GU26: 0.1449076 | GW26: 0.5792698 | GX26: 0.1306551 | GZ26: 0.0262204 | HA26: 0.1306551 | HC26: 0.1449076 | HD26: 0.1449076 | HF26: 0.018405 | HG26: 0.1449076 | HI26: 14 | HJ26: 0.0143314 | HL26: 0.8170575 | HM26: 0.0200121 | HO26: 0.0163776 | HP26: 0.0200121 | HR26: 0.6362703 | HS26: 0.018405 | HU26: 0.0284921 | HV26: 0.018405 | HX26: 0.5792698 | HY26: 0.0200121 | IA26: 0.0262204 | IB26: 0.0200121
A27: 36 | B27: 36 | D27: 0.819925 | E27: 36 | G27: 0.0067837 | H27: 36 | J27: 0.6362703 | K27: 31 | M27: 0.0284921 | N27: 31 | P27: 0.2420519 | Q27: 32 | S27: 0.0164469 | T27: 32 | V27: 0.1278979 | W27: 18 | Y27: 0.0146526 | Z27: 18 | AB27: 36 | AC27: 0.819925 | AE27: 0.819925 | AF27: 0.819925 | AH27: 0.0067837 | AI27: 0.819925 | AK27: 0.7837204 | AL27: 0.718914 | AN27: 0.0168395 | AO27: 0.718914 | AQ27: 0.2420519 | AR27: 0.8710221 | AT27: 0.0164469 | AU27: 0.8710221 | AW27: 0.0604751 | AX27: 0.8996778 | AZ27: 0.0159079 | BA27: 0.8996778 | BC27: 36 | BD27: 0.0067837 | BF27: 0.819925 | BG27: 0.0067837 | BI27: 0.0067837 | BJ27: 0.0067837 | BL27: 0.7837204 | BM27: 0.0247991 | BO27: 0.0168395 | BP27: 0.0247991 | BR27: 0.2420519 | BS27: 0.0104475 | BU27: 0.0164469 | BV27: 0.0104475 | BX27: 0.0604751 | BY27: 0.0189943 | CA27: 0.0159079 | CB27: 0.0189943 | CD27: 31 | CE27: 0.6362703 | CG27: 0.718914 | CH27: 0.7837204 | CJ27: 0.0247991 | CK27: 0.7837204 | CM27: 0.84 | CN27: 0.84 | CP27: 0.006 | CQ27: 0.84 | CS27: 0.1091171 | CT27: 0.8916794 | CV27: 0.0131909 | CW27: 0.8916794 | CY27: 0.1919092 | CZ27: 0.7837204 | DB27: 0.0143314 | DC27: 0.7837204 | DE27: 31 | DF27: 0.0284921 | DH27: 0.718914 | DI27: 0.0168395 | DK27: 0.0247991 | DL27: 0.0168395 | DN27: 0.84 | DO27: 0.006 | DQ27: 0.006 | DR27: 0.006 | DT27: 0.1091171 | DU27: 0.0424398 | DW27: 0.0131909 | DX27: 0.0424398 | DZ27: 0.1919092 | EA27: 0.0168395 | EC27: 0.0143314 | ED27: 0.0168395 | EF27: 32 | EG27: 0.2420519 | EI27: 0.8710221 | EJ27: 0.2420519 | EL27: 0.0104475 | EM27: 0.2420519 | EO27: 0.8916794 | EP27: 0.1091171 | ER27: 0.0424398 | ES27: 0.1091171 | EU27: 0.2420519 | EV27: 0.2420519 | EX27: 0.0164469 | EY27: 0.2420519 | FA27: 0.0604751 | FB27: 0.1091171 | FD27: 0.0159079 | FE27: 0.1091171 | FG27: 32 | FH27: 0.0164469 | FJ27: 0.8710221 | FK27: 0.0164469 | FM27: 0.0104475 | FN27: 0.0164469 | FP27: 0.8916794 | FQ27: 0.0131909 | FS27: 0.0424398 | FT27: 0.0131909 | FV27: 0.2420519 | FW27: 0.0164469 | FY27: 0.0164469 | FZ27: 0.0164469 | GB27: 0.0604751 | GC27: 0.0131909 | GE27: 0.0159079 | GF27: 0.0131909 | GH27: 18 | GI27: 0.1278979 | GK27: 0.8996778 | GL27: 0.0604751 | GN27: 0.0189943 | GO27: 0.0604751 | GQ27: 0.7837204 | GR27: 0.1919092 | GT27: 0.0168395 | GU27: 0.1919092 | GW27: 0.1091171 | GX27: 0.0604751 | GZ27: 0.0131909 | HA27: 0.0604751 | HC27: 0.1919092 | HD27: 0.1919092 | HF27: 0.0143314 | HG27: 0.1919092 | HI27: 18 | HJ27: 0.0146526 | HL27: 0.8996778 | HM27: 0.0159079 | HO27: 0.0189943 | HP27: 0.0159079 | HR27: 0.7837204 | HS27: 0.0143314 | HU27: 0.0168395 | HV27: 0.0143314 | HX27: 0.1091171 | HY27: 0.0159079 | IA27: 0.0131909 | IB27: 0.0159079
A28: 28 | B28: 28 | D28: 0.8531265 | E28: 28 | G28: 0.0065726 | H28: 28 | J28: 0.7837204 | K28: 14 | M28: 0.0168395 | N28: 14 | P28: 0.4191641 | Q28: 34 | S28: 0.010378 | T28: 34 | V28: 0.1306551 | W28: 34 | Y28: 0.0200121 | Z28: 34 | AB28: 28 | AC28: 0.8531265 | AE28: 0.8531265 | AF28: 0.8531265 | AH28: 0.0065726 | AI28: 0.8531265 | AK28: 0.894433 | AL28: 0.8170575 | AN28: 0.0232359 | AO28: 0.8170575 | AQ28: 0.4191641 | AR28: 0.903058 | AT28: 0.010378 | AU28: 0.903058 | AW28: 0.0224719 | AX28: 0.9105053 | AZ28: 0.0184193 | BA28: 0.9105053 | BC28: 28 | BD28: 0.0065726 | BF28: 0.8531265 | BG28: 0.0065726 | BI28: 0.0065726 | BJ28: 0.0065726 | BL28: 0.894433 | BM28: 0.0163776 | BO28: 0.0232359 | BP28: 0.0163776 | BR28: 0.4191641 | BS28: 0.0055264 | BU28: 0.010378 | BV28: 0.0055264 | BX28: 0.0224719 | BY28: 0.0519452 | CA28: 0.0184193 | CB28: 0.0519452 | CD28: 14 | CE28: 0.7837204 | CG28: 0.8170575 | CH28: 0.894433 | CJ28: 0.0163776 | CK28: 0.894433 | CM28: 0.6362703 | CN28: 0.6362703 | CP28: 0.0284921 | CQ28: 0.6362703 | CS28: 0.4910974 | CT28: 0.693481 | CV28: 0.0465504 | CW28: 0.693481 | CY28: 0.1278979 | CZ28: 0.8582272 | DB28: 0.0146526 | DC28: 0.8582272 | DE28: 14 | DF28: 0.0168395 | DH28: 0.8170575 | DI28: 0.0232359 | DK28: 0.0163776 | DL28: 0.0232359 | DN28: 0.6362703 | DO28: 0.0284921 | DQ28: 0.0284921 | DR28: 0.0284921 | DT28: 0.4910974 | DU28: 0.124407 | DW28: 0.0465504 | DX28: 0.124407 | DZ28: 0.1278979 | EA28: 0.0187894 | EC28: 0.0146526 | ED28: 0.0187894 | EF28: 34 | EG28: 0.4191641 | EI28: 0.903058 | EJ28: 0.4191641 | EL28: 0.0055264 | EM28: 0.4191641 | EO28: 0.693481 | EP28: 0.4910974 | ER28: 0.124407 | ES28: 0.4910974 | EU28: 0.4191641 | EV28: 0.4191641 | EX28: 0.010378 | EY28: 0.4191641 | FA28: 0.0224719 | FB28: 0.0206429 | FD28: 0.0184193 | FE28: 0.0206429 | FG28: 34 | FH28: 0.010378 | FJ28: 0.903058 | FK28: 0.010378 | FM28: 0.0055264 | FN28: 0.010378 | FP28: 0.693481 | FQ28: 0.0465504 | FS28: 0.124407 | FT28: 0.0465504 | FV28: 0.4191641 | FW28: 0.010378 | FY28: 0.010378 | FZ28: 0.010378 | GB28: 0.0224719 | GC28: 0.0115615 | GE28: 0.0184193 | GF28: 0.0115615 | GH28: 34 | GI28: 0.1306551 | GK28: 0.9105053 | GL28: 0.0224719 | GN28: 0.0519452 | GO28: 0.0224719 | GQ28: 0.8582272 | GR28: 0.1278979 | GT28: 0.0187894 | GU28: 0.1278979 | GW28: 0.0206429 | GX28: 0.0224719 | GZ28: 0.0115615 | HA28: 0.0224719 | HC28: 0.1278979 | HD28: 0.1278979 | HF28: 0.0146526 | HG28: 0.1278979 | HI28: 34 | HJ28: 0.0200121 | HL28: 0.9105053 | HM28: 0.0184193 | HO28: 0.0519452 | HP28: 0.0184193 | HR28: 0.8582272 | HS28: 0.0146526 | HU28: 0.0187894 | HV28: 0.0146526 | HX28: 0.0206429 | HY28: 0.0184193 | IA28: 0.0115615 | IB28: 0.0184193
A29: 32 | B29: 32 | D29: 0.8710221 | E29: 32 | G29: 0.0104475 | H29: 32 | J29: 0.8582272 | K29: 18 | M29: 0.0187894 | N29: 18 | P29: 0.1455285 | Q29: 31 | S29: 0.0386292 | T29: 31 | V29: 0.0604751 | W29: 18 | Y29: 0.0159079 | Z29: 18 | AB29: 32 | AC29: 0.8710221 | AE29: 0.8710221 | AF29: 0.8710221 | AH29: 0.0104475 | AI29: 0.8710221 | AK29: 0.5 | AL29: 0.75 | AN29: 0.137755102 | AO29: 0.75 | AQ29: 0.1455285 | AR29: 0.7466986 | AT29: 0.0386292 | AU29: 0.7466986 | AW29: 0.5579294 | AX29: 0.9274206 | AZ29: 0.2749703 | BA29: 0.9274206 | BC29: 32 | BD29: 0.0104475 | BF29: 0.8710221 | BG29: 0.0104475 | BI29: 0.0104475 | BJ29: 0.0104475 | BL29: 0.5 | BM29: 0.1071428571 | BO29: 0.137755102 | BP29: 0.1071428571 | BR29: 0.1455285 | BS29: 0.046325 | BU29: 0.0386292 | BV29: 0.046325 | BX29: 0.5579294 | BY29: 0.0140702 | CA29: 0.2749703 | CB29: 0.0140702 | CD29: 18 | CE29: 0.8582272 | CG29: 0.75 | CH29: 0.5 | CJ29: 0.1071428571 | CK29: 0.5 | CM29: 0.7837204 | CN29: 0.7837204 | CP29: 0.0168395 | CQ29: 0.7837204 | CS29: 0.3502628 | CT29: 0.8836301 | CV29: 0.0385193 | CW29: 0.8836301 | CY29: 0.1306551 | CZ29: 0.894433 | DB29: 0.0200121 | DC29: 0.894433 | DE29: 18 | DF29: 0.0187894 | DH29: 0.75 | DI29: 0.137755102 | DK29: 0.1071428571 | DL29: 0.137755102 | DN29: 0.7837204 | DO29: 0.0168395 | DQ29: 0.0168395 | DR29: 0.0168395 | DT29: 0.3502628 | DU29: 0.0554466 | DW29: 0.0385193 | DX29: 0.0554466 | DZ29: 0.1306551 | EA29: 0.0232359 | EC29: 0.0200121 | ED29: 0.0232359 | EF29: 31 | EG29: 0.1455285 | EI29: 0.7466986 | EJ29: 0.1455285 | EL29: 0.046325 | EM29: 0.1455285 | EO29: 0.8836301 | EP29: 0.3502628 | ER29: 0.0554466 | ES29: 0.3502628 | EU29: 0.1455285 | EV29: 0.1455285 | EX29: 0.0386292 | EY29: 0.1455285 | FA29: 0.5579294 | FB29: 0.4910974 | FD29: 0.2749703 | FE29: 0.4910974 | FG29: 31 | FH29: 0.0386292 | FJ29: 0.7466986 | FK29: 0.0386292 | FM29: 0.046325 | FN29: 0.0386292 | FP29: 0.8836301 | FQ29: 0.0385193 | FS29: 0.0554466 | FT29: 0.0385193 | FV29: 0.1455285 | FW29: 0.0386292 | FY29: 0.0386292 | FZ29: 0.0386292 | GB29: 0.5579294 | GC29: 0.0465504 | GE29: 0.2749703 | GF29: 0.0465504 | GH29: 18 | GI29: 0.0604751 | GK29: 0.9274206 | GL29: 0.5579294 | GN29: 0.0140702 | GO29: 0.5579294 | GQ29: 0.894433 | GR29: 0.1306551 | GT29: 0.0232359 | GU29: 0.1306551 | GW29: 0.4910974 | GX29: 0.5579294 | GZ29: 0.0465504 | HA29: 0.5579294 | HC29: 0.1306551 | HD29: 0.1306551 | HF29: 0.0200121 | HG29: 0.1306551 | HI29: 18 | HJ29: 0.0159079 | HL29: 0.9274206 | HM29: 0.2749703 | HO29: 0.0140702 | HP29: 0.2749703 | HR29: 0.894433 | HS29: 0.0200121 | HU29: 0.0232359 | HV29: 0.0200121 | HX29: 0.4910974 | HY29: 0.2749703 | IA29: 0.0465504 | IB29: 0.2749703
A30: 34 | B30: 34 | D30: 0.903058 | E30: 34 | G30: 0.0055264 | H30: 34 | J30: 0.894433 | K30: 34 | M30: 0.0232359 | N30: 34 | P30: 0.2039871 | Q30: 14 | S30: 0.020143 | T30: 14 | V30: 0.0224719 | W30: 38 | Y30: 0.0184193 | Z30: 38 | AB30: 34 | AC30: 0.903058 | AE30: 0.903058 | AF30: 0.903058 | AH30: 0.0055264 | AI30: 0.903058 | AK30: 0.8916794 | AL30: 0.8996778 | AN30: 0.0424398 | AO30: 0.8996778 | AQ30: 0.2039871 | AR30: 0.718914 | AT30: 0.020143 | AU30: 0.718914 | AW30: 0.1192661 | AX30: 0.9186145 | AZ30: 0.0384378 | BA30: 0.9186145 | BC30: 34 | BD30: 0.0055264 | BF30: 0.903058 | BG30: 0.0055264 | BI30: 0.0055264 | BJ30: 0.0055264 | BL30: 0.8916794 | BM30: 0.0189943 | BO30: 0.0424398 | BP30: 0.0189943 | BR30: 0.2039871 | BS30: 0.0247991 | BU30: 0.020143 | BV30: 0.0247991 | BX30: 0.1192661 | BY30: 0.0198246 | CA30: 0.0384378 | CB30: 0.0198246 | CD30: 34 | CE30: 0.894433 | CG30: 0.8996778 | CH30: 0.8916794 | CJ30: 0.0189943 | CK30: 0.8916794 | CM30: 0.8582272 | CN30: 0.8582272 | CP30: 0.0187894 | CQ30: 0.8582272 | CS30: 0.631 | CT30: 0.925 | CV30: 0.017 | CW30: 0.925 | CY30: 0.0604751 | CZ30: 0.8916794 | DB30: 0.0159079 | DC30: 0.8916794 | DE30: 34 | DF30: 0.0232359 | DH30: 0.8996778 | DI30: 0.0424398 | DK30: 0.0189943 | DL30: 0.0424398 | DN30: 0.8582272 | DO30: 0.0187894 | DQ30: 0.0187894 | DR30: 0.0187894 | DT30: 0.631 | DU30: 0.014 | DW30: 0.017 | DX30: 0.014 | DZ30: 0.0604751 | EA30: 0.0424398 | EC30: 0.0159079 | ED30: 0.0424398 | EF30: 14 | EG30: 0.2039871 | EI30: 0.718914 | EJ30: 0.2039871 | EL30: 0.0247991 | EM30: 0.2039871 | EO30: 0.925 | EP30: 0.631 | ER30: 0.014 | ES30: 0.631 | EU30: 0.2039871 | EV30: 0.2039871 | EX30: 0.020143 | EY30: 0.2039871 | FA30: 0.1192661 | FB30: 0.3502628 | FD30: 0.0384378 | FE30: 0.3502628 | FG30: 14 | FH30: 0.020143 | FJ30: 0.718914 | FK30: 0.020143 | FM30: 0.0247991 | FN30: 0.020143 | FP30: 0.925 | FQ30: 0.017 | FS30: 0.014 | FT30: 0.017 | FV30: 0.2039871 | FW30: 0.020143 | FY30: 0.020143 | FZ30: 0.020143 | GB30: 0.1192661 | GC30: 0.0385193 | GE30: 0.0384378 | GF30: 0.0385193 | GH30: 38 | GI30: 0.0224719 | GK30: 0.9186145 | GL30: 0.1192661 | GN30: 0.0198246 | GO30: 0.1192661 | GQ30: 0.8916794 | GR30: 0.0604751 | GT30: 0.0424398 | GU30: 0.0604751 | GW30: 0.3502628 | GX30: 0.1192661 | GZ30: 0.0385193 | HA30: 0.1192661 | HC30: 0.0604751 | HD30: 0.0604751 | HF30: 0.0159079 | HG30: 0.0604751 | HI30: 38 | HJ30: 0.0184193 | HL30: 0.9186145 | HM30: 0.0384378 | HO30: 0.0198246 | HP30: 0.0384378 | HR30: 0.8916794 | HS30: 0.0159079 | HU30: 0.0424398 | HV30: 0.0159079 | HX30: 0.3502628 | HY30: 0.0384378 | IA30: 0.0385193 | IB30: 0.0384378
A31: 28 | B31: 28 | D31: 0.7466986 | E31: 31 | G31: 0.046325 | H31: 31 | J31: 0.5 | K31: 4 | M31: 0.137755102 | N31: 4 | P31: 0.5792698 | Q31: 34 | S31: 0.0262204 | T31: 34 | V31: 0.5579294 | W31: 15 | Y31: 0.2749703 | Z31: 15 | AB31: 31 | AC31: 0.7466986 | AE31: 0.7466986 | AF31: 0.7466986 | AH31: 0.046325 | AI31: 0.7466986 | AK31: 0.693481 | AL31: 0.9274206 | AN31: 0.124407 | AO31: 0.9274206 | AQ31: 0.5792698 | AR31: 0.8170575 | AT31: 0.0262204 | AU31: 0.8170575 | AW31: 0.195 | AX31: 0.946 | AZ31: 0.029 | BA31: 0.946 | BC31: 31 | BD31: 0.046325 | BF31: 0.7466986 | BG31: 0.046325 | BI31: 0.046325 | BJ31: 0.046325 | BL31: 0.693481 | BM31: 0.0140702 | BO31: 0.124407 | BP31: 0.0140702 | BR31: 0.5792698 | BS31: 0.0163776 | BU31: 0.0262204 | BV31: 0.0163776 | BX31: 0.195 | BY31: 0.005 | CA31: 0.029 | CB31: 0.005 | CD31: 4 | CE31: 0.5 | CG31: 0.9274206 | CH31: 0.693481 | CJ31: 0.0140702 | CK31: 0.693481 | CM31: 0.894433 | CN31: 0.894433 | CP31: 0.0232359 | CQ31: 0.894433 | CS31: 0.0563556 | CT31: 0.9550015 | CV31: 0.0045412 | CW31: 0.9550015 | CY31: 0.5579294 | CZ31: 0.693481 | DB31: 0.2749703 | DC31: 0.693481 | DE31: 4 | DF31: 0.137755102 | DH31: 0.9274206 | DI31: 0.124407 | DK31: 0.0140702 | DL31: 0.124407 | DN31: 0.894433 | DO31: 0.0232359 | DQ31: 0.0232359 | DR31: 0.0232359 | DT31: 0.0563556 | DU31: 0.0100026 | DW31: 0.0045412 | DX31: 0.0100026 | DZ31: 0.5579294 | EA31: 0.124407 | EC31: 0.2749703 | ED31: 0.124407 | EF31: 34 | EG31: 0.5792698 | EI31: 0.8170575 | EJ31: 0.5792698 | EL31: 0.0163776 | EM31: 0.5792698 | EO31: 0.9550015 | EP31: 0.0563556 | ER31: 0.0100026 | ES31: 0.0563556 | EU31: 0.5792698 | EV31: 0.5792698 | EX31: 0.0262204 | EY31: 0.5792698 | FA31: 0.195 | FB31: 0.631 | FD31: 0.029 | FE31: 0.631 | FG31: 34 | FH31: 0.0262204 | FJ31: 0.8170575 | FK31: 0.0262204 | FM31: 0.0163776 | FN31: 0.0262204 | FP31: 0.9550015 | FQ31: 0.0045412 | FS31: 0.0100026 | FT31: 0.0045412 | FV31: 0.5792698 | FW31: 0.0262204 | FY31: 0.0262204 | FZ31: 0.0262204 | GB31: 0.195 | GC31: 0.017 | GE31: 0.029 | GF31: 0.017 | GH31: 15 | GI31: 0.5579294 | GK31: 0.946 | GL31: 0.195 | GN31: 0.005 | GO31: 0.195 | GQ31: 0.693481 | GR31: 0.5579294 | GT31: 0.124407 | GU31: 0.5579294 | GW31: 0.631 | GX31: 0.195 | GZ31: 0.017 | HA31: 0.195 | HC31: 0.0224719 | HD31: 0.0224719 | HF31: 0.0184193 | HG31: 0.0224719 | HI31: 15 | HJ31: 0.2749703 | HL31: 0.946 | HM31: 0.029 | HO31: 0.005 | HP31: 0.029 | HR31: 0.693481 | HS31: 0.2749703 | HU31: 0.124407 | HV31: 0.2749703 | HX31: 0.631 | HY31: 0.029 | IA31: 0.017 | IB31: 0.029
A32: 31 | B32: 31 | D32: 0.718914 | E32: 14 | G32: 0.0247991 | H32: 14 | J32: 0.8916794 | K32: 18 | M32: 0.0424398 | N32: 18 | P32: 0.1091171 | Q32: 18 | S32: 0.0131909 | T32: 18 | V32: 0.1192661 | W32: 15 | Y32: 0.0384378 | Z32: 15 | AB32: 14 | AC32: 0.718914 | AE32: 0.718914 | AF32: 0.718914 | AH32: 0.0247991 | AI32: 0.718914 | AK32: 0.8836301 | AL32: 0.9186145 | AN32: 0.0554466 | AO32: 0.9186145 | AQ32: 0.1091171 | AR32: 0.8996778 | AT32: 0.0131909 | AU32: 0.8996778 | AW32: 0.0354373 | AX32: 0.9623554 | AZ32: 0.0067749 | BA32: 0.9623554 | BC32: 14 | BD32: 0.0247991 | BF32: 0.718914 | BG32: 0.0247991 | BI32: 0.0247991 | BJ32: 0.0247991 | BL32: 0.8836301 | BM32: 0.0198246 | BO32: 0.0554466 | BP32: 0.0198246 | BR32: 0.1091171 | BS32: 0.0189943 | BU32: 0.0131909 | BV32: 0.0189943 | BX32: 0.0354373 | BY32: 0.004007 | CA32: 0.0067749 | CB32: 0.004007 | CD32: 18 | CE32: 0.8916794 | CG32: 0.9186145 | CH32: 0.8836301 | CJ32: 0.0198246 | CK32: 0.8836301 | CM32: 0.5 | CN32: 0.5 | CP32: 0.137755102 | CQ32: 0.5 | CS32: 0.0612782 | CT32: 0.8218329 | CV32: 0.0169675 | CW32: 0.8218329 | CY32: 0.1192661 | CZ32: 0.8836301 | DB32: 0.0384378 | DC32: 0.8836301 | DE32: 18 | DF32: 0.0424398 | DH32: 0.9186145 | DI32: 0.0554466 | DK32: 0.0198246 | DL32: 0.0554466 | DN32: 0.5 | DO32: 0.137755102 | DQ32: 0.137755102 | DR32: 0.137755102 | DT32: 0.0612782 | DU32: 0.0436833 | DW32: 0.0169675 | DX32: 0.0436833 | DZ32: 0.1192661 | EA32: 0.0554466 | EC32: 0.0384378 | ED32: 0.0554466 | EF32: 18 | EG32: 0.1091171 | EI32: 0.8996778 | EJ32: 0.1091171 | EL32: 0.0189943 | EM32: 0.1091171 | EO32: 0.8218329 | EP32: 0.0612782 | ER32: 0.0436833 | ES32: 0.0612782 | EU32: 0.1091171 | EV32: 0.1091171 | EX32: 0.0131909 | EY32: 0.1091171 | FA32: 0.0354373 | FB32: 0.0563556 | FD32: 0.0067749 | FE32: 0.0563556 | FG32: 18 | FH32: 0.0131909 | FJ32: 0.8996778 | FK32: 0.0131909 | FM32: 0.0189943 | FN32: 0.0131909 | FP32: 0.8218329 | FQ32: 0.0169675 | FS32: 0.0436833 | FT32: 0.0169675 | FV32: 0.1091171 | FW32: 0.0131909 | FY32: 0.0131909 | FZ32: 0.0131909 | GB32: 0.0354373 | GC32: 0.0045412 | GE32: 0.0067749 | GF32: 0.0045412 | GH32: 15 | GI32: 0.1192661 | GK32: 0.9623554 | GL32: 0.0354373 | GN32: 0.004007 | GO32: 0.0354373 | GQ32: 0.8836301 | GR32: 0.1192661 | GT32: 0.0554466 | GU32: 0.1192661 | GW32: 0.0563556 | GX32: 0.0354373 | GZ32: 0.0045412 | HA32: 0.0354373 | HC32: 0.5579294 | HD32: 0.5579294 | HF32: 0.2749703 | HG32: 0.5579294 | HI32: 15 | HJ32: 0.0384378 | HL32: 0.9623554 | HM32: 0.0067749 | HO32: 0.004007 | HP32: 0.0067749 | HR32: 0.8836301 | HS32: 0.0384378 | HU32: 0.0554466 | HV32: 0.0384378 | HX32: 0.0563556 | HY32: 0.0067749 | IA32: 0.0045412 | IB32: 0.0067749
A33: 14 | B33: 14 | D33: 0.8170575 | E33: 34 | G33: 0.0163776 | H33: 34 | J33: 0.693481 | K33: 15 | M33: 0.124407 | N33: 15 | P33: 0.0188442 | Q33: 40 | S33: 0.00573 | T33: 40 | V33: 0.195 | W33: 22 | Y33: 0.029 | Z33: 22 | AB33: 34 | AC33: 0.8170575 | AE33: 0.8170575 | AF33: 0.8170575 | AH33: 0.0163776 | AI33: 0.8170575 | AK33: 0.925 | AL33: 0.946 | AN33: 0.014 | AO33: 0.946 | AQ33: 0.0188442 | AR33: 0.9040585 | AT33: 0.00573 | AU33: 0.9040585 | AW33: 0.0727259 | AX33: 0.8589292 | AZ33: 0.0234718 | BA33: 0.8589292 | BC33: 34 | BD33: 0.0163776 | BF33: 0.8170575 | BG33: 0.0163776 | BI33: 0.0163776 | BJ33: 0.0163776 | BL33: 0.925 | BM33: 0.005 | BO33: 0.014 | BP33: 0.005 | BR33: 0.0188442 | BS33: 0.0250435 | BU33: 0.00573 | BV33: 0.0250435 | BX33: 0.0727259 | BY33: 0.0323057 | CA33: 0.0234718 | CB33: 0.0323057 | CD33: 15 | CE33: 0.693481 | CG33: 0.946 | CH33: 0.925 | CJ33: 0.005 | CK33: 0.925 | CM33: 0.8916794 | CN33: 0.8916794 | CP33: 0.0424398 | CQ33: 0.8916794 | CS33: 0.340989 | CT33: 0.6985854 | CV33: 0.0402096 | CW33: 0.6985854 | CY33: 0.195 | CZ33: 0.925 | DB33: 0.029 | DC33: 0.925 | DE33: 15 | DF33: 0.124407 | DH33: 0.946 | DI33: 0.014 | DK33: 0.005 | DL33: 0.014 | DN33: 0.8916794 | DO33: 0.0424398 | DQ33: 0.0424398 | DR33: 0.0424398 | DT33: 0.340989 | DU33: 0.0747185 | DW33: 0.0402096 | DX33: 0.0747185 | DZ33: 0.195 | EA33: 0.014 | EC33: 0.029 | ED33: 0.014 | EF33: 40 | EG33: 0.0188442 | EI33: 0.9040585 | EJ33: 0.0188442 | EL33: 0.0250435 | EM33: 0.0188442 | EO33: 0.6985854 | EP33: 0.340989 | ER33: 0.0747185 | ES33: 0.340989 | EU33: 0.0188442 | EV33: 0.0188442 | EX33: 0.00573 | EY33: 0.0188442 | FA33: 0.0727259 | FB33: 0.0612782 | FD33: 0.0234718 | FE33: 0.0612782 | FG33: 40 | FH33: 0.00573 | FJ33: 0.9040585 | FK33: 0.00573 | FM33: 0.0250435 | FN33: 0.00573 | FP33: 0.6985854 | FQ33: 0.0402096 | FS33: 0.0747185 | FT33: 0.0402096 | FV33: 0.0188442 | FW33: 0.00573 | FY33: 0.00573 | FZ33: 0.00573 | GB33: 0.0727259 | GC33: 0.0169675 | GE33: 0.0234718 | GF33: 0.0169675 | GH33: 22 | GI33: 0.195 | GK33: 0.8589292 | GL33: 0.0727259 | GN33: 0.0323057 | GO33: 0.0727259 | GQ33: 0.925 | GR33: 0.195 | GT33: 0.014 | GU33: 0.195 | GW33: 0.0612782 | GX33: 0.0727259 | GZ33: 0.0169675 | HA33: 0.0727259 | HC33: 0.1192661 | HD33: 0.1192661 | HF33: 0.0384378 | HG33: 0.1192661 | HI33: 22 | HJ33: 0.029 | HL33: 0.8589292 | HM33: 0.0234718 | HO33: 0.0323057 | HP33: 0.0234718 | HR33: 0.925 | HS33: 0.029 | HU33: 0.014 | HV33: 0.029 | HX33: 0.0612782 | HY33: 0.0234718 | IA33: 0.0169675 | IB33: 0.0234718
A34: 18 | B34: 18 | D34: 0.75 | E34: 4 | G34: 0.1071428571 | H34: 4 | J34: 0.8836301 | K34: 15 | M34: 0.0554466 | N34: 15 | P34: 0.0206429 | Q34: 38 | S34: 0.0115615 | T34: 38 | V34: 0.0354373 | W34: 115 | Y34: 0.0067749 | Z34: 115 | AB34: 4 | AC34: 0.75 | AE34: 0.75 | AF34: 0.75 | AH34: 0.1071428571 | AI34: 0.75 | AK34: 0.9550015 | AL34: 0.9623554 | AN34: 0.0100026 | AO34: 0.9623554 | AQ34: 0.0206429 | AR34: 0.9105053 | AT34: 0.0115615 | AU34: 0.9105053 | AW34: 0.2292667 | AX34: 0.6665726 | AZ34: 0.0613419 | BA34: 0.6665726 | BC34: 4 | BD34: 0.1071428571 | BF34: 0.75 | BG34: 0.1071428571 | BI34: 0.1071428571 | BJ34: 0.1071428571 | BL34: 0.9550015 | BM34: 0.004007 | BO34: 0.0100026 | BP34: 0.004007 | BR34: 0.0206429 | BS34: 0.0519452 | BU34: 0.0115615 | BV34: 0.0519452 | BX34: 0.2292667 | BY34: 0.0359522 | CA34: 0.0613419 | CB34: 0.0359522 | CD34: 15 | CE34: 0.8836301 | CG34: 0.9623554 | CH34: 0.9550015 | CJ34: 0.004007 | CK34: 0.9550015 | CM34: 0.693481 | CN34: 0.693481 | CP34: 0.124407 | CQ34: 0.693481 | CS34: 0.1728979 | CT34: 0.8697488 | CV34: 0.011784719 | CW34: 0.8697488 | CY34: 0.0354373 | CZ34: 0.9550015 | DB34: 0.0067749 | DC34: 0.9550015 | DE34: 15 | DF34: 0.0554466 | DH34: 0.9623554 | DI34: 0.0100026 | DK34: 0.004007 | DL34: 0.0100026 | DN34: 0.693481 | DO34: 0.124407 | DQ34: 0.124407 | DR34: 0.124407 | DT34: 0.1728979 | DU34: 0.008227448 | DW34: 0.011784719 | DX34: 0.008227448 | DZ34: 0.0354373 | EA34: 0.0100026 | EC34: 0.0067749 | ED34: 0.0100026 | EF34: 38 | EG34: 0.0206429 | EI34: 0.9105053 | EJ34: 0.0206429 | EL34: 0.0519452 | EM34: 0.0206429 | EO34: 0.8697488 | EP34: 0.1728979 | ER34: 0.008227448 | ES34: 0.1728979 | EU34: 0.0206429 | EV34: 0.0206429 | EX34: 0.0115615 | EY34: 0.0206429 | FA34: 0.2292667 | FB34: 0.340989 | FD34: 0.0613419 | FE34: 0.340989 | FG34: 38 | FH34: 0.0115615 | FJ34: 0.9105053 | FK34: 0.0115615 | FM34: 0.0519452 | FN34: 0.0115615 | FP34: 0.8697488 | FQ34: 0.011784719 | FS34: 0.008227448 | FT34: 0.011784719 | FV34: 0.0206429 | FW34: 0.0115615 | FY34: 0.0115615 | FZ34: 0.0115615 | GB34: 0.2292667 | GC34: 0.0402096 | GE34: 0.0613419 | GF34: 0.0402096 | GH34: 115 | GI34: 0.0354373 | GK34: 0.6665726 | GL34: 0.2292667 | GN34: 0.0359522 | GO34: 0.2292667 | GQ34: 0.9550015 | GR34: 0.0354373 | GT34: 0.0100026 | GU34: 0.0354373 | GW34: 0.340989 | GX34: 0.2292667 | GZ34: 0.0402096 | HA34: 0.2292667 | HC34: 0.195 | HD34: 0.195 | HF34: 0.029 | HG34: 0.195 | HI34: 115 | HJ34: 0.0067749 | HL34: 0.6665726 | HM34: 0.0613419 | HO34: 0.0359522 | HP34: 0.0613419 | HR34: 0.9550015 | HS34: 0.0067749 | HU34: 0.0100026 | HV34: 0.0067749 | HX34: 0.340989 | HY34: 0.0613419 | IA34: 0.0402096 | IB34: 0.0613419
A35: 34 | B35: 34 | D35: 0.8996778 | E35: 18 | G35: 0.0189943 | H35: 18 | J35: 0.925 | K35: 22 | M35: 0.014 | N35: 22 | P35: 0.4910974 | Q35: 15 | S35: 0.0465504 | T35: 15 | V35: 0.0727259 | W35: 37 | Y35: 0.0234718 | Z35: 37 | AB35: 18 | AC35: 0.8996778 | AE35: 0.8996778 | AF35: 0.8996778 | AH35: 0.0189943 | AI35: 0.8996778 | AK35: 0.8218329 | AL35: 0.8589292 | AN35: 0.0436833 | AO35: 0.8589292 | AQ35: 0.4910974 | AR35: 0.9274206 | AT35: 0.0465504 | AU35: 0.9274206 | AW35: 0.1485899 | AX35: 0.8715357 | AZ35: 0.009561046 | BA35: 0.8715357 | BC35: 18 | BD35: 0.0189943 | BF35: 0.8996778 | BG35: 0.0189943 | BI35: 0.0189943 | BJ35: 0.0189943 | BL35: 0.8218329 | BM35: 0.0323057 | BO35: 0.0436833 | BP35: 0.0323057 | BR35: 0.4910974 | BS35: 0.0140702 | BU35: 0.0465504 | BV35: 0.0140702 | BX35: 0.1485899 | BY35: 0.009187148 | CA35: 0.009561046 | CB35: 0.009187148 | CD35: 22 | CE35: 0.925 | CG35: 0.8589292 | CH35: 0.8218329 | CJ35: 0.0323057 | CK35: 0.8218329 | CM35: 0.8836301 | CN35: 0.8836301 | CP35: 0.0554466 | CQ35: 0.8836301 | CS35: 0.3793371 | CT35: 0.9956355 | CV35: 0.0470918 | CW35: 0.9956355 | CY35: 0.0727259 | CZ35: 0.8218329 | DB35: 0.0234718 | DC35: 0.8218329 | DE35: 22 | DF35: 0.014 | DH35: 0.8589292 | DI35: 0.0436833 | DK35: 0.0323057 | DL35: 0.0436833 | DN35: 0.8836301 | DO35: 0.0554466 | DQ35: 0.0554466 | DR35: 0.0554466 | DT35: 0.3793371 | DU35: 0.0185716 | DW35: 0.0470918 | DX35: 0.0185716 | DZ35: 0.0727259 | EA35: 0.0436833 | EC35: 0.0234718 | ED35: 0.0436833 | EF35: 15 | EG35: 0.4910974 | EI35: 0.9274206 | EJ35: 0.4910974 | EL35: 0.0140702 | EM35: 0.4910974 | EO35: 0.9956355 | EP35: 0.3793371 | ER35: 0.0185716 | ES35: 0.3793371 | EU35: 0.4910974 | EV35: 0.4910974 | EX35: 0.0465504 | EY35: 0.4910974 | FA35: 0.1485899 | FB35: 0.1728979 | FD35: 0.009561046 | FE35: 0.1728979 | FG35: 15 | FH35: 0.0465504 | FJ35: 0.9274206 | FK35: 0.0465504 | FM35: 0.0140702 | FN35: 0.0465504 | FP35: 0.9956355 | FQ35: 0.0470918 | FS35: 0.0185716 | FT35: 0.0470918 | FV35: 0.4910974 | FW35: 0.0465504 | FY35: 0.0465504 | FZ35: 0.0465504 | GB35: 0.1485899 | GC35: 0.011784719 | GE35: 0.009561046 | GF35: 0.011784719 | GH35: 37 | GI35: 0.0727259 | GK35: 0.8715357 | GL35: 0.1485899 | GN35: 0.009187148 | GO35: 0.1485899 | GQ35: 0.8218329 | GR35: 0.0727259 | GT35: 0.0436833 | GU35: 0.0727259 | GW35: 0.1728979 | GX35: 0.1485899 | GZ35: 0.011784719 | HA35: 0.1485899 | HC35: 0.0354373 | HD35: 0.0354373 | HF35: 0.0067749 | HG35: 0.0354373 | HI35: 37 | HJ35: 0.0234718 | HL35: 0.8715357 | HM35: 0.009561046 | HO35: 0.009187148 | HP35: 0.009561046 | HR35: 0.8218329 | HS35: 0.0234718 | HU35: 0.0436833 | HV35: 0.0234718 | HX35: 0.1728979 | HY35: 0.009561046 | IA35: 0.011784719 | IB35: 0.009561046
A36: 4 | B36: 4 | D36: 0.9040585 | E36: 40 | G36: 0.0250435 | H36: 40 | J36: 0.9550015 | K36: 115 | M36: 0.0100026 | N36: 115 | P36: 0.3502628 | Q36: 15 | S36: 0.0385193 | T36: 15 | V36: 0.2292667 | W36: 7 | Y36: 0.0613419 | Z36: 7 | AB36: 40 | AC36: 0.9040585 | AE36: 0.9040585 | AF36: 0.9040585 | AH36: 0.0250435 | AI36: 0.9040585 | AK36: 0.6985854 | AL36: 0.6665726 | AN36: 0.0747185 | AO36: 0.6665726 | AQ36: 0.3502628 | AR36: 0.9186145 | AT36: 0.0385193 | AU36: 0.9186145 | AW36: 0.0417621 | AX36: 0.9745851 | AZ36: 0.025412 | BA36: 0.9745851 | BC36: 40 | BD36: 0.0250435 | BF36: 0.9040585 | BG36: 0.0250435 | BI36: 0.0250435 | BJ36: 0.0250435 | BL36: 0.6985854 | BM36: 0.0359522 | BO36: 0.0747185 | BP36: 0.0359522 | BR36: 0.3502628 | BS36: 0.0198246 | BU36: 0.0385193 | BV36: 0.0198246 | BX36: 0.0417621 | BY36: 0.0084278 | CA36: 0.025412 | CB36: 0.0084278 | CD36: 115 | CE36: 0.9550015 | CG36: 0.6665726 | CH36: 0.6985854 | CJ36: 0.0359522 | CK36: 0.6985854 | CM36: 0.925 | CN36: 0.925 | CP36: 0.014 | CQ36: 0.925 | CS36: 0.2026627 | CT36: 0.9210553 | CV36: 0.0280332 | CW36: 0.9210553 | CY36: 0.2292667 | CZ36: 0.6985854 | DB36: 0.0613419 | DC36: 0.6985854 | DE36: 115 | DF36: 0.0100026 | DH36: 0.6665726 | DI36: 0.0747185 | DK36: 0.0359522 | DL36: 0.0747185 | DN36: 0.925 | DO36: 0.014 | DQ36: 0.014 | DR36: 0.014 | DT36: 0.2026627 | DU36: 0.0210585 | DW36: 0.0280332 | DX36: 0.0210585 | DZ36: 0.2292667 | EA36: 0.0747185 | EC36: 0.0613419 | ED36: 0.0747185 | EF36: 15 | EG36: 0.3502628 | EI36: 0.9186145 | EJ36: 0.3502628 | EL36: 0.0198246 | EM36: 0.3502628 | EO36: 0.9210553 | EP36: 0.2026627 | ER36: 0.0210585 | ES36: 0.2026627 | EU36: 0.3502628 | EV36: 0.3502628 | EX36: 0.0385193 | EY36: 0.3502628 | FA36: 0.0417621 | FB36: 0.3793371 | FD36: 0.025412 | FE36: 0.3793371 | FG36: 15 | FH36: 0.0385193 | FJ36: 0.9186145 | FK36: 0.0385193 | FM36: 0.0198246 | FN36: 0.0385193 | FP36: 0.9210553 | FQ36: 0.0280332 | FS36: 0.0210585 | FT36: 0.0280332 | FV36: 0.3502628 | FW36: 0.0385193 | FY36: 0.0385193 | FZ36: 0.0385193 | GB36: 0.0417621 | GC36: 0.0470918 | GE36: 0.025412 | GF36: 0.0470918 | GH36: 7 | GI36: 0.2292667 | GK36: 0.9745851 | GL36: 0.0417621 | GN36: 0.0084278 | GO36: 0.0417621 | GQ36: 0.6985854 | GR36: 0.2292667 | GT36: 0.0747185 | GU36: 0.2292667 | GW36: 0.3793371 | GX36: 0.0417621 | GZ36: 0.0470918 | HA36: 0.0417621 | HC36: 0.0727259 | HD36: 0.0727259 | HF36: 0.0234718 | HG36: 0.0727259 | HI36: 7 | HJ36: 0.0613419 | HL36: 0.9745851 | HM36: 0.025412 | HO36: 0.0084278 | HP36: 0.025412 | HR36: 0.6985854 | HS36: 0.0613419 | HU36: 0.0747185 | HV36: 0.0613419 | HX36: 0.3793371 | HY36: 0.025412 | IA36: 0.0470918 | IB36: 0.025412
A37: 18 | B37: 18 | D37: 0.9105053 | E37: 38 | G37: 0.0519452 | H37: 38 | J37: 0.8218329 | K37: 37 | M37: 0.0436833 | N37: 37 | P37: 0.631 | Q37: 22 | S37: 0.017 | T37: 22 | V37: 0.1485899 | W37: 41 | Y37: 0.009561046 | Z37: 41 | AB37: 38 | AC37: 0.9105053 | AE37: 0.9105053 | AF37: 0.9105053 | AH37: 0.0519452 | AI37: 0.9105053 | AK37: 0.8697488 | AL37: 0.8715357 | AN37: 0.008227448 | AO37: 0.8715357 | AQ37: 0.631 | AR37: 0.946 | AT37: 0.017 | AU37: 0.946 | AW37: 0.1849244 | AX37: 0.8515294 | AZ37: 0.0309736 | BA37: 0.8515294 | BC37: 38 | BD37: 0.0519452 | BF37: 0.9105053 | BG37: 0.0519452 | BI37: 0.0519452 | BJ37: 0.0519452 | BL37: 0.8697488 | BM37: 0.009187148 | BO37: 0.008227448 | BP37: 0.009187148 | BR37: 0.631 | BS37: 0.005 | BU37: 0.017 | BV37: 0.005 | BX37: 0.1849244 | BY37: 0.0224081 | CA37: 0.0309736 | CB37: 0.0224081 | CD37: 37 | CE37: 0.8218329 | CG37: 0.8715357 | CH37: 0.8697488 | CJ37: 0.009187148 | CK37: 0.8697488 | CM37: 0.9550015 | CN37: 0.9550015 | CP37: 0.0100026 | CQ37: 0.9550015 | CS37: 0.1199 | CT37: 0.9963 | CV37: 0.0278 | CW37: 0.9963 | CY37: 0.1485899 | CZ37: 0.8697488 | DB37: 0.009561046 | DC37: 0.8697488 | DE37: 37 | DF37: 0.0436833 | DH37: 0.8715357 | DI37: 0.008227448 | DK37: 0.009187148 | DL37: 0.008227448 | DN37: 0.9550015 | DO37: 0.0100026 | DQ37: 0.0100026 | DR37: 0.0100026 | DT37: 0.1199 | DU37: 0.0037 | DW37: 0.0278 | DX37: 0.0037 | DZ37: 0.1485899 | EA37: 0.008227448 | EC37: 0.009561046 | ED37: 0.008227448 | EF37: 22 | EG37: 0.631 | EI37: 0.946 | EJ37: 0.631 | EL37: 0.005 | EM37: 0.631 | EO37: 0.9963 | EP37: 0.1199 | ER37: 0.0037 | ES37: 0.1199 | EU37: 0.631 | EV37: 0.631 | EX37: 0.017 | EY37: 0.631 | FA37: 0.1849244 | FB37: 0.2026627 | FD37: 0.0309736 | FE37: 0.2026627 | FG37: 22 | FH37: 0.017 | FJ37: 0.946 | FK37: 0.017 | FM37: 0.005 | FN37: 0.017 | FP37: 0.9963 | FQ37: 0.0278 | FS37: 0.0037 | FT37: 0.0278 | FV37: 0.631 | FW37: 0.017 | FY37: 0.017 | FZ37: 0.017 | GB37: 0.1849244 | GC37: 0.0280332 | GE37: 0.0309736 | GF37: 0.0280332 | GH37: 41 | GI37: 0.1485899 | GK37: 0.8515294 | GL37: 0.1849244 | GN37: 0.0224081 | GO37: 0.1849244 | GQ37: 0.8697488 | GR37: 0.1485899 | GT37: 0.008227448 | GU37: 0.1485899 | GW37: 0.2026627 | GX37: 0.1849244 | GZ37: 0.0280332 | HA37: 0.1849244 | HC37: 0.2292667 | HD37: 0.2292667 | HF37: 0.0613419 | HG37: 0.2292667 | HI37: 41 | HJ37: 0.009561046 | HL37: 0.8515294 | HM37: 0.0309736 | HO37: 0.0224081 | HP37: 0.0309736 | HR37: 0.8697488 | HS37: 0.009561046 | HU37: 0.008227448 | HV37: 0.009561046 | HX37: 0.2026627 | HY37: 0.0309736 | IA37: 0.0280332 | IB37: 0.0309736
A38: 40 | B38: 40 | D38: 0.9274206 | E38: 15 | G38: 0.0140702 | H38: 15 | J38: 0.6985854 | K38: 7 | M38: 0.0747185 | N38: 7 | P38: 0.0563556 | Q38: 115 | S38: 0.0045412 | T38: 115 | V38: 0.0417621 | W38: 65 | Y38: 0.025412 | Z38: 65 | AB38: 15 | AC38: 0.9274206 | AE38: 0.9274206 | AF38: 0.9274206 | AH38: 0.0140702 | AI38: 0.9274206 | AK38: 0.9956355 | AL38: 0.9745851 | AN38: 0.0185716 | AO38: 0.9745851 | AQ38: 0.0563556 | AR38: 0.9623554 | AT38: 0.0045412 | AU38: 0.9623554 | AW38: 0.0285 | AX38: 0.9676 | AZ38: 0.0087 | BA38: 0.9676 | BC38: 15 | BD38: 0.0140702 | BF38: 0.9274206 | BG38: 0.0140702 | BI38: 0.0140702 | BJ38: 0.0140702 | BL38: 0.9956355 | BM38: 0.0084278 | BO38: 0.0185716 | BP38: 0.0084278 | BR38: 0.0563556 | BS38: 0.004007 | BU38: 0.0045412 | BV38: 0.004007 | BX38: 0.0285 | BY38: 0.0107 | CA38: 0.0087 | CB38: 0.0107 | CD38: 7 | CE38: 0.6985854 | CG38: 0.9745851 | CH38: 0.9956355 | CJ38: 0.0084278 | CK38: 0.9956355 | CM38: 0.8218329 | CN38: 0.8218329 | CP38: 0.0436833 | CQ38: 0.8218329 | CS38: 0.558 | CT38: 0.888 | CV38: 0.024 | CW38: 0.888 | CY38: 0.0417621 | CZ38: 0.9956355 | DB38: 0.025412 | DC38: 0.9956355 | DE38: 7 | DF38: 0.0747185 | DH38: 0.9745851 | DI38: 0.0185716 | DK38: 0.0084278 | DL38: 0.0185716 | DN38: 0.8218329 | DO38: 0.0436833 | DQ38: 0.0436833 | DR38: 0.0436833 | DT38: 0.558 | DU38: 0.038 | DW38: 0.024 | DX38: 0.038 | DZ38: 0.0417621 | EA38: 0.0185716 | EC38: 0.025412 | ED38: 0.0185716 | EF38: 115 | EG38: 0.0563556 | EI38: 0.9623554 | EJ38: 0.0563556 | EL38: 0.004007 | EM38: 0.0563556 | EO38: 0.888 | EP38: 0.558 | ER38: 0.038 | ES38: 0.558 | EU38: 0.0563556 | EV38: 0.0563556 | EX38: 0.0045412 | EY38: 0.0563556 | FA38: 0.0285 | FB38: 0.1199 | FD38: 0.0087 | FE38: 0.1199 | FG38: 115 | FH38: 0.0045412 | FJ38: 0.9623554 | FK38: 0.0045412 | FM38: 0.004007 | FN38: 0.0045412 | FP38: 0.888 | FQ38: 0.024 | FS38: 0.038 | FT38: 0.024 | FV38: 0.0563556 | FW38: 0.0045412 | FY38: 0.0045412 | FZ38: 0.0045412 | GB38: 0.0285 | GC38: 0.0278 | GE38: 0.0087 | GF38: 0.0278 | GH38: 65 | GI38: 0.0417621 | GK38: 0.9676 | GL38: 0.0285 | GN38: 0.0107 | GO38: 0.0285 | GQ38: 0.9956355 | GR38: 0.0417621 | GT38: 0.0185716 | GU38: 0.0417621 | GW38: 0.1199 | GX38: 0.0285 | GZ38: 0.0278 | HA38: 0.0285 | HC38: 0.1485899 | HD38: 0.1485899 | HF38: 0.009561046 | HG38: 0.1485899 | HI38: 65 | HJ38: 0.025412 | HL38: 0.9676 | HM38: 0.0087 | HO38: 0.0107 | HP38: 0.0087 | HR38: 0.9956355 | HS38: 0.025412 | HU38: 0.0185716 | HV38: 0.025412 | HX38: 0.1199 | HY38: 0.0087 | IA38: 0.0278 | IB38: 0.0087
A39: 38 | B39: 38 | D39: 0.9186145 | E39: 15 | G39: 0.0198246 | H39: 15 | J39: 0.8697488 | K39: 41 | M39: 0.008227448 | N39: 41 | P39: 0.14 | Q39: 20 | S39: 0.022 | T39: 20 | V39: 0.1849244 | W39: 47 | Y39: 0.0309736 | Z39: 47 | AB39: 15 | AC39: 0.9186145 | AE39: 0.9186145 | AF39: 0.9186145 | AH39: 0.0198246 | AI39: 0.9186145 | AK39: 0.9210553 | AL39: 0.8515294 | AN39: 0.0210585 | AO39: 0.8515294 | AQ39: 0.14 | AR39: 0.89 | AT39: 0.022 | AU39: 0.89 | AW39: 0.062 | AX39: 0.926 | AZ39: 0.015 | BA39: 0.926 | BC39: 15 | BD39: 0.0198246 | BF39: 0.9186145 | BG39: 0.0198246 | BI39: 0.0198246 | BJ39: 0.0198246 | BL39: 0.9210553 | BM39: 0.0224081 | BO39: 0.0210585 | BP39: 0.0224081 | BR39: 0.14 | BS39: 0.007 | BU39: 0.022 | BV39: 0.007 | BX39: 0.062 | BY39: 0.019 | CA39: 0.015 | CB39: 0.019 | CD39: 41 | CE39: 0.8697488 | CG39: 0.8515294 | CH39: 0.9210553 | CJ39: 0.0224081 | CK39: 0.9210553 | CM39: 0.6985854 | CN39: 0.6985854 | CP39: 0.0747185 | CQ39: 0.6985854 | CS39: 0.253 | CT39: 0.831 | CV39: 0.03418367347 | CW39: 0.831 | CY39: 0.1849244 | CZ39: 0.9210553 | DB39: 0.0309736 | DC39: 0.9210553 | DE39: 41 | DF39: 0.008227448 | DH39: 0.8515294 | DI39: 0.0210585 | DK39: 0.0224081 | DL39: 0.0210585 | DN39: 0.6985854 | DO39: 0.0747185 | DQ39: 0.0747185 | DR39: 0.0747185 | DT39: 0.253 | DU39: 0.0443877551 | DW39: 0.03418367347 | DX39: 0.0443877551 | DZ39: 0.1849244 | EA39: 0.0210585 | EC39: 0.0309736 | ED39: 0.0210585 | EF39: 20 | EG39: 0.14 | EI39: 0.89 | EJ39: 0.14 | EL39: 0.007 | EM39: 0.14 | EO39: 0.831 | EP39: 0.253 | ER39: 0.0443877551 | ES39: 0.253 | EU39: 0.14 | EV39: 0.14 | EX39: 0.022 | EY39: 0.14 | FA39: 0.062 | FB39: 0.558 | FD39: 0.015 | FE39: 0.558 | FG39: 20 | FH39: 0.022 | FJ39: 0.89 | FK39: 0.022 | FM39: 0.007 | FN39: 0.022 | FP39: 0.831 | FQ39: 0.03418367347 | FS39: 0.0443877551 | FT39: 0.03418367347 | FV39: 0.14 | FW39: 0.022 | FY39: 0.022 | FZ39: 0.022 | GB39: 0.062 | GC39: 0.024 | GE39: 0.015 | GF39: 0.024 | GH39: 47 | GI39: 0.1849244 | GK39: 0.926 | GL39: 0.062 | GN39: 0.019 | GO39: 0.062 | GQ39: 0.9210553 | GR39: 0.1849244 | GT39: 0.0210585 | GU39: 0.1849244 | GW39: 0.558 | GX39: 0.062 | GZ39: 0.024 | HA39: 0.062 | HC39: 0.0417621 | HD39: 0.0417621 | HF39: 0.025412 | HG39: 0.0417621 | HI39: 47 | HJ39: 0.0309736 | HL39: 0.926 | HM39: 0.015 | HO39: 0.019 | HP39: 0.015 | HR39: 0.9210553 | HS39: 0.0309736 | HU39: 0.0210585 | HV39: 0.0309736 | HX39: 0.558 | HY39: 0.015 | IA39: 0.024 | IB39: 0.015
A40: 15 | B40: 15 | D40: 0.946 | E40: 22 | G40: 0.005 | H40: 22 | J40: 0.9956355 | K40: 65 | M40: 0.0185716 | N40: 65 | P40: 0.16 | Q40: 29 | S40: 0.058 | T40: 29 | V40: 0.0285 | W40: 109 | Y40: 0.0087 | Z40: 109 | AB40: 22 | AC40: 0.946 | AE40: 0.946 | AF40: 0.946 | AH40: 0.005 | AI40: 0.946 | AK40: 0.9963 | AL40: 0.9676 | AN40: 0.0037 | AO40: 0.9676 | AQ40: 0.16 | AR40: 0.86 | AT40: 0.058 | AU40: 0.86 | AW40: 0.112 | AX40: 0.759 | AZ40: 0.04234693878 | BA40: 0.759 | BC40: 22 | BD40: 0.005 | BF40: 0.946 | BG40: 0.005 | BI40: 0.005 | BJ40: 0.005 | BL40: 0.9963 | BM40: 0.0107 | BO40: 0.0037 | BP40: 0.0107 | BR40: 0.16 | BS40: 0.014 | BU40: 0.058 | BV40: 0.014 | BX40: 0.112 | BY40: 0.01428571429 | CA40: 0.04234693878 | CB40: 0.01428571429 | CD40: 65 | CE40: 0.9956355 | CG40: 0.9676 | CH40: 0.9963 | CJ40: 0.0107 | CK40: 0.9963 | CM40: 0.8697488 | CN40: 0.8697488 | CP40: 0.008227448 | CQ40: 0.8697488 | CS40: 0.2932753 | CT40: 0.7632793 | CV40: 0.0240128 | CW40: 0.7632793 | CY40: 0.0285 | CZ40: 0.9963 | DB40: 0.0087 | DC40: 0.9963 | DE40: 65 | DF40: 0.0185716 | DH40: 0.9676 | DI40: 0.0037 | DK40: 0.0107 | DL40: 0.0037 | DN40: 0.8697488 | DO40: 0.008227448 | DQ40: 0.008227448 | DR40: 0.008227448 | DT40: 0.2932753 | DU40: 0.026198 | DW40: 0.0240128 | DX40: 0.026198 | DZ40: 0.0285 | EA40: 0.0037 | EC40: 0.0087 | ED40: 0.0037 | EF40: 29 | EG40: 0.16 | EI40: 0.86 | EJ40: 0.16 | EL40: 0.014 | EM40: 0.16 | EO40: 0.7632793 | EP40: 0.2932753 | ER40: 0.026198 | ES40: 0.2932753 | EU40: 0.16 | EV40: 0.16 | EX40: 0.058 | EY40: 0.16 | FA40: 0.112 | FB40: 0.253 | FD40: 0.04234693878 | FE40: 0.253 | FG40: 29 | FH40: 0.058 | FJ40: 0.86 | FK40: 0.058 | FM40: 0.014 | FN40: 0.058 | FP40: 0.7632793 | FQ40: 0.0240128 | FS40: 0.026198 | FT40: 0.0240128 | FV40: 0.16 | FW40: 0.058 | FY40: 0.058 | FZ40: 0.058 | GB40: 0.112 | GC40: 0.03418367347 | GE40: 0.04234693878 | GF40: 0.03418367347 | GH40: 109 | GI40: 0.0285 | GK40: 0.759 | GL40: 0.112 | GN40: 0.01428571429 | GO40: 0.112 | GQ40: 0.9963 | GR40: 0.0285 | GT40: 0.0037 | GU40: 0.0285 | GW40: 0.253 | GX40: 0.112 | GZ40: 0.03418367347 | HA40: 0.112 | HC40: 0.1849244 | HD40: 0.1849244 | HF40: 0.0309736 | HG40: 0.1849244 | HI40: 109 | HJ40: 0.0087 | HL40: 0.759 | HM40: 0.04234693878 | HO40: 0.01428571429 | HP40: 0.04234693878 | HR40: 0.9963 | HS40: 0.0087 | HU40: 0.0037 | HV40: 0.0087 | HX40: 0.253 | HY40: 0.04234693878 | IA40: 0.03418367347 | IB40: 0.04234693878
A41: 15 | B41: 15 | D41: 0.9623554 | E41: 115 | G41: 0.004007 | H41: 115 | J41: 0.9210553 | K41: 47 | M41: 0.0210585 | N41: 47 | P41: 0.44 | Q41: 17 | S41: 0.05867346939 | T41: 17 | V41: 0.062 | W41: 44 | Y41: 0.015 | Z41: 44 | AB41: 115 | AC41: 0.9623554 | AE41: 0.9623554 | AF41: 0.9623554 | AH41: 0.004007 | AI41: 0.9623554 | AK41: 0.888 | AL41: 0.926 | AN41: 0.038 | AO41: 0.926 | AQ41: 0.44 | AR41: 0.88 | AT41: 0.05867346939 | AU41: 0.88 | AW41: 0.2944184 | AX41: 0.7781578 | AZ41: 0.0456357 | BA41: 0.7781578 | BC41: 115 | BD41: 0.004007 | BF41: 0.9623554 | BG41: 0.004007 | BI41: 0.004007 | BJ41: 0.004007 | BL41: 0.888 | BM41: 0.019 | BO41: 0.038 | BP41: 0.019 | BR41: 0.44 | BS41: 0.01020408163 | BU41: 0.05867346939 | BV41: 0.01020408163 | BX41: 0.2944184 | BY41: 0.0130804 | CA41: 0.0456357 | CB41: 0.0130804 | CD41: 47 | CE41: 0.9210553 | CG41: 0.926 | CH41: 0.888 | CJ41: 0.019 | CK41: 0.888 | CM41: 0.9956355 | CN41: 0.9956355 | CP41: 0.0185716 | CQ41: 0.9956355 | CY41: 0.062 | CZ41: 0.888 | DB41: 0.015 | DC41: 0.888 | DE41: 47 | DF41: 0.0210585 | DH41: 0.926 | DI41: 0.038 | DK41: 0.019 | DL41: 0.038 | DN41: 0.9956355 | DO41: 0.0185716 | DQ41: 0.0185716 | DR41: 0.0185716 | DZ41: 0.062 | EA41: 0.038 | EC41: 0.015 | ED41: 0.038 | EF41: 17 | EG41: 0.44 | EI41: 0.88 | EJ41: 0.44 | EL41: 0.01020408163 | EM41: 0.44 | EU41: 0.44 | EV41: 0.44 | EX41: 0.05867346939 | EY41: 0.44 | FA41: 0.2944184 | FB41: 0.2932753 | FD41: 0.0456357 | FE41: 0.2932753 | FG41: 17 | FH41: 0.05867346939 | FJ41: 0.88 | FK41: 0.05867346939 | FM41: 0.01020408163 | FN41: 0.05867346939 | FV41: 0.44 | FW41: 0.05867346939 | FY41: 0.05867346939 | FZ41: 0.05867346939 | GB41: 0.2944184 | GC41: 0.0240128 | GE41: 0.0456357 | GF41: 0.0240128 | GH41: 44 | GI41: 0.062 | GK41: 0.7781578 | GL41: 0.2944184 | GN41: 0.0130804 | GO41: 0.2944184 | GQ41: 0.888 | GR41: 0.062 | GT41: 0.038 | GU41: 0.062 | GW41: 0.2932753 | GX41: 0.2944184 | GZ41: 0.0240128 | HA41: 0.2944184 | HC41: 0.0285 | HD41: 0.0285 | HF41: 0.0087 | HG41: 0.0285 | HI41: 44 | HJ41: 0.015 | HL41: 0.7781578 | HM41: 0.0456357 | HO41: 0.0130804 | HP41: 0.0456357 | HR41: 0.888 | HS41: 0.015 | HU41: 0.038 | HV41: 0.015 | HX41: 0.2932753 | HY41: 0.0456357 | IA41: 0.0240128 | IB41: 0.0456357
A42: 22 | B42: 22 | D42: 0.89 | E42: 20 | G42: 0.007 | H42: 20 | J42: 0.9963 | K42: 109 | M42: 0.0037 | N42: 109 | P42: 0.48 | Q42: 16 | S42: 0.05612244898 | T42: 16 | V42: 0.112 | W42: 11 | Y42: 0.04234693878 | Z42: 11 | AB42: 20 | AC42: 0.89 | AE42: 0.89 | AF42: 0.89 | AH42: 0.007 | AI42: 0.89 | AK42: 0.831 | AL42: 0.759 | AN42: 0.0443877551 | AO42: 0.759 | AQ42: 0.48 | AR42: 0.88 | AT42: 0.05612244898 | AU42: 0.88 | BC42: 20 | BD42: 0.007 | BF42: 0.89 | BG42: 0.007 | BI42: 0.007 | BJ42: 0.007 | BL42: 0.831 | BM42: 0.01428571429 | BO42: 0.0443877551 | BP42: 0.01428571429 | BR42: 0.48 | BS42: 0.01020408163 | BU42: 0.05612244898 | BV42: 0.01020408163 | CD42: 109 | CE42: 0.9963 | CG42: 0.759 | CH42: 0.831 | CJ42: 0.01428571429 | CK42: 0.831 | CM42: 0.9210553 | CN42: 0.9210553 | CP42: 0.0210585 | CQ42: 0.9210553 | CY42: 0.112 | CZ42: 0.831 | DB42: 0.04234693878 | DC42: 0.831 | DE42: 109 | DF42: 0.0037 | DH42: 0.759 | DI42: 0.0443877551 | DK42: 0.01428571429 | DL42: 0.0443877551 | DN42: 0.9210553 | DO42: 0.0210585 | DQ42: 0.0210585 | DR42: 0.0210585 | DZ42: 0.112 | EA42: 0.0443877551 | EC42: 0.04234693878 | ED42: 0.0443877551 | EF42: 16 | EG42: 0.48 | EI42: 0.88 | EJ42: 0.48 | EL42: 0.01020408163 | EM42: 0.48 | EU42: 0.48 | EV42: 0.48 | EX42: 0.05612244898 | EY42: 0.48 | FG42: 16 | FH42: 0.05612244898 | FJ42: 0.88 | FK42: 0.05612244898 | FM42: 0.01020408163 | FN42: 0.05612244898 | FV42: 0.48 | FW42: 0.05612244898 | FY42: 0.05612244898 | FZ42: 0.05612244898 | GH42: 11 | GI42: 0.112 | GQ42: 0.831 | GR42: 0.112 | GT42: 0.0443877551 | GU42: 0.112 | HC42: 0.062 | HD42: 0.062 | HF42: 0.015 | HG42: 0.062 | HI42: 11 | HJ42: 0.04234693878 | HR42: 0.831 | HS42: 0.04234693878 | HU42: 0.0443877551 | HV42: 0.04234693878
A43: 115 | B43: 115 | D43: 0.86 | E43: 29 | G43: 0.014 | H43: 29 | J43: 0.888 | K43: 44 | M43: 0.038 | N43: 44 | P43: 0.21 | Q43: 22 | S43: 0.04336734694 | T43: 22 | V43: 0.2944184 | W43: 25 | Y43: 0.0456357 | Z43: 25 | AB43: 29 | AC43: 0.86 | AE43: 0.86 | AF43: 0.86 | AH43: 0.014 | AI43: 0.86 | AK43: 0.83 | AL43: 0.88 | AN43: 0.02 | AO43: 0.88 | AQ43: 0.21 | AR43: 0.8 | AT43: 0.04336734694 | AU43: 0.8 | BC43: 29 | BD43: 0.014 | BF43: 0.86 | BG43: 0.014 | BI43: 0.014 | BJ43: 0.014 | BL43: 0.83 | BM43: 0.01 | BO43: 0.02 | BP43: 0.01 | BR43: 0.21 | BS43: 0.01275510204 | BU43: 0.04336734694 | BV43: 0.01275510204 | CD43: 44 | CE43: 0.888 | CG43: 0.88 | CH43: 0.83 | CJ43: 0.01 | CK43: 0.83 | CM43: 0.9963 | CN43: 0.9963 | CP43: 0.0037 | CQ43: 0.9963 | CY43: 0.2944184 | CZ43: 0.7632793 | DB43: 0.0456357 | DC43: 0.7632793 | DE43: 44 | DF43: 0.038 | DH43: 0.88 | DI43: 0.02 | DK43: 0.01 | DL43: 0.02 | DN43: 0.9963 | DO43: 0.0037 | DQ43: 0.0037 | DR43: 0.0037 | DZ43: 0.2944184 | EA43: 0.026198 | EC43: 0.0456357 | ED43: 0.026198 | EF43: 22 | EG43: 0.21 | EI43: 0.8 | EJ43: 0.21 | EL43: 0.01275510204 | EM43: 0.21 | EU43: 0.21 | EV43: 0.21 | EX43: 0.04336734694 | EY43: 0.21 | FG43: 22 | FH43: 0.04336734694 | FJ43: 0.8 | FK43: 0.04336734694 | FM43: 0.01275510204 | FN43: 0.04336734694 | FV43: 0.21 | FW43: 0.04336734694 | FY43: 0.04336734694 | FZ43: 0.04336734694 | GH43: 25 | GI43: 0.2944184 | GQ43: 0.7632793 | GR43: 0.2944184 | GT43: 0.026198 | GU43: 0.2944184 | HC43: 0.112 | HD43: 0.112 | HF43: 0.04234693878 | HG43: 0.112 | HI43: 25 | HJ43: 0.0456357 | HR43: 0.7632793 | HS43: 0.0456357 | HU43: 0.026198 | HV43: 0.0456357
A44: 20 | B44: 20 | D44: 0.88 | E44: 17 | G44: 0.01020408163 | H44: 17 | J44: 0.831 | K44: 11 | M44: 0.0443877551 | N44: 11 | P44: 0.24 | Q44: 23 | S44: 0.03571428571 | T44: 23 | AB44: 17 | AC44: 0.88 | AE44: 0.88 | AF44: 0.88 | AH44: 0.01020408163 | AI44: 0.88 | AK44: 0.84 | AL44: 0.91 | AN44: 0.02 | AO44: 0.91 | AQ44: 0.24 | AR44: 0.8 | AT44: 0.03571428571 | AU44: 0.8 | BC44: 17 | BD44: 0.01020408163 | BF44: 0.88 | BG44: 0.01020408163 | BI44: 0.01020408163 | BJ44: 0.01020408163 | BL44: 0.84 | BM44: 0.01 | BO44: 0.02 | BP44: 0.01 | BR44: 0.24 | BS44: 0.01275510204 | BU44: 0.03571428571 | BV44: 0.01275510204 | CD44: 11 | CE44: 0.831 | CG44: 0.91 | CH44: 0.84 | CJ44: 0.01 | CK44: 0.84 | CM44: 0.888 | CN44: 0.888 | CP44: 0.038 | CQ44: 0.888 | DE44: 11 | DF44: 0.0443877551 | DH44: 0.91 | DI44: 0.02 | DK44: 0.01 | DL44: 0.02 | DN44: 0.888 | DO44: 0.038 | DQ44: 0.038 | DR44: 0.038 | EF44: 23 | EG44: 0.24 | EI44: 0.8 | EJ44: 0.24 | EL44: 0.01275510204 | EM44: 0.24 | EU44: 0.24 | EV44: 0.24 | EX44: 0.03571428571 | EY44: 0.24 | FG44: 23 | FH44: 0.03571428571 | FJ44: 0.8 | FK44: 0.03571428571 | FM44: 0.01275510204 | FN44: 0.03571428571 | FV44: 0.24 | FW44: 0.03571428571 | FY44: 0.03571428571 | FZ44: 0.03571428571 | HC44: 0.2944184 | HD44: 0.2944184 | HF44: 0.0456357 | HG44: 0.2944184
A45: 29 | B45: 29 | D45: 0.88 | E45: 16 | G45: 0.01020408163 | H45: 16 | J45: 0.83 | K45: 61 | M45: 0.02 | N45: 61 | P45: 0.26 | Q45: 21 | S45: 0.03571428571 | T45: 21 | AB45: 16 | AC45: 0.88 | AE45: 0.88 | AF45: 0.88 | AH45: 0.01020408163 | AI45: 0.88 | AK45: 0.94 | AL45: 0.94 | AN45: 0.01 | AO45: 0.94 | AQ45: 0.26 | AR45: 0.79 | AT45: 0.03571428571 | AU45: 0.79 | BC45: 16 | BD45: 0.01020408163 | BF45: 0.88 | BG45: 0.01020408163 | BI45: 0.01020408163 | BJ45: 0.01020408163 | BL45: 0.94 | BM45: 0.01 | BO45: 0.01 | BP45: 0.01 | BR45: 0.26 | BS45: 0.01275510204 | BU45: 0.03571428571 | BV45: 0.01275510204 | CD45: 61 | CE45: 0.83 | CG45: 0.94 | CH45: 0.94 | CJ45: 0.01 | CK45: 0.94 | CM45: 0.831 | CN45: 0.831 | CP45: 0.0443877551 | CQ45: 0.831 | DE45: 61 | DF45: 0.02 | DH45: 0.94 | DI45: 0.01 | DK45: 0.01 | DL45: 0.01 | DN45: 0.831 | DO45: 0.0443877551 | DQ45: 0.0443877551 | DR45: 0.0443877551 | EF45: 21 | EG45: 0.26 | EI45: 0.79 | EJ45: 0.26 | EL45: 0.01275510204 | EM45: 0.26 | EU45: 0.26 | EV45: 0.26 | EX45: 0.03571428571 | EY45: 0.26 | FG45: 21 | FH45: 0.03571428571 | FJ45: 0.79 | FK45: 0.03571428571 | FM45: 0.01275510204 | FN45: 0.03571428571 | FV45: 0.26 | FW45: 0.03571428571 | FY45: 0.03571428571 | FZ45: 0.03571428571
A46: 17 | B46: 17 | D46: 0.8 | E46: 22 | G46: 0.01275510204 | H46: 22 | J46: 0.84 | K46: 61 | M46: 0.02 | N46: 61 | P46: 0.0612782 | Q46: 37 | S46: 0.0169675 | T46: 37 | AB46: 22 | AC46: 0.8 | AE46: 0.8 | AF46: 0.8 | AH46: 0.01275510204 | AI46: 0.8 | AK46: 0.94 | AL46: 0.94 | AN46: 0.01 | AO46: 0.94 | AQ46: 0.0612782 | AR46: 0.8589292 | AT46: 0.0169675 | AU46: 0.8589292 | BC46: 22 | BD46: 0.01275510204 | BF46: 0.8 | BG46: 0.01275510204 | BI46: 0.01275510204 | BJ46: 0.01275510204 | BL46: 0.94 | BM46: 0.01 | BO46: 0.01 | BP46: 0.01 | BR46: 0.0612782 | BS46: 0.0323057 | BU46: 0.0169675 | BV46: 0.0323057 | CD46: 61 | CE46: 0.84 | CG46: 0.94 | CH46: 0.94 | CJ46: 0.01 | CK46: 0.94 | CM46: 0.83 | CN46: 0.83 | CP46: 0.02 | CQ46: 0.83 | DE46: 61 | DF46: 0.02 | DH46: 0.94 | DI46: 0.01 | DK46: 0.01 | DL46: 0.01 | DN46: 0.83 | DO46: 0.02 | DQ46: 0.02 | DR46: 0.02 | EF46: 37 | EG46: 0.0612782 | EI46: 0.8589292 | EJ46: 0.0612782 | EL46: 0.0323057 | EM46: 0.0612782 | EU46: 0.0612782 | EV46: 0.0612782 | EX46: 0.0169675 | EY46: 0.0612782 | FG46: 37 | FH46: 0.0169675 | FJ46: 0.8589292 | FK46: 0.0169675 | FM46: 0.0323057 | FN46: 0.0169675 | FV46: 0.0612782 | FW46: 0.0169675 | FY46: 0.0169675 | FZ46: 0.0169675
A47: 16 | B47: 16 | D47: 0.8 | E47: 23 | G47: 0.01275510204 | H47: 23 | J47: 0.94 | K47: 61 | M47: 0.01 | N47: 61 | P47: 0.340989 | Q47: 7 | S47: 0.0402096 | T47: 7 | AB47: 23 | AC47: 0.8 | AE47: 0.8 | AF47: 0.8 | AH47: 0.01275510204 | AI47: 0.8 | AK47: 0.7632793 | AL47: 0.7781578 | AN47: 0.026198 | AO47: 0.7781578 | AQ47: 0.340989 | AR47: 0.6665726 | AT47: 0.0402096 | AU47: 0.6665726 | BC47: 23 | BD47: 0.01275510204 | BF47: 0.8 | BG47: 0.01275510204 | BI47: 0.01275510204 | BJ47: 0.01275510204 | BL47: 0.7632793 | BM47: 0.0130804 | BO47: 0.026198 | BP47: 0.0130804 | BR47: 0.340989 | BS47: 0.0359522 | BU47: 0.0402096 | BV47: 0.0359522 | CD47: 61 | CE47: 0.94 | CG47: 0.7781578 | CH47: 0.7632793 | CJ47: 0.0130804 | CK47: 0.7632793 | CM47: 0.84 | CN47: 0.84 | CP47: 0.02 | CQ47: 0.84 | DE47: 61 | DF47: 0.01 | DH47: 0.7781578 | DI47: 0.026198 | DK47: 0.0130804 | DL47: 0.026198 | DN47: 0.84 | DO47: 0.02 | DQ47: 0.02 | DR47: 0.02 | EF47: 7 | EG47: 0.340989 | EI47: 0.6665726 | EJ47: 0.340989 | EL47: 0.0359522 | EM47: 0.340989 | EU47: 0.340989 | EV47: 0.340989 | EX47: 0.0402096 | EY47: 0.340989 | FG47: 7 | FH47: 0.0402096 | FJ47: 0.6665726 | FK47: 0.0402096 | FM47: 0.0359522 | FN47: 0.0402096 | FV47: 0.340989 | FW47: 0.0402096 | FY47: 0.0402096 | FZ47: 0.0402096
A48: 22 | B48: 22 | D48: 0.79 | E48: 21 | G48: 0.01275510204 | H48: 21 | J48: 0.94 | K48: 61 | M48: 0.01 | N48: 61 | P48: 0.1728979 | Q48: 41 | S48: 0.011784719 | T48: 41 | AB48: 21 | AC48: 0.79 | AE48: 0.79 | AF48: 0.79 | AH48: 0.01275510204 | AI48: 0.79 | AQ48: 0.1728979 | AR48: 0.8715357 | AT48: 0.011784719 | AU48: 0.8715357 | BC48: 21 | BD48: 0.01275510204 | BF48: 0.79 | BG48: 0.01275510204 | BI48: 0.01275510204 | BJ48: 0.01275510204 | BR48: 0.1728979 | BS48: 0.009187148 | BU48: 0.011784719 | BV48: 0.009187148 | CD48: 61 | CE48: 0.94 | CM48: 0.94 | CN48: 0.94 | CP48: 0.01 | CQ48: 0.94 | DE48: 61 | DF48: 0.01 | DN48: 0.94 | DO48: 0.01 | DQ48: 0.01 | DR48: 0.01 | EF48: 41 | EG48: 0.1728979 | EI48: 0.8715357 | EJ48: 0.1728979 | EL48: 0.009187148 | EM48: 0.1728979 | EU48: 0.1728979 | EV48: 0.1728979 | EX48: 0.011784719 | EY48: 0.1728979 | FG48: 41 | FH48: 0.011784719 | FJ48: 0.8715357 | FK48: 0.011784719 | FM48: 0.009187148 | FN48: 0.011784719 | FV48: 0.1728979 | FW48: 0.011784719 | FY48: 0.011784719 | FZ48: 0.011784719
A49: 23 | B49: 23 | D49: 0.8589292 | E49: 37 | G49: 0.0323057 | H49: 37 | J49: 0.7632793 | K49: 25 | M49: 0.026198 | N49: 25 | P49: 0.241 | Q49: 47 | S49: 0.048 | T49: 47 | AB49: 37 | AC49: 0.8589292 | AE49: 0.8589292 | AF49: 0.8589292 | AH49: 0.0323057 | AI49: 0.8589292 | AQ49: 0.241 | AR49: 0.962 | AT49: 0.048 | AU49: 0.962 | BC49: 37 | BD49: 0.0323057 | BF49: 0.8589292 | BG49: 0.0323057 | BI49: 0.0323057 | BJ49: 0.0323057 | BR49: 0.241 | BS49: 0.018 | BU49: 0.048 | BV49: 0.018 | CD49: 25 | CE49: 0.7632793 | CM49: 0.94 | CN49: 0.94 | CP49: 0.01 | CQ49: 0.94 | DE49: 25 | DF49: 0.026198 | DN49: 0.94 | DO49: 0.01 | DQ49: 0.01 | DR49: 0.01 | EF49: 47 | EG49: 0.241 | EI49: 0.962 | EJ49: 0.241 | EL49: 0.018 | EM49: 0.241 | EU49: 0.241 | EV49: 0.241 | EX49: 0.048 | EY49: 0.241 | FG49: 47 | FH49: 0.048 | FJ49: 0.962 | FK49: 0.048 | FM49: 0.018 | FN49: 0.048 | FV49: 0.241 | FW49: 0.048 | FY49: 0.048 | FZ49: 0.048
A50: 21 | B50: 21 | D50: 0.6665726 | E50: 7 | G50: 0.0359522 | H50: 7 | P50: 0.3793371 | Q50: 65 | S50: 0.0470918 | T50: 65 | AB50: 7 | AC50: 0.6665726 | AE50: 0.6665726 | AF50: 0.6665726 | AH50: 0.0359522 | AI50: 0.6665726 | AQ50: 0.3793371 | AR50: 0.9745851 | AT50: 0.0470918 | AU50: 0.9745851 | BC50: 7 | BD50: 0.0359522 | BF50: 0.6665726 | BG50: 0.0359522 | BI50: 0.0359522 | BJ50: 0.0359522 | BR50: 0.3793371 | BS50: 0.0084278 | BU50: 0.0470918 | BV50: 0.0084278 | CM50: 0.7632793 | CN50: 0.7632793 | CP50: 0.026198 | CQ50: 0.7632793 | DN50: 0.7632793 | DO50: 0.026198 | DQ50: 0.026198 | DR50: 0.026198 | EF50: 65 | EG50: 0.3793371 | EI50: 0.9745851 | EJ50: 0.3793371 | EL50: 0.0084278 | EM50: 0.3793371 | EU50: 0.3793371 | EV50: 0.3793371 | EX50: 0.0470918 | EY50: 0.3793371 | FG50: 65 | FH50: 0.0470918 | FJ50: 0.9745851 | FK50: 0.0470918 | FM50: 0.0084278 | FN50: 0.0470918 | FV50: 0.3793371 | FW50: 0.0470918 | FY50: 0.0470918 | FZ50: 0.0470918
A51: 37 | B51: 37 | D51: 0.8715357 | E51: 41 | G51: 0.009187148 | H51: 41 | P51: 0.2026627 | Q51: 47 | S51: 0.0280332 | T51: 47 | AB51: 41 | AC51: 0.8715357 | AE51: 0.8715357 | AF51: 0.8715357 | AH51: 0.009187148 | AI51: 0.8715357 | AQ51: 0.2026627 | AR51: 0.8515294 | AT51: 0.0280332 | AU51: 0.8515294 | BC51: 41 | BD51: 0.009187148 | BF51: 0.8715357 | BG51: 0.009187148 | BI51: 0.009187148 | BJ51: 0.009187148 | BR51: 0.2026627 | BS51: 0.0224081 | BU51: 0.0280332 | BV51: 0.0224081 | EF51: 47 | EG51: 0.2026627 | EI51: 0.8515294 | EJ51: 0.2026627 | EL51: 0.0224081 | EM51: 0.2026627 | EU51: 0.2026627 | EV51: 0.2026627 | EX51: 0.0280332 | EY51: 0.2026627 | FG51: 47 | FH51: 0.0280332 | FJ51: 0.8515294 | FK51: 0.0280332 | FM51: 0.0224081 | FN51: 0.0280332 | FV51: 0.2026627 | FW51: 0.0280332 | FY51: 0.0280332 | FZ51: 0.0280332
A52: 7 | B52: 7 | D52: 0.933 | E52: 35 | G52: 0.0306122449 | H52: 35 | P52: 0.9252 | Q52: 10 | S52: 0.272 | T52: 10 | AB52: 35 | AC52: 0.933 | AE52: 0.933 | AF52: 0.933 | AH52: 0.0306122449 | AI52: 0.933 | AQ52: 0.9252 | AR52: 0.8989 | AT52: 0.272 | AU52: 0.8989 | BC52: 35 | BD52: 0.0306122449 | BF52: 0.933 | BG52: 0.0306122449 | BI52: 0.0306122449 | BJ52: 0.0306122449 | BR52: 0.9252 | BS52: 0.0272 | BU52: 0.272 | BV52: 0.0272 | EF52: 10 | EG52: 0.9252 | EI52: 0.8989 | EJ52: 0.9252 | EL52: 0.0272 | EM52: 0.9252 | EU52: 0.9252 | EV52: 0.9252 | EX52: 0.272 | EY52: 0.9252 | FG52: 10 | FH52: 0.272 | FJ52: 0.8989 | FK52: 0.272 | FM52: 0.0272 | FN52: 0.272 | FV52: 0.9252 | FW52: 0.272 | FY52: 0.272 | FZ52: 0.272
A53: 41 | B53: 41 | D53: 0.847 | E53: 35 | G53: 0.03571428571 | H53: 35 | P53: 0.1199 | Q53: 109 | S53: 0.0278 | T53: 109 | AB53: 35 | AC53: 0.847 | AE53: 0.847 | AF53: 0.847 | AH53: 0.03571428571 | AI53: 0.847 | AQ53: 0.1199 | AR53: 0.9676 | AT53: 0.0278 | AU53: 0.9676 | BC53: 35 | BD53: 0.03571428571 | BF53: 0.847 | BG53: 0.03571428571 | BI53: 0.03571428571 | BJ53: 0.03571428571 | BR53: 0.1199 | BS53: 0.0107 | BU53: 0.0278 | BV53: 0.0107 | EF53: 109 | EG53: 0.1199 | EI53: 0.9676 | EJ53: 0.1199 | EL53: 0.0107 | EM53: 0.1199 | EU53: 0.1199 | EV53: 0.1199 | EX53: 0.0278 | EY53: 0.1199 | FG53: 109 | FH53: 0.0278 | FJ53: 0.9676 | FK53: 0.0278 | FM53: 0.0107 | FN53: 0.0278 | FV53: 0.1199 | FW53: 0.0278 | FY53: 0.0278 | FZ53: 0.0278
A54: 35 | B54: 35 | D54: 0.962 | E54: 47 | G54: 0.018 | H54: 47 | P54: 0.5121 | Q54: 109 | S54: 0.0313 | T54: 109 | AB54: 47 | AC54: 0.962 | AE54: 0.962 | AF54: 0.962 | AH54: 0.018 | AI54: 0.962 | AQ54: 0.5121 | AR54: 0.9586 | AT54: 0.0313 | AU54: 0.9586 | BC54: 47 | BD54: 0.018 | BF54: 0.962 | BG54: 0.018 | BI54: 0.018 | BJ54: 0.018 | BR54: 0.5121 | BS54: 0.007 | BU54: 0.0313 | BV54: 0.007 | EF54: 109 | EG54: 0.5121 | EI54: 0.9586 | EJ54: 0.5121 | EL54: 0.007 | EM54: 0.5121 | EU54: 0.5121 | EV54: 0.5121 | EX54: 0.0313 | EY54: 0.5121 | FG54: 109 | FH54: 0.0313 | FJ54: 0.9586 | FK54: 0.0313 | FM54: 0.007 | FN54: 0.0313 | FV54: 0.5121 | FW54: 0.0313 | FY54: 0.0313 | FZ54: 0.0313
A55: 35 | B55: 35 | D55: 0.9745851 | E55: 65 | G55: 0.0084278 | H55: 65 | P55: 0.558 | Q55: 44 | S55: 0.024 | T55: 44 | AB55: 65 | AC55: 0.9745851 | AE55: 0.9745851 | AF55: 0.9745851 | AH55: 0.0084278 | AI55: 0.9745851 | AQ55: 0.558 | AR55: 0.926 | AT55: 0.024 | AU55: 0.926 | BC55: 65 | BD55: 0.0084278 | BF55: 0.9745851 | BG55: 0.0084278 | BI55: 0.0084278 | BJ55: 0.0084278 | BR55: 0.558 | BS55: 0.019 | BU55: 0.024 | BV55: 0.019 | EF55: 44 | EG55: 0.558 | EI55: 0.926 | EJ55: 0.558 | EL55: 0.019 | EM55: 0.558 | EU55: 0.558 | EV55: 0.558 | EX55: 0.024 | EY55: 0.558 | FG55: 44 | FH55: 0.024 | FJ55: 0.926 | FK55: 0.024 | FM55: 0.019 | FN55: 0.024 | FV55: 0.558 | FW55: 0.024 | FY55: 0.024 | FZ55: 0.024
A56: 47 | B56: 47 | D56: 0.8515294 | E56: 47 | G56: 0.0224081 | H56: 47 | P56: 0.408 | Q56: 44 | S56: 0.024 | T56: 44 | AB56: 47 | AC56: 0.8515294 | AE56: 0.8515294 | AF56: 0.8515294 | AH56: 0.0224081 | AI56: 0.8515294 | AQ56: 0.408 | AR56: 0.825 | AT56: 0.024 | AU56: 0.825 | BC56: 47 | BD56: 0.0224081 | BF56: 0.8515294 | BG56: 0.0224081 | BI56: 0.0224081 | BJ56: 0.0224081 | BR56: 0.408 | BS56: 0.022 | BU56: 0.024 | BV56: 0.022 | EF56: 44 | EG56: 0.408 | EI56: 0.825 | EJ56: 0.408 | EL56: 0.022 | EM56: 0.408 | EU56: 0.408 | EV56: 0.408 | EX56: 0.024 | EY56: 0.408 | FG56: 44 | FH56: 0.024 | FJ56: 0.825 | FK56: 0.024 | FM56: 0.022 | FN56: 0.024 | FV56: 0.408 | FW56: 0.024 | FY56: 0.024 | FZ56: 0.024
A57: 65 | B57: 65 | D57: 0.8989 | E57: 10 | G57: 0.0272 | H57: 10 | P57: 0.197 | Q57: 44 | S57: 0.046 | T57: 44 | AB57: 10 | AC57: 0.8989 | AE57: 0.8989 | AF57: 0.8989 | AH57: 0.0272 | AI57: 0.8989 | AQ57: 0.197 | AR57: 0.917 | AT57: 0.046 | AU57: 0.917 | BC57: 10 | BD57: 0.0272 | BF57: 0.8989 | BG57: 0.0272 | BI57: 0.0272 | BJ57: 0.0272 | BR57: 0.197 | BS57: 0.029 | BU57: 0.046 | BV57: 0.029 | EF57: 44 | EG57: 0.197 | EI57: 0.917 | EJ57: 0.197 | EL57: 0.029 | EM57: 0.197 | EU57: 0.197 | EV57: 0.197 | EX57: 0.046 | EY57: 0.197 | FG57: 44 | FH57: 0.046 | FJ57: 0.917 | FK57: 0.046 | FM57: 0.029 | FN57: 0.046 | FV57: 0.197 | FW57: 0.046 | FY57: 0.046 | FZ57: 0.046
A58: 47 | B58: 47 | D58: 0.9676 | E58: 109 | G58: 0.0107 | H58: 109 | P58: 0.253 | Q58: 11 | S58: 0.03418367347 | T58: 11 | AB58: 109 | AC58: 0.9676 | AE58: 0.9676 | AF58: 0.9676 | AH58: 0.0107 | AI58: 0.9676 | AQ58: 0.253 | AR58: 0.759 | AT58: 0.03418367347 | AU58: 0.759 | BC58: 109 | BD58: 0.0107 | BF58: 0.9676 | BG58: 0.0107 | BI58: 0.0107 | BJ58: 0.0107 | BR58: 0.253 | BS58: 0.01428571429 | BU58: 0.03418367347 | BV58: 0.01428571429 | EF58: 11 | EG58: 0.253 | EI58: 0.759 | EJ58: 0.253 | EL58: 0.01428571429 | EM58: 0.253 | EU58: 0.253 | EV58: 0.253 | EX58: 0.03418367347 | EY58: 0.253 | FG58: 11 | FH58: 0.03418367347 | FJ58: 0.759 | FK58: 0.03418367347 | FM58: 0.01428571429 | FN58: 0.03418367347 | FV58: 0.253 | FW58: 0.03418367347 | FY58: 0.03418367347 | FZ58: 0.03418367347
A59: 10 | B59: 10 | D59: 0.9586 | E59: 109 | G59: 0.007 | H59: 109 | P59: 0.15 | Q59: 29 | S59: 0.033 | T59: 29 | AB59: 109 | AC59: 0.9586 | AE59: 0.9586 | AF59: 0.9586 | AH59: 0.007 | AI59: 0.9586 | AQ59: 0.15 | AR59: 0.87 | AT59: 0.033 | AU59: 0.87 | BC59: 109 | BD59: 0.007 | BF59: 0.9586 | BG59: 0.007 | BI59: 0.007 | BJ59: 0.007 | BR59: 0.15 | BS59: 0.013 | BU59: 0.033 | BV59: 0.013 | EF59: 29 | EG59: 0.15 | EI59: 0.87 | EJ59: 0.15 | EL59: 0.013 | EM59: 0.15 | EU59: 0.15 | EV59: 0.15 | EX59: 0.033 | EY59: 0.15 | FG59: 29 | FH59: 0.033 | FJ59: 0.87 | FK59: 0.033 | FM59: 0.013 | FN59: 0.033 | FV59: 0.15 | FW59: 0.033 | FY59: 0.033 | FZ59: 0.033
A60: 109 | B60: 109 | D60: 0.926 | E60: 44 | G60: 0.019 | H60: 44 | P60: 0.2932753 | Q60: 25 | S60: 0.0240128 | T60: 25 | AB60: 44 | AC60: 0.926 | AE60: 0.926 | AF60: 0.926 | AH60: 0.019 | AI60: 0.926 | AQ60: 0.2932753 | AR60: 0.7781578 | AT60: 0.0240128 | AU60: 0.7781578 | BC60: 44 | BD60: 0.019 | BF60: 0.926 | BG60: 0.019 | BI60: 0.019 | BJ60: 0.019 | BR60: 0.2932753 | BS60: 0.0130804 | BU60: 0.0240128 | BV60: 0.0130804 | EF60: 25 | EG60: 0.2932753 | EI60: 0.7781578 | EJ60: 0.2932753 | EL60: 0.0130804 | EM60: 0.2932753 | EU60: 0.2932753 | EV60: 0.2932753 | EX60: 0.0240128 | EY60: 0.2932753 | FG60: 25 | FH60: 0.0240128 | FJ60: 0.7781578 | FK60: 0.0240128 | FM60: 0.0130804 | FN60: 0.0240128 | FV60: 0.2932753 | FW60: 0.0240128 | FY60: 0.0240128 | FZ60: 0.0240128
A61: 109 | B61: 109 | D61: 0.825 | E61: 44 | G61: 0.022 | H61: 44 | AB61: 44 | AC61: 0.825 | AE61: 0.825 | AF61: 0.825 | AH61: 0.022 | AI61: 0.825 | BC61: 44 | BD61: 0.022 | BF61: 0.825 | BG61: 0.022 | BI61: 0.022 | BJ61: 0.022
A62: 44 | B62: 44 | D62: 0.917 | E62: 44 | G62: 0.029 | H62: 44 | AB62: 44 | AC62: 0.917 | AE62: 0.917 | AF62: 0.917 | AH62: 0.029 | AI62: 0.917 | BC62: 44 | BD62: 0.029 | BF62: 0.917 | BG62: 0.029 | BI62: 0.029 | BJ62: 0.029
A63: 44 | B63: 44 | D63: 0.759 | E63: 11 | G63: 0.01428571429 | H63: 11 | AB63: 11 | AC63: 0.759 | AE63: 0.759 | AF63: 0.759 | AH63: 0.01428571429 | AI63: 0.759 | BC63: 11 | BD63: 0.01428571429 | BF63: 0.759 | BG63: 0.01428571429 | BI63: 0.01428571429 | BJ63: 0.01428571429
A64: 44 | B64: 44 | D64: 0.87 | E64: 29 | G64: 0.013 | H64: 29 | AB64: 29 | AC64: 0.87 | AE64: 0.87 | AF64: 0.87 | AH64: 0.013 | AI64: 0.87 | BC64: 29 | BD64: 0.013 | BF64: 0.87 | BG64: 0.013 | BI64: 0.013 | BJ64: 0.013
A65: 11 | B65: 11 | D65: 0.88 | E65: 61 | G65: 0.01 | H65: 61 | AB65: 61 | AC65: 0.88 | AE65: 0.88 | AF65: 0.88 | AH65: 0.01 | AI65: 0.88 | BC65: 61 | BD65: 0.01 | BF65: 0.88 | BG65: 0.01 | BI65: 0.01 | BJ65: 0.01
A66: 29 | B66: 29 | D66: 0.91 | E66: 61 | G66: 0.01 | H66: 61 | AB66: 61 | AC66: 0.91 | AE66: 0.91 | AF66: 0.91 | AH66: 0.01 | AI66: 0.91 | BC66: 61 | BD66: 0.01 | BF66: 0.91 | BG66: 0.01 | BI66: 0.01 | BJ66: 0.01
A67: 61 | B67: 61 | D67: 0.94 | E67: 61 | G67: 0.01 | H67: 61 | AB67: 61 | AC67: 0.94 | AE67: 0.94 | AF67: 0.94 | AH67: 0.01 | AI67: 0.94 | BC67: 61 | BD67: 0.01 | BF67: 0.94 | BG67: 0.01 | BI67: 0.01 | BJ67: 0.01
A68: 61 | B68: 61 | D68: 0.94 | E68: 61 | G68: 0.01 | H68: 61 | AB68: 61 | AC68: 0.94 | AE68: 0.94 | AF68: 0.94 | AH68: 0.01 | AI68: 0.94 | BC68: 61 | BD68: 0.01 | BF68: 0.94 | BG68: 0.01 | BI68: 0.01 | BJ68: 0.01
A69: 61 | B69: 61 | D69: 0.7781578 | E69: 25 | G69: 0.0130804 | H69: 25 | AB69: 25 | AC69: 0.7781578 | AE69: 0.7781578 | AF69: 0.7781578 | AH69: 0.0130804 | AI69: 0.7781578 | BC69: 25 | BD69: 0.0130804 | BF69: 0.7781578 | BG69: 0.0130804 | BI69: 0.0130804 | BJ69: 0.0130804
A70: 61 | B70: 61
A71: 25 | B71: 25

Sheet XLSTAT_20210821_121504_1_HID_HI (hidden)
A1: 0.382406 | B1: 0.0265574 | D1: 0.0265574 | E1: 0.0265574
A2: 0.29 | B2: 0.02040816327 | D2: 0.02040816327 | E2: 0.02040816327
A3: 0.6156 | B3: 0.0177 | D3: 0.0177 | E3: 0.0177
A4: 0.2952863 | B4: 0.035919 | D4: 0.035919 | E4: 0.035919
A5: 0.3709886 | B5: 0.0238672 | D5: 0.0238672 | E5: 0.0238672
A6: 0.3174852 | B6: 0.095069 | D6: 0.095069 | E6: 0.095069
A7: 0.241935 | B7: 0.0197975 | D7: 0.0197975 | E7: 0.0197975
A8: 0.5326219 | B8: 0.0737557 | D8: 0.0737557 | E8: 0.0737557
A9: 0.2618267 | B9: 0.0419386 | D9: 0.0419386 | E9: 0.0419386
A10: 0.350828 | B10: 0.1081309 | D10: 0.1081309 | E10: 0.1081309
A11: 0.3705272 | B11: 0.0763578 | D11: 0.0763578 | E11: 0.0763578
A12: 0.455 | B12: 0.037 | D12: 0.037 | E12: 0.037
A13: 0.1718903 | B13: 0.0164899 | D13: 0.0164899 | E13: 0.0164899
A14: 0.1542501 | B14: 0.0138687 | D14: 0.0138687 | E14: 0.0138687
A15: 0.11 | B15: 0.09 | D15: 0.09 | E15: 0.09
A16: 0.0140263 | B16: 0.0068075 | D16: 0.0068075 | E16: 0.0068075
A17: 0.1090741 | B17: 0.0074116 | D17: 0.0074116 | E17: 0.0074116
A18: 0.1629675 | B18: 0.02341638 | D18: 0.02341638 | E18: 0.02341638
A19: 0.1847095 | B19: 0.04294444 | D19: 0.04294444 | E19: 0.04294444
A20: 0.255194 | B20: 0.0207407 | D20: 0.0207407 | E20: 0.0207407
A21: 0.2071974 | B21: 0.0157574 | D21: 0.0157574 | E21: 0.0157574
A22: 0.2603496 | B22: 0.0136047 | D22: 0.0136047 | E22: 0.0136047
A23: 0.2462971 | B23: 0.0150279 | D23: 0.0150279 | E23: 0.0150279
A24: 0.4403041 | B24: 0.0123552 | D24: 0.0123552 | E24: 0.0123552
A25: 0.173 | B25: 0.006 | D25: 0.006 | E25: 0.006
A26: 0.1449076 | B26: 0.018405 | D26: 0.018405 | E26: 0.018405
A27: 0.1919092 | B27: 0.0143314 | D27: 0.0143314 | E27: 0.0143314
A28: 0.1278979 | B28: 0.0146526 | D28: 0.0146526 | E28: 0.0146526
A29: 0.1306551 | B29: 0.0200121 | D29: 0.0200121 | E29: 0.0200121
A30: 0.0604751 | B30: 0.0159079 | D30: 0.0159079 | E30: 0.0159079
A31: 0.0224719 | B31: 0.0184193 | D31: 0.0184193 | E31: 0.0184193
A32: 0.5579294 | B32: 0.2749703 | D32: 0.2749703 | E32: 0.2749703
A33: 0.1192661 | B33: 0.0384378 | D33: 0.0384378 | E33: 0.0384378
A34: 0.195 | B34: 0.029 | D34: 0.029 | E34: 0.029
A35: 0.0354373 | B35: 0.0067749 | D35: 0.0067749 | E35: 0.0067749
A36: 0.0727259 | B36: 0.0234718 | D36: 0.0234718 | E36: 0.0234718
A37: 0.2292667 | B37: 0.0613419 | D37: 0.0613419 | E37: 0.0613419
A38: 0.1441669 | B38: 0.008455803 | D38: 0.008455803 | E38: 0.008455803
A39: 0.0417621 | B39: 0.025412 | D39: 0.025412 | E39: 0.025412
A40: 0.1849244 | B40: 0.0309736 | D40: 0.0309736 | E40: 0.0309736
A41: 0.0285 | B41: 0.0087 | D41: 0.0087 | E41: 0.0087
A42: 0.062 | B42: 0.015 | D42: 0.015 | E42: 0.015
A43: 0.112 | B43: 0.04234693878 | D43: 0.04234693878 | E43: 0.04234693878
A44: 0.2944184 | B44: 0.0456357 | D44: 0.0456357 | E44: 0.0456357

Sheet XLSTAT_20210821_121504_1_HID (hidden)
A1: 173 | B1: 173 | D1: 0.89 | E1: 173 | G1: 0.01785714286 | H1: 173 | J1: 0.9234709 | K1: 62 | M1: 0.0115008 | N1: 62 | P1: 0.56 | Q1: 173 | S1: 0.06887755102 | T1: 173 | V1: 0.382406 | W1: 62 | Y1: 0.0265574 | Z1: 62 | AB1: 173 | AC1: 0.89 | AE1: 0.89 | AF1: 0.89 | AH1: 0.01785714286 | AI1: 0.89 | AK1: 0.9234709 | AL1: 0.9469559 | AN1: 0.0115008 | AO1: 0.9469559 | AQ1: 0.56 | AR1: 0.89 | AT1: 0.06887755102 | AU1: 0.89 | AW1: 0.382406 | AX1: 0.9469559 | AZ1: 0.0265574 | BA1: 0.9469559 | BC1: 173 | BD1: 0.01785714286 | BF1: 0.89 | BG1: 0.01785714286 | BI1: 0.01785714286 | BJ1: 0.01785714286 | BL1: 0.9234709 | BM1: 0.006714 | BO1: 0.0115008 | BP1: 0.006714 | BR1: 0.56 | BS1: 0.01785714286 | BU1: 0.06887755102 | BV1: 0.01785714286 | BX1: 0.382406 | BY1: 0.006714 | CA1: 0.0265574 | CB1: 0.006714 | CD1: 62 | CE1: 0.9234709 | CG1: 0.9469559 | CH1: 0.9234709 | CJ1: 0.006714 | CK1: 0.9234709 | CM1: 0.9234709 | CN1: 0.9234709 | CP1: 0.0115008 | CQ1: 0.9234709 | CS1: 0.3467283 | CT1: 0.9234709 | CV1: 0.017393 | CW1: 0.9234709 | CY1: 0.382406 | CZ1: 0.9234709 | DB1: 0.0265574 | DC1: 0.9234709 | DE1: 62 | DF1: 0.0115008 | DH1: 0.9469559 | DI1: 0.0115008 | DK1: 0.006714 | DL1: 0.0115008 | DN1: 0.9234709 | DO1: 0.0115008 | DQ1: 0.0115008 | DR1: 0.0115008 | DT1: 0.3467283 | DU1: 0.0115008 | DW1: 0.017393 | DX1: 0.0115008 | DZ1: 0.382406 | EA1: 0.0115008 | EC1: 0.0265574 | ED1: 0.0115008 | EF1: 173 | EG1: 0.56 | EI1: 0.89 | EJ1: 0.56 | EL1: 0.01785714286 | EM1: 0.56 | EO1: 0.9234709 | EP1: 0.3467283 | ER1: 0.0115008 | ES1: 0.3467283 | EU1: 0.56 | EV1: 0.56 | EX1: 0.06887755102 | EY1: 0.56 | FA1: 0.382406 | FB1: 0.3467283 | FD1: 0.0265574 | FE1: 0.3467283 | FG1: 173 | FH1: 0.06887755102 | FJ1: 0.89 | FK1: 0.06887755102 | FM1: 0.01785714286 | FN1: 0.06887755102 | FP1: 0.9234709 | FQ1: 0.017393 | FS1: 0.0115008 | FT1: 0.017393 | FV1: 0.56 | FW1: 0.06887755102 | FY1: 0.06887755102 | FZ1: 0.06887755102 | GB1: 0.382406 | GC1: 0.017393 | GE1: 0.0265574 | GF1: 0.017393 | GH1: 62 | GI1: 0.382406 | GK1: 0.9469559 | GL1: 0.382406 | GN1: 0.006714 | GO1: 0.382406 | GQ1: 0.9234709 | GR1: 0.382406 | GT1: 0.0115008 | GU1: 0.382406 | GW1: 0.3467283 | GX1: 0.382406 | GZ1: 0.017393 | HA1: 0.382406 | HC1: 0.382406 | HD1: 0.382406 | HF1: 0.0265574 | HG1: 0.382406 | HI1: 62 | HJ1: 0.0265574 | HL1: 0.9469559 | HM1: 0.0265574 | HO1: 0.006714 | HP1: 0.0265574 | HR1: 0.9234709 | HS1: 0.0265574 | HU1: 0.0115008 | HV1: 0.0265574 | HX1: 0.3467283 | HY1: 0.0265574 | IA1: 0.017393 | IB1: 0.0265574
A2: 62 | B2: 62 | D2: 0.9469559 | E2: 62 | G2: 0.006714 | H2: 62 | J2: 0.84 | K2: 42 | M2: 0.01275510204 | N2: 42 | P2: 0.3467283 | Q2: 62 | S2: 0.017393 | T2: 62 | V2: 0.29 | W2: 42 | Y2: 0.02040816327 | Z2: 42 | AB2: 62 | AC2: 0.9469559 | AE2: 0.9469559 | AF2: 0.9469559 | AH2: 0.006714 | AI2: 0.9469559 | AK2: 0.84 | AL2: 0.84 | AN2: 0.01275510204 | AO2: 0.84 | AQ2: 0.3467283 | AR2: 0.9469559 | AT2: 0.017393 | AU2: 0.9469559 | AW2: 0.29 | AX2: 0.84 | AZ2: 0.02040816327 | BA2: 0.84 | BC2: 62 | BD2: 0.006714 | BF2: 0.9469559 | BG2: 0.006714 | BI2: 0.006714 | BJ2: 0.006714 | BL2: 0.84 | BM2: 0.01530612245 | BO2: 0.01275510204 | BP2: 0.01530612245 | BR2: 0.3467283 | BS2: 0.006714 | BU2: 0.017393 | BV2: 0.006714 | BX2: 0.29 | BY2: 0.01530612245 | CA2: 0.02040816327 | CB2: 0.01530612245 | CD2: 42 | CE2: 0.84 | CG2: 0.84 | CH2: 0.84 | CJ2: 0.01530612245 | CK2: 0.84 | CM2: 0.84 | CN2: 0.84 | CP2: 0.01275510204 | CQ2: 0.84 | CS2: 0.56 | CT2: 0.84 | CV2: 0.02551020408 | CW2: 0.84 | CY2: 0.29 | CZ2: 0.84 | DB2: 0.02040816327 | DC2: 0.84 | DE2: 42 | DF2: 0.01275510204 | DH2: 0.84 | DI2: 0.01275510204 | DK2: 0.01530612245 | DL2: 0.01275510204 | DN2: 0.84 | DO2: 0.01275510204 | DQ2: 0.01275510204 | DR2: 0.01275510204 | DT2: 0.56 | DU2: 0.01275510204 | DW2: 0.02551020408 | DX2: 0.01275510204 | DZ2: 0.29 | EA2: 0.01275510204 | EC2: 0.02040816327 | ED2: 0.01275510204 | EF2: 62 | EG2: 0.3467283 | EI2: 0.9469559 | EJ2: 0.3467283 | EL2: 0.006714 | EM2: 0.3467283 | EO2: 0.84 | EP2: 0.56 | ER2: 0.01275510204 | ES2: 0.56 | EU2: 0.3467283 | EV2: 0.3467283 | EX2: 0.017393 | EY2: 0.3467283 | FA2: 0.29 | FB2: 0.56 | FD2: 0.02040816327 | FE2: 0.56 | FG2: 62 | FH2: 0.017393 | FJ2: 0.9469559 | FK2: 0.017393 | FM2: 0.006714 | FN2: 0.017393 | FP2: 0.84 | FQ2: 0.02551020408 | FS2: 0.01275510204 | FT2: 0.02551020408 | FV2: 0.3467283 | FW2: 0.017393 | FY2: 0.017393 | FZ2: 0.017393 | GB2: 0.29 | GC2: 0.02551020408 | GE2: 0.02040816327 | GF2: 0.02551020408 | GH2: 42 | GI2: 0.29 | GK2: 0.84 | GL2: 0.29 | GN2: 0.01530612245 | GO2: 0.29 | GQ2: 0.84 | GR2: 0.29 | GT2: 0.01275510204 | GU2: 0.29 | GW2: 0.56 | GX2: 0.29 | GZ2: 0.02551020408 | HA2: 0.29 | HC2: 0.29 | HD2: 0.29 | HF2: 0.02040816327 | HG2: 0.29 | HI2: 42 | HJ2: 0.02040816327 | HL2: 0.84 | HM2: 0.02040816327 | HO2: 0.01530612245 | HP2: 0.02040816327 | HR2: 0.84 | HS2: 0.02040816327 | HU2: 0.01275510204 | HV2: 0.02040816327 | HX2: 0.56 | HY2: 0.02040816327 | IA2: 0.02551020408 | IB2: 0.02040816327
A3: 42 | B3: 42 | D3: 0.84 | E3: 42 | G3: 0.01530612245 | H3: 42 | J3: 0.9591 | K3: 75 | M3: 0.0068 | N3: 75 | P3: 0.56 | Q3: 42 | S3: 0.02551020408 | T3: 42 | V3: 0.6156 | W3: 75 | Y3: 0.0177 | Z3: 75 | AB3: 42 | AC3: 0.84 | AE3: 0.84 | AF3: 0.84 | AH3: 0.01530612245 | AI3: 0.84 | AK3: 0.9591 | AL3: 0.9637 | AN3: 0.0068 | AO3: 0.9637 | AQ3: 0.56 | AR3: 0.84 | AT3: 0.02551020408 | AU3: 0.84 | AW3: 0.6156 | AX3: 0.9637 | AZ3: 0.0177 | BA3: 0.9637 | BC3: 42 | BD3: 0.01530612245 | BF3: 0.84 | BG3: 0.01530612245 | BI3: 0.01530612245 | BJ3: 0.01530612245 | BL3: 0.9591 | BM3: 0.0034 | BO3: 0.0068 | BP3: 0.0034 | BR3: 0.56 | BS3: 0.01530612245 | BU3: 0.02551020408 | BV3: 0.01530612245 | BX3: 0.6156 | BY3: 0.0034 | CA3: 0.0177 | CB3: 0.0034 | CD3: 75 | CE3: 0.9591 | CG3: 0.9637 | CH3: 0.9591 | CJ3: 0.0034 | CK3: 0.9591 | CM3: 0.9591 | CN3: 0.9591 | CP3: 0.0068 | CQ3: 0.9591 | CS3: 0.8264 | CT3: 0.9591 | CV3: 0.0069 | CW3: 0.9591 | CY3: 0.6156 | CZ3: 0.9591 | DB3: 0.0177 | DC3: 0.9591 | DE3: 75 | DF3: 0.0068 | DH3: 0.9637 | DI3: 0.0068 | DK3: 0.0034 | DL3: 0.0068 | DN3: 0.9591 | DO3: 0.0068 | DQ3: 0.0068 | DR3: 0.0068 | DT3: 0.8264 | DU3: 0.0068 | DW3: 0.0069 | DX3: 0.0068 | DZ3: 0.6156 | EA3: 0.0068 | EC3: 0.0177 | ED3: 0.0068 | EF3: 42 | EG3: 0.56 | EI3: 0.84 | EJ3: 0.56 | EL3: 0.01530612245 | EM3: 0.56 | EO3: 0.9591 | EP3: 0.8264 | ER3: 0.0068 | ES3: 0.8264 | EU3: 0.56 | EV3: 0.56 | EX3: 0.02551020408 | EY3: 0.56 | FA3: 0.6156 | FB3: 0.8264 | FD3: 0.0177 | FE3: 0.8264 | FG3: 42 | FH3: 0.02551020408 | FJ3: 0.84 | FK3: 0.02551020408 | FM3: 0.01530612245 | FN3: 0.02551020408 | FP3: 0.9591 | FQ3: 0.0069 | FS3: 0.0068 | FT3: 0.0069 | FV3: 0.56 | FW3: 0.02551020408 | FY3: 0.02551020408 | FZ3: 0.02551020408 | GB3: 0.6156 | GC3: 0.0069 | GE3: 0.0177 | GF3: 0.0069 | GH3: 75 | GI3: 0.6156 | GK3: 0.9637 | GL3: 0.6156 | GN3: 0.0034 | GO3: 0.6156 | GQ3: 0.9591 | GR3: 0.6156 | GT3: 0.0068 | GU3: 0.6156 | GW3: 0.8264 | GX3: 0.6156 | GZ3: 0.0069 | HA3: 0.6156 | HC3: 0.6156 | HD3: 0.6156 | HF3: 0.0177 | HG3: 0.6156 | HI3: 75 | HJ3: 0.0177 | HL3: 0.9637 | HM3: 0.0177 | HO3: 0.0034 | HP3: 0.0177 | HR3: 0.9591 | HS3: 0.0177 | HU3: 0.0068 | HV3: 0.0177 | HX3: 0.8264 | HY3: 0.0177 | IA3: 0.0069 | IB3: 0.0177
A4: 75 | B4: 75 | D4: 0.9637 | E4: 75 | G4: 0.0034 | H4: 75 | J4: 0.8951155 | K4: 9 | M4: 0.0281449 | N4: 9 | P4: 0.8264 | Q4: 75 | S4: 0.0069 | T4: 75 | V4: 0.2952863 | W4: 9 | Y4: 0.035919 | Z4: 9 | AB4: 75 | AC4: 0.9637 | AE4: 0.9637 | AF4: 0.9637 | AH4: 0.0034 | AI4: 0.9637 | AK4: 0.8951155 | AL4: 0.8781047 | AN4: 0.0281449 | AO4: 0.8781047 | AQ4: 0.8264 | AR4: 0.9637 | AT4: 0.0069 | AU4: 0.9637 | AW4: 0.2952863 | AX4: 0.8781047 | AZ4: 0.035919 | BA4: 0.8781047 | BC4: 75 | BD4: 0.0034 | BF4: 0.9637 | BG4: 0.0034 | BI4: 0.0034 | BJ4: 0.0034 | BL4: 0.8951155 | BM4: 0.0212928 | BO4: 0.0281449 | BP4: 0.0212928 | BR4: 0.8264 | BS4: 0.0034 | BU4: 0.0069 | BV4: 0.0034 | BX4: 0.2952863 | BY4: 0.0212928 | CA4: 0.035919 | CB4: 0.0212928 | CD4: 9 | CE4: 0.8951155 | CG4: 0.8781047 | CH4: 0.8951155 | CJ4: 0.0212928 | CK4: 0.8951155 | CM4: 0.8951155 | CN4: 0.8951155 | CP4: 0.0281449 | CQ4: 0.8951155 | CS4: 0.6239613 | CT4: 0.8951155 | CV4: 0.0356255 | CW4: 0.8951155 | CY4: 0.2952863 | CZ4: 0.8951155 | DB4: 0.035919 | DC4: 0.8951155 | DE4: 9 | DF4: 0.0281449 | DH4: 0.8781047 | DI4: 0.0281449 | DK4: 0.0212928 | DL4: 0.0281449 | DN4: 0.8951155 | DO4: 0.0281449 | DQ4: 0.0281449 | DR4: 0.0281449 | DT4: 0.6239613 | DU4: 0.0281449 | DW4: 0.0356255 | DX4: 0.0281449 | DZ4: 0.2952863 | EA4: 0.0281449 | EC4: 0.035919 | ED4: 0.0281449 | EF4: 75 | EG4: 0.8264 | EI4: 0.9637 | EJ4: 0.8264 | EL4: 0.0034 | EM4: 0.8264 | EO4: 0.8951155 | EP4: 0.6239613 | ER4: 0.0281449 | ES4: 0.6239613 | EU4: 0.8264 | EV4: 0.8264 | EX4: 0.0069 | EY4: 0.8264 | FA4: 0.2952863 | FB4: 0.6239613 | FD4: 0.035919 | FE4: 0.6239613 | FG4: 75 | FH4: 0.0069 | FJ4: 0.9637 | FK4: 0.0069 | FM4: 0.0034 | FN4: 0.0069 | FP4: 0.8951155 | FQ4: 0.0356255 | FS4: 0.0281449 | FT4: 0.0356255 | FV4: 0.8264 | FW4: 0.0069 | FY4: 0.0069 | FZ4: 0.0069 | GB4: 0.2952863 | GC4: 0.0356255 | GE4: 0.035919 | GF4: 0.0356255 | GH4: 9 | GI4: 0.2952863 | GK4: 0.8781047 | GL4: 0.2952863 | GN4: 0.0212928 | GO4: 0.2952863 | GQ4: 0.8951155 | GR4: 0.2952863 | GT4: 0.0281449 | GU4: 0.2952863 | GW4: 0.6239613 | GX4: 0.2952863 | GZ4: 0.0356255 | HA4: 0.2952863 | HC4: 0.2952863 | HD4: 0.2952863 | HF4: 0.035919 | HG4: 0.2952863 | HI4: 9 | HJ4: 0.035919 | HL4: 0.8781047 | HM4: 0.035919 | HO4: 0.0212928 | HP4: 0.035919 | HR4: 0.8951155 | HS4: 0.035919 | HU4: 0.0281449 | HV4: 0.035919 | HX4: 0.6239613 | HY4: 0.035919 | IA4: 0.0356255 | IB4: 0.035919
A5: 9 | B5: 9 | D5: 0.8781047 | E5: 9 | G5: 0.0212928 | H5: 9 | J5: 0.9179249 | K5: 9 | M5: 0.0148937 | N5: 9 | P5: 0.6239613 | Q5: 9 | S5: 0.0356255 | T5: 9 | V5: 0.3709886 | W5: 9 | Y5: 0.0238672 | Z5: 9 | AB5: 9 | AC5: 0.8781047 | AE5: 0.8781047 | AF5: 0.8781047 | AH5: 0.0212928 | AI5: 0.8781047 | AK5: 0.9179249 | AL5: 0.9016691 | AN5: 0.0148937 | AO5: 0.9016691 | AQ5: 0.6239613 | AR5: 0.8781047 | AT5: 0.0356255 | AU5: 0.8781047 | AW5: 0.3709886 | AX5: 0.9016691 | AZ5: 0.0238672 | BA5: 0.9016691 | BC5: 9 | BD5: 0.0212928 | BF5: 0.8781047 | BG5: 0.0212928 | BI5: 0.0212928 | BJ5: 0.0212928 | BL5: 0.9179249 | BM5: 0.0181753 | BO5: 0.0148937 | BP5: 0.0181753 | BR5: 0.6239613 | BS5: 0.0212928 | BU5: 0.0356255 | BV5: 0.0212928 | BX5: 0.3709886 | BY5: 0.0181753 | CA5: 0.0238672 | CB5: 0.0181753 | CD5: 9 | CE5: 0.9179249 | CG5: 0.9016691 | CH5: 0.9179249 | CJ5: 0.0181753 | CK5: 0.9179249 | CM5: 0.9179249 | CN5: 0.9179249 | CP5: 0.0148937 | CQ5: 0.9179249 | CS5: 0.5687635 | CT5: 0.9179249 | CV5: 0.0322685 | CW5: 0.9179249 | CY5: 0.3709886 | CZ5: 0.9179249 | DB5: 0.0238672 | DC5: 0.9179249 | DE5: 9 | DF5: 0.0148937 | DH5: 0.9016691 | DI5: 0.0148937 | DK5: 0.0181753 | DL5: 0.0148937 | DN5: 0.9179249 | DO5: 0.0148937 | DQ5: 0.0148937 | DR5: 0.0148937 | DT5: 0.5687635 | DU5: 0.0148937 | DW5: 0.0322685 | DX5: 0.0148937 | DZ5: 0.3709886 | EA5: 0.0148937 | EC5: 0.0238672 | ED5: 0.0148937 | EF5: 9 | EG5: 0.6239613 | EI5: 0.8781047 | EJ5: 0.6239613 | EL5: 0.0212928 | EM5: 0.6239613 | EO5: 0.9179249 | EP5: 0.5687635 | ER5: 0.0148937 | ES5: 0.5687635 | EU5: 0.6239613 | EV5: 0.6239613 | EX5: 0.0356255 | EY5: 0.6239613 | FA5: 0.3709886 | FB5: 0.5687635 | FD5: 0.0238672 | FE5: 0.5687635 | FG5: 9 | FH5: 0.0356255 | FJ5: 0.8781047 | FK5: 0.0356255 | FM5: 0.0212928 | FN5: 0.0356255 | FP5: 0.9179249 | FQ5: 0.0322685 | FS5: 0.0148937 | FT5: 0.0322685 | FV5: 0.6239613 | FW5: 0.0356255 | FY5: 0.0356255 | FZ5: 0.0356255 | GB5: 0.3709886 | GC5: 0.0322685 | GE5: 0.0238672 | GF5: 0.0322685 | GH5: 9 | GI5: 0.3709886 | GK5: 0.9016691 | GL5: 0.3709886 | GN5: 0.0181753 | GO5: 0.3709886 | GQ5: 0.9179249 | GR5: 0.3709886 | GT5: 0.0148937 | GU5: 0.3709886 | GW5: 0.5687635 | GX5: 0.3709886 | GZ5: 0.0322685 | HA5: 0.3709886 | HC5: 0.3709886 | HD5: 0.3709886 | HF5: 0.0238672 | HG5: 0.3709886 | HI5: 9 | HJ5: 0.0238672 | HL5: 0.9016691 | HM5: 0.0238672 | HO5: 0.0181753 | HP5: 0.0238672 | HR5: 0.9179249 | HS5: 0.0238672 | HU5: 0.0148937 | HV5: 0.0238672 | HX5: 0.5687635 | HY5: 0.0238672 | IA5: 0.0322685 | IB5: 0.0238672
A6: 10 | B6: 10 | D6: 0.8824131 | E6: 10 | G6: 0.0164541 | H6: 10 | J6: 0.7606023 | K6: 87 | M6: 0.0550446 | N6: 87 | P6: 0.6504691 | Q6: 10 | S6: 0.0341314 | T6: 10 | V6: 0.3174852 | W6: 87 | Y6: 0.095069 | Z6: 87 | AB6: 10 | AC6: 0.8824131 | AE6: 0.8824131 | AF6: 0.8824131 | AH6: 0.0164541 | AI6: 0.8824131 | AK6: 0.7606023 | AL6: 0.7986151 | AN6: 0.0550446 | AO6: 0.7986151 | AQ6: 0.6504691 | AR6: 0.8824131 | AT6: 0.0341314 | AU6: 0.8824131 | AW6: 0.3174852 | AX6: 0.7986151 | AZ6: 0.095069 | BA6: 0.7986151 | BC6: 10 | BD6: 0.0164541 | BF6: 0.8824131 | BG6: 0.0164541 | BI6: 0.0164541 | BJ6: 0.0164541 | BL6: 0.7606023 | BM6: 0.0419406 | BO6: 0.0550446 | BP6: 0.0419406 | BR6: 0.6504691 | BS6: 0.0164541 | BU6: 0.0341314 | BV6: 0.0164541 | BX6: 0.3174852 | BY6: 0.0419406 | CA6: 0.095069 | CB6: 0.0419406 | CD6: 87 | CE6: 0.7606023 | CG6: 0.7986151 | CH6: 0.7606023 | CJ6: 0.0419406 | CK6: 0.7606023 | CM6: 0.7606023 | CN6: 0.7606023 | CP6: 0.0550446 | CQ6: 0.7606023 | CS6: 0.4358294 | CT6: 0.7606023 | CV6: 0.0766283 | CW6: 0.7606023 | CY6: 0.3174852 | CZ6: 0.7606023 | DB6: 0.095069 | DC6: 0.7606023 | DE6: 87 | DF6: 0.0550446 | DH6: 0.7986151 | DI6: 0.0550446 | DK6: 0.0419406 | DL6: 0.0550446 | DN6: 0.7606023 | DO6: 0.0550446 | DQ6: 0.0550446 | DR6: 0.0550446 | DT6: 0.4358294 | DU6: 0.0550446 | DW6: 0.0766283 | DX6: 0.0550446 | DZ6: 0.3174852 | EA6: 0.0550446 | EC6: 0.095069 | ED6: 0.0550446 | EF6: 10 | EG6: 0.6504691 | EI6: 0.8824131 | EJ6: 0.6504691 | EL6: 0.0164541 | EM6: 0.6504691 | EO6: 0.7606023 | EP6: 0.4358294 | ER6: 0.0550446 | ES6: 0.4358294 | EU6: 0.6504691 | EV6: 0.6504691 | EX6: 0.0341314 | EY6: 0.6504691 | FA6: 0.3174852 | FB6: 0.4358294 | FD6: 0.095069 | FE6: 0.4358294 | FG6: 10 | FH6: 0.0341314 | FJ6: 0.8824131 | FK6: 0.0341314 | FM6: 0.0164541 | FN6: 0.0341314 | FP6: 0.7606023 | FQ6: 0.0766283 | FS6: 0.0550446 | FT6: 0.0766283 | FV6: 0.6504691 | FW6: 0.0341314 | FY6: 0.0341314 | FZ6: 0.0341314 | GB6: 0.3174852 | GC6: 0.0766283 | GE6: 0.095069 | GF6: 0.0766283 | GH6: 87 | GI6: 0.3174852 | GK6: 0.7986151 | GL6: 0.3174852 | GN6: 0.0419406 | GO6: 0.3174852 | GQ6: 0.7606023 | GR6: 0.3174852 | GT6: 0.0550446 | GU6: 0.3174852 | GW6: 0.4358294 | GX6: 0.3174852 | GZ6: 0.0766283 | HA6: 0.3174852 | HC6: 0.3174852 | HD6: 0.3174852 | HF6: 0.095069 | HG6: 0.3174852 | HI6: 87 | HJ6: 0.095069 | HL6: 0.7986151 | HM6: 0.095069 | HO6: 0.0419406 | HP6: 0.095069 | HR6: 0.7606023 | HS6: 0.095069 | HU6: 0.0550446 | HV6: 0.095069 | HX6: 0.4358294 | HY6: 0.095069 | IA6: 0.0766283 | IB6: 0.095069
A7: 9 | B7: 9 | D7: 0.9016691 | E7: 9 | G7: 0.0181753 | H7: 9 | J7: 0.8888962 | K7: 65 | M7: 0.0092091 | N7: 65 | P7: 0.5687635 | Q7: 9 | S7: 0.0322685 | T7: 9 | V7: 0.241935 | W7: 65 | Y7: 0.0197975 | Z7: 65 | AB7: 9 | AC7: 0.9016691 | AE7: 0.9016691 | AF7: 0.9016691 | AH7: 0.0181753 | AI7: 0.9016691 | AK7: 0.8888962 | AL7: 0.8909732 | AN7: 0.0092091 | AO7: 0.8909732 | AQ7: 0.5687635 | AR7: 0.9016691 | AT7: 0.0322685 | AU7: 0.9016691 | AW7: 0.241935 | AX7: 0.8909732 | AZ7: 0.0197975 | BA7: 0.8909732 | BC7: 9 | BD7: 0.0181753 | BF7: 0.9016691 | BG7: 0.0181753 | BI7: 0.0181753 | BJ7: 0.0181753 | BL7: 0.8888962 | BM7: 0.0081927 | BO7: 0.0092091 | BP7: 0.0081927 | BR7: 0.5687635 | BS7: 0.0181753 | BU7: 0.0322685 | BV7: 0.0181753 | BX7: 0.241935 | BY7: 0.0081927 | CA7: 0.0197975 | CB7: 0.0081927 | CD7: 65 | CE7: 0.8888962 | CG7: 0.8909732 | CH7: 0.8888962 | CJ7: 0.0081927 | CK7: 0.8888962 | CM7: 0.8888962 | CN7: 0.8888962 | CP7: 0.0092091 | CQ7: 0.8888962 | CS7: 0.4715742 | CT7: 0.8888962 | CV7: 0.023485 | CW7: 0.8888962 | CY7: 0.241935 | CZ7: 0.8888962 | DB7: 0.0197975 | DC7: 0.8888962 | DE7: 65 | DF7: 0.0092091 | DH7: 0.8909732 | DI7: 0.0092091 | DK7: 0.0081927 | DL7: 0.0092091 | DN7: 0.8888962 | DO7: 0.0092091 | DQ7: 0.0092091 | DR7: 0.0092091 | DT7: 0.4715742 | DU7: 0.0092091 | DW7: 0.023485 | DX7: 0.0092091 | DZ7: 0.241935 | EA7: 0.0092091 | EC7: 0.0197975 | ED7: 0.0092091 | EF7: 9 | EG7: 0.5687635 | EI7: 0.9016691 | EJ7: 0.5687635 | EL7: 0.0181753 | EM7: 0.5687635 | EO7: 0.8888962 | EP7: 0.4715742 | ER7: 0.0092091 | ES7: 0.4715742 | EU7: 0.5687635 | EV7: 0.5687635 | EX7: 0.0322685 | EY7: 0.5687635 | FA7: 0.241935 | FB7: 0.4715742 | FD7: 0.0197975 | FE7: 0.4715742 | FG7: 9 | FH7: 0.0322685 | FJ7: 0.9016691 | FK7: 0.0322685 | FM7: 0.0181753 | FN7: 0.0322685 | FP7: 0.8888962 | FQ7: 0.023485 | FS7: 0.0092091 | FT7: 0.023485 | FV7: 0.5687635 | FW7: 0.0322685 | FY7: 0.0322685 | FZ7: 0.0322685 | GB7: 0.241935 | GC7: 0.023485 | GE7: 0.0197975 | GF7: 0.023485 | GH7: 65 | GI7: 0.241935 | GK7: 0.8909732 | GL7: 0.241935 | GN7: 0.0081927 | GO7: 0.241935 | GQ7: 0.8888962 | GR7: 0.241935 | GT7: 0.0092091 | GU7: 0.241935 | GW7: 0.4715742 | GX7: 0.241935 | GZ7: 0.023485 | HA7: 0.241935 | HC7: 0.241935 | HD7: 0.241935 | HF7: 0.0197975 | HG7: 0.241935 | HI7: 65 | HJ7: 0.0197975 | HL7: 0.8909732 | HM7: 0.0197975 | HO7: 0.0081927 | HP7: 0.0197975 | HR7: 0.8888962 | HS7: 0.0197975 | HU7: 0.0092091 | HV7: 0.0197975 | HX7: 0.4715742 | HY7: 0.0197975 | IA7: 0.023485 | IB7: 0.0197975
A8: 87 | B8: 87 | D8: 0.7986151 | E8: 87 | G8: 0.0419406 | H8: 87 | J8: 0.8051446 | K8: 10 | M8: 0.0469221 | N8: 10 | P8: 0.4358294 | Q8: 87 | S8: 0.0766283 | T8: 87 | V8: 0.5326219 | W8: 10 | Y8: 0.0737557 | Z8: 10 | AB8: 87 | AC8: 0.7986151 | AE8: 0.7986151 | AF8: 0.7986151 | AH8: 0.0419406 | AI8: 0.7986151 | AK8: 0.8051446 | AL8: 0.8828532 | AN8: 0.0469221 | AO8: 0.8828532 | AQ8: 0.4358294 | AR8: 0.7986151 | AT8: 0.0766283 | AU8: 0.7986151 | AW8: 0.5326219 | AX8: 0.8828532 | AZ8: 0.0737557 | BA8: 0.8828532 | BC8: 87 | BD8: 0.0419406 | BF8: 0.7986151 | BG8: 0.0419406 | BI8: 0.0419406 | BJ8: 0.0419406 | BL8: 0.8051446 | BM8: 0.0292956 | BO8: 0.0469221 | BP8: 0.0292956 | BR8: 0.4358294 | BS8: 0.0419406 | BU8: 0.0766283 | BV8: 0.0419406 | BX8: 0.5326219 | BY8: 0.0292956 | CA8: 0.0737557 | CB8: 0.0292956 | CD8: 10 | CE8: 0.8051446 | CG8: 0.8828532 | CH8: 0.8051446 | CJ8: 0.0292956 | CK8: 0.8051446 | CM8: 0.8051446 | CN8: 0.8051446 | CP8: 0.0469221 | CQ8: 0.8051446 | CS8: 0.6233053 | CT8: 0.8051446 | CV8: 0.0489502 | CW8: 0.8051446 | CY8: 0.5326219 | CZ8: 0.8051446 | DB8: 0.0737557 | DC8: 0.8051446 | DE8: 10 | DF8: 0.0469221 | DH8: 0.8828532 | DI8: 0.0469221 | DK8: 0.0292956 | DL8: 0.0469221 | DN8: 0.8051446 | DO8: 0.0469221 | DQ8: 0.0469221 | DR8: 0.0469221 | DT8: 0.6233053 | DU8: 0.0469221 | DW8: 0.0489502 | DX8: 0.0469221 | DZ8: 0.5326219 | EA8: 0.0469221 | EC8: 0.0737557 | ED8: 0.0469221 | EF8: 87 | EG8: 0.4358294 | EI8: 0.7986151 | EJ8: 0.4358294 | EL8: 0.0419406 | EM8: 0.4358294 | EO8: 0.8051446 | EP8: 0.6233053 | ER8: 0.0469221 | ES8: 0.6233053 | EU8: 0.4358294 | EV8: 0.4358294 | EX8: 0.0766283 | EY8: 0.4358294 | FA8: 0.5326219 | FB8: 0.6233053 | FD8: 0.0737557 | FE8: 0.6233053 | FG8: 87 | FH8: 0.0766283 | FJ8: 0.7986151 | FK8: 0.0766283 | FM8: 0.0419406 | FN8: 0.0766283 | FP8: 0.8051446 | FQ8: 0.0489502 | FS8: 0.0469221 | FT8: 0.0489502 | FV8: 0.4358294 | FW8: 0.0766283 | FY8: 0.0766283 | FZ8: 0.0766283 | GB8: 0.5326219 | GC8: 0.0489502 | GE8: 0.0737557 | GF8: 0.0489502 | GH8: 10 | GI8: 0.5326219 | GK8: 0.8828532 | GL8: 0.5326219 | GN8: 0.0292956 | GO8: 0.5326219 | GQ8: 0.8051446 | GR8: 0.5326219 | GT8: 0.0469221 | GU8: 0.5326219 | GW8: 0.6233053 | GX8: 0.5326219 | GZ8: 0.0489502 | HA8: 0.5326219 | HC8: 0.5326219 | HD8: 0.5326219 | HF8: 0.0737557 | HG8: 0.5326219 | HI8: 10 | HJ8: 0.0737557 | HL8: 0.8828532 | HM8: 0.0737557 | HO8: 0.0292956 | HP8: 0.0737557 | HR8: 0.8051446 | HS8: 0.0737557 | HU8: 0.0469221 | HV8: 0.0737557 | HX8: 0.6233053 | HY8: 0.0737557 | IA8: 0.0489502 | IB8: 0.0737557
A9: 65 | B9: 65 | D9: 0.8909732 | E9: 65 | G9: 0.0081927 | H9: 65 | J9: 0.8813207 | K9: 58 | M9: 0.0212694 | N9: 58 | P9: 0.4715742 | Q9: 65 | S9: 0.023485 | T9: 65 | V9: 0.2618267 | W9: 58 | Y9: 0.0419386 | Z9: 58 | AB9: 65 | AC9: 0.8909732 | AE9: 0.8909732 | AF9: 0.8909732 | AH9: 0.0081927 | AI9: 0.8909732 | AK9: 0.8813207 | AL9: 0.8984061 | AN9: 0.0212694 | AO9: 0.8984061 | AQ9: 0.4715742 | AR9: 0.8909732 | AT9: 0.023485 | AU9: 0.8909732 | AW9: 0.2618267 | AX9: 0.8984061 | AZ9: 0.0419386 | BA9: 0.8984061 | BC9: 65 | BD9: 0.0081927 | BF9: 0.8909732 | BG9: 0.0081927 | BI9: 0.0081927 | BJ9: 0.0081927 | BL9: 0.8813207 | BM9: 0.013138 | BO9: 0.0212694 | BP9: 0.013138 | BR9: 0.4715742 | BS9: 0.0081927 | BU9: 0.023485 | BV9: 0.0081927 | BX9: 0.2618267 | BY9: 0.013138 | CA9: 0.0419386 | CB9: 0.013138 | CD9: 58 | CE9: 0.8813207 | CG9: 0.8984061 | CH9: 0.8813207 | CJ9: 0.013138 | CK9: 0.8813207 | CM9: 0.8813207 | CN9: 0.8813207 | CP9: 0.0212694 | CQ9: 0.8813207 | CS9: 0.4751318 | CT9: 0.8813207 | CV9: 0.0356237 | CW9: 0.8813207 | CY9: 0.2618267 | CZ9: 0.8813207 | DB9: 0.0419386 | DC9: 0.8813207 | DE9: 58 | DF9: 0.0212694 | DH9: 0.8984061 | DI9: 0.0212694 | DK9: 0.013138 | DL9: 0.0212694 | DN9: 0.8813207 | DO9: 0.0212694 | DQ9: 0.0212694 | DR9: 0.0212694 | DT9: 0.4751318 | DU9: 0.0212694 | DW9: 0.0356237 | DX9: 0.0212694 | DZ9: 0.2618267 | EA9: 0.0212694 | EC9: 0.0419386 | ED9: 0.0212694 | EF9: 65 | EG9: 0.4715742 | EI9: 0.8909732 | EJ9: 0.4715742 | EL9: 0.0081927 | EM9: 0.4715742 | EO9: 0.8813207 | EP9: 0.4751318 | ER9: 0.0212694 | ES9: 0.4751318 | EU9: 0.4715742 | EV9: 0.4715742 | EX9: 0.023485 | EY9: 0.4715742 | FA9: 0.2618267 | FB9: 0.4751318 | FD9: 0.0419386 | FE9: 0.4751318 | FG9: 65 | FH9: 0.023485 | FJ9: 0.8909732 | FK9: 0.023485 | FM9: 0.0081927 | FN9: 0.023485 | FP9: 0.8813207 | FQ9: 0.0356237 | FS9: 0.0212694 | FT9: 0.0356237 | FV9: 0.4715742 | FW9: 0.023485 | FY9: 0.023485 | FZ9: 0.023485 | GB9: 0.2618267 | GC9: 0.0356237 | GE9: 0.0419386 | GF9: 0.0356237 | GH9: 58 | GI9: 0.2618267 | GK9: 0.8984061 | GL9: 0.2618267 | GN9: 0.013138 | GO9: 0.2618267 | GQ9: 0.8813207 | GR9: 0.2618267 | GT9: 0.0212694 | GU9: 0.2618267 | GW9: 0.4751318 | GX9: 0.2618267 | GZ9: 0.0356237 | HA9: 0.2618267 | HC9: 0.2618267 | HD9: 0.2618267 | HF9: 0.0419386 | HG9: 0.2618267 | HI9: 58 | HJ9: 0.0419386 | HL9: 0.8984061 | HM9: 0.0419386 | HO9: 0.013138 | HP9: 0.0419386 | HR9: 0.8813207 | HS9: 0.0419386 | HU9: 0.0212694 | HV9: 0.0419386 | HX9: 0.4751318 | HY9: 0.0419386 | IA9: 0.0356237 | IB9: 0.0419386
A10: 10 | B10: 10 | D10: 0.8828532 | E10: 10 | G10: 0.0292956 | H10: 10 | J10: 0.696244 | K10: 69 | M10: 0.0828917 | N10: 69 | P10: 0.6233053 | Q10: 10 | S10: 0.0489502 | T10: 10 | V10: 0.350828 | W10: 69 | Y10: 0.1081309 | Z10: 69 | AB10: 10 | AC10: 0.8828532 | AE10: 0.8828532 | AF10: 0.8828532 | AH10: 0.0292956 | AI10: 0.8828532 | AK10: 0.696244 | AL10: 0.5609328 | AN10: 0.0828917 | AO10: 0.5609328 | AQ10: 0.6233053 | AR10: 0.8828532 | AT10: 0.0489502 | AU10: 0.8828532 | AW10: 0.350828 | AX10: 0.5609328 | AZ10: 0.1081309 | BA10: 0.5609328 | BC10: 10 | BD10: 0.0292956 | BF10: 0.8828532 | BG10: 0.0292956 | BI10: 0.0292956 | BJ10: 0.0292956 | BL10: 0.696244 | BM10: 0.0545408 | BO10: 0.0828917 | BP10: 0.0545408 | BR10: 0.6233053 | BS10: 0.0292956 | BU10: 0.0489502 | BV10: 0.0292956 | BX10: 0.350828 | BY10: 0.0545408 | CA10: 0.1081309 | CB10: 0.0545408 | CD10: 69 | CE10: 0.696244 | CG10: 0.5609328 | CH10: 0.696244 | CJ10: 0.0545408 | CK10: 0.696244 | CM10: 0.696244 | CN10: 0.696244 | CP10: 0.0828917 | CQ10: 0.696244 | CS10: 0.5583335 | CT10: 0.696244 | CV10: 0.0872284 | CW10: 0.696244 | CY10: 0.350828 | CZ10: 0.696244 | DB10: 0.1081309 | DC10: 0.696244 | DE10: 69 | DF10: 0.0828917 | DH10: 0.5609328 | DI10: 0.0828917 | DK10: 0.0545408 | DL10: 0.0828917 | DN10: 0.696244 | DO10: 0.0828917 | DQ10: 0.0828917 | DR10: 0.0828917 | DT10: 0.5583335 | DU10: 0.0828917 | DW10: 0.0872284 | DX10: 0.0828917 | DZ10: 0.350828 | EA10: 0.0828917 | EC10: 0.1081309 | ED10: 0.0828917 | EF10: 10 | EG10: 0.6233053 | EI10: 0.8828532 | EJ10: 0.6233053 | EL10: 0.0292956 | EM10: 0.6233053 | EO10: 0.696244 | EP10: 0.5583335 | ER10: 0.0828917 | ES10: 0.5583335 | EU10: 0.6233053 | EV10: 0.6233053 | EX10: 0.0489502 | EY10: 0.6233053 | FA10: 0.350828 | FB10: 0.5583335 | FD10: 0.1081309 | FE10: 0.5583335 | FG10: 10 | FH10: 0.0489502 | FJ10: 0.8828532 | FK10: 0.0489502 | FM10: 0.0292956 | FN10: 0.0489502 | FP10: 0.696244 | FQ10: 0.0872284 | FS10: 0.0828917 | FT10: 0.0872284 | FV10: 0.6233053 | FW10: 0.0489502 | FY10: 0.0489502 | FZ10: 0.0489502 | GB10: 0.350828 | GC10: 0.0872284 | GE10: 0.1081309 | GF10: 0.0872284 | GH10: 69 | GI10: 0.350828 | GK10: 0.5609328 | GL10: 0.350828 | GN10: 0.0545408 | GO10: 0.350828 | GQ10: 0.696244 | GR10: 0.350828 | GT10: 0.0828917 | GU10: 0.350828 | GW10: 0.5583335 | GX10: 0.350828 | GZ10: 0.0872284 | HA10: 0.350828 | HC10: 0.350828 | HD10: 0.350828 | HF10: 0.1081309 | HG10: 0.350828 | HI10: 69 | HJ10: 0.1081309 | HL10: 0.5609328 | HM10: 0.1081309 | HO10: 0.0545408 | HP10: 0.1081309 | HR10: 0.696244 | HS10: 0.1081309 | HU10: 0.0828917 | HV10: 0.1081309 | HX10: 0.5583335 | HY10: 0.1081309 | IA10: 0.0872284 | IB10: 0.1081309
A11: 10 | B11: 10 | D11: 0.931684 | E11: 10 | G11: 0.0062942 | H11: 10 | J11: 0.8911406 | K11: 10 | M11: 0.0395998 | N11: 10 | P11: 0.7877621 | Q11: 10 | S11: 0.014136 | T11: 10 | V11: 0.3705272 | W11: 10 | Y11: 0.0763578 | Z11: 10 | AB11: 10 | AC11: 0.931684 | AE11: 0.931684 | AF11: 0.931684 | AH11: 0.0062942 | AI11: 0.931684 | AK11: 0.8911406 | AL11: 0.9088547 | AN11: 0.0395998 | AO11: 0.9088547 | AQ11: 0.7877621 | AR11: 0.931684 | AT11: 0.014136 | AU11: 0.931684 | AW11: 0.3705272 | AX11: 0.9088547 | AZ11: 0.0763578 | BA11: 0.9088547 | BC11: 10 | BD11: 0.0062942 | BF11: 0.931684 | BG11: 0.0062942 | BI11: 0.0062942 | BJ11: 0.0062942 | BL11: 0.8911406 | BM11: 0.025718 | BO11: 0.0395998 | BP11: 0.025718 | BR11: 0.7877621 | BS11: 0.0062942 | BU11: 0.014136 | BV11: 0.0062942 | BX11: 0.3705272 | BY11: 0.025718 | CA11: 0.0763578 | CB11: 0.025718 | CD11: 10 | CE11: 0.8911406 | CG11: 0.9088547 | CH11: 0.8911406 | CJ11: 0.025718 | CK11: 0.8911406 | CM11: 0.8911406 | CN11: 0.8911406 | CP11: 0.0395998 | CQ11: 0.8911406 | CS11: 0.629227 | CT11: 0.8911406 | CV11: 0.0604132 | CW11: 0.8911406 | CY11: 0.3705272 | CZ11: 0.8911406 | DB11: 0.0763578 | DC11: 0.8911406 | DE11: 10 | DF11: 0.0395998 | DH11: 0.9088547 | DI11: 0.0395998 | DK11: 0.025718 | DL11: 0.0395998 | DN11: 0.8911406 | DO11: 0.0395998 | DQ11: 0.0395998 | DR11: 0.0395998 | DT11: 0.629227 | DU11: 0.0395998 | DW11: 0.0604132 | DX11: 0.0395998 | DZ11: 0.3705272 | EA11: 0.0395998 | EC11: 0.0763578 | ED11: 0.0395998 | EF11: 10 | EG11: 0.7877621 | EI11: 0.931684 | EJ11: 0.7877621 | EL11: 0.0062942 | EM11: 0.7877621 | EO11: 0.8911406 | EP11: 0.629227 | ER11: 0.0395998 | ES11: 0.629227 | EU11: 0.7877621 | EV11: 0.7877621 | EX11: 0.014136 | EY11: 0.7877621 | FA11: 0.3705272 | FB11: 0.629227 | FD11: 0.0763578 | FE11: 0.629227 | FG11: 10 | FH11: 0.014136 | FJ11: 0.931684 | FK11: 0.014136 | FM11: 0.0062942 | FN11: 0.014136 | FP11: 0.8911406 | FQ11: 0.0604132 | FS11: 0.0395998 | FT11: 0.0604132 | FV11: 0.7877621 | FW11: 0.014136 | FY11: 0.014136 | FZ11: 0.014136 | GB11: 0.3705272 | GC11: 0.0604132 | GE11: 0.0763578 | GF11: 0.0604132 | GH11: 10 | GI11: 0.3705272 | GK11: 0.9088547 | GL11: 0.3705272 | GN11: 0.025718 | GO11: 0.3705272 | GQ11: 0.8911406 | GR11: 0.3705272 | GT11: 0.0395998 | GU11: 0.3705272 | GW11: 0.629227 | GX11: 0.3705272 | GZ11: 0.0604132 | HA11: 0.3705272 | HC11: 0.3705272 | HD11: 0.3705272 | HF11: 0.0763578 | HG11: 0.3705272 | HI11: 10 | HJ11: 0.0763578 | HL11: 0.9088547 | HM11: 0.0763578 | HO11: 0.025718 | HP11: 0.0763578 | HR11: 0.8911406 | HS11: 0.0763578 | HU11: 0.0395998 | HV11: 0.0763578 | HX11: 0.629227 | HY11: 0.0763578 | IA11: 0.0604132 | IB11: 0.0763578
A12: 58 | B12: 58 | D12: 0.8984061 | E12: 58 | G12: 0.013138 | H12: 58 | J12: 0.926 | K12: 15 | M12: 0.018 | N12: 15 | P12: 0.4751318 | Q12: 58 | S12: 0.0356237 | T12: 58 | V12: 0.455 | W12: 15 | Y12: 0.037 | Z12: 15 | AB12: 58 | AC12: 0.8984061 | AE12: 0.8984061 | AF12: 0.8984061 | AH12: 0.013138 | AI12: 0.8984061 | AK12: 0.926 | AL12: 0.957 | AN12: 0.018 | AO12: 0.957 | AQ12: 0.4751318 | AR12: 0.8984061 | AT12: 0.0356237 | AU12: 0.8984061 | AW12: 0.455 | AX12: 0.957 | AZ12: 0.037 | BA12: 0.957 | BC12: 58 | BD12: 0.013138 | BF12: 0.8984061 | BG12: 0.013138 | BI12: 0.013138 | BJ12: 0.013138 | BL12: 0.926 | BM12: 0.009 | BO12: 0.018 | BP12: 0.009 | BR12: 0.4751318 | BS12: 0.013138 | BU12: 0.0356237 | BV12: 0.013138 | BX12: 0.455 | BY12: 0.009 | CA12: 0.037 | CB12: 0.009 | CD12: 15 | CE12: 0.926 | CG12: 0.957 | CH12: 0.926 | CJ12: 0.009 | CK12: 0.926 | CM12: 0.926 | CN12: 0.926 | CP12: 0.018 | CQ12: 0.926 | CS12: 0.53 | CT12: 0.926 | CV12: 0.002 | CW12: 0.926 | CY12: 0.455 | CZ12: 0.926 | DB12: 0.037 | DC12: 0.926 | DE12: 15 | DF12: 0.018 | DH12: 0.957 | DI12: 0.018 | DK12: 0.009 | DL12: 0.018 | DN12: 0.926 | DO12: 0.018 | DQ12: 0.018 | DR12: 0.018 | DT12: 0.53 | DU12: 0.018 | DW12: 0.002 | DX12: 0.018 | DZ12: 0.455 | EA12: 0.018 | EC12: 0.037 | ED12: 0.018 | EF12: 58 | EG12: 0.4751318 | EI12: 0.8984061 | EJ12: 0.4751318 | EL12: 0.013138 | EM12: 0.4751318 | EO12: 0.926 | EP12: 0.53 | ER12: 0.018 | ES12: 0.53 | EU12: 0.4751318 | EV12: 0.4751318 | EX12: 0.0356237 | EY12: 0.4751318 | FA12: 0.455 | FB12: 0.53 | FD12: 0.037 | FE12: 0.53 | FG12: 58 | FH12: 0.0356237 | FJ12: 0.8984061 | FK12: 0.0356237 | FM12: 0.013138 | FN12: 0.0356237 | FP12: 0.926 | FQ12: 0.002 | FS12: 0.018 | FT12: 0.002 | FV12: 0.4751318 | FW12: 0.0356237 | FY12: 0.0356237 | FZ12: 0.0356237 | GB12: 0.455 | GC12: 0.002 | GE12: 0.037 | GF12: 0.002 | GH12: 15 | GI12: 0.455 | GK12: 0.957 | GL12: 0.455 | GN12: 0.009 | GO12: 0.455 | GQ12: 0.926 | GR12: 0.455 | GT12: 0.018 | GU12: 0.455 | GW12: 0.53 | GX12: 0.455 | GZ12: 0.002 | HA12: 0.455 | HC12: 0.455 | HD12: 0.455 | HF12: 0.037 | HG12: 0.455 | HI12: 15 | HJ12: 0.037 | HL12: 0.957 | HM12: 0.037 | HO12: 0.009 | HP12: 0.037 | HR12: 0.926 | HS12: 0.037 | HU12: 0.018 | HV12: 0.037 | HX12: 0.53 | HY12: 0.037 | IA12: 0.002 | IB12: 0.037
A13: 69 | B13: 69 | D13: 0.5609328 | E13: 69 | G13: 0.0545408 | H13: 69 | J13: 0.9331667 | K13: 66 | M13: 0.0093518 | N13: 66 | P13: 0.5583335 | Q13: 69 | S13: 0.0872284 | T13: 69 | V13: 0.1718903 | W13: 66 | Y13: 0.0164899 | Z13: 66 | AB13: 69 | AC13: 0.5609328 | AE13: 0.5609328 | AF13: 0.5609328 | AH13: 0.0545408 | AI13: 0.5609328 | AK13: 0.9331667 | AL13: 0.9443082 | AN13: 0.0093518 | AO13: 0.9443082 | AQ13: 0.5583335 | AR13: 0.5609328 | AT13: 0.0872284 | AU13: 0.5609328 | AW13: 0.1718903 | AX13: 0.9443082 | AZ13: 0.0164899 | BA13: 0.9443082 | BC13: 69 | BD13: 0.0545408 | BF13: 0.5609328 | BG13: 0.0545408 | BI13: 0.0545408 | BJ13: 0.0545408 | BL13: 0.9331667 | BM13: 0.0044887 | BO13: 0.0093518 | BP13: 0.0044887 | BR13: 0.5583335 | BS13: 0.0545408 | BU13: 0.0872284 | BV13: 0.0545408 | BX13: 0.1718903 | BY13: 0.0044887 | CA13: 0.0164899 | CB13: 0.0044887 | CD13: 66 | CE13: 0.9331667 | CG13: 0.9443082 | CH13: 0.9331667 | CJ13: 0.0044887 | CK13: 0.9331667 | CM13: 0.9331667 | CN13: 0.9331667 | CP13: 0.0093518 | CQ13: 0.9331667 | CS13: 0.2302241 | CT13: 0.9331667 | CV13: 0.0093667 | CW13: 0.9331667 | CY13: 0.1718903 | CZ13: 0.9331667 | DB13: 0.0164899 | DC13: 0.9331667 | DE13: 66 | DF13: 0.0093518 | DH13: 0.9443082 | DI13: 0.0093518 | DK13: 0.0044887 | DL13: 0.0093518 | DN13: 0.9331667 | DO13: 0.0093518 | DQ13: 0.0093518 | DR13: 0.0093518 | DT13: 0.2302241 | DU13: 0.0093518 | DW13: 0.0093667 | DX13: 0.0093518 | DZ13: 0.1718903 | EA13: 0.0093518 | EC13: 0.0164899 | ED13: 0.0093518 | EF13: 69 | EG13: 0.5583335 | EI13: 0.5609328 | EJ13: 0.5583335 | EL13: 0.0545408 | EM13: 0.5583335 | EO13: 0.9331667 | EP13: 0.2302241 | ER13: 0.0093518 | ES13: 0.2302241 | EU13: 0.5583335 | EV13: 0.5583335 | EX13: 0.0872284 | EY13: 0.5583335 | FA13: 0.1718903 | FB13: 0.2302241 | FD13: 0.0164899 | FE13: 0.2302241 | FG13: 69 | FH13: 0.0872284 | FJ13: 0.5609328 | FK13: 0.0872284 | FM13: 0.0545408 | FN13: 0.0872284 | FP13: 0.9331667 | FQ13: 0.0093667 | FS13: 0.0093518 | FT13: 0.0093667 | FV13: 0.5583335 | FW13: 0.0872284 | FY13: 0.0872284 | FZ13: 0.0872284 | GB13: 0.1718903 | GC13: 0.0093667 | GE13: 0.0164899 | GF13: 0.0093667 | GH13: 66 | GI13: 0.1718903 | GK13: 0.9443082 | GL13: 0.1718903 | GN13: 0.0044887 | GO13: 0.1718903 | GQ13: 0.9331667 | GR13: 0.1718903 | GT13: 0.0093518 | GU13: 0.1718903 | GW13: 0.2302241 | GX13: 0.1718903 | GZ13: 0.0093667 | HA13: 0.1718903 | HC13: 0.1718903 | HD13: 0.1718903 | HF13: 0.0164899 | HG13: 0.1718903 | HI13: 66 | HJ13: 0.0164899 | HL13: 0.9443082 | HM13: 0.0164899 | HO13: 0.0044887 | HP13: 0.0164899 | HR13: 0.9331667 | HS13: 0.0164899 | HU13: 0.0093518 | HV13: 0.0164899 | HX13: 0.2302241 | HY13: 0.0164899 | IA13: 0.0093667 | IB13: 0.0164899
A14: 27 | B14: 27 | D14: 0.9076 | E14: 27 | G14: 0.0211 | H14: 27 | J14: 0.8987546 | K14: 77 | M14: 0.0096904 | N14: 77 | P14: 0.5601 | Q14: 27 | S14: 0.0283 | T14: 27 | V14: 0.1542501 | W14: 77 | Y14: 0.0138687 | Z14: 77 | AB14: 27 | AC14: 0.9076 | AE14: 0.9076 | AF14: 0.9076 | AH14: 0.0211 | AI14: 0.9076 | AK14: 0.8987546 | AL14: 0.9271963 | AN14: 0.0096904 | AO14: 0.9271963 | AQ14: 0.5601 | AR14: 0.9076 | AT14: 0.0283 | AU14: 0.9076 | AW14: 0.1542501 | AX14: 0.9271963 | AZ14: 0.0138687 | BA14: 0.9271963 | BC14: 27 | BD14: 0.0211 | BF14: 0.9076 | BG14: 0.0211 | BI14: 0.0211 | BJ14: 0.0211 | BL14: 0.8987546 | BM14: 0.005371 | BO14: 0.0096904 | BP14: 0.005371 | BR14: 0.5601 | BS14: 0.0211 | BU14: 0.0283 | BV14: 0.0211 | BX14: 0.1542501 | BY14: 0.005371 | CA14: 0.0138687 | CB14: 0.005371 | CD14: 77 | CE14: 0.8987546 | CG14: 0.9271963 | CH14: 0.8987546 | CJ14: 0.005371 | CK14: 0.8987546 | CM14: 0.8987546 | CN14: 0.8987546 | CP14: 0.0096904 | CQ14: 0.8987546 | CS14: 0.1837103 | CT14: 0.8987546 | CV14: 0.0096461 | CW14: 0.8987546 | CY14: 0.1542501 | CZ14: 0.8987546 | DB14: 0.0138687 | DC14: 0.8987546 | DE14: 77 | DF14: 0.0096904 | DH14: 0.9271963 | DI14: 0.0096904 | DK14: 0.005371 | DL14: 0.0096904 | DN14: 0.8987546 | DO14: 0.0096904 | DQ14: 0.0096904 | DR14: 0.0096904 | DT14: 0.1837103 | DU14: 0.0096904 | DW14: 0.0096461 | DX14: 0.0096904 | DZ14: 0.1542501 | EA14: 0.0096904 | EC14: 0.0138687 | ED14: 0.0096904 | EF14: 27 | EG14: 0.5601 | EI14: 0.9076 | EJ14: 0.5601 | EL14: 0.0211 | EM14: 0.5601 | EO14: 0.8987546 | EP14: 0.1837103 | ER14: 0.0096904 | ES14: 0.1837103 | EU14: 0.5601 | EV14: 0.5601 | EX14: 0.0283 | EY14: 0.5601 | FA14: 0.1542501 | FB14: 0.1837103 | FD14: 0.0138687 | FE14: 0.1837103 | FG14: 27 | FH14: 0.0283 | FJ14: 0.9076 | FK14: 0.0283 | FM14: 0.0211 | FN14: 0.0283 | FP14: 0.8987546 | FQ14: 0.0096461 | FS14: 0.0096904 | FT14: 0.0096461 | FV14: 0.5601 | FW14: 0.0283 | FY14: 0.0283 | FZ14: 0.0283 | GB14: 0.1542501 | GC14: 0.0096461 | GE14: 0.0138687 | GF14: 0.0096461 | GH14: 77 | GI14: 0.1542501 | GK14: 0.9271963 | GL14: 0.1542501 | GN14: 0.005371 | GO14: 0.1542501 | GQ14: 0.8987546 | GR14: 0.1542501 | GT14: 0.0096904 | GU14: 0.1542501 | GW14: 0.1837103 | GX14: 0.1542501 | GZ14: 0.0096461 | HA14: 0.1542501 | HC14: 0.1542501 | HD14: 0.1542501 | HF14: 0.0138687 | HG14: 0.1542501 | HI14: 77 | HJ14: 0.0138687 | HL14: 0.9271963 | HM14: 0.0138687 | HO14: 0.005371 | HP14: 0.0138687 | HR14: 0.8987546 | HS14: 0.0138687 | HU14: 0.0096904 | HV14: 0.0138687 | HX14: 0.1837103 | HY14: 0.0138687 | IA14: 0.0096461 | IB14: 0.0138687
A15: 10 | B15: 10 | D15: 0.9088547 | E15: 10 | G15: 0.025718 | H15: 10 | J15: 0.9188918 | K15: 29 | M15: 0.0511782 | N15: 29 | P15: 0.629227 | Q15: 10 | S15: 0.0604132 | T15: 10 | V15: 0.0140263 | W15: 29 | Y15: 0.0068075 | Z15: 29 | AB15: 10 | AC15: 0.9088547 | AE15: 0.9088547 | AF15: 0.9088547 | AH15: 0.025718 | AI15: 0.9088547 | AK15: 0.9188918 | AL15: 0.8751273 | AN15: 0.0511782 | AO15: 0.8751273 | AQ15: 0.629227 | AR15: 0.9088547 | AT15: 0.0604132 | AU15: 0.9088547 | AW15: 0.0140263 | AX15: 0.8751273 | AZ15: 0.0068075 | BA15: 0.8751273 | BC15: 10 | BD15: 0.025718 | BF15: 0.9088547 | BG15: 0.025718 | BI15: 0.025718 | BJ15: 0.025718 | BL15: 0.9188918 | BM15: 0.02409 | BO15: 0.0511782 | BP15: 0.02409 | BR15: 0.629227 | BS15: 0.025718 | BU15: 0.0604132 | BV15: 0.025718 | BX15: 0.0140263 | BY15: 0.02409 | CA15: 0.0068075 | CB15: 0.02409 | CD15: 29 | CE15: 0.9188918 | CG15: 0.8751273 | CH15: 0.9188918 | CJ15: 0.02409 | CK15: 0.9188918 | CM15: 0.57 | CN15: 0.57 | CP15: 0.22 | CQ15: 0.57 | CS15: 0.0377607 | CT15: 0.9188918 | CV15: 0.0078524 | CW15: 0.9188918 | CY15: 0.11 | CZ15: 0.57 | DB15: 0.09 | DC15: 0.57 | DE15: 29 | DF15: 0.0511782 | DH15: 0.8751273 | DI15: 0.0511782 | DK15: 0.02409 | DL15: 0.0511782 | DN15: 0.57 | DO15: 0.22 | DQ15: 0.22 | DR15: 0.22 | DT15: 0.0377607 | DU15: 0.0511782 | DW15: 0.0078524 | DX15: 0.0511782 | DZ15: 0.11 | EA15: 0.22 | EC15: 0.09 | ED15: 0.22 | EF15: 10 | EG15: 0.629227 | EI15: 0.9088547 | EJ15: 0.629227 | EL15: 0.025718 | EM15: 0.629227 | EO15: 0.9188918 | EP15: 0.0377607 | ER15: 0.0511782 | ES15: 0.0377607 | EU15: 0.629227 | EV15: 0.629227 | EX15: 0.0604132 | EY15: 0.629227 | FA15: 0.0140263 | FB15: 0.0377607 | FD15: 0.0068075 | FE15: 0.0377607 | FG15: 10 | FH15: 0.0604132 | FJ15: 0.9088547 | FK15: 0.0604132 | FM15: 0.025718 | FN15: 0.0604132 | FP15: 0.9188918 | FQ15: 0.0078524 | FS15: 0.0511782 | FT15: 0.0078524 | FV15: 0.629227 | FW15: 0.0604132 | FY15: 0.0604132 | FZ15: 0.0604132 | GB15: 0.0140263 | GC15: 0.0078524 | GE15: 0.0068075 | GF15: 0.0078524 | GH15: 29 | GI15: 0.0140263 | GK15: 0.8751273 | GL15: 0.0140263 | GN15: 0.02409 | GO15: 0.0140263 | GQ15: 0.57 | GR15: 0.11 | GT15: 0.22 | GU15: 0.11 | GW15: 0.0377607 | GX15: 0.0140263 | GZ15: 0.0078524 | HA15: 0.0140263 | HC15: 0.11 | HD15: 0.11 | HF15: 0.09 | HG15: 0.11 | HI15: 29 | HJ15: 0.0068075 | HL15: 0.8751273 | HM15: 0.0068075 | HO15: 0.02409 | HP15: 0.0068075 | HR15: 0.57 | HS15: 0.09 | HU15: 0.22 | HV15: 0.09 | HX15: 0.0377607 | HY15: 0.0068075 | IA15: 0.0078524 | IB15: 0.0068075
A16: 15 | B16: 15 | D16: 0.957 | E16: 15 | G16: 0.009 | H16: 15 | J16: 0.899087 | K16: 32 | M16: 0.0076005 | N16: 32 | P16: 0.53 | Q16: 15 | S16: 0.002 | T16: 15 | V16: 0.1090741 | W16: 32 | Y16: 0.0074116 | Z16: 32 | AB16: 15 | AC16: 0.957 | AE16: 0.957 | AF16: 0.957 | AH16: 0.009 | AI16: 0.957 | AK16: 0.899087 | AL16: 0.9038665 | AN16: 0.0076005 | AO16: 0.9038665 | AQ16: 0.53 | AR16: 0.957 | AT16: 0.002 | AU16: 0.957 | AW16: 0.1090741 | AX16: 0.9038665 | AZ16: 0.0074116 | BA16: 0.9038665 | BC16: 15 | BD16: 0.009 | BF16: 0.957 | BG16: 0.009 | BI16: 0.009 | BJ16: 0.009 | BL16: 0.899087 | BM16: 0.0041074 | BO16: 0.0076005 | BP16: 0.0041074 | BR16: 0.53 | BS16: 0.009 | BU16: 0.002 | BV16: 0.009 | BX16: 0.1090741 | BY16: 0.0041074 | CA16: 0.0074116 | CB16: 0.0041074 | CD16: 32 | CE16: 0.899087 | CG16: 0.9038665 | CH16: 0.899087 | CJ16: 0.0041074 | CK16: 0.899087 | CM16: 0.9188918 | CN16: 0.9188918 | CP16: 0.0511782 | CQ16: 0.9188918 | CS16: 0.2555795 | CT16: 0.899087 | CV16: 0.0072781 | CW16: 0.899087 | CY16: 0.0140263 | CZ16: 0.9188918 | DB16: 0.0068075 | DC16: 0.9188918 | DE16: 32 | DF16: 0.0076005 | DH16: 0.9038665 | DI16: 0.0076005 | DK16: 0.0041074 | DL16: 0.0076005 | DN16: 0.9188918 | DO16: 0.0511782 | DQ16: 0.0511782 | DR16: 0.0511782 | DT16: 0.2555795 | DU16: 0.0076005 | DW16: 0.0072781 | DX16: 0.0076005 | DZ16: 0.0140263 | EA16: 0.0511782 | EC16: 0.0068075 | ED16: 0.0511782 | EF16: 15 | EG16: 0.53 | EI16: 0.957 | EJ16: 0.53 | EL16: 0.009 | EM16: 0.53 | EO16: 0.899087 | EP16: 0.2555795 | ER16: 0.0076005 | ES16: 0.2555795 | EU16: 0.53 | EV16: 0.53 | EX16: 0.002 | EY16: 0.53 | FA16: 0.1090741 | FB16: 0.2555795 | FD16: 0.0074116 | FE16: 0.2555795 | FG16: 15 | FH16: 0.002 | FJ16: 0.957 | FK16: 0.002 | FM16: 0.009 | FN16: 0.002 | FP16: 0.899087 | FQ16: 0.0072781 | FS16: 0.0076005 | FT16: 0.0072781 | FV16: 0.53 | FW16: 0.002 | FY16: 0.002 | FZ16: 0.002 | GB16: 0.1090741 | GC16: 0.0072781 | GE16: 0.0074116 | GF16: 0.0072781 | GH16: 32 | GI16: 0.1090741 | GK16: 0.9038665 | GL16: 0.1090741 | GN16: 0.0041074 | GO16: 0.1090741 | GQ16: 0.9188918 | GR16: 0.0140263 | GT16: 0.0511782 | GU16: 0.0140263 | GW16: 0.2555795 | GX16: 0.1090741 | GZ16: 0.0072781 | HA16: 0.1090741 | HC16: 0.0140263 | HD16: 0.0140263 | HF16: 0.0068075 | HG16: 0.0140263 | HI16: 32 | HJ16: 0.0074116 | HL16: 0.9038665 | HM16: 0.0074116 | HO16: 0.0041074 | HP16: 0.0074116 | HR16: 0.9188918 | HS16: 0.0068075 | HU16: 0.0511782 | HV16: 0.0068075 | HX16: 0.2555795 | HY16: 0.0074116 | IA16: 0.0072781 | IB16: 0.0074116
A17: 16 | B17: 16 | D17: 0.852 | E17: 16 | G17: 0.044 | H17: 16 | J17: 0.904 | K17: 80 | M17: 0.008163265306 | N17: 80 | P17: 0.576 | Q17: 16 | S17: 0.067 | T17: 16 | V17: 0.1629675 | W17: 37 | Y17: 0.02341638 | Z17: 37 | AB17: 16 | AC17: 0.852 | AE17: 0.852 | AF17: 0.852 | AH17: 0.044 | AI17: 0.852 | AK17: 0.904 | AL17: 0.833 | AN17: 0.008163265306 | AO17: 0.833 | AQ17: 0.576 | AR17: 0.852 | AT17: 0.067 | AU17: 0.852 | AW17: 0.1629675 | AX17: 0.8373131 | AZ17: 0.02341638 | BA17: 0.8373131 | BC17: 16 | BD17: 0.044 | BF17: 0.852 | BG17: 0.044 | BI17: 0.044 | BJ17: 0.044 | BL17: 0.904 | BM17: 0.009948979592 | BO17: 0.008163265306 | BP17: 0.009948979592 | BR17: 0.576 | BS17: 0.044 | BU17: 0.067 | BV17: 0.044 | BX17: 0.1629675 | BY17: 0.021120195 | CA17: 0.02341638 | CB17: 0.021120195 | CD17: 80 | CE17: 0.904 | CG17: 0.833 | CH17: 0.904 | CJ17: 0.009948979592 | CK17: 0.904 | CM17: 0.899087 | CN17: 0.899087 | CP17: 0.0076005 | CQ17: 0.899087 | CS17: 0.2989058 | CT17: 0.8308182 | CV17: 0.01476938 | CW17: 0.8308182 | CY17: 0.1090741 | CZ17: 0.899087 | DB17: 0.0074116 | DC17: 0.899087 | DE17: 80 | DF17: 0.008163265306 | DH17: 0.833 | DI17: 0.008163265306 | DK17: 0.009948979592 | DL17: 0.008163265306 | DN17: 0.899087 | DO17: 0.0076005 | DQ17: 0.0076005 | DR17: 0.0076005 | DT17: 0.2989058 | DU17: 0.021120195 | DW17: 0.01476938 | DX17: 0.021120195 | DZ17: 0.1090741 | EA17: 0.0076005 | EC17: 0.0074116 | ED17: 0.0076005 | EF17: 16 | EG17: 0.576 | EI17: 0.852 | EJ17: 0.576 | EL17: 0.044 | EM17: 0.576 | EO17: 0.8308182 | EP17: 0.2989058 | ER17: 0.021120195 | ES17: 0.2989058 | EU17: 0.576 | EV17: 0.576 | EX17: 0.067 | EY17: 0.576 | FA17: 0.1629675 | FB17: 0.2989058 | FD17: 0.02341638 | FE17: 0.2989058 | FG17: 16 | FH17: 0.067 | FJ17: 0.852 | FK17: 0.067 | FM17: 0.044 | FN17: 0.067 | FP17: 0.8308182 | FQ17: 0.01476938 | FS17: 0.021120195 | FT17: 0.01476938 | FV17: 0.576 | FW17: 0.067 | FY17: 0.067 | FZ17: 0.067 | GB17: 0.1629675 | GC17: 0.01476938 | GE17: 0.02341638 | GF17: 0.01476938 | GH17: 37 | GI17: 0.1629675 | GK17: 0.8373131 | GL17: 0.1629675 | GN17: 0.021120195 | GO17: 0.1629675 | GQ17: 0.899087 | GR17: 0.1090741 | GT17: 0.0076005 | GU17: 0.1090741 | GW17: 0.2989058 | GX17: 0.1629675 | GZ17: 0.01476938 | HA17: 0.1629675 | HC17: 0.1090741 | HD17: 0.1090741 | HF17: 0.0074116 | HG17: 0.1090741 | HI17: 37 | HJ17: 0.02341638 | HL17: 0.8373131 | HM17: 0.02341638 | HO17: 0.021120195 | HP17: 0.02341638 | HR17: 0.899087 | HS17: 0.0074116 | HU17: 0.0076005 | HV17: 0.0074116 | HX17: 0.2989058 | HY17: 0.02341638 | IA17: 0.01476938 | IB17: 0.02341638
A18: 66 | B18: 66 | D18: 0.9443082 | E18: 66 | G18: 0.0044887 | H18: 66 | J18: 0.93 | K18: 73 | M18: 0.004846938776 | N18: 73 | P18: 0.2302241 | Q18: 66 | S18: 0.0093667 | T18: 66 | V18: 0.1847095 | W18: 31 | Y18: 0.04294444 | Z18: 31 | AB18: 66 | AC18: 0.9443082 | AE18: 0.9443082 | AF18: 0.9443082 | AH18: 0.0044887 | AI18: 0.9443082 | AK18: 0.93 | AL18: 0.862 | AN18: 0.004846938776 | AO18: 0.862 | AQ18: 0.2302241 | AR18: 0.9443082 | AT18: 0.0093667 | AU18: 0.9443082 | AW18: 0.1847095 | AX18: 0.7221035 | AZ18: 0.04294444 | BA18: 0.7221035 | BC18: 66 | BD18: 0.0044887 | BF18: 0.9443082 | BG18: 0.0044887 | BI18: 0.0044887 | BJ18: 0.0044887 | BL18: 0.93 | BM18: 0.007142857143 | BO18: 0.004846938776 | BP18: 0.007142857143 | BR18: 0.2302241 | BS18: 0.0044887 | BU18: 0.0093667 | BV18: 0.0044887 | BX18: 0.1847095 | BY18: 0.01482952 | CA18: 0.04294444 | CB18: 0.01482952 | CD18: 73 | CE18: 0.93 | CG18: 0.862 | CH18: 0.93 | CJ18: 0.007142857143 | CK18: 0.93 | CM18: 0.904 | CN18: 0.904 | CP18: 0.008163265306 | CQ18: 0.904 | CS18: 0.2568042 | CT18: 0.6955553 | CV18: 0.01732538 | CW18: 0.6955553 | CY18: 0.1629675 | CZ18: 0.8308182 | DB18: 0.02341638 | DC18: 0.8308182 | DE18: 73 | DF18: 0.004846938776 | DH18: 0.862 | DI18: 0.004846938776 | DK18: 0.007142857143 | DL18: 0.004846938776 | DN18: 0.904 | DO18: 0.008163265306 | DQ18: 0.008163265306 | DR18: 0.008163265306 | DT18: 0.2568042 | DU18: 0.04922418 | DW18: 0.01732538 | DX18: 0.04922418 | DZ18: 0.1629675 | EA18: 0.021120195 | EC18: 0.02341638 | ED18: 0.021120195 | EF18: 66 | EG18: 0.2302241 | EI18: 0.9443082 | EJ18: 0.2302241 | EL18: 0.0044887 | EM18: 0.2302241 | EO18: 0.6955553 | EP18: 0.2568042 | ER18: 0.04922418 | ES18: 0.2568042 | EU18: 0.2302241 | EV18: 0.2302241 | EX18: 0.0093667 | EY18: 0.2302241 | FA18: 0.1847095 | FB18: 0.2568042 | FD18: 0.04294444 | FE18: 0.2568042 | FG18: 66 | FH18: 0.0093667 | FJ18: 0.9443082 | FK18: 0.0093667 | FM18: 0.0044887 | FN18: 0.0093667 | FP18: 0.6955553 | FQ18: 0.01732538 | FS18: 0.04922418 | FT18: 0.01732538 | FV18: 0.2302241 | FW18: 0.0093667 | FY18: 0.0093667 | FZ18: 0.0093667 | GB18: 0.1847095 | GC18: 0.01732538 | GE18: 0.04294444 | GF18: 0.01732538 | GH18: 31 | GI18: 0.1847095 | GK18: 0.7221035 | GL18: 0.1847095 | GN18: 0.01482952 | GO18: 0.1847095 | GQ18: 0.8308182 | GR18: 0.1629675 | GT18: 0.021120195 | GU18: 0.1629675 | GW18: 0.2568042 | GX18: 0.1847095 | GZ18: 0.01732538 | HA18: 0.1847095 | HC18: 0.1629675 | HD18: 0.1629675 | HF18: 0.02341638 | HG18: 0.1629675 | HI18: 31 | HJ18: 0.04294444 | HL18: 0.7221035 | HM18: 0.04294444 | HO18: 0.01482952 | HP18: 0.04294444 | HR18: 0.8308182 | HS18: 0.02341638 | HU18: 0.021120195 | HV18: 0.02341638 | HX18: 0.2568042 | HY18: 0.04294444 | IA18: 0.01732538 | IB18: 0.04294444
A19: 77 | B19: 77 | D19: 0.9271963 | E19: 77 | G19: 0.005371 | H19: 77 | J19: 0.8308182 | K19: 37 | M19: 0.021120195 | N19: 37 | P19: 0.1837103 | Q19: 77 | S19: 0.0096461 | T19: 77 | V19: 0.255194 | W19: 36 | Y19: 0.0207407 | Z19: 36 | AB19: 77 | AC19: 0.9271963 | AE19: 0.9271963 | AF19: 0.9271963 | AH19: 0.005371 | AI19: 0.9271963 | AK19: 0.8308182 | AL19: 0.8373131 | AN19: 0.021120195 | AO19: 0.8373131 | AQ19: 0.1837103 | AR19: 0.9271963 | AT19: 0.0096461 | AU19: 0.9271963 | AW19: 0.255194 | AX19: 0.8197486 | AZ19: 0.0207407 | BA19: 0.8197486 | BC19: 77 | BD19: 0.005371 | BF19: 0.9271963 | BG19: 0.005371 | BI19: 0.005371 | BJ19: 0.005371 | BL19: 0.8308182 | BM19: 0.021120195 | BO19: 0.021120195 | BP19: 0.021120195 | BR19: 0.1837103 | BS19: 0.005371 | BU19: 0.0096461 | BV19: 0.005371 | BX19: 0.255194 | BY19: 0.0083981 | CA19: 0.0207407 | CB19: 0.0083981 | CD19: 37 | CE19: 0.8308182 | CG19: 0.8373131 | CH19: 0.8308182 | CJ19: 0.021120195 | CK19: 0.8308182 | CM19: 0.93 | CN19: 0.93 | CP19: 0.004846938776 | CQ19: 0.93 | CS19: 0.1954802 | CT19: 0.7681781 | CV19: 0.0106035 | CW19: 0.7681781 | CY19: 0.1847095 | CZ19: 0.6955553 | DB19: 0.04294444 | DC19: 0.6955553 | DE19: 37 | DF19: 0.021120195 | DH19: 0.8373131 | DI19: 0.021120195 | DK19: 0.021120195 | DL19: 0.021120195 | DN19: 0.93 | DO19: 0.004846938776 | DQ19: 0.004846938776 | DR19: 0.004846938776 | DT19: 0.1954802 | DU19: 0.0151109 | DW19: 0.0106035 | DX19: 0.0151109 | DZ19: 0.1847095 | EA19: 0.04922418 | EC19: 0.04294444 | ED19: 0.04922418 | EF19: 77 | EG19: 0.1837103 | EI19: 0.9271963 | EJ19: 0.1837103 | EL19: 0.005371 | EM19: 0.1837103 | EO19: 0.7681781 | EP19: 0.1954802 | ER19: 0.0151109 | ES19: 0.1954802 | EU19: 0.1837103 | EV19: 0.1837103 | EX19: 0.0096461 | EY19: 0.1837103 | FA19: 0.255194 | FB19: 0.1954802 | FD19: 0.0207407 | FE19: 0.1954802 | FG19: 77 | FH19: 0.0096461 | FJ19: 0.9271963 | FK19: 0.0096461 | FM19: 0.005371 | FN19: 0.0096461 | FP19: 0.7681781 | FQ19: 0.0106035 | FS19: 0.0151109 | FT19: 0.0106035 | FV19: 0.1837103 | FW19: 0.0096461 | FY19: 0.0096461 | FZ19: 0.0096461 | GB19: 0.255194 | GC19: 0.0106035 | GE19: 0.0207407 | GF19: 0.0106035 | GH19: 36 | GI19: 0.255194 | GK19: 0.8197486 | GL19: 0.255194 | GN19: 0.0083981 | GO19: 0.255194 | GQ19: 0.6955553 | GR19: 0.1847095 | GT19: 0.04922418 | GU19: 0.1847095 | GW19: 0.1954802 | GX19: 0.255194 | GZ19: 0.0106035 | HA19: 0.255194 | HC19: 0.1847095 | HD19: 0.1847095 | HF19: 0.04294444 | HG19: 0.1847095 | HI19: 36 | HJ19: 0.0207407 | HL19: 0.8197486 | HM19: 0.0207407 | HO19: 0.0083981 | HP19: 0.0207407 | HR19: 0.6955553 | HS19: 0.04294444 | HU19: 0.04922418 | HV19: 0.04294444 | HX19: 0.1954802 | HY19: 0.0207407 | IA19: 0.0106035 | IB19: 0.0207407
A20: 29 | B20: 29 | D20: 0.8751273 | E20: 29 | G20: 0.02409 | H20: 29 | J20: 0.6955553 | K20: 31 | M20: 0.04922418 | N20: 31 | P20: 0.0377607 | Q20: 29 | S20: 0.0078524 | T20: 29 | V20: 0.2071974 | W20: 36 | Y20: 0.0157574 | Z20: 36 | AB20: 29 | AC20: 0.8751273 | AE20: 0.8751273 | AF20: 0.8751273 | AH20: 0.02409 | AI20: 0.8751273 | AK20: 0.6955553 | AL20: 0.7221035 | AN20: 0.04922418 | AO20: 0.7221035 | AQ20: 0.0377607 | AR20: 0.8751273 | AT20: 0.0078524 | AU20: 0.8751273 | AW20: 0.2071974 | AX20: 0.819925 | AZ20: 0.0157574 | BA20: 0.819925 | BC20: 29 | BD20: 0.02409 | BF20: 0.8751273 | BG20: 0.02409 | BI20: 0.02409 | BJ20: 0.02409 | BL20: 0.6955553 | BM20: 0.01482952 | BO20: 0.04922418 | BP20: 0.01482952 | BR20: 0.0377607 | BS20: 0.02409 | BU20: 0.0078524 | BV20: 0.02409 | BX20: 0.2071974 | BY20: 0.0067837 | CA20: 0.0157574 | CB20: 0.0067837 | CD20: 31 | CE20: 0.6955553 | CG20: 0.7221035 | CH20: 0.6955553 | CJ20: 0.01482952 | CK20: 0.6955553 | CM20: 0.8308182 | CN20: 0.8308182 | CP20: 0.021120195 | CQ20: 0.8308182 | CS20: 0.2214644 | CT20: 0.809518 | CV20: 0.008711 | CW20: 0.809518 | CY20: 0.255194 | CZ20: 0.7681781 | DB20: 0.0207407 | DC20: 0.7681781 | DE20: 31 | DF20: 0.04922418 | DH20: 0.7221035 | DI20: 0.04922418 | DK20: 0.01482952 | DL20: 0.04922418 | DN20: 0.8308182 | DO20: 0.021120195 | DQ20: 0.021120195 | DR20: 0.021120195 | DT20: 0.2214644 | DU20: 0.0129869 | DW20: 0.008711 | DX20: 0.0129869 | DZ20: 0.255194 | EA20: 0.0151109 | EC20: 0.0207407 | ED20: 0.0151109 | EF20: 29 | EG20: 0.0377607 | EI20: 0.8751273 | EJ20: 0.0377607 | EL20: 0.02409 | EM20: 0.0377607 | EO20: 0.809518 | EP20: 0.2214644 | ER20: 0.0129869 | ES20: 0.2214644 | EU20: 0.0377607 | EV20: 0.0377607 | EX20: 0.0078524 | EY20: 0.0377607 | FA20: 0.2071974 | FB20: 0.2214644 | FD20: 0.0157574 | FE20: 0.2214644 | FG20: 29 | FH20: 0.0078524 | FJ20: 0.8751273 | FK20: 0.0078524 | FM20: 0.02409 | FN20: 0.0078524 | FP20: 0.809518 | FQ20: 0.008711 | FS20: 0.0129869 | FT20: 0.008711 | FV20: 0.0377607 | FW20: 0.0078524 | FY20: 0.0078524 | FZ20: 0.0078524 | GB20: 0.2071974 | GC20: 0.008711 | GE20: 0.0157574 | GF20: 0.008711 | GH20: 36 | GI20: 0.2071974 | GK20: 0.819925 | GL20: 0.2071974 | GN20: 0.0067837 | GO20: 0.2071974 | GQ20: 0.7681781 | GR20: 0.255194 | GT20: 0.0151109 | GU20: 0.255194 | GW20: 0.2214644 | GX20: 0.2071974 | GZ20: 0.008711 | HA20: 0.2071974 | HC20: 0.255194 | HD20: 0.255194 | HF20: 0.0207407 | HG20: 0.255194 | HI20: 36 | HJ20: 0.0157574 | HL20: 0.819925 | HM20: 0.0157574 | HO20: 0.0067837 | HP20: 0.0157574 | HR20: 0.7681781 | HS20: 0.0207407 | HU20: 0.0151109 | HV20: 0.0207407 | HX20: 0.2214644 | HY20: 0.0157574 | IA20: 0.008711 | IB20: 0.0157574
A21: 32 | B21: 32 | D21: 0.9038665 | E21: 32 | G21: 0.0041074 | H21: 32 | J21: 0.7681781 | K21: 36 | M21: 0.0151109 | N21: 36 | P21: 0.2555795 | Q21: 32 | S21: 0.0072781 | T21: 32 | V21: 0.2603496 | W21: 28 | Y21: 0.0136047 | Z21: 28 | AB21: 32 | AC21: 0.9038665 | AE21: 0.9038665 | AF21: 0.9038665 | AH21: 0.0041074 | AI21: 0.9038665 | AK21: 0.7681781 | AL21: 0.8197486 | AN21: 0.0151109 | AO21: 0.8197486 | AQ21: 0.2555795 | AR21: 0.9038665 | AT21: 0.0072781 | AU21: 0.9038665 | AW21: 0.2603496 | AX21: 0.8531265 | AZ21: 0.0136047 | BA21: 0.8531265 | BC21: 32 | BD21: 0.0041074 | BF21: 0.9038665 | BG21: 0.0041074 | BI21: 0.0041074 | BJ21: 0.0041074 | BL21: 0.7681781 | BM21: 0.0083981 | BO21: 0.0151109 | BP21: 0.0083981 | BR21: 0.2555795 | BS21: 0.0041074 | BU21: 0.0072781 | BV21: 0.0041074 | BX21: 0.2603496 | BY21: 0.0065726 | CA21: 0.0136047 | CB21: 0.0065726 | CD21: 36 | CE21: 0.7681781 | CG21: 0.8197486 | CH21: 0.7681781 | CJ21: 0.0083981 | CK21: 0.7681781 | CM21: 0.6955553 | CN21: 0.6955553 | CP21: 0.04922418 | CQ21: 0.6955553 | CS21: 0.4917002 | CT21: 0.8157335 | CV21: 0.0111887 | CW21: 0.8157335 | CY21: 0.2071974 | CZ21: 0.809518 | DB21: 0.0157574 | DC21: 0.809518 | DE21: 36 | DF21: 0.0151109 | DH21: 0.8197486 | DI21: 0.0151109 | DK21: 0.0083981 | DL21: 0.0151109 | DN21: 0.6955553 | DO21: 0.04922418 | DQ21: 0.04922418 | DR21: 0.04922418 | DT21: 0.4917002 | DU21: 0.0099826 | DW21: 0.0111887 | DX21: 0.0099826 | DZ21: 0.2071974 | EA21: 0.0129869 | EC21: 0.0157574 | ED21: 0.0129869 | EF21: 32 | EG21: 0.2555795 | EI21: 0.9038665 | EJ21: 0.2555795 | EL21: 0.0041074 | EM21: 0.2555795 | EO21: 0.8157335 | EP21: 0.4917002 | ER21: 0.0099826 | ES21: 0.4917002 | EU21: 0.2555795 | EV21: 0.2555795 | EX21: 0.0072781 | EY21: 0.2555795 | FA21: 0.2603496 | FB21: 0.4917002 | FD21: 0.0136047 | FE21: 0.4917002 | FG21: 32 | FH21: 0.0072781 | FJ21: 0.9038665 | FK21: 0.0072781 | FM21: 0.0041074 | FN21: 0.0072781 | FP21: 0.8157335 | FQ21: 0.0111887 | FS21: 0.0099826 | FT21: 0.0111887 | FV21: 0.2555795 | FW21: 0.0072781 | FY21: 0.0072781 | FZ21: 0.0072781 | GB21: 0.2603496 | GC21: 0.0111887 | GE21: 0.0136047 | GF21: 0.0111887 | GH21: 28 | GI21: 0.2603496 | GK21: 0.8531265 | GL21: 0.2603496 | GN21: 0.0065726 | GO21: 0.2603496 | GQ21: 0.809518 | GR21: 0.2071974 | GT21: 0.0129869 | GU21: 0.2071974 | GW21: 0.4917002 | GX21: 0.2603496 | GZ21: 0.0111887 | HA21: 0.2603496 | HC21: 0.2071974 | HD21: 0.2071974 | HF21: 0.0157574 | HG21: 0.2071974 | HI21: 28 | HJ21: 0.0136047 | HL21: 0.8531265 | HM21: 0.0136047 | HO21: 0.0065726 | HP21: 0.0136047 | HR21: 0.809518 | HS21: 0.0157574 | HU21: 0.0129869 | HV21: 0.0157574 | HX21: 0.4917002 | HY21: 0.0136047 | IA21: 0.0111887 | IB21: 0.0136047
A22: 80 | B22: 80 | D22: 0.833 | E22: 80 | G22: 0.009948979592 | H22: 80 | J22: 0.809518 | K22: 36 | M22: 0.0129869 | N22: 36 | P22: 0.2989058 | Q22: 37 | S22: 0.01476938 | T22: 37 | V22: 0.2462971 | W22: 32 | Y22: 0.0150279 | Z22: 32 | AB22: 80 | AC22: 0.833 | AE22: 0.833 | AF22: 0.833 | AH22: 0.009948979592 | AI22: 0.833 | AK22: 0.809518 | AL22: 0.819925 | AN22: 0.0129869 | AO22: 0.819925 | AQ22: 0.2989058 | AR22: 0.8373131 | AT22: 0.01476938 | AU22: 0.8373131 | AW22: 0.2462971 | AX22: 0.8710221 | AZ22: 0.0150279 | BA22: 0.8710221 | BC22: 80 | BD22: 0.009948979592 | BF22: 0.833 | BG22: 0.009948979592 | BI22: 0.009948979592 | BJ22: 0.009948979592 | BL22: 0.809518 | BM22: 0.0067837 | BO22: 0.0129869 | BP22: 0.0067837 | BR22: 0.2989058 | BS22: 0.021120195 | BU22: 0.01476938 | BV22: 0.021120195 | BX22: 0.2462971 | BY22: 0.0104475 | CA22: 0.0150279 | CB22: 0.0104475 | CD22: 36 | CE22: 0.809518 | CG22: 0.819925 | CH22: 0.809518 | CJ22: 0.0067837 | CK22: 0.809518 | CM22: 0.7681781 | CN22: 0.7681781 | CP22: 0.0151109 | CQ22: 0.7681781 | CS22: 0.2420519 | CT22: 0.901961 | CV22: 0.0164469 | CW22: 0.901961 | CY22: 0.2603496 | CZ22: 0.8157335 | DB22: 0.0136047 | DC22: 0.8157335 | DE22: 36 | DF22: 0.0129869 | DH22: 0.819925 | DI22: 0.0129869 | DK22: 0.0067837 | DL22: 0.0129869 | DN22: 0.7681781 | DO22: 0.0151109 | DQ22: 0.0151109 | DR22: 0.0151109 | DT22: 0.2420519 | DU22: 0.0086263 | DW22: 0.0164469 | DX22: 0.0086263 | DZ22: 0.2603496 | EA22: 0.0099826 | EC22: 0.0136047 | ED22: 0.0099826 | EF22: 37 | EG22: 0.2989058 | EI22: 0.8373131 | EJ22: 0.2989058 | EL22: 0.021120195 | EM22: 0.2989058 | EO22: 0.901961 | EP22: 0.2420519 | ER22: 0.0086263 | ES22: 0.2420519 | EU22: 0.2989058 | EV22: 0.2989058 | EX22: 0.01476938 | EY22: 0.2989058 | FA22: 0.2462971 | FB22: 0.2420519 | FD22: 0.0150279 | FE22: 0.2420519 | FG22: 37 | FH22: 0.01476938 | FJ22: 0.8373131 | FK22: 0.01476938 | FM22: 0.021120195 | FN22: 0.01476938 | FP22: 0.901961 | FQ22: 0.0164469 | FS22: 0.0086263 | FT22: 0.0164469 | FV22: 0.2989058 | FW22: 0.01476938 | FY22: 0.01476938 | FZ22: 0.01476938 | GB22: 0.2462971 | GC22: 0.0164469 | GE22: 0.0150279 | GF22: 0.0164469 | GH22: 32 | GI22: 0.2462971 | GK22: 0.8710221 | GL22: 0.2462971 | GN22: 0.0104475 | GO22: 0.2462971 | GQ22: 0.8157335 | GR22: 0.2603496 | GT22: 0.0099826 | GU22: 0.2603496 | GW22: 0.2420519 | GX22: 0.2462971 | GZ22: 0.0164469 | HA22: 0.2462971 | HC22: 0.2603496 | HD22: 0.2603496 | HF22: 0.0136047 | HG22: 0.2603496 | HI22: 32 | HJ22: 0.0150279 | HL22: 0.8710221 | HM22: 0.0150279 | HO22: 0.0104475 | HP22: 0.0150279 | HR22: 0.8157335 | HS22: 0.0136047 | HU22: 0.0099826 | HV22: 0.0136047 | HX22: 0.2420519 | HY22: 0.0150279 | IA22: 0.0164469 | IB22: 0.0150279
A23: 73 | B23: 73 | D23: 0.862 | E23: 73 | G23: 0.007142857143 | H23: 73 | J23: 0.8157335 | K23: 28 | M23: 0.0099826 | N23: 28 | P23: 0.2568042 | Q23: 31 | S23: 0.01732538 | T23: 31 | V23: 0.4403041 | W23: 34 | Y23: 0.0123552 | Z23: 34 | AB23: 73 | AC23: 0.862 | AE23: 0.862 | AF23: 0.862 | AH23: 0.007142857143 | AI23: 0.862 | AK23: 0.8157335 | AL23: 0.8531265 | AN23: 0.0099826 | AO23: 0.8531265 | AQ23: 0.2568042 | AR23: 0.7221035 | AT23: 0.01732538 | AU23: 0.7221035 | AW23: 0.4403041 | AX23: 0.903058 | AZ23: 0.0123552 | BA23: 0.903058 | BC23: 73 | BD23: 0.007142857143 | BF23: 0.862 | BG23: 0.007142857143 | BI23: 0.007142857143 | BJ23: 0.007142857143 | BL23: 0.8157335 | BM23: 0.0065726 | BO23: 0.0099826 | BP23: 0.0065726 | BR23: 0.2568042 | BS23: 0.01482952 | BU23: 0.01732538 | BV23: 0.01482952 | BX23: 0.4403041 | BY23: 0.0055264 | CA23: 0.0123552 | CB23: 0.0055264 | CD23: 28 | CE23: 0.8157335 | CG23: 0.8531265 | CH23: 0.8157335 | CJ23: 0.0065726 | CK23: 0.8157335 | CM23: 0.809518 | CN23: 0.809518 | CP23: 0.0129869 | CQ23: 0.809518 | CS23: 0.4191641 | CT23: 0.9052528 | CV23: 0.010378 | CW23: 0.9052528 | CY23: 0.2462971 | CZ23: 0.901961 | DB23: 0.0150279 | DC23: 0.901961 | DE23: 28 | DF23: 0.0099826 | DH23: 0.8531265 | DI23: 0.0099826 | DK23: 0.0065726 | DL23: 0.0099826 | DN23: 0.809518 | DO23: 0.0129869 | DQ23: 0.0129869 | DR23: 0.0129869 | DT23: 0.4191641 | DU23: 0.0065606 | DW23: 0.010378 | DX23: 0.0065606 | DZ23: 0.2462971 | EA23: 0.0086263 | EC23: 0.0150279 | ED23: 0.0086263 | EF23: 31 | EG23: 0.2568042 | EI23: 0.7221035 | EJ23: 0.2568042 | EL23: 0.01482952 | EM23: 0.2568042 | EO23: 0.9052528 | EP23: 0.4191641 | ER23: 0.0065606 | ES23: 0.4191641 | EU23: 0.2568042 | EV23: 0.2568042 | EX23: 0.01732538 | EY23: 0.2568042 | FA23: 0.4403041 | FB23: 0.4191641 | FD23: 0.0123552 | FE23: 0.4191641 | FG23: 31 | FH23: 0.01732538 | FJ23: 0.7221035 | FK23: 0.01732538 | FM23: 0.01482952 | FN23: 0.01732538 | FP23: 0.9052528 | FQ23: 0.010378 | FS23: 0.0065606 | FT23: 0.010378 | FV23: 0.2568042 | FW23: 0.01732538 | FY23: 0.01732538 | FZ23: 0.01732538 | GB23: 0.4403041 | GC23: 0.010378 | GE23: 0.0123552 | GF23: 0.010378 | GH23: 34 | GI23: 0.4403041 | GK23: 0.903058 | GL23: 0.4403041 | GN23: 0.0055264 | GO23: 0.4403041 | GQ23: 0.901961 | GR23: 0.2462971 | GT23: 0.0086263 | GU23: 0.2462971 | GW23: 0.4191641 | GX23: 0.4403041 | GZ23: 0.010378 | HA23: 0.4403041 | HC23: 0.2462971 | HD23: 0.2462971 | HF23: 0.0150279 | HG23: 0.2462971 | HI23: 34 | HJ23: 0.0123552 | HL23: 0.903058 | HM23: 0.0123552 | HO23: 0.0055264 | HP23: 0.0123552 | HR23: 0.901961 | HS23: 0.0150279 | HU23: 0.0086263 | HV23: 0.0150279 | HX23: 0.4191641 | HY23: 0.0123552 | IA23: 0.010378 | IB23: 0.0123552
A24: 37 | B24: 37 | D24: 0.8373131 | E24: 37 | G24: 0.021120195 | H24: 37 | J24: 0.901961 | K24: 32 | M24: 0.0086263 | N24: 32 | P24: 0.1954802 | Q24: 36 | S24: 0.0106035 | T24: 36 | V24: 0.173 | W24: 28 | Y24: 0.006 | Z24: 28 | AB24: 37 | AC24: 0.8373131 | AE24: 0.8373131 | AF24: 0.8373131 | AH24: 0.021120195 | AI24: 0.8373131 | AK24: 0.901961 | AL24: 0.8710221 | AN24: 0.0086263 | AO24: 0.8710221 | AQ24: 0.1954802 | AR24: 0.8197486 | AT24: 0.0106035 | AU24: 0.8197486 | AW24: 0.1449076 | AX24: 0.7466986 | AZ24: 0.018405 | BA24: 0.7466986 | BC24: 37 | BD24: 0.021120195 | BF24: 0.8373131 | BG24: 0.021120195 | BI24: 0.021120195 | BJ24: 0.021120195 | BL24: 0.901961 | BM24: 0.0104475 | BO24: 0.0086263 | BP24: 0.0104475 | BR24: 0.1954802 | BS24: 0.0083981 | BU24: 0.0106035 | BV24: 0.0083981 | BX24: 0.1449076 | BY24: 0.046325 | CA24: 0.018405 | CB24: 0.046325 | CD24: 32 | CE24: 0.901961 | CG24: 0.8710221 | CH24: 0.901961 | CJ24: 0.0104475 | CK24: 0.901961 | CM24: 0.8157335 | CN24: 0.8157335 | CP24: 0.0099826 | CQ24: 0.8157335 | CS24: 0.1455285 | CT24: 0.6362703 | CV24: 0.0386292 | CW24: 0.6362703 | CY24: 0.4403041 | CZ24: 0.9052528 | DB24: 0.0123552 | DC24: 0.9052528 | DE24: 32 | DF24: 0.0086263 | DH24: 0.8710221 | DI24: 0.0086263 | DK24: 0.0104475 | DL24: 0.0086263 | DN24: 0.8157335 | DO24: 0.0099826 | DQ24: 0.0099826 | DR24: 0.0099826 | DT24: 0.1455285 | DU24: 0.0284921 | DW24: 0.0386292 | DX24: 0.0284921 | DZ24: 0.4403041 | EA24: 0.0065606 | EC24: 0.0123552 | ED24: 0.0065606 | EF24: 36 | EG24: 0.1954802 | EI24: 0.8197486 | EJ24: 0.1954802 | EL24: 0.0083981 | EM24: 0.1954802 | EO24: 0.6362703 | EP24: 0.1455285 | ER24: 0.0284921 | ES24: 0.1455285 | EU24: 0.1954802 | EV24: 0.1954802 | EX24: 0.0106035 | EY24: 0.1954802 | FA24: 0.1449076 | FB24: 0.1455285 | FD24: 0.018405 | FE24: 0.1455285 | FG24: 36 | FH24: 0.0106035 | FJ24: 0.8197486 | FK24: 0.0106035 | FM24: 0.0083981 | FN24: 0.0106035 | FP24: 0.6362703 | FQ24: 0.0386292 | FS24: 0.0284921 | FT24: 0.0386292 | FV24: 0.1954802 | FW24: 0.0106035 | FY24: 0.0106035 | FZ24: 0.0106035 | GB24: 0.1449076 | GC24: 0.0386292 | GE24: 0.018405 | GF24: 0.0386292 | GH24: 28 | GI24: 0.173 | GK24: 0.7466986 | GL24: 0.1449076 | GN24: 0.046325 | GO24: 0.1449076 | GQ24: 0.9052528 | GR24: 0.4403041 | GT24: 0.0065606 | GU24: 0.4403041 | GW24: 0.1455285 | GX24: 0.1449076 | GZ24: 0.0386292 | HA24: 0.1449076 | HC24: 0.4403041 | HD24: 0.4403041 | HF24: 0.0123552 | HG24: 0.4403041 | HI24: 28 | HJ24: 0.006 | HL24: 0.7466986 | HM24: 0.018405 | HO24: 0.046325 | HP24: 0.018405 | HR24: 0.9052528 | HS24: 0.0123552 | HU24: 0.0065606 | HV24: 0.0123552 | HX24: 0.1455285 | HY24: 0.018405 | IA24: 0.0386292 | IB24: 0.018405
A25: 31 | B25: 31 | D25: 0.7221035 | E25: 31 | G25: 0.01482952 | H25: 31 | J25: 0.9052528 | K25: 34 | M25: 0.0065606 | N25: 34 | P25: 0.2214644 | Q25: 36 | S25: 0.008711 | T25: 36 | V25: 0.1449076 | W25: 31 | Y25: 0.018405 | Z25: 31 | AB25: 31 | AC25: 0.7221035 | AE25: 0.7221035 | AF25: 0.7221035 | AH25: 0.01482952 | AI25: 0.7221035 | AK25: 0.9052528 | AL25: 0.903058 | AN25: 0.0065606 | AO25: 0.903058 | AQ25: 0.2214644 | AR25: 0.819925 | AT25: 0.008711 | AU25: 0.819925 | AW25: 0.1919092 | AX25: 0.718914 | AZ25: 0.0143314 | BA25: 0.718914 | BC25: 31 | BD25: 0.01482952 | BF25: 0.7221035 | BG25: 0.01482952 | BI25: 0.01482952 | BJ25: 0.01482952 | BL25: 0.9052528 | BM25: 0.0055264 | BO25: 0.0065606 | BP25: 0.0055264 | BR25: 0.2214644 | BS25: 0.0067837 | BU25: 0.008711 | BV25: 0.0067837 | BX25: 0.1919092 | BY25: 0.0247991 | CA25: 0.0143314 | CB25: 0.0247991 | CD25: 34 | CE25: 0.9052528 | CG25: 0.903058 | CH25: 0.9052528 | CJ25: 0.0055264 | CK25: 0.9052528 | CM25: 0.901961 | CN25: 0.901961 | CP25: 0.0086263 | CQ25: 0.901961 | CS25: 0.2039871 | CT25: 0.7837204 | CV25: 0.020143 | CW25: 0.7837204 | CY25: 0.173 | CZ25: 0.84 | DB25: 0.006 | DC25: 0.84 | DE25: 34 | DF25: 0.0065606 | DH25: 0.903058 | DI25: 0.0065606 | DK25: 0.0055264 | DL25: 0.0065606 | DN25: 0.901961 | DO25: 0.0086263 | DQ25: 0.0086263 | DR25: 0.0086263 | DT25: 0.2039871 | DU25: 0.0168395 | DW25: 0.020143 | DX25: 0.0168395 | DZ25: 0.173 | EA25: 0.006 | EC25: 0.006 | ED25: 0.006 | EF25: 36 | EG25: 0.2214644 | EI25: 0.819925 | EJ25: 0.2214644 | EL25: 0.0067837 | EM25: 0.2214644 | EO25: 0.7837204 | EP25: 0.2039871 | ER25: 0.0168395 | ES25: 0.2039871 | EU25: 0.2214644 | EV25: 0.2214644 | EX25: 0.008711 | EY25: 0.2214644 | FA25: 0.1919092 | FB25: 0.2039871 | FD25: 0.0143314 | FE25: 0.2039871 | FG25: 36 | FH25: 0.008711 | FJ25: 0.819925 | FK25: 0.008711 | FM25: 0.0067837 | FN25: 0.008711 | FP25: 0.7837204 | FQ25: 0.020143 | FS25: 0.0168395 | FT25: 0.020143 | FV25: 0.2214644 | FW25: 0.008711 | FY25: 0.008711 | FZ25: 0.008711 | GB25: 0.1919092 | GC25: 0.020143 | GE25: 0.0143314 | GF25: 0.020143 | GH25: 31 | GI25: 0.1449076 | GK25: 0.718914 | GL25: 0.1919092 | GN25: 0.0247991 | GO25: 0.1919092 | GQ25: 0.84 | GR25: 0.173 | GT25: 0.006 | GU25: 0.173 | GW25: 0.2039871 | GX25: 0.1919092 | GZ25: 0.020143 | HA25: 0.1919092 | HC25: 0.173 | HD25: 0.173 | HF25: 0.006 | HG25: 0.173 | HI25: 31 | HJ25: 0.018405 | HL25: 0.718914 | HM25: 0.0143314 | HO25: 0.0247991 | HP25: 0.0143314 | HR25: 0.84 | HS25: 0.006 | HU25: 0.006 | HV25: 0.006 | HX25: 0.2039871 | HY25: 0.0143314 | IA25: 0.020143 | IB25: 0.0143314
A26: 36 | B26: 36 | D26: 0.8197486 | E26: 36 | G26: 0.0083981 | H26: 36 | J26: 0.84 | K26: 28 | M26: 0.006 | N26: 28 | P26: 0.4917002 | Q26: 28 | S26: 0.0111887 | T26: 28 | V26: 0.1919092 | W26: 14 | Y26: 0.0143314 | Z26: 14 | AB26: 36 | AC26: 0.8197486 | AE26: 0.8197486 | AF26: 0.8197486 | AH26: 0.0083981 | AI26: 0.8197486 | AK26: 0.6362703 | AL26: 0.7466986 | AN26: 0.0284921 | AO26: 0.7466986 | AQ26: 0.4917002 | AR26: 0.8531265 | AT26: 0.0111887 | AU26: 0.8531265 | AW26: 0.1306551 | AX26: 0.8170575 | AZ26: 0.0200121 | BA26: 0.8170575 | BC26: 36 | BD26: 0.0083981 | BF26: 0.8197486 | BG26: 0.0083981 | BI26: 0.0083981 | BJ26: 0.0083981 | BL26: 0.6362703 | BM26: 0.046325 | BO26: 0.0284921 | BP26: 0.046325 | BR26: 0.4917002 | BS26: 0.0065726 | BU26: 0.0111887 | BV26: 0.0065726 | BX26: 0.1306551 | BY26: 0.0163776 | CA26: 0.0200121 | CB26: 0.0163776 | CD26: 28 | CE26: 0.84 | CG26: 0.7466986 | CH26: 0.6362703 | CJ26: 0.046325 | CK26: 0.6362703 | CM26: 0.9052528 | CN26: 0.9052528 | CP26: 0.0065606 | CQ26: 0.9052528 | CS26: 0.5792698 | CT26: 0.894433 | CV26: 0.0262204 | CW26: 0.894433 | CY26: 0.1449076 | CZ26: 0.6362703 | DB26: 0.018405 | DC26: 0.6362703 | DE26: 28 | DF26: 0.006 | DH26: 0.7466986 | DI26: 0.0284921 | DK26: 0.046325 | DL26: 0.0284921 | DN26: 0.9052528 | DO26: 0.0065606 | DQ26: 0.0065606 | DR26: 0.0065606 | DT26: 0.5792698 | DU26: 0.0232359 | DW26: 0.0262204 | DX26: 0.0232359 | DZ26: 0.1449076 | EA26: 0.0284921 | EC26: 0.018405 | ED26: 0.0284921 | EF26: 28 | EG26: 0.4917002 | EI26: 0.8531265 | EJ26: 0.4917002 | EL26: 0.0065726 | EM26: 0.4917002 | EO26: 0.894433 | EP26: 0.5792698 | ER26: 0.0232359 | ES26: 0.5792698 | EU26: 0.4917002 | EV26: 0.4917002 | EX26: 0.0111887 | EY26: 0.4917002 | FA26: 0.1306551 | FB26: 0.5792698 | FD26: 0.0200121 | FE26: 0.5792698 | FG26: 28 | FH26: 0.0111887 | FJ26: 0.8531265 | FK26: 0.0111887 | FM26: 0.0065726 | FN26: 0.0111887 | FP26: 0.894433 | FQ26: 0.0262204 | FS26: 0.0232359 | FT26: 0.0262204 | FV26: 0.4917002 | FW26: 0.0111887 | FY26: 0.0111887 | FZ26: 0.0111887 | GB26: 0.1306551 | GC26: 0.0262204 | GE26: 0.0200121 | GF26: 0.0262204 | GH26: 14 | GI26: 0.1919092 | GK26: 0.8170575 | GL26: 0.1306551 | GN26: 0.0163776 | GO26: 0.1306551 | GQ26: 0.6362703 | GR26: 0.1449076 | GT26: 0.0284921 | GU26: 0.1449076 | GW26: 0.5792698 | GX26: 0.1306551 | GZ26: 0.0262204 | HA26: 0.1306551 | HC26: 0.1449076 | HD26: 0.1449076 | HF26: 0.018405 | HG26: 0.1449076 | HI26: 14 | HJ26: 0.0143314 | HL26: 0.8170575 | HM26: 0.0200121 | HO26: 0.0163776 | HP26: 0.0200121 | HR26: 0.6362703 | HS26: 0.018405 | HU26: 0.0284921 | HV26: 0.018405 | HX26: 0.5792698 | HY26: 0.0200121 | IA26: 0.0262204 | IB26: 0.0200121
A27: 36 | B27: 36 | D27: 0.819925 | E27: 36 | G27: 0.0067837 | H27: 36 | J27: 0.6362703 | K27: 31 | M27: 0.0284921 | N27: 31 | P27: 0.2420519 | Q27: 32 | S27: 0.0164469 | T27: 32 | V27: 0.1278979 | W27: 18 | Y27: 0.0146526 | Z27: 18 | AB27: 36 | AC27: 0.819925 | AE27: 0.819925 | AF27: 0.819925 | AH27: 0.0067837 | AI27: 0.819925 | AK27: 0.7837204 | AL27: 0.718914 | AN27: 0.0168395 | AO27: 0.718914 | AQ27: 0.2420519 | AR27: 0.8710221 | AT27: 0.0164469 | AU27: 0.8710221 | AW27: 0.0604751 | AX27: 0.8996778 | AZ27: 0.0159079 | BA27: 0.8996778 | BC27: 36 | BD27: 0.0067837 | BF27: 0.819925 | BG27: 0.0067837 | BI27: 0.0067837 | BJ27: 0.0067837 | BL27: 0.7837204 | BM27: 0.0247991 | BO27: 0.0168395 | BP27: 0.0247991 | BR27: 0.2420519 | BS27: 0.0104475 | BU27: 0.0164469 | BV27: 0.0104475 | BX27: 0.0604751 | BY27: 0.0189943 | CA27: 0.0159079 | CB27: 0.0189943 | CD27: 31 | CE27: 0.6362703 | CG27: 0.718914 | CH27: 0.7837204 | CJ27: 0.0247991 | CK27: 0.7837204 | CM27: 0.84 | CN27: 0.84 | CP27: 0.006 | CQ27: 0.84 | CS27: 0.1091171 | CT27: 0.8916794 | CV27: 0.0131909 | CW27: 0.8916794 | CY27: 0.1919092 | CZ27: 0.7837204 | DB27: 0.0143314 | DC27: 0.7837204 | DE27: 31 | DF27: 0.0284921 | DH27: 0.718914 | DI27: 0.0168395 | DK27: 0.0247991 | DL27: 0.0168395 | DN27: 0.84 | DO27: 0.006 | DQ27: 0.006 | DR27: 0.006 | DT27: 0.1091171 | DU27: 0.0424398 | DW27: 0.0131909 | DX27: 0.0424398 | DZ27: 0.1919092 | EA27: 0.0168395 | EC27: 0.0143314 | ED27: 0.0168395 | EF27: 32 | EG27: 0.2420519 | EI27: 0.8710221 | EJ27: 0.2420519 | EL27: 0.0104475 | EM27: 0.2420519 | EO27: 0.8916794 | EP27: 0.1091171 | ER27: 0.0424398 | ES27: 0.1091171 | EU27: 0.2420519 | EV27: 0.2420519 | EX27: 0.0164469 | EY27: 0.2420519 | FA27: 0.0604751 | FB27: 0.1091171 | FD27: 0.0159079 | FE27: 0.1091171 | FG27: 32 | FH27: 0.0164469 | FJ27: 0.8710221 | FK27: 0.0164469 | FM27: 0.0104475 | FN27: 0.0164469 | FP27: 0.8916794 | FQ27: 0.0131909 | FS27: 0.0424398 | FT27: 0.0131909 | FV27: 0.2420519 | FW27: 0.0164469 | FY27: 0.0164469 | FZ27: 0.0164469 | GB27: 0.0604751 | GC27: 0.0131909 | GE27: 0.0159079 | GF27: 0.0131909 | GH27: 18 | GI27: 0.1278979 | GK27: 0.8996778 | GL27: 0.0604751 | GN27: 0.0189943 | GO27: 0.0604751 | GQ27: 0.7837204 | GR27: 0.1919092 | GT27: 0.0168395 | GU27: 0.1919092 | GW27: 0.1091171 | GX27: 0.0604751 | GZ27: 0.0131909 | HA27: 0.0604751 | HC27: 0.1919092 | HD27: 0.1919092 | HF27: 0.0143314 | HG27: 0.1919092 | HI27: 18 | HJ27: 0.0146526 | HL27: 0.8996778 | HM27: 0.0159079 | HO27: 0.0189943 | HP27: 0.0159079 | HR27: 0.7837204 | HS27: 0.0143314 | HU27: 0.0168395 | HV27: 0.0143314 | HX27: 0.1091171 | HY27: 0.0159079 | IA27: 0.0131909 | IB27: 0.0159079
A28: 28 | B28: 28 | D28: 0.8531265 | E28: 28 | G28: 0.0065726 | H28: 28 | J28: 0.7837204 | K28: 14 | M28: 0.0168395 | N28: 14 | P28: 0.4191641 | Q28: 34 | S28: 0.010378 | T28: 34 | V28: 0.1306551 | W28: 34 | Y28: 0.0200121 | Z28: 34 | AB28: 28 | AC28: 0.8531265 | AE28: 0.8531265 | AF28: 0.8531265 | AH28: 0.0065726 | AI28: 0.8531265 | AK28: 0.894433 | AL28: 0.8170575 | AN28: 0.0232359 | AO28: 0.8170575 | AQ28: 0.4191641 | AR28: 0.903058 | AT28: 0.010378 | AU28: 0.903058 | AW28: 0.0224719 | AX28: 0.9105053 | AZ28: 0.0184193 | BA28: 0.9105053 | BC28: 28 | BD28: 0.0065726 | BF28: 0.8531265 | BG28: 0.0065726 | BI28: 0.0065726 | BJ28: 0.0065726 | BL28: 0.894433 | BM28: 0.0163776 | BO28: 0.0232359 | BP28: 0.0163776 | BR28: 0.4191641 | BS28: 0.0055264 | BU28: 0.010378 | BV28: 0.0055264 | BX28: 0.0224719 | BY28: 0.0519452 | CA28: 0.0184193 | CB28: 0.0519452 | CD28: 14 | CE28: 0.7837204 | CG28: 0.8170575 | CH28: 0.894433 | CJ28: 0.0163776 | CK28: 0.894433 | CM28: 0.6362703 | CN28: 0.6362703 | CP28: 0.0284921 | CQ28: 0.6362703 | CS28: 0.4910974 | CT28: 0.693481 | CV28: 0.0465504 | CW28: 0.693481 | CY28: 0.1278979 | CZ28: 0.8582272 | DB28: 0.0146526 | DC28: 0.8582272 | DE28: 14 | DF28: 0.0168395 | DH28: 0.8170575 | DI28: 0.0232359 | DK28: 0.0163776 | DL28: 0.0232359 | DN28: 0.6362703 | DO28: 0.0284921 | DQ28: 0.0284921 | DR28: 0.0284921 | DT28: 0.4910974 | DU28: 0.124407 | DW28: 0.0465504 | DX28: 0.124407 | DZ28: 0.1278979 | EA28: 0.0187894 | EC28: 0.0146526 | ED28: 0.0187894 | EF28: 34 | EG28: 0.4191641 | EI28: 0.903058 | EJ28: 0.4191641 | EL28: 0.0055264 | EM28: 0.4191641 | EO28: 0.693481 | EP28: 0.4910974 | ER28: 0.124407 | ES28: 0.4910974 | EU28: 0.4191641 | EV28: 0.4191641 | EX28: 0.010378 | EY28: 0.4191641 | FA28: 0.0224719 | FB28: 0.0206429 | FD28: 0.0184193 | FE28: 0.0206429 | FG28: 34 | FH28: 0.010378 | FJ28: 0.903058 | FK28: 0.010378 | FM28: 0.0055264 | FN28: 0.010378 | FP28: 0.693481 | FQ28: 0.0465504 | FS28: 0.124407 | FT28: 0.0465504 | FV28: 0.4191641 | FW28: 0.010378 | FY28: 0.010378 | FZ28: 0.010378 | GB28: 0.0224719 | GC28: 0.0115615 | GE28: 0.0184193 | GF28: 0.0115615 | GH28: 34 | GI28: 0.1306551 | GK28: 0.9105053 | GL28: 0.0224719 | GN28: 0.0519452 | GO28: 0.0224719 | GQ28: 0.8582272 | GR28: 0.1278979 | GT28: 0.0187894 | GU28: 0.1278979 | GW28: 0.0206429 | GX28: 0.0224719 | GZ28: 0.0115615 | HA28: 0.0224719 | HC28: 0.1278979 | HD28: 0.1278979 | HF28: 0.0146526 | HG28: 0.1278979 | HI28: 34 | HJ28: 0.0200121 | HL28: 0.9105053 | HM28: 0.0184193 | HO28: 0.0519452 | HP28: 0.0184193 | HR28: 0.8582272 | HS28: 0.0146526 | HU28: 0.0187894 | HV28: 0.0146526 | HX28: 0.0206429 | HY28: 0.0184193 | IA28: 0.0115615 | IB28: 0.0184193
A29: 32 | B29: 32 | D29: 0.8710221 | E29: 32 | G29: 0.0104475 | H29: 32 | J29: 0.8582272 | K29: 18 | M29: 0.0187894 | N29: 18 | P29: 0.1455285 | Q29: 31 | S29: 0.0386292 | T29: 31 | V29: 0.0604751 | W29: 18 | Y29: 0.0159079 | Z29: 18 | AB29: 32 | AC29: 0.8710221 | AE29: 0.8710221 | AF29: 0.8710221 | AH29: 0.0104475 | AI29: 0.8710221 | AK29: 0.5 | AL29: 0.75 | AN29: 0.137755102 | AO29: 0.75 | AQ29: 0.1455285 | AR29: 0.7466986 | AT29: 0.0386292 | AU29: 0.7466986 | AW29: 0.5579294 | AX29: 0.9274206 | AZ29: 0.2749703 | BA29: 0.9274206 | BC29: 32 | BD29: 0.0104475 | BF29: 0.8710221 | BG29: 0.0104475 | BI29: 0.0104475 | BJ29: 0.0104475 | BL29: 0.5 | BM29: 0.1071428571 | BO29: 0.137755102 | BP29: 0.1071428571 | BR29: 0.1455285 | BS29: 0.046325 | BU29: 0.0386292 | BV29: 0.046325 | BX29: 0.5579294 | BY29: 0.0140702 | CA29: 0.2749703 | CB29: 0.0140702 | CD29: 18 | CE29: 0.8582272 | CG29: 0.75 | CH29: 0.5 | CJ29: 0.1071428571 | CK29: 0.5 | CM29: 0.7837204 | CN29: 0.7837204 | CP29: 0.0168395 | CQ29: 0.7837204 | CS29: 0.3502628 | CT29: 0.8836301 | CV29: 0.0385193 | CW29: 0.8836301 | CY29: 0.1306551 | CZ29: 0.894433 | DB29: 0.0200121 | DC29: 0.894433 | DE29: 18 | DF29: 0.0187894 | DH29: 0.75 | DI29: 0.137755102 | DK29: 0.1071428571 | DL29: 0.137755102 | DN29: 0.7837204 | DO29: 0.0168395 | DQ29: 0.0168395 | DR29: 0.0168395 | DT29: 0.3502628 | DU29: 0.0554466 | DW29: 0.0385193 | DX29: 0.0554466 | DZ29: 0.1306551 | EA29: 0.0232359 | EC29: 0.0200121 | ED29: 0.0232359 | EF29: 31 | EG29: 0.1455285 | EI29: 0.7466986 | EJ29: 0.1455285 | EL29: 0.046325 | EM29: 0.1455285 | EO29: 0.8836301 | EP29: 0.3502628 | ER29: 0.0554466 | ES29: 0.3502628 | EU29: 0.1455285 | EV29: 0.1455285 | EX29: 0.0386292 | EY29: 0.1455285 | FA29: 0.5579294 | FB29: 0.4910974 | FD29: 0.2749703 | FE29: 0.4910974 | FG29: 31 | FH29: 0.0386292 | FJ29: 0.7466986 | FK29: 0.0386292 | FM29: 0.046325 | FN29: 0.0386292 | FP29: 0.8836301 | FQ29: 0.0385193 | FS29: 0.0554466 | FT29: 0.0385193 | FV29: 0.1455285 | FW29: 0.0386292 | FY29: 0.0386292 | FZ29: 0.0386292 | GB29: 0.5579294 | GC29: 0.0465504 | GE29: 0.2749703 | GF29: 0.0465504 | GH29: 18 | GI29: 0.0604751 | GK29: 0.9274206 | GL29: 0.5579294 | GN29: 0.0140702 | GO29: 0.5579294 | GQ29: 0.894433 | GR29: 0.1306551 | GT29: 0.0232359 | GU29: 0.1306551 | GW29: 0.4910974 | GX29: 0.5579294 | GZ29: 0.0465504 | HA29: 0.5579294 | HC29: 0.1306551 | HD29: 0.1306551 | HF29: 0.0200121 | HG29: 0.1306551 | HI29: 18 | HJ29: 0.0159079 | HL29: 0.9274206 | HM29: 0.2749703 | HO29: 0.0140702 | HP29: 0.2749703 | HR29: 0.894433 | HS29: 0.0200121 | HU29: 0.0232359 | HV29: 0.0200121 | HX29: 0.4910974 | HY29: 0.2749703 | IA29: 0.0465504 | IB29: 0.2749703
A30: 34 | B30: 34 | D30: 0.903058 | E30: 34 | G30: 0.0055264 | H30: 34 | J30: 0.894433 | K30: 34 | M30: 0.0232359 | N30: 34 | P30: 0.2039871 | Q30: 14 | S30: 0.020143 | T30: 14 | V30: 0.0224719 | W30: 38 | Y30: 0.0184193 | Z30: 38 | AB30: 34 | AC30: 0.903058 | AE30: 0.903058 | AF30: 0.903058 | AH30: 0.0055264 | AI30: 0.903058 | AK30: 0.8916794 | AL30: 0.8996778 | AN30: 0.0424398 | AO30: 0.8996778 | AQ30: 0.2039871 | AR30: 0.718914 | AT30: 0.020143 | AU30: 0.718914 | AW30: 0.1192661 | AX30: 0.9186145 | AZ30: 0.0384378 | BA30: 0.9186145 | BC30: 34 | BD30: 0.0055264 | BF30: 0.903058 | BG30: 0.0055264 | BI30: 0.0055264 | BJ30: 0.0055264 | BL30: 0.8916794 | BM30: 0.0189943 | BO30: 0.0424398 | BP30: 0.0189943 | BR30: 0.2039871 | BS30: 0.0247991 | BU30: 0.020143 | BV30: 0.0247991 | BX30: 0.1192661 | BY30: 0.0198246 | CA30: 0.0384378 | CB30: 0.0198246 | CD30: 34 | CE30: 0.894433 | CG30: 0.8996778 | CH30: 0.8916794 | CJ30: 0.0189943 | CK30: 0.8916794 | CM30: 0.8582272 | CN30: 0.8582272 | CP30: 0.0187894 | CQ30: 0.8582272 | CS30: 0.631 | CT30: 0.925 | CV30: 0.017 | CW30: 0.925 | CY30: 0.0604751 | CZ30: 0.8916794 | DB30: 0.0159079 | DC30: 0.8916794 | DE30: 34 | DF30: 0.0232359 | DH30: 0.8996778 | DI30: 0.0424398 | DK30: 0.0189943 | DL30: 0.0424398 | DN30: 0.8582272 | DO30: 0.0187894 | DQ30: 0.0187894 | DR30: 0.0187894 | DT30: 0.631 | DU30: 0.014 | DW30: 0.017 | DX30: 0.014 | DZ30: 0.0604751 | EA30: 0.0424398 | EC30: 0.0159079 | ED30: 0.0424398 | EF30: 14 | EG30: 0.2039871 | EI30: 0.718914 | EJ30: 0.2039871 | EL30: 0.0247991 | EM30: 0.2039871 | EO30: 0.925 | EP30: 0.631 | ER30: 0.014 | ES30: 0.631 | EU30: 0.2039871 | EV30: 0.2039871 | EX30: 0.020143 | EY30: 0.2039871 | FA30: 0.1192661 | FB30: 0.3502628 | FD30: 0.0384378 | FE30: 0.3502628 | FG30: 14 | FH30: 0.020143 | FJ30: 0.718914 | FK30: 0.020143 | FM30: 0.0247991 | FN30: 0.020143 | FP30: 0.925 | FQ30: 0.017 | FS30: 0.014 | FT30: 0.017 | FV30: 0.2039871 | FW30: 0.020143 | FY30: 0.020143 | FZ30: 0.020143 | GB30: 0.1192661 | GC30: 0.0385193 | GE30: 0.0384378 | GF30: 0.0385193 | GH30: 38 | GI30: 0.0224719 | GK30: 0.9186145 | GL30: 0.1192661 | GN30: 0.0198246 | GO30: 0.1192661 | GQ30: 0.8916794 | GR30: 0.0604751 | GT30: 0.0424398 | GU30: 0.0604751 | GW30: 0.3502628 | GX30: 0.1192661 | GZ30: 0.0385193 | HA30: 0.1192661 | HC30: 0.0604751 | HD30: 0.0604751 | HF30: 0.0159079 | HG30: 0.0604751 | HI30: 38 | HJ30: 0.0184193 | HL30: 0.9186145 | HM30: 0.0384378 | HO30: 0.0198246 | HP30: 0.0384378 | HR30: 0.8916794 | HS30: 0.0159079 | HU30: 0.0424398 | HV30: 0.0159079 | HX30: 0.3502628 | HY30: 0.0384378 | IA30: 0.0385193 | IB30: 0.0384378
A31: 28 | B31: 28 | D31: 0.7466986 | E31: 31 | G31: 0.046325 | H31: 31 | J31: 0.5 | K31: 4 | M31: 0.137755102 | N31: 4 | P31: 0.5792698 | Q31: 34 | S31: 0.0262204 | T31: 34 | V31: 0.5579294 | W31: 15 | Y31: 0.2749703 | Z31: 15 | AB31: 31 | AC31: 0.7466986 | AE31: 0.7466986 | AF31: 0.7466986 | AH31: 0.046325 | AI31: 0.7466986 | AK31: 0.693481 | AL31: 0.9274206 | AN31: 0.124407 | AO31: 0.9274206 | AQ31: 0.5792698 | AR31: 0.8170575 | AT31: 0.0262204 | AU31: 0.8170575 | AW31: 0.195 | AX31: 0.946 | AZ31: 0.029 | BA31: 0.946 | BC31: 31 | BD31: 0.046325 | BF31: 0.7466986 | BG31: 0.046325 | BI31: 0.046325 | BJ31: 0.046325 | BL31: 0.693481 | BM31: 0.0140702 | BO31: 0.124407 | BP31: 0.0140702 | BR31: 0.5792698 | BS31: 0.0163776 | BU31: 0.0262204 | BV31: 0.0163776 | BX31: 0.195 | BY31: 0.005 | CA31: 0.029 | CB31: 0.005 | CD31: 4 | CE31: 0.5 | CG31: 0.9274206 | CH31: 0.693481 | CJ31: 0.0140702 | CK31: 0.693481 | CM31: 0.894433 | CN31: 0.894433 | CP31: 0.0232359 | CQ31: 0.894433 | CS31: 0.0563556 | CT31: 0.9550015 | CV31: 0.0045412 | CW31: 0.9550015 | CY31: 0.5579294 | CZ31: 0.693481 | DB31: 0.2749703 | DC31: 0.693481 | DE31: 4 | DF31: 0.137755102 | DH31: 0.9274206 | DI31: 0.124407 | DK31: 0.0140702 | DL31: 0.124407 | DN31: 0.894433 | DO31: 0.0232359 | DQ31: 0.0232359 | DR31: 0.0232359 | DT31: 0.0563556 | DU31: 0.0100026 | DW31: 0.0045412 | DX31: 0.0100026 | DZ31: 0.5579294 | EA31: 0.124407 | EC31: 0.2749703 | ED31: 0.124407 | EF31: 34 | EG31: 0.5792698 | EI31: 0.8170575 | EJ31: 0.5792698 | EL31: 0.0163776 | EM31: 0.5792698 | EO31: 0.9550015 | EP31: 0.0563556 | ER31: 0.0100026 | ES31: 0.0563556 | EU31: 0.5792698 | EV31: 0.5792698 | EX31: 0.0262204 | EY31: 0.5792698 | FA31: 0.195 | FB31: 0.631 | FD31: 0.029 | FE31: 0.631 | FG31: 34 | FH31: 0.0262204 | FJ31: 0.8170575 | FK31: 0.0262204 | FM31: 0.0163776 | FN31: 0.0262204 | FP31: 0.9550015 | FQ31: 0.0045412 | FS31: 0.0100026 | FT31: 0.0045412 | FV31: 0.5792698 | FW31: 0.0262204 | FY31: 0.0262204 | FZ31: 0.0262204 | GB31: 0.195 | GC31: 0.017 | GE31: 0.029 | GF31: 0.017 | GH31: 15 | GI31: 0.5579294 | GK31: 0.946 | GL31: 0.195 | GN31: 0.005 | GO31: 0.195 | GQ31: 0.693481 | GR31: 0.5579294 | GT31: 0.124407 | GU31: 0.5579294 | GW31: 0.631 | GX31: 0.195 | GZ31: 0.017 | HA31: 0.195 | HC31: 0.0224719 | HD31: 0.0224719 | HF31: 0.0184193 | HG31: 0.0224719 | HI31: 15 | HJ31: 0.2749703 | HL31: 0.946 | HM31: 0.029 | HO31: 0.005 | HP31: 0.029 | HR31: 0.693481 | HS31: 0.2749703 | HU31: 0.124407 | HV31: 0.2749703 | HX31: 0.631 | HY31: 0.029 | IA31: 0.017 | IB31: 0.029
A32: 31 | B32: 31 | D32: 0.718914 | E32: 14 | G32: 0.0247991 | H32: 14 | J32: 0.8916794 | K32: 18 | M32: 0.0424398 | N32: 18 | P32: 0.1091171 | Q32: 18 | S32: 0.0131909 | T32: 18 | V32: 0.1192661 | W32: 15 | Y32: 0.0384378 | Z32: 15 | AB32: 14 | AC32: 0.718914 | AE32: 0.718914 | AF32: 0.718914 | AH32: 0.0247991 | AI32: 0.718914 | AK32: 0.8836301 | AL32: 0.9186145 | AN32: 0.0554466 | AO32: 0.9186145 | AQ32: 0.1091171 | AR32: 0.8996778 | AT32: 0.0131909 | AU32: 0.8996778 | AW32: 0.0354373 | AX32: 0.9623554 | AZ32: 0.0067749 | BA32: 0.9623554 | BC32: 14 | BD32: 0.0247991 | BF32: 0.718914 | BG32: 0.0247991 | BI32: 0.0247991 | BJ32: 0.0247991 | BL32: 0.8836301 | BM32: 0.0198246 | BO32: 0.0554466 | BP32: 0.0198246 | BR32: 0.1091171 | BS32: 0.0189943 | BU32: 0.0131909 | BV32: 0.0189943 | BX32: 0.0354373 | BY32: 0.004007 | CA32: 0.0067749 | CB32: 0.004007 | CD32: 18 | CE32: 0.8916794 | CG32: 0.9186145 | CH32: 0.8836301 | CJ32: 0.0198246 | CK32: 0.8836301 | CM32: 0.5 | CN32: 0.5 | CP32: 0.137755102 | CQ32: 0.5 | CS32: 0.0612782 | CT32: 0.8218329 | CV32: 0.0169675 | CW32: 0.8218329 | CY32: 0.1192661 | CZ32: 0.8836301 | DB32: 0.0384378 | DC32: 0.8836301 | DE32: 18 | DF32: 0.0424398 | DH32: 0.9186145 | DI32: 0.0554466 | DK32: 0.0198246 | DL32: 0.0554466 | DN32: 0.5 | DO32: 0.137755102 | DQ32: 0.137755102 | DR32: 0.137755102 | DT32: 0.0612782 | DU32: 0.0436833 | DW32: 0.0169675 | DX32: 0.0436833 | DZ32: 0.1192661 | EA32: 0.0554466 | EC32: 0.0384378 | ED32: 0.0554466 | EF32: 18 | EG32: 0.1091171 | EI32: 0.8996778 | EJ32: 0.1091171 | EL32: 0.0189943 | EM32: 0.1091171 | EO32: 0.8218329 | EP32: 0.0612782 | ER32: 0.0436833 | ES32: 0.0612782 | EU32: 0.1091171 | EV32: 0.1091171 | EX32: 0.0131909 | EY32: 0.1091171 | FA32: 0.0354373 | FB32: 0.0563556 | FD32: 0.0067749 | FE32: 0.0563556 | FG32: 18 | FH32: 0.0131909 | FJ32: 0.8996778 | FK32: 0.0131909 | FM32: 0.0189943 | FN32: 0.0131909 | FP32: 0.8218329 | FQ32: 0.0169675 | FS32: 0.0436833 | FT32: 0.0169675 | FV32: 0.1091171 | FW32: 0.0131909 | FY32: 0.0131909 | FZ32: 0.0131909 | GB32: 0.0354373 | GC32: 0.0045412 | GE32: 0.0067749 | GF32: 0.0045412 | GH32: 15 | GI32: 0.1192661 | GK32: 0.9623554 | GL32: 0.0354373 | GN32: 0.004007 | GO32: 0.0354373 | GQ32: 0.8836301 | GR32: 0.1192661 | GT32: 0.0554466 | GU32: 0.1192661 | GW32: 0.0563556 | GX32: 0.0354373 | GZ32: 0.0045412 | HA32: 0.0354373 | HC32: 0.5579294 | HD32: 0.5579294 | HF32: 0.2749703 | HG32: 0.5579294 | HI32: 15 | HJ32: 0.0384378 | HL32: 0.9623554 | HM32: 0.0067749 | HO32: 0.004007 | HP32: 0.0067749 | HR32: 0.8836301 | HS32: 0.0384378 | HU32: 0.0554466 | HV32: 0.0384378 | HX32: 0.0563556 | HY32: 0.0067749 | IA32: 0.0045412 | IB32: 0.0067749
A33: 14 | B33: 14 | D33: 0.8170575 | E33: 34 | G33: 0.0163776 | H33: 34 | J33: 0.693481 | K33: 15 | M33: 0.124407 | N33: 15 | P33: 0.0188442 | Q33: 40 | S33: 0.00573 | T33: 40 | V33: 0.195 | W33: 22 | Y33: 0.029 | Z33: 22 | AB33: 34 | AC33: 0.8170575 | AE33: 0.8170575 | AF33: 0.8170575 | AH33: 0.0163776 | AI33: 0.8170575 | AK33: 0.925 | AL33: 0.946 | AN33: 0.014 | AO33: 0.946 | AQ33: 0.0188442 | AR33: 0.9040585 | AT33: 0.00573 | AU33: 0.9040585 | AW33: 0.0727259 | AX33: 0.8589292 | AZ33: 0.0234718 | BA33: 0.8589292 | BC33: 34 | BD33: 0.0163776 | BF33: 0.8170575 | BG33: 0.0163776 | BI33: 0.0163776 | BJ33: 0.0163776 | BL33: 0.925 | BM33: 0.005 | BO33: 0.014 | BP33: 0.005 | BR33: 0.0188442 | BS33: 0.0250435 | BU33: 0.00573 | BV33: 0.0250435 | BX33: 0.0727259 | BY33: 0.0323057 | CA33: 0.0234718 | CB33: 0.0323057 | CD33: 15 | CE33: 0.693481 | CG33: 0.946 | CH33: 0.925 | CJ33: 0.005 | CK33: 0.925 | CM33: 0.8916794 | CN33: 0.8916794 | CP33: 0.0424398 | CQ33: 0.8916794 | CS33: 0.340989 | CT33: 0.6985854 | CV33: 0.0402096 | CW33: 0.6985854 | CY33: 0.195 | CZ33: 0.925 | DB33: 0.029 | DC33: 0.925 | DE33: 15 | DF33: 0.124407 | DH33: 0.946 | DI33: 0.014 | DK33: 0.005 | DL33: 0.014 | DN33: 0.8916794 | DO33: 0.0424398 | DQ33: 0.0424398 | DR33: 0.0424398 | DT33: 0.340989 | DU33: 0.0747185 | DW33: 0.0402096 | DX33: 0.0747185 | DZ33: 0.195 | EA33: 0.014 | EC33: 0.029 | ED33: 0.014 | EF33: 40 | EG33: 0.0188442 | EI33: 0.9040585 | EJ33: 0.0188442 | EL33: 0.0250435 | EM33: 0.0188442 | EO33: 0.6985854 | EP33: 0.340989 | ER33: 0.0747185 | ES33: 0.340989 | EU33: 0.0188442 | EV33: 0.0188442 | EX33: 0.00573 | EY33: 0.0188442 | FA33: 0.0727259 | FB33: 0.0612782 | FD33: 0.0234718 | FE33: 0.0612782 | FG33: 40 | FH33: 0.00573 | FJ33: 0.9040585 | FK33: 0.00573 | FM33: 0.0250435 | FN33: 0.00573 | FP33: 0.6985854 | FQ33: 0.0402096 | FS33: 0.0747185 | FT33: 0.0402096 | FV33: 0.0188442 | FW33: 0.00573 | FY33: 0.00573 | FZ33: 0.00573 | GB33: 0.0727259 | GC33: 0.0169675 | GE33: 0.0234718 | GF33: 0.0169675 | GH33: 22 | GI33: 0.195 | GK33: 0.8589292 | GL33: 0.0727259 | GN33: 0.0323057 | GO33: 0.0727259 | GQ33: 0.925 | GR33: 0.195 | GT33: 0.014 | GU33: 0.195 | GW33: 0.0612782 | GX33: 0.0727259 | GZ33: 0.0169675 | HA33: 0.0727259 | HC33: 0.1192661 | HD33: 0.1192661 | HF33: 0.0384378 | HG33: 0.1192661 | HI33: 22 | HJ33: 0.029 | HL33: 0.8589292 | HM33: 0.0234718 | HO33: 0.0323057 | HP33: 0.0234718 | HR33: 0.925 | HS33: 0.029 | HU33: 0.014 | HV33: 0.029 | HX33: 0.0612782 | HY33: 0.0234718 | IA33: 0.0169675 | IB33: 0.0234718
A34: 18 | B34: 18 | D34: 0.75 | E34: 4 | G34: 0.1071428571 | H34: 4 | J34: 0.8836301 | K34: 15 | M34: 0.0554466 | N34: 15 | P34: 0.0206429 | Q34: 38 | S34: 0.0115615 | T34: 38 | V34: 0.0354373 | W34: 115 | Y34: 0.0067749 | Z34: 115 | AB34: 4 | AC34: 0.75 | AE34: 0.75 | AF34: 0.75 | AH34: 0.1071428571 | AI34: 0.75 | AK34: 0.9550015 | AL34: 0.9623554 | AN34: 0.0100026 | AO34: 0.9623554 | AQ34: 0.0206429 | AR34: 0.9105053 | AT34: 0.0115615 | AU34: 0.9105053 | AW34: 0.2292667 | AX34: 0.6665726 | AZ34: 0.0613419 | BA34: 0.6665726 | BC34: 4 | BD34: 0.1071428571 | BF34: 0.75 | BG34: 0.1071428571 | BI34: 0.1071428571 | BJ34: 0.1071428571 | BL34: 0.9550015 | BM34: 0.004007 | BO34: 0.0100026 | BP34: 0.004007 | BR34: 0.0206429 | BS34: 0.0519452 | BU34: 0.0115615 | BV34: 0.0519452 | BX34: 0.2292667 | BY34: 0.0359522 | CA34: 0.0613419 | CB34: 0.0359522 | CD34: 15 | CE34: 0.8836301 | CG34: 0.9623554 | CH34: 0.9550015 | CJ34: 0.004007 | CK34: 0.9550015 | CM34: 0.693481 | CN34: 0.693481 | CP34: 0.124407 | CQ34: 0.693481 | CS34: 0.1568664 | CT34: 0.8605941 | CV34: 0.008671456 | CW34: 0.8605941 | CY34: 0.0354373 | CZ34: 0.9550015 | DB34: 0.0067749 | DC34: 0.9550015 | DE34: 15 | DF34: 0.0554466 | DH34: 0.9623554 | DI34: 0.0100026 | DK34: 0.004007 | DL34: 0.0100026 | DN34: 0.693481 | DO34: 0.124407 | DQ34: 0.124407 | DR34: 0.124407 | DT34: 0.1568664 | DU34: 0.007701427 | DW34: 0.008671456 | DX34: 0.007701427 | DZ34: 0.0354373 | EA34: 0.0100026 | EC34: 0.0067749 | ED34: 0.0100026 | EF34: 38 | EG34: 0.0206429 | EI34: 0.9105053 | EJ34: 0.0206429 | EL34: 0.0519452 | EM34: 0.0206429 | EO34: 0.8605941 | EP34: 0.1568664 | ER34: 0.007701427 | ES34: 0.1568664 | EU34: 0.0206429 | EV34: 0.0206429 | EX34: 0.0115615 | EY34: 0.0206429 | FA34: 0.2292667 | FB34: 0.340989 | FD34: 0.0613419 | FE34: 0.340989 | FG34: 38 | FH34: 0.0115615 | FJ34: 0.9105053 | FK34: 0.0115615 | FM34: 0.0519452 | FN34: 0.0115615 | FP34: 0.8605941 | FQ34: 0.008671456 | FS34: 0.007701427 | FT34: 0.008671456 | FV34: 0.0206429 | FW34: 0.0115615 | FY34: 0.0115615 | FZ34: 0.0115615 | GB34: 0.2292667 | GC34: 0.0402096 | GE34: 0.0613419 | GF34: 0.0402096 | GH34: 115 | GI34: 0.0354373 | GK34: 0.6665726 | GL34: 0.2292667 | GN34: 0.0359522 | GO34: 0.2292667 | GQ34: 0.9550015 | GR34: 0.0354373 | GT34: 0.0100026 | GU34: 0.0354373 | GW34: 0.340989 | GX34: 0.2292667 | GZ34: 0.0402096 | HA34: 0.2292667 | HC34: 0.195 | HD34: 0.195 | HF34: 0.029 | HG34: 0.195 | HI34: 115 | HJ34: 0.0067749 | HL34: 0.6665726 | HM34: 0.0613419 | HO34: 0.0359522 | HP34: 0.0613419 | HR34: 0.9550015 | HS34: 0.0067749 | HU34: 0.0100026 | HV34: 0.0067749 | HX34: 0.340989 | HY34: 0.0613419 | IA34: 0.0402096 | IB34: 0.0613419
A35: 34 | B35: 34 | D35: 0.8996778 | E35: 18 | G35: 0.0189943 | H35: 18 | J35: 0.925 | K35: 22 | M35: 0.014 | N35: 22 | P35: 0.4910974 | Q35: 15 | S35: 0.0465504 | T35: 15 | V35: 0.0727259 | W35: 37 | Y35: 0.0234718 | Z35: 37 | AB35: 18 | AC35: 0.8996778 | AE35: 0.8996778 | AF35: 0.8996778 | AH35: 0.0189943 | AI35: 0.8996778 | AK35: 0.8218329 | AL35: 0.8589292 | AN35: 0.0436833 | AO35: 0.8589292 | AQ35: 0.4910974 | AR35: 0.9274206 | AT35: 0.0465504 | AU35: 0.9274206 | AW35: 0.1441669 | AX35: 0.8664074 | AZ35: 0.008455803 | BA35: 0.8664074 | BC35: 18 | BD35: 0.0189943 | BF35: 0.8996778 | BG35: 0.0189943 | BI35: 0.0189943 | BJ35: 0.0189943 | BL35: 0.8218329 | BM35: 0.0323057 | BO35: 0.0436833 | BP35: 0.0323057 | BR35: 0.4910974 | BS35: 0.0140702 | BU35: 0.0465504 | BV35: 0.0140702 | BX35: 0.1441669 | BY35: 0.007395253 | CA35: 0.008455803 | CB35: 0.007395253 | CD35: 22 | CE35: 0.925 | CG35: 0.8589292 | CH35: 0.8218329 | CJ35: 0.0323057 | CK35: 0.8218329 | CM35: 0.8836301 | CN35: 0.8836301 | CP35: 0.0554466 | CQ35: 0.8836301 | CS35: 0.3793371 | CT35: 0.9956355 | CV35: 0.0470918 | CW35: 0.9956355 | CY35: 0.0727259 | CZ35: 0.8218329 | DB35: 0.0234718 | DC35: 0.8218329 | DE35: 22 | DF35: 0.014 | DH35: 0.8589292 | DI35: 0.0436833 | DK35: 0.0323057 | DL35: 0.0436833 | DN35: 0.8836301 | DO35: 0.0554466 | DQ35: 0.0554466 | DR35: 0.0554466 | DT35: 0.3793371 | DU35: 0.0185716 | DW35: 0.0470918 | DX35: 0.0185716 | DZ35: 0.0727259 | EA35: 0.0436833 | EC35: 0.0234718 | ED35: 0.0436833 | EF35: 15 | EG35: 0.4910974 | EI35: 0.9274206 | EJ35: 0.4910974 | EL35: 0.0140702 | EM35: 0.4910974 | EO35: 0.9956355 | EP35: 0.3793371 | ER35: 0.0185716 | ES35: 0.3793371 | EU35: 0.4910974 | EV35: 0.4910974 | EX35: 0.0465504 | EY35: 0.4910974 | FA35: 0.1441669 | FB35: 0.1568664 | FD35: 0.008455803 | FE35: 0.1568664 | FG35: 15 | FH35: 0.0465504 | FJ35: 0.9274206 | FK35: 0.0465504 | FM35: 0.0140702 | FN35: 0.0465504 | FP35: 0.9956355 | FQ35: 0.0470918 | FS35: 0.0185716 | FT35: 0.0470918 | FV35: 0.4910974 | FW35: 0.0465504 | FY35: 0.0465504 | FZ35: 0.0465504 | GB35: 0.1441669 | GC35: 0.008671456 | GE35: 0.008455803 | GF35: 0.008671456 | GH35: 37 | GI35: 0.0727259 | GK35: 0.8664074 | GL35: 0.1441669 | GN35: 0.007395253 | GO35: 0.1441669 | GQ35: 0.8218329 | GR35: 0.0727259 | GT35: 0.0436833 | GU35: 0.0727259 | GW35: 0.1568664 | GX35: 0.1441669 | GZ35: 0.008671456 | HA35: 0.1441669 | HC35: 0.0354373 | HD35: 0.0354373 | HF35: 0.0067749 | HG35: 0.0354373 | HI35: 37 | HJ35: 0.0234718 | HL35: 0.8664074 | HM35: 0.008455803 | HO35: 0.007395253 | HP35: 0.008455803 | HR35: 0.8218329 | HS35: 0.0234718 | HU35: 0.0436833 | HV35: 0.0234718 | HX35: 0.1568664 | HY35: 0.008455803 | IA35: 0.008671456 | IB35: 0.008455803
A36: 4 | B36: 4 | D36: 0.9040585 | E36: 40 | G36: 0.0250435 | H36: 40 | J36: 0.9550015 | K36: 115 | M36: 0.0100026 | N36: 115 | P36: 0.3502628 | Q36: 15 | S36: 0.0385193 | T36: 15 | V36: 0.2292667 | W36: 7 | Y36: 0.0613419 | Z36: 7 | AB36: 40 | AC36: 0.9040585 | AE36: 0.9040585 | AF36: 0.9040585 | AH36: 0.0250435 | AI36: 0.9040585 | AK36: 0.6985854 | AL36: 0.6665726 | AN36: 0.0747185 | AO36: 0.6665726 | AQ36: 0.3502628 | AR36: 0.9186145 | AT36: 0.0385193 | AU36: 0.9186145 | AW36: 0.0417621 | AX36: 0.9745851 | AZ36: 0.025412 | BA36: 0.9745851 | BC36: 40 | BD36: 0.0250435 | BF36: 0.9040585 | BG36: 0.0250435 | BI36: 0.0250435 | BJ36: 0.0250435 | BL36: 0.6985854 | BM36: 0.0359522 | BO36: 0.0747185 | BP36: 0.0359522 | BR36: 0.3502628 | BS36: 0.0198246 | BU36: 0.0385193 | BV36: 0.0198246 | BX36: 0.0417621 | BY36: 0.0084278 | CA36: 0.025412 | CB36: 0.0084278 | CD36: 115 | CE36: 0.9550015 | CG36: 0.6665726 | CH36: 0.6985854 | CJ36: 0.0359522 | CK36: 0.6985854 | CM36: 0.925 | CN36: 0.925 | CP36: 0.014 | CQ36: 0.925 | CS36: 0.2026627 | CT36: 0.9210553 | CV36: 0.0280332 | CW36: 0.9210553 | CY36: 0.2292667 | CZ36: 0.6985854 | DB36: 0.0613419 | DC36: 0.6985854 | DE36: 115 | DF36: 0.0100026 | DH36: 0.6665726 | DI36: 0.0747185 | DK36: 0.0359522 | DL36: 0.0747185 | DN36: 0.925 | DO36: 0.014 | DQ36: 0.014 | DR36: 0.014 | DT36: 0.2026627 | DU36: 0.0210585 | DW36: 0.0280332 | DX36: 0.0210585 | DZ36: 0.2292667 | EA36: 0.0747185 | EC36: 0.0613419 | ED36: 0.0747185 | EF36: 15 | EG36: 0.3502628 | EI36: 0.9186145 | EJ36: 0.3502628 | EL36: 0.0198246 | EM36: 0.3502628 | EO36: 0.9210553 | EP36: 0.2026627 | ER36: 0.0210585 | ES36: 0.2026627 | EU36: 0.3502628 | EV36: 0.3502628 | EX36: 0.0385193 | EY36: 0.3502628 | FA36: 0.0417621 | FB36: 0.3793371 | FD36: 0.025412 | FE36: 0.3793371 | FG36: 15 | FH36: 0.0385193 | FJ36: 0.9186145 | FK36: 0.0385193 | FM36: 0.0198246 | FN36: 0.0385193 | FP36: 0.9210553 | FQ36: 0.0280332 | FS36: 0.0210585 | FT36: 0.0280332 | FV36: 0.3502628 | FW36: 0.0385193 | FY36: 0.0385193 | FZ36: 0.0385193 | GB36: 0.0417621 | GC36: 0.0470918 | GE36: 0.025412 | GF36: 0.0470918 | GH36: 7 | GI36: 0.2292667 | GK36: 0.9745851 | GL36: 0.0417621 | GN36: 0.0084278 | GO36: 0.0417621 | GQ36: 0.6985854 | GR36: 0.2292667 | GT36: 0.0747185 | GU36: 0.2292667 | GW36: 0.3793371 | GX36: 0.0417621 | GZ36: 0.0470918 | HA36: 0.0417621 | HC36: 0.0727259 | HD36: 0.0727259 | HF36: 0.0234718 | HG36: 0.0727259 | HI36: 7 | HJ36: 0.0613419 | HL36: 0.9745851 | HM36: 0.025412 | HO36: 0.0084278 | HP36: 0.025412 | HR36: 0.6985854 | HS36: 0.0613419 | HU36: 0.0747185 | HV36: 0.0613419 | HX36: 0.3793371 | HY36: 0.025412 | IA36: 0.0470918 | IB36: 0.025412
A37: 18 | B37: 18 | D37: 0.9105053 | E37: 38 | G37: 0.0519452 | H37: 38 | J37: 0.8218329 | K37: 37 | M37: 0.0436833 | N37: 37 | P37: 0.631 | Q37: 22 | S37: 0.017 | T37: 22 | V37: 0.1441669 | W37: 41 | Y37: 0.008455803 | Z37: 41 | AB37: 38 | AC37: 0.9105053 | AE37: 0.9105053 | AF37: 0.9105053 | AH37: 0.0519452 | AI37: 0.9105053 | AK37: 0.8605941 | AL37: 0.8664074 | AN37: 0.007701427 | AO37: 0.8664074 | AQ37: 0.631 | AR37: 0.946 | AT37: 0.017 | AU37: 0.946 | AW37: 0.1849244 | AX37: 0.8515294 | AZ37: 0.0309736 | BA37: 0.8515294 | BC37: 38 | BD37: 0.0519452 | BF37: 0.9105053 | BG37: 0.0519452 | BI37: 0.0519452 | BJ37: 0.0519452 | BL37: 0.8605941 | BM37: 0.007395253 | BO37: 0.007701427 | BP37: 0.007395253 | BR37: 0.631 | BS37: 0.005 | BU37: 0.017 | BV37: 0.005 | BX37: 0.1849244 | BY37: 0.0224081 | CA37: 0.0309736 | CB37: 0.0224081 | CD37: 37 | CE37: 0.8218329 | CG37: 0.8664074 | CH37: 0.8605941 | CJ37: 0.007395253 | CK37: 0.8605941 | CM37: 0.9550015 | CN37: 0.9550015 | CP37: 0.0100026 | CQ37: 0.9550015 | CS37: 0.1199 | CT37: 0.9963 | CV37: 0.0278 | CW37: 0.9963 | CY37: 0.1441669 | CZ37: 0.8605941 | DB37: 0.008455803 | DC37: 0.8605941 | DE37: 37 | DF37: 0.0436833 | DH37: 0.8664074 | DI37: 0.007701427 | DK37: 0.007395253 | DL37: 0.007701427 | DN37: 0.9550015 | DO37: 0.0100026 | DQ37: 0.0100026 | DR37: 0.0100026 | DT37: 0.1199 | DU37: 0.0037 | DW37: 0.0278 | DX37: 0.0037 | DZ37: 0.1441669 | EA37: 0.007701427 | EC37: 0.008455803 | ED37: 0.007701427 | EF37: 22 | EG37: 0.631 | EI37: 0.946 | EJ37: 0.631 | EL37: 0.005 | EM37: 0.631 | EO37: 0.9963 | EP37: 0.1199 | ER37: 0.0037 | ES37: 0.1199 | EU37: 0.631 | EV37: 0.631 | EX37: 0.017 | EY37: 0.631 | FA37: 0.1849244 | FB37: 0.2026627 | FD37: 0.0309736 | FE37: 0.2026627 | FG37: 22 | FH37: 0.017 | FJ37: 0.946 | FK37: 0.017 | FM37: 0.005 | FN37: 0.017 | FP37: 0.9963 | FQ37: 0.0278 | FS37: 0.0037 | FT37: 0.0278 | FV37: 0.631 | FW37: 0.017 | FY37: 0.017 | FZ37: 0.017 | GB37: 0.1849244 | GC37: 0.0280332 | GE37: 0.0309736 | GF37: 0.0280332 | GH37: 41 | GI37: 0.1441669 | GK37: 0.8515294 | GL37: 0.1849244 | GN37: 0.0224081 | GO37: 0.1849244 | GQ37: 0.8605941 | GR37: 0.1441669 | GT37: 0.007701427 | GU37: 0.1441669 | GW37: 0.2026627 | GX37: 0.1849244 | GZ37: 0.0280332 | HA37: 0.1849244 | HC37: 0.2292667 | HD37: 0.2292667 | HF37: 0.0613419 | HG37: 0.2292667 | HI37: 41 | HJ37: 0.008455803 | HL37: 0.8515294 | HM37: 0.0309736 | HO37: 0.0224081 | HP37: 0.0309736 | HR37: 0.8605941 | HS37: 0.008455803 | HU37: 0.007701427 | HV37: 0.008455803 | HX37: 0.2026627 | HY37: 0.0309736 | IA37: 0.0280332 | IB37: 0.0309736
A38: 40 | B38: 40 | D38: 0.9274206 | E38: 15 | G38: 0.0140702 | H38: 15 | J38: 0.6985854 | K38: 7 | M38: 0.0747185 | N38: 7 | P38: 0.0563556 | Q38: 115 | S38: 0.0045412 | T38: 115 | V38: 0.0417621 | W38: 65 | Y38: 0.025412 | Z38: 65 | AB38: 15 | AC38: 0.9274206 | AE38: 0.9274206 | AF38: 0.9274206 | AH38: 0.0140702 | AI38: 0.9274206 | AK38: 0.9956355 | AL38: 0.9745851 | AN38: 0.0185716 | AO38: 0.9745851 | AQ38: 0.0563556 | AR38: 0.9623554 | AT38: 0.0045412 | AU38: 0.9623554 | AW38: 0.0285 | AX38: 0.9676 | AZ38: 0.0087 | BA38: 0.9676 | BC38: 15 | BD38: 0.0140702 | BF38: 0.9274206 | BG38: 0.0140702 | BI38: 0.0140702 | BJ38: 0.0140702 | BL38: 0.9956355 | BM38: 0.0084278 | BO38: 0.0185716 | BP38: 0.0084278 | BR38: 0.0563556 | BS38: 0.004007 | BU38: 0.0045412 | BV38: 0.004007 | BX38: 0.0285 | BY38: 0.0107 | CA38: 0.0087 | CB38: 0.0107 | CD38: 7 | CE38: 0.6985854 | CG38: 0.9745851 | CH38: 0.9956355 | CJ38: 0.0084278 | CK38: 0.9956355 | CM38: 0.8218329 | CN38: 0.8218329 | CP38: 0.0436833 | CQ38: 0.8218329 | CS38: 0.558 | CT38: 0.888 | CV38: 0.024 | CW38: 0.888 | CY38: 0.0417621 | CZ38: 0.9956355 | DB38: 0.025412 | DC38: 0.9956355 | DE38: 7 | DF38: 0.0747185 | DH38: 0.9745851 | DI38: 0.0185716 | DK38: 0.0084278 | DL38: 0.0185716 | DN38: 0.8218329 | DO38: 0.0436833 | DQ38: 0.0436833 | DR38: 0.0436833 | DT38: 0.558 | DU38: 0.038 | DW38: 0.024 | DX38: 0.038 | DZ38: 0.0417621 | EA38: 0.0185716 | EC38: 0.025412 | ED38: 0.0185716 | EF38: 115 | EG38: 0.0563556 | EI38: 0.9623554 | EJ38: 0.0563556 | EL38: 0.004007 | EM38: 0.0563556 | EO38: 0.888 | EP38: 0.558 | ER38: 0.038 | ES38: 0.558 | EU38: 0.0563556 | EV38: 0.0563556 | EX38: 0.0045412 | EY38: 0.0563556 | FA38: 0.0285 | FB38: 0.1199 | FD38: 0.0087 | FE38: 0.1199 | FG38: 115 | FH38: 0.0045412 | FJ38: 0.9623554 | FK38: 0.0045412 | FM38: 0.004007 | FN38: 0.0045412 | FP38: 0.888 | FQ38: 0.024 | FS38: 0.038 | FT38: 0.024 | FV38: 0.0563556 | FW38: 0.0045412 | FY38: 0.0045412 | FZ38: 0.0045412 | GB38: 0.0285 | GC38: 0.0278 | GE38: 0.0087 | GF38: 0.0278 | GH38: 65 | GI38: 0.0417621 | GK38: 0.9676 | GL38: 0.0285 | GN38: 0.0107 | GO38: 0.0285 | GQ38: 0.9956355 | GR38: 0.0417621 | GT38: 0.0185716 | GU38: 0.0417621 | GW38: 0.1199 | GX38: 0.0285 | GZ38: 0.0278 | HA38: 0.0285 | HC38: 0.1441669 | HD38: 0.1441669 | HF38: 0.008455803 | HG38: 0.1441669 | HI38: 65 | HJ38: 0.025412 | HL38: 0.9676 | HM38: 0.0087 | HO38: 0.0107 | HP38: 0.0087 | HR38: 0.9956355 | HS38: 0.025412 | HU38: 0.0185716 | HV38: 0.025412 | HX38: 0.1199 | HY38: 0.0087 | IA38: 0.0278 | IB38: 0.0087
A39: 38 | B39: 38 | D39: 0.9186145 | E39: 15 | G39: 0.0198246 | H39: 15 | J39: 0.8605941 | K39: 41 | M39: 0.007701427 | N39: 41 | P39: 0.14 | Q39: 20 | S39: 0.022 | T39: 20 | V39: 0.1849244 | W39: 47 | Y39: 0.0309736 | Z39: 47 | AB39: 15 | AC39: 0.9186145 | AE39: 0.9186145 | AF39: 0.9186145 | AH39: 0.0198246 | AI39: 0.9186145 | AK39: 0.9210553 | AL39: 0.8515294 | AN39: 0.0210585 | AO39: 0.8515294 | AQ39: 0.14 | AR39: 0.89 | AT39: 0.022 | AU39: 0.89 | AW39: 0.062 | AX39: 0.926 | AZ39: 0.015 | BA39: 0.926 | BC39: 15 | BD39: 0.0198246 | BF39: 0.9186145 | BG39: 0.0198246 | BI39: 0.0198246 | BJ39: 0.0198246 | BL39: 0.9210553 | BM39: 0.0224081 | BO39: 0.0210585 | BP39: 0.0224081 | BR39: 0.14 | BS39: 0.007 | BU39: 0.022 | BV39: 0.007 | BX39: 0.062 | BY39: 0.019 | CA39: 0.015 | CB39: 0.019 | CD39: 41 | CE39: 0.8605941 | CG39: 0.8515294 | CH39: 0.9210553 | CJ39: 0.0224081 | CK39: 0.9210553 | CM39: 0.6985854 | CN39: 0.6985854 | CP39: 0.0747185 | CQ39: 0.6985854 | CS39: 0.253 | CT39: 0.831 | CV39: 0.03418367347 | CW39: 0.831 | CY39: 0.1849244 | CZ39: 0.9210553 | DB39: 0.0309736 | DC39: 0.9210553 | DE39: 41 | DF39: 0.007701427 | DH39: 0.8515294 | DI39: 0.0210585 | DK39: 0.0224081 | DL39: 0.0210585 | DN39: 0.6985854 | DO39: 0.0747185 | DQ39: 0.0747185 | DR39: 0.0747185 | DT39: 0.253 | DU39: 0.0443877551 | DW39: 0.03418367347 | DX39: 0.0443877551 | DZ39: 0.1849244 | EA39: 0.0210585 | EC39: 0.0309736 | ED39: 0.0210585 | EF39: 20 | EG39: 0.14 | EI39: 0.89 | EJ39: 0.14 | EL39: 0.007 | EM39: 0.14 | EO39: 0.831 | EP39: 0.253 | ER39: 0.0443877551 | ES39: 0.253 | EU39: 0.14 | EV39: 0.14 | EX39: 0.022 | EY39: 0.14 | FA39: 0.062 | FB39: 0.558 | FD39: 0.015 | FE39: 0.558 | FG39: 20 | FH39: 0.022 | FJ39: 0.89 | FK39: 0.022 | FM39: 0.007 | FN39: 0.022 | FP39: 0.831 | FQ39: 0.03418367347 | FS39: 0.0443877551 | FT39: 0.03418367347 | FV39: 0.14 | FW39: 0.022 | FY39: 0.022 | FZ39: 0.022 | GB39: 0.062 | GC39: 0.024 | GE39: 0.015 | GF39: 0.024 | GH39: 47 | GI39: 0.1849244 | GK39: 0.926 | GL39: 0.062 | GN39: 0.019 | GO39: 0.062 | GQ39: 0.9210553 | GR39: 0.1849244 | GT39: 0.0210585 | GU39: 0.1849244 | GW39: 0.558 | GX39: 0.062 | GZ39: 0.024 | HA39: 0.062 | HC39: 0.0417621 | HD39: 0.0417621 | HF39: 0.025412 | HG39: 0.0417621 | HI39: 47 | HJ39: 0.0309736 | HL39: 0.926 | HM39: 0.015 | HO39: 0.019 | HP39: 0.015 | HR39: 0.9210553 | HS39: 0.0309736 | HU39: 0.0210585 | HV39: 0.0309736 | HX39: 0.558 | HY39: 0.015 | IA39: 0.024 | IB39: 0.015
A40: 15 | B40: 15 | D40: 0.946 | E40: 22 | G40: 0.005 | H40: 22 | J40: 0.9956355 | K40: 65 | M40: 0.0185716 | N40: 65 | P40: 0.16 | Q40: 29 | S40: 0.058 | T40: 29 | V40: 0.0285 | W40: 109 | Y40: 0.0087 | Z40: 109 | AB40: 22 | AC40: 0.946 | AE40: 0.946 | AF40: 0.946 | AH40: 0.005 | AI40: 0.946 | AK40: 0.9963 | AL40: 0.9676 | AN40: 0.0037 | AO40: 0.9676 | AQ40: 0.16 | AR40: 0.86 | AT40: 0.058 | AU40: 0.86 | AW40: 0.112 | AX40: 0.759 | AZ40: 0.04234693878 | BA40: 0.759 | BC40: 22 | BD40: 0.005 | BF40: 0.946 | BG40: 0.005 | BI40: 0.005 | BJ40: 0.005 | BL40: 0.9963 | BM40: 0.0107 | BO40: 0.0037 | BP40: 0.0107 | BR40: 0.16 | BS40: 0.014 | BU40: 0.058 | BV40: 0.014 | BX40: 0.112 | BY40: 0.01428571429 | CA40: 0.04234693878 | CB40: 0.01428571429 | CD40: 65 | CE40: 0.9956355 | CG40: 0.9676 | CH40: 0.9963 | CJ40: 0.0107 | CK40: 0.9963 | CM40: 0.8605941 | CN40: 0.8605941 | CP40: 0.007701427 | CQ40: 0.8605941 | CS40: 0.2932753 | CT40: 0.7632793 | CV40: 0.0240128 | CW40: 0.7632793 | CY40: 0.0285 | CZ40: 0.9963 | DB40: 0.0087 | DC40: 0.9963 | DE40: 65 | DF40: 0.0185716 | DH40: 0.9676 | DI40: 0.0037 | DK40: 0.0107 | DL40: 0.0037 | DN40: 0.8605941 | DO40: 0.007701427 | DQ40: 0.007701427 | DR40: 0.007701427 | DT40: 0.2932753 | DU40: 0.026198 | DW40: 0.0240128 | DX40: 0.026198 | DZ40: 0.0285 | EA40: 0.0037 | EC40: 0.0087 | ED40: 0.0037 | EF40: 29 | EG40: 0.16 | EI40: 0.86 | EJ40: 0.16 | EL40: 0.014 | EM40: 0.16 | EO40: 0.7632793 | EP40: 0.2932753 | ER40: 0.026198 | ES40: 0.2932753 | EU40: 0.16 | EV40: 0.16 | EX40: 0.058 | EY40: 0.16 | FA40: 0.112 | FB40: 0.253 | FD40: 0.04234693878 | FE40: 0.253 | FG40: 29 | FH40: 0.058 | FJ40: 0.86 | FK40: 0.058 | FM40: 0.014 | FN40: 0.058 | FP40: 0.7632793 | FQ40: 0.0240128 | FS40: 0.026198 | FT40: 0.0240128 | FV40: 0.16 | FW40: 0.058 | FY40: 0.058 | FZ40: 0.058 | GB40: 0.112 | GC40: 0.03418367347 | GE40: 0.04234693878 | GF40: 0.03418367347 | GH40: 109 | GI40: 0.0285 | GK40: 0.759 | GL40: 0.112 | GN40: 0.01428571429 | GO40: 0.112 | GQ40: 0.9963 | GR40: 0.0285 | GT40: 0.0037 | GU40: 0.0285 | GW40: 0.253 | GX40: 0.112 | GZ40: 0.03418367347 | HA40: 0.112 | HC40: 0.1849244 | HD40: 0.1849244 | HF40: 0.0309736 | HG40: 0.1849244 | HI40: 109 | HJ40: 0.0087 | HL40: 0.759 | HM40: 0.04234693878 | HO40: 0.01428571429 | HP40: 0.04234693878 | HR40: 0.9963 | HS40: 0.0087 | HU40: 0.0037 | HV40: 0.0087 | HX40: 0.253 | HY40: 0.04234693878 | IA40: 0.03418367347 | IB40: 0.04234693878
A41: 15 | B41: 15 | D41: 0.9623554 | E41: 115 | G41: 0.004007 | H41: 115 | J41: 0.9210553 | K41: 47 | M41: 0.0210585 | N41: 47 | P41: 0.44 | Q41: 17 | S41: 0.05867346939 | T41: 17 | V41: 0.062 | W41: 44 | Y41: 0.015 | Z41: 44 | AB41: 115 | AC41: 0.9623554 | AE41: 0.9623554 | AF41: 0.9623554 | AH41: 0.004007 | AI41: 0.9623554 | AK41: 0.888 | AL41: 0.926 | AN41: 0.038 | AO41: 0.926 | AQ41: 0.44 | AR41: 0.88 | AT41: 0.05867346939 | AU41: 0.88 | AW41: 0.2944184 | AX41: 0.7781578 | AZ41: 0.0456357 | BA41: 0.7781578 | BC41: 115 | BD41: 0.004007 | BF41: 0.9623554 | BG41: 0.004007 | BI41: 0.004007 | BJ41: 0.004007 | BL41: 0.888 | BM41: 0.019 | BO41: 0.038 | BP41: 0.019 | BR41: 0.44 | BS41: 0.01020408163 | BU41: 0.05867346939 | BV41: 0.01020408163 | BX41: 0.2944184 | BY41: 0.0130804 | CA41: 0.0456357 | CB41: 0.0130804 | CD41: 47 | CE41: 0.9210553 | CG41: 0.926 | CH41: 0.888 | CJ41: 0.019 | CK41: 0.888 | CM41: 0.9956355 | CN41: 0.9956355 | CP41: 0.0185716 | CQ41: 0.9956355 | CY41: 0.062 | CZ41: 0.888 | DB41: 0.015 | DC41: 0.888 | DE41: 47 | DF41: 0.0210585 | DH41: 0.926 | DI41: 0.038 | DK41: 0.019 | DL41: 0.038 | DN41: 0.9956355 | DO41: 0.0185716 | DQ41: 0.0185716 | DR41: 0.0185716 | DZ41: 0.062 | EA41: 0.038 | EC41: 0.015 | ED41: 0.038 | EF41: 17 | EG41: 0.44 | EI41: 0.88 | EJ41: 0.44 | EL41: 0.01020408163 | EM41: 0.44 | EU41: 0.44 | EV41: 0.44 | EX41: 0.05867346939 | EY41: 0.44 | FA41: 0.2944184 | FB41: 0.2932753 | FD41: 0.0456357 | FE41: 0.2932753 | FG41: 17 | FH41: 0.05867346939 | FJ41: 0.88 | FK41: 0.05867346939 | FM41: 0.01020408163 | FN41: 0.05867346939 | FV41: 0.44 | FW41: 0.05867346939 | FY41: 0.05867346939 | FZ41: 0.05867346939 | GB41: 0.2944184 | GC41: 0.0240128 | GE41: 0.0456357 | GF41: 0.0240128 | GH41: 44 | GI41: 0.062 | GK41: 0.7781578 | GL41: 0.2944184 | GN41: 0.0130804 | GO41: 0.2944184 | GQ41: 0.888 | GR41: 0.062 | GT41: 0.038 | GU41: 0.062 | GW41: 0.2932753 | GX41: 0.2944184 | GZ41: 0.0240128 | HA41: 0.2944184 | HC41: 0.0285 | HD41: 0.0285 | HF41: 0.0087 | HG41: 0.0285 | HI41: 44 | HJ41: 0.015 | HL41: 0.7781578 | HM41: 0.0456357 | HO41: 0.0130804 | HP41: 0.0456357 | HR41: 0.888 | HS41: 0.015 | HU41: 0.038 | HV41: 0.015 | HX41: 0.2932753 | HY41: 0.0456357 | IA41: 0.0240128 | IB41: 0.0456357
A42: 22 | B42: 22 | D42: 0.89 | E42: 20 | G42: 0.007 | H42: 20 | J42: 0.9963 | K42: 109 | M42: 0.0037 | N42: 109 | P42: 0.48 | Q42: 16 | S42: 0.05612244898 | T42: 16 | V42: 0.112 | W42: 11 | Y42: 0.04234693878 | Z42: 11 | AB42: 20 | AC42: 0.89 | AE42: 0.89 | AF42: 0.89 | AH42: 0.007 | AI42: 0.89 | AK42: 0.831 | AL42: 0.759 | AN42: 0.0443877551 | AO42: 0.759 | AQ42: 0.48 | AR42: 0.88 | AT42: 0.05612244898 | AU42: 0.88 | BC42: 20 | BD42: 0.007 | BF42: 0.89 | BG42: 0.007 | BI42: 0.007 | BJ42: 0.007 | BL42: 0.831 | BM42: 0.01428571429 | BO42: 0.0443877551 | BP42: 0.01428571429 | BR42: 0.48 | BS42: 0.01020408163 | BU42: 0.05612244898 | BV42: 0.01020408163 | CD42: 109 | CE42: 0.9963 | CG42: 0.759 | CH42: 0.831 | CJ42: 0.01428571429 | CK42: 0.831 | CM42: 0.9210553 | CN42: 0.9210553 | CP42: 0.0210585 | CQ42: 0.9210553 | CY42: 0.112 | CZ42: 0.831 | DB42: 0.04234693878 | DC42: 0.831 | DE42: 109 | DF42: 0.0037 | DH42: 0.759 | DI42: 0.0443877551 | DK42: 0.01428571429 | DL42: 0.0443877551 | DN42: 0.9210553 | DO42: 0.0210585 | DQ42: 0.0210585 | DR42: 0.0210585 | DZ42: 0.112 | EA42: 0.0443877551 | EC42: 0.04234693878 | ED42: 0.0443877551 | EF42: 16 | EG42: 0.48 | EI42: 0.88 | EJ42: 0.48 | EL42: 0.01020408163 | EM42: 0.48 | EU42: 0.48 | EV42: 0.48 | EX42: 0.05612244898 | EY42: 0.48 | FG42: 16 | FH42: 0.05612244898 | FJ42: 0.88 | FK42: 0.05612244898 | FM42: 0.01020408163 | FN42: 0.05612244898 | FV42: 0.48 | FW42: 0.05612244898 | FY42: 0.05612244898 | FZ42: 0.05612244898 | GH42: 11 | GI42: 0.112 | GQ42: 0.831 | GR42: 0.112 | GT42: 0.0443877551 | GU42: 0.112 | HC42: 0.062 | HD42: 0.062 | HF42: 0.015 | HG42: 0.062 | HI42: 11 | HJ42: 0.04234693878 | HR42: 0.831 | HS42: 0.04234693878 | HU42: 0.0443877551 | HV42: 0.04234693878
A43: 115 | B43: 115 | D43: 0.86 | E43: 29 | G43: 0.014 | H43: 29 | J43: 0.888 | K43: 44 | M43: 0.038 | N43: 44 | P43: 0.21 | Q43: 22 | S43: 0.04336734694 | T43: 22 | V43: 0.2944184 | W43: 25 | Y43: 0.0456357 | Z43: 25 | AB43: 29 | AC43: 0.86 | AE43: 0.86 | AF43: 0.86 | AH43: 0.014 | AI43: 0.86 | AK43: 0.83 | AL43: 0.88 | AN43: 0.02 | AO43: 0.88 | AQ43: 0.21 | AR43: 0.8 | AT43: 0.04336734694 | AU43: 0.8 | BC43: 29 | BD43: 0.014 | BF43: 0.86 | BG43: 0.014 | BI43: 0.014 | BJ43: 0.014 | BL43: 0.83 | BM43: 0.01 | BO43: 0.02 | BP43: 0.01 | BR43: 0.21 | BS43: 0.01275510204 | BU43: 0.04336734694 | BV43: 0.01275510204 | CD43: 44 | CE43: 0.888 | CG43: 0.88 | CH43: 0.83 | CJ43: 0.01 | CK43: 0.83 | CM43: 0.9963 | CN43: 0.9963 | CP43: 0.0037 | CQ43: 0.9963 | CY43: 0.2944184 | CZ43: 0.7632793 | DB43: 0.0456357 | DC43: 0.7632793 | DE43: 44 | DF43: 0.038 | DH43: 0.88 | DI43: 0.02 | DK43: 0.01 | DL43: 0.02 | DN43: 0.9963 | DO43: 0.0037 | DQ43: 0.0037 | DR43: 0.0037 | DZ43: 0.2944184 | EA43: 0.026198 | EC43: 0.0456357 | ED43: 0.026198 | EF43: 22 | EG43: 0.21 | EI43: 0.8 | EJ43: 0.21 | EL43: 0.01275510204 | EM43: 0.21 | EU43: 0.21 | EV43: 0.21 | EX43: 0.04336734694 | EY43: 0.21 | FG43: 22 | FH43: 0.04336734694 | FJ43: 0.8 | FK43: 0.04336734694 | FM43: 0.01275510204 | FN43: 0.04336734694 | FV43: 0.21 | FW43: 0.04336734694 | FY43: 0.04336734694 | FZ43: 0.04336734694 | GH43: 25 | GI43: 0.2944184 | GQ43: 0.7632793 | GR43: 0.2944184 | GT43: 0.026198 | GU43: 0.2944184 | HC43: 0.112 | HD43: 0.112 | HF43: 0.04234693878 | HG43: 0.112 | HI43: 25 | HJ43: 0.0456357 | HR43: 0.7632793 | HS43: 0.0456357 | HU43: 0.026198 | HV43: 0.0456357
A44: 20 | B44: 20 | D44: 0.88 | E44: 17 | G44: 0.01020408163 | H44: 17 | J44: 0.831 | K44: 11 | M44: 0.0443877551 | N44: 11 | P44: 0.24 | Q44: 23 | S44: 0.03571428571 | T44: 23 | AB44: 17 | AC44: 0.88 | AE44: 0.88 | AF44: 0.88 | AH44: 0.01020408163 | AI44: 0.88 | AK44: 0.84 | AL44: 0.91 | AN44: 0.02 | AO44: 0.91 | AQ44: 0.24 | AR44: 0.8 | AT44: 0.03571428571 | AU44: 0.8 | BC44: 17 | BD44: 0.01020408163 | BF44: 0.88 | BG44: 0.01020408163 | BI44: 0.01020408163 | BJ44: 0.01020408163 | BL44: 0.84 | BM44: 0.01 | BO44: 0.02 | BP44: 0.01 | BR44: 0.24 | BS44: 0.01275510204 | BU44: 0.03571428571 | BV44: 0.01275510204 | CD44: 11 | CE44: 0.831 | CG44: 0.91 | CH44: 0.84 | CJ44: 0.01 | CK44: 0.84 | CM44: 0.888 | CN44: 0.888 | CP44: 0.038 | CQ44: 0.888 | DE44: 11 | DF44: 0.0443877551 | DH44: 0.91 | DI44: 0.02 | DK44: 0.01 | DL44: 0.02 | DN44: 0.888 | DO44: 0.038 | DQ44: 0.038 | DR44: 0.038 | EF44: 23 | EG44: 0.24 | EI44: 0.8 | EJ44: 0.24 | EL44: 0.01275510204 | EM44: 0.24 | EU44: 0.24 | EV44: 0.24 | EX44: 0.03571428571 | EY44: 0.24 | FG44: 23 | FH44: 0.03571428571 | FJ44: 0.8 | FK44: 0.03571428571 | FM44: 0.01275510204 | FN44: 0.03571428571 | FV44: 0.24 | FW44: 0.03571428571 | FY44: 0.03571428571 | FZ44: 0.03571428571 | HC44: 0.2944184 | HD44: 0.2944184 | HF44: 0.0456357 | HG44: 0.2944184
A45: 29 | B45: 29 | D45: 0.88 | E45: 16 | G45: 0.01020408163 | H45: 16 | J45: 0.83 | K45: 61 | M45: 0.02 | N45: 61 | P45: 0.26 | Q45: 21 | S45: 0.03571428571 | T45: 21 | AB45: 16 | AC45: 0.88 | AE45: 0.88 | AF45: 0.88 | AH45: 0.01020408163 | AI45: 0.88 | AK45: 0.94 | AL45: 0.94 | AN45: 0.01 | AO45: 0.94 | AQ45: 0.26 | AR45: 0.79 | AT45: 0.03571428571 | AU45: 0.79 | BC45: 16 | BD45: 0.01020408163 | BF45: 0.88 | BG45: 0.01020408163 | BI45: 0.01020408163 | BJ45: 0.01020408163 | BL45: 0.94 | BM45: 0.01 | BO45: 0.01 | BP45: 0.01 | BR45: 0.26 | BS45: 0.01275510204 | BU45: 0.03571428571 | BV45: 0.01275510204 | CD45: 61 | CE45: 0.83 | CG45: 0.94 | CH45: 0.94 | CJ45: 0.01 | CK45: 0.94 | CM45: 0.831 | CN45: 0.831 | CP45: 0.0443877551 | CQ45: 0.831 | DE45: 61 | DF45: 0.02 | DH45: 0.94 | DI45: 0.01 | DK45: 0.01 | DL45: 0.01 | DN45: 0.831 | DO45: 0.0443877551 | DQ45: 0.0443877551 | DR45: 0.0443877551 | EF45: 21 | EG45: 0.26 | EI45: 0.79 | EJ45: 0.26 | EL45: 0.01275510204 | EM45: 0.26 | EU45: 0.26 | EV45: 0.26 | EX45: 0.03571428571 | EY45: 0.26 | FG45: 21 | FH45: 0.03571428571 | FJ45: 0.79 | FK45: 0.03571428571 | FM45: 0.01275510204 | FN45: 0.03571428571 | FV45: 0.26 | FW45: 0.03571428571 | FY45: 0.03571428571 | FZ45: 0.03571428571
A46: 17 | B46: 17 | D46: 0.8 | E46: 22 | G46: 0.01275510204 | H46: 22 | J46: 0.84 | K46: 61 | M46: 0.02 | N46: 61 | P46: 0.0612782 | Q46: 37 | S46: 0.0169675 | T46: 37 | AB46: 22 | AC46: 0.8 | AE46: 0.8 | AF46: 0.8 | AH46: 0.01275510204 | AI46: 0.8 | AK46: 0.94 | AL46: 0.94 | AN46: 0.01 | AO46: 0.94 | AQ46: 0.0612782 | AR46: 0.8589292 | AT46: 0.0169675 | AU46: 0.8589292 | BC46: 22 | BD46: 0.01275510204 | BF46: 0.8 | BG46: 0.01275510204 | BI46: 0.01275510204 | BJ46: 0.01275510204 | BL46: 0.94 | BM46: 0.01 | BO46: 0.01 | BP46: 0.01 | BR46: 0.0612782 | BS46: 0.0323057 | BU46: 0.0169675 | BV46: 0.0323057 | CD46: 61 | CE46: 0.84 | CG46: 0.94 | CH46: 0.94 | CJ46: 0.01 | CK46: 0.94 | CM46: 0.83 | CN46: 0.83 | CP46: 0.02 | CQ46: 0.83 | DE46: 61 | DF46: 0.02 | DH46: 0.94 | DI46: 0.01 | DK46: 0.01 | DL46: 0.01 | DN46: 0.83 | DO46: 0.02 | DQ46: 0.02 | DR46: 0.02 | EF46: 37 | EG46: 0.0612782 | EI46: 0.8589292 | EJ46: 0.0612782 | EL46: 0.0323057 | EM46: 0.0612782 | EU46: 0.0612782 | EV46: 0.0612782 | EX46: 0.0169675 | EY46: 0.0612782 | FG46: 37 | FH46: 0.0169675 | FJ46: 0.8589292 | FK46: 0.0169675 | FM46: 0.0323057 | FN46: 0.0169675 | FV46: 0.0612782 | FW46: 0.0169675 | FY46: 0.0169675 | FZ46: 0.0169675
A47: 16 | B47: 16 | D47: 0.8 | E47: 23 | G47: 0.01275510204 | H47: 23 | J47: 0.94 | K47: 61 | M47: 0.01 | N47: 61 | P47: 0.340989 | Q47: 7 | S47: 0.0402096 | T47: 7 | AB47: 23 | AC47: 0.8 | AE47: 0.8 | AF47: 0.8 | AH47: 0.01275510204 | AI47: 0.8 | AK47: 0.7632793 | AL47: 0.7781578 | AN47: 0.026198 | AO47: 0.7781578 | AQ47: 0.340989 | AR47: 0.6665726 | AT47: 0.0402096 | AU47: 0.6665726 | BC47: 23 | BD47: 0.01275510204 | BF47: 0.8 | BG47: 0.01275510204 | BI47: 0.01275510204 | BJ47: 0.01275510204 | BL47: 0.7632793 | BM47: 0.0130804 | BO47: 0.026198 | BP47: 0.0130804 | BR47: 0.340989 | BS47: 0.0359522 | BU47: 0.0402096 | BV47: 0.0359522 | CD47: 61 | CE47: 0.94 | CG47: 0.7781578 | CH47: 0.7632793 | CJ47: 0.0130804 | CK47: 0.7632793 | CM47: 0.84 | CN47: 0.84 | CP47: 0.02 | CQ47: 0.84 | DE47: 61 | DF47: 0.01 | DH47: 0.7781578 | DI47: 0.026198 | DK47: 0.0130804 | DL47: 0.026198 | DN47: 0.84 | DO47: 0.02 | DQ47: 0.02 | DR47: 0.02 | EF47: 7 | EG47: 0.340989 | EI47: 0.6665726 | EJ47: 0.340989 | EL47: 0.0359522 | EM47: 0.340989 | EU47: 0.340989 | EV47: 0.340989 | EX47: 0.0402096 | EY47: 0.340989 | FG47: 7 | FH47: 0.0402096 | FJ47: 0.6665726 | FK47: 0.0402096 | FM47: 0.0359522 | FN47: 0.0402096 | FV47: 0.340989 | FW47: 0.0402096 | FY47: 0.0402096 | FZ47: 0.0402096
A48: 22 | B48: 22 | D48: 0.79 | E48: 21 | G48: 0.01275510204 | H48: 21 | J48: 0.94 | K48: 61 | M48: 0.01 | N48: 61 | P48: 0.1568664 | Q48: 41 | S48: 0.008671456 | T48: 41 | AB48: 21 | AC48: 0.79 | AE48: 0.79 | AF48: 0.79 | AH48: 0.01275510204 | AI48: 0.79 | AQ48: 0.1568664 | AR48: 0.8664074 | AT48: 0.008671456 | AU48: 0.8664074 | BC48: 21 | BD48: 0.01275510204 | BF48: 0.79 | BG48: 0.01275510204 | BI48: 0.01275510204 | BJ48: 0.01275510204 | BR48: 0.1568664 | BS48: 0.007395253 | BU48: 0.008671456 | BV48: 0.007395253 | CD48: 61 | CE48: 0.94 | CM48: 0.94 | CN48: 0.94 | CP48: 0.01 | CQ48: 0.94 | DE48: 61 | DF48: 0.01 | DN48: 0.94 | DO48: 0.01 | DQ48: 0.01 | DR48: 0.01 | EF48: 41 | EG48: 0.1568664 | EI48: 0.8664074 | EJ48: 0.1568664 | EL48: 0.007395253 | EM48: 0.1568664 | EU48: 0.1568664 | EV48: 0.1568664 | EX48: 0.008671456 | EY48: 0.1568664 | FG48: 41 | FH48: 0.008671456 | FJ48: 0.8664074 | FK48: 0.008671456 | FM48: 0.007395253 | FN48: 0.008671456 | FV48: 0.1568664 | FW48: 0.008671456 | FY48: 0.008671456 | FZ48: 0.008671456
A49: 23 | B49: 23 | D49: 0.8589292 | E49: 37 | G49: 0.0323057 | H49: 37 | J49: 0.7632793 | K49: 25 | M49: 0.026198 | N49: 25 | P49: 0.241 | Q49: 47 | S49: 0.048 | T49: 47 | AB49: 37 | AC49: 0.8589292 | AE49: 0.8589292 | AF49: 0.8589292 | AH49: 0.0323057 | AI49: 0.8589292 | AQ49: 0.241 | AR49: 0.962 | AT49: 0.048 | AU49: 0.962 | BC49: 37 | BD49: 0.0323057 | BF49: 0.8589292 | BG49: 0.0323057 | BI49: 0.0323057 | BJ49: 0.0323057 | BR49: 0.241 | BS49: 0.018 | BU49: 0.048 | BV49: 0.018 | CD49: 25 | CE49: 0.7632793 | CM49: 0.94 | CN49: 0.94 | CP49: 0.01 | CQ49: 0.94 | DE49: 25 | DF49: 0.026198 | DN49: 0.94 | DO49: 0.01 | DQ49: 0.01 | DR49: 0.01 | EF49: 47 | EG49: 0.241 | EI49: 0.962 | EJ49: 0.241 | EL49: 0.018 | EM49: 0.241 | EU49: 0.241 | EV49: 0.241 | EX49: 0.048 | EY49: 0.241 | FG49: 47 | FH49: 0.048 | FJ49: 0.962 | FK49: 0.048 | FM49: 0.018 | FN49: 0.048 | FV49: 0.241 | FW49: 0.048 | FY49: 0.048 | FZ49: 0.048
A50: 21 | B50: 21 | D50: 0.6665726 | E50: 7 | G50: 0.0359522 | H50: 7 | P50: 0.3793371 | Q50: 65 | S50: 0.0470918 | T50: 65 | AB50: 7 | AC50: 0.6665726 | AE50: 0.6665726 | AF50: 0.6665726 | AH50: 0.0359522 | AI50: 0.6665726 | AQ50: 0.3793371 | AR50: 0.9745851 | AT50: 0.0470918 | AU50: 0.9745851 | BC50: 7 | BD50: 0.0359522 | BF50: 0.6665726 | BG50: 0.0359522 | BI50: 0.0359522 | BJ50: 0.0359522 | BR50: 0.3793371 | BS50: 0.0084278 | BU50: 0.0470918 | BV50: 0.0084278 | CM50: 0.7632793 | CN50: 0.7632793 | CP50: 0.026198 | CQ50: 0.7632793 | DN50: 0.7632793 | DO50: 0.026198 | DQ50: 0.026198 | DR50: 0.026198 | EF50: 65 | EG50: 0.3793371 | EI50: 0.9745851 | EJ50: 0.3793371 | EL50: 0.0084278 | EM50: 0.3793371 | EU50: 0.3793371 | EV50: 0.3793371 | EX50: 0.0470918 | EY50: 0.3793371 | FG50: 65 | FH50: 0.0470918 | FJ50: 0.9745851 | FK50: 0.0470918 | FM50: 0.0084278 | FN50: 0.0470918 | FV50: 0.3793371 | FW50: 0.0470918 | FY50: 0.0470918 | FZ50: 0.0470918
A51: 37 | B51: 37 | D51: 0.8664074 | E51: 41 | G51: 0.007395253 | H51: 41 | P51: 0.2026627 | Q51: 47 | S51: 0.0280332 | T51: 47 | AB51: 41 | AC51: 0.8664074 | AE51: 0.8664074 | AF51: 0.8664074 | AH51: 0.007395253 | AI51: 0.8664074 | AQ51: 0.2026627 | AR51: 0.8515294 | AT51: 0.0280332 | AU51: 0.8515294 | BC51: 41 | BD51: 0.007395253 | BF51: 0.8664074 | BG51: 0.007395253 | BI51: 0.007395253 | BJ51: 0.007395253 | BR51: 0.2026627 | BS51: 0.0224081 | BU51: 0.0280332 | BV51: 0.0224081 | EF51: 47 | EG51: 0.2026627 | EI51: 0.8515294 | EJ51: 0.2026627 | EL51: 0.0224081 | EM51: 0.2026627 | EU51: 0.2026627 | EV51: 0.2026627 | EX51: 0.0280332 | EY51: 0.2026627 | FG51: 47 | FH51: 0.0280332 | FJ51: 0.8515294 | FK51: 0.0280332 | FM51: 0.0224081 | FN51: 0.0280332 | FV51: 0.2026627 | FW51: 0.0280332 | FY51: 0.0280332 | FZ51: 0.0280332
A52: 7 | B52: 7 | D52: 0.933 | E52: 35 | G52: 0.0306122449 | H52: 35 | P52: 0.9252 | Q52: 10 | S52: 0.272 | T52: 10 | AB52: 35 | AC52: 0.933 | AE52: 0.933 | AF52: 0.933 | AH52: 0.0306122449 | AI52: 0.933 | AQ52: 0.9252 | AR52: 0.8989 | AT52: 0.272 | AU52: 0.8989 | BC52: 35 | BD52: 0.0306122449 | BF52: 0.933 | BG52: 0.0306122449 | BI52: 0.0306122449 | BJ52: 0.0306122449 | BR52: 0.9252 | BS52: 0.0272 | BU52: 0.272 | BV52: 0.0272 | EF52: 10 | EG52: 0.9252 | EI52: 0.8989 | EJ52: 0.9252 | EL52: 0.0272 | EM52: 0.9252 | EU52: 0.9252 | EV52: 0.9252 | EX52: 0.272 | EY52: 0.9252 | FG52: 10 | FH52: 0.272 | FJ52: 0.8989 | FK52: 0.272 | FM52: 0.0272 | FN52: 0.272 | FV52: 0.9252 | FW52: 0.272 | FY52: 0.272 | FZ52: 0.272
A53: 41 | B53: 41 | D53: 0.847 | E53: 35 | G53: 0.03571428571 | H53: 35 | P53: 0.1199 | Q53: 109 | S53: 0.0278 | T53: 109 | AB53: 35 | AC53: 0.847 | AE53: 0.847 | AF53: 0.847 | AH53: 0.03571428571 | AI53: 0.847 | AQ53: 0.1199 | AR53: 0.9676 | AT53: 0.0278 | AU53: 0.9676 | BC53: 35 | BD53: 0.03571428571 | BF53: 0.847 | BG53: 0.03571428571 | BI53: 0.03571428571 | BJ53: 0.03571428571 | BR53: 0.1199 | BS53: 0.0107 | BU53: 0.0278 | BV53: 0.0107 | EF53: 109 | EG53: 0.1199 | EI53: 0.9676 | EJ53: 0.1199 | EL53: 0.0107 | EM53: 0.1199 | EU53: 0.1199 | EV53: 0.1199 | EX53: 0.0278 | EY53: 0.1199 | FG53: 109 | FH53: 0.0278 | FJ53: 0.9676 | FK53: 0.0278 | FM53: 0.0107 | FN53: 0.0278 | FV53: 0.1199 | FW53: 0.0278 | FY53: 0.0278 | FZ53: 0.0278
A54: 35 | B54: 35 | D54: 0.962 | E54: 47 | G54: 0.018 | H54: 47 | P54: 0.5121 | Q54: 109 | S54: 0.0313 | T54: 109 | AB54: 47 | AC54: 0.962 | AE54: 0.962 | AF54: 0.962 | AH54: 0.018 | AI54: 0.962 | AQ54: 0.5121 | AR54: 0.9586 | AT54: 0.0313 | AU54: 0.9586 | BC54: 47 | BD54: 0.018 | BF54: 0.962 | BG54: 0.018 | BI54: 0.018 | BJ54: 0.018 | BR54: 0.5121 | BS54: 0.007 | BU54: 0.0313 | BV54: 0.007 | EF54: 109 | EG54: 0.5121 | EI54: 0.9586 | EJ54: 0.5121 | EL54: 0.007 | EM54: 0.5121 | EU54: 0.5121 | EV54: 0.5121 | EX54: 0.0313 | EY54: 0.5121 | FG54: 109 | FH54: 0.0313 | FJ54: 0.9586 | FK54: 0.0313 | FM54: 0.007 | FN54: 0.0313 | FV54: 0.5121 | FW54: 0.0313 | FY54: 0.0313 | FZ54: 0.0313
A55: 35 | B55: 35 | D55: 0.9745851 | E55: 65 | G55: 0.0084278 | H55: 65 | P55: 0.558 | Q55: 44 | S55: 0.024 | T55: 44 | AB55: 65 | AC55: 0.9745851 | AE55: 0.9745851 | AF55: 0.9745851 | AH55: 0.0084278 | AI55: 0.9745851 | AQ55: 0.558 | AR55: 0.926 | AT55: 0.024 | AU55: 0.926 | BC55: 65 | BD55: 0.0084278 | BF55: 0.9745851 | BG55: 0.0084278 | BI55: 0.0084278 | BJ55: 0.0084278 | BR55: 0.558 | BS55: 0.019 | BU55: 0.024 | BV55: 0.019 | EF55: 44 | EG55: 0.558 | EI55: 0.926 | EJ55: 0.558 | EL55: 0.019 | EM55: 0.558 | EU55: 0.558 | EV55: 0.558 | EX55: 0.024 | EY55: 0.558 | FG55: 44 | FH55: 0.024 | FJ55: 0.926 | FK55: 0.024 | FM55: 0.019 | FN55: 0.024 | FV55: 0.558 | FW55: 0.024 | FY55: 0.024 | FZ55: 0.024
A56: 47 | B56: 47 | D56: 0.8515294 | E56: 47 | G56: 0.0224081 | H56: 47 | P56: 0.408 | Q56: 44 | S56: 0.024 | T56: 44 | AB56: 47 | AC56: 0.8515294 | AE56: 0.8515294 | AF56: 0.8515294 | AH56: 0.0224081 | AI56: 0.8515294 | AQ56: 0.408 | AR56: 0.825 | AT56: 0.024 | AU56: 0.825 | BC56: 47 | BD56: 0.0224081 | BF56: 0.8515294 | BG56: 0.0224081 | BI56: 0.0224081 | BJ56: 0.0224081 | BR56: 0.408 | BS56: 0.022 | BU56: 0.024 | BV56: 0.022 | EF56: 44 | EG56: 0.408 | EI56: 0.825 | EJ56: 0.408 | EL56: 0.022 | EM56: 0.408 | EU56: 0.408 | EV56: 0.408 | EX56: 0.024 | EY56: 0.408 | FG56: 44 | FH56: 0.024 | FJ56: 0.825 | FK56: 0.024 | FM56: 0.022 | FN56: 0.024 | FV56: 0.408 | FW56: 0.024 | FY56: 0.024 | FZ56: 0.024
A57: 65 | B57: 65 | D57: 0.8989 | E57: 10 | G57: 0.0272 | H57: 10 | P57: 0.197 | Q57: 44 | S57: 0.046 | T57: 44 | AB57: 10 | AC57: 0.8989 | AE57: 0.8989 | AF57: 0.8989 | AH57: 0.0272 | AI57: 0.8989 | AQ57: 0.197 | AR57: 0.917 | AT57: 0.046 | AU57: 0.917 | BC57: 10 | BD57: 0.0272 | BF57: 0.8989 | BG57: 0.0272 | BI57: 0.0272 | BJ57: 0.0272 | BR57: 0.197 | BS57: 0.029 | BU57: 0.046 | BV57: 0.029 | EF57: 44 | EG57: 0.197 | EI57: 0.917 | EJ57: 0.197 | EL57: 0.029 | EM57: 0.197 | EU57: 0.197 | EV57: 0.197 | EX57: 0.046 | EY57: 0.197 | FG57: 44 | FH57: 0.046 | FJ57: 0.917 | FK57: 0.046 | FM57: 0.029 | FN57: 0.046 | FV57: 0.197 | FW57: 0.046 | FY57: 0.046 | FZ57: 0.046
A58: 47 | B58: 47 | D58: 0.9676 | E58: 109 | G58: 0.0107 | H58: 109 | P58: 0.253 | Q58: 11 | S58: 0.03418367347 | T58: 11 | AB58: 109 | AC58: 0.9676 | AE58: 0.9676 | AF58: 0.9676 | AH58: 0.0107 | AI58: 0.9676 | AQ58: 0.253 | AR58: 0.759 | AT58: 0.03418367347 | AU58: 0.759 | BC58: 109 | BD58: 0.0107 | BF58: 0.9676 | BG58: 0.0107 | BI58: 0.0107 | BJ58: 0.0107 | BR58: 0.253 | BS58: 0.01428571429 | BU58: 0.03418367347 | BV58: 0.01428571429 | EF58: 11 | EG58: 0.253 | EI58: 0.759 | EJ58: 0.253 | EL58: 0.01428571429 | EM58: 0.253 | EU58: 0.253 | EV58: 0.253 | EX58: 0.03418367347 | EY58: 0.253 | FG58: 11 | FH58: 0.03418367347 | FJ58: 0.759 | FK58: 0.03418367347 | FM58: 0.01428571429 | FN58: 0.03418367347 | FV58: 0.253 | FW58: 0.03418367347 | FY58: 0.03418367347 | FZ58: 0.03418367347
A59: 10 | B59: 10 | D59: 0.9586 | E59: 109 | G59: 0.007 | H59: 109 | P59: 0.15 | Q59: 29 | S59: 0.033 | T59: 29 | AB59: 109 | AC59: 0.9586 | AE59: 0.9586 | AF59: 0.9586 | AH59: 0.007 | AI59: 0.9586 | AQ59: 0.15 | AR59: 0.87 | AT59: 0.033 | AU59: 0.87 | BC59: 109 | BD59: 0.007 | BF59: 0.9586 | BG59: 0.007 | BI59: 0.007 | BJ59: 0.007 | BR59: 0.15 | BS59: 0.013 | BU59: 0.033 | BV59: 0.013 | EF59: 29 | EG59: 0.15 | EI59: 0.87 | EJ59: 0.15 | EL59: 0.013 | EM59: 0.15 | EU59: 0.15 | EV59: 0.15 | EX59: 0.033 | EY59: 0.15 | FG59: 29 | FH59: 0.033 | FJ59: 0.87 | FK59: 0.033 | FM59: 0.013 | FN59: 0.033 | FV59: 0.15 | FW59: 0.033 | FY59: 0.033 | FZ59: 0.033
A60: 109 | B60: 109 | D60: 0.926 | E60: 44 | G60: 0.019 | H60: 44 | P60: 0.2932753 | Q60: 25 | S60: 0.0240128 | T60: 25 | AB60: 44 | AC60: 0.926 | AE60: 0.926 | AF60: 0.926 | AH60: 0.019 | AI60: 0.926 | AQ60: 0.2932753 | AR60: 0.7781578 | AT60: 0.0240128 | AU60: 0.7781578 | BC60: 44 | BD60: 0.019 | BF60: 0.926 | BG60: 0.019 | BI60: 0.019 | BJ60: 0.019 | BR60: 0.2932753 | BS60: 0.0130804 | BU60: 0.0240128 | BV60: 0.0130804 | EF60: 25 | EG60: 0.2932753 | EI60: 0.7781578 | EJ60: 0.2932753 | EL60: 0.0130804 | EM60: 0.2932753 | EU60: 0.2932753 | EV60: 0.2932753 | EX60: 0.0240128 | EY60: 0.2932753 | FG60: 25 | FH60: 0.0240128 | FJ60: 0.7781578 | FK60: 0.0240128 | FM60: 0.0130804 | FN60: 0.0240128 | FV60: 0.2932753 | FW60: 0.0240128 | FY60: 0.0240128 | FZ60: 0.0240128
A61: 109 | B61: 109 | D61: 0.825 | E61: 44 | G61: 0.022 | H61: 44 | AB61: 44 | AC61: 0.825 | AE61: 0.825 | AF61: 0.825 | AH61: 0.022 | AI61: 0.825 | BC61: 44 | BD61: 0.022 | BF61: 0.825 | BG61: 0.022 | BI61: 0.022 | BJ61: 0.022
A62: 44 | B62: 44 | D62: 0.917 | E62: 44 | G62: 0.029 | H62: 44 | AB62: 44 | AC62: 0.917 | AE62: 0.917 | AF62: 0.917 | AH62: 0.029 | AI62: 0.917 | BC62: 44 | BD62: 0.029 | BF62: 0.917 | BG62: 0.029 | BI62: 0.029 | BJ62: 0.029
A63: 44 | B63: 44 | D63: 0.759 | E63: 11 | G63: 0.01428571429 | H63: 11 | AB63: 11 | AC63: 0.759 | AE63: 0.759 | AF63: 0.759 | AH63: 0.01428571429 | AI63: 0.759 | BC63: 11 | BD63: 0.01428571429 | BF63: 0.759 | BG63: 0.01428571429 | BI63: 0.01428571429 | BJ63: 0.01428571429
A64: 44 | B64: 44 | D64: 0.87 | E64: 29 | G64: 0.013 | H64: 29 | AB64: 29 | AC64: 0.87 | AE64: 0.87 | AF64: 0.87 | AH64: 0.013 | AI64: 0.87 | BC64: 29 | BD64: 0.013 | BF64: 0.87 | BG64: 0.013 | BI64: 0.013 | BJ64: 0.013
A65: 11 | B65: 11 | D65: 0.88 | E65: 61 | G65: 0.01 | H65: 61 | AB65: 61 | AC65: 0.88 | AE65: 0.88 | AF65: 0.88 | AH65: 0.01 | AI65: 0.88 | BC65: 61 | BD65: 0.01 | BF65: 0.88 | BG65: 0.01 | BI65: 0.01 | BJ65: 0.01
A66: 29 | B66: 29 | D66: 0.91 | E66: 61 | G66: 0.01 | H66: 61 | AB66: 61 | AC66: 0.91 | AE66: 0.91 | AF66: 0.91 | AH66: 0.01 | AI66: 0.91 | BC66: 61 | BD66: 0.01 | BF66: 0.91 | BG66: 0.01 | BI66: 0.01 | BJ66: 0.01
A67: 61 | B67: 61 | D67: 0.94 | E67: 61 | G67: 0.01 | H67: 61 | AB67: 61 | AC67: 0.94 | AE67: 0.94 | AF67: 0.94 | AH67: 0.01 | AI67: 0.94 | BC67: 61 | BD67: 0.01 | BF67: 0.94 | BG67: 0.01 | BI67: 0.01 | BJ67: 0.01
A68: 61 | B68: 61 | D68: 0.94 | E68: 61 | G68: 0.01 | H68: 61 | AB68: 61 | AC68: 0.94 | AE68: 0.94 | AF68: 0.94 | AH68: 0.01 | AI68: 0.94 | BC68: 61 | BD68: 0.01 | BF68: 0.94 | BG68: 0.01 | BI68: 0.01 | BJ68: 0.01
A69: 61 | B69: 61 | D69: 0.7781578 | E69: 25 | G69: 0.0130804 | H69: 25 | AB69: 25 | AC69: 0.7781578 | AE69: 0.7781578 | AF69: 0.7781578 | AH69: 0.0130804 | AI69: 0.7781578 | BC69: 25 | BD69: 0.0130804 | BF69: 0.7781578 | BG69: 0.0130804 | BI69: 0.0130804 | BJ69: 0.0130804
A70: 61 | B70: 61
A71: 25 | B71: 25

Sheet sex-age (2)
A1: Family | B1: Species | C1: Study period | D1: Start | E1: End | F1: Duration | G1: Country | H1: Age | I1: Sex | J1: Phi | K1: SE-phi | L1: p | M1: SE-p | N1: Experiment | O1: Source
A2: Aeshnidae | B2: Anax imperator | C2: May-Sep | D2: 2017-05-31 | E2: 2017-09-07 | F2: =99+74 -> 173 | G2: France | H2: mature | I2: male | J2: 0.89 | K2: =(0.92-0.85)/3.92 -> 0.01785714286 | L2: 0.56 | M2: =(0.69-0.42)/3.92 -> 0.06887755102 | N2: Minot_etal2021 | O2: Minot M, Besnard A, Husté A (2021) Habitat use and movements of a large dragonfly (Odonata: Anax imperator) in a pond network. Freshw Biol 66:241–255. https://doi.org/10.1111/fwb.13632
A3: Calopterygidae | B3: Calopteryx cornelia | C3: 4 June-3 Sept | D3: 1977-06-04 | E3: 1977-08-05 | F3: =E3-D3 -> 62 | G3: Japan | H3: mature | I3: male | J3: 0.9469559 | K3: 0.006714 | L3: 0.3467283 | M3: 0.017393 | N3: Suzuki_Tamaishi1981-Calopteryx | O3: Recalculated from Suzuki, K. & Tamaishi, A. 1981
A4: Calopterygidae | B4: Calopteryx exul | C4: May-Jul | D4: 2016-05-21 | E4: 2016-07-02 | F4: 42 | G4: Algeria | H4: mature | I4: male | J4: 0.84 | K4: =(0.86-0.8)/3.92 -> 0.01530612245 | L4: 0.56 | M4: =(0.61-0.51)/3.92 -> 0.02551020408 | N4: Experiment | O4: Mellal MK, Bensouilah M, Houhamdi M, Khelifa R (2018) Reproductive habitat provisioning promotes survival and reproduction of the endangered endemic damselfly Calopteryx exul. J Insect Conserv 22:563–570. https://doi.org/10.1007/s10841-018-0085-5
A5: Calopterygidae | B5: Calopteryx haemorrhoidalis | C5: Jun-Sept | D5: 1996-06-21 | E5: 1996-09-04 | F5: 75 | G5: Spain | H5: mature | I5: male | J5: 0.9637 | K5: 0.0034 | L5: 0.8264 | M5: 0.0069 | N5: Munguia_etal2010-haemo | O5: Munguía-Steyer R, Córdoba-Aguilar A, Romo-Beltrán A (2010) Do individuals in better condition survive for longer? Field survival estimates according to male alternative reproductive tactics and sex. J Evol Biol 23:175–184. https://doi.org/10.1111/j.1420-9101.2009.01894.x
